Workbook

Sheet Overview
B1: PRA Disclosure Statement
C2: According to the Paperwork Reduction Act of 1995, no persons are required to respond to a collection of information unless it displays a valid OMB control number. The valid OMB control number for this information collection is 0938-1148 (CMS-10398 #56). The time required to complete this information collection is estimated to average 7.5 hours per response, including the time to review instructions, search existing data resources, gather the data needed, and complete and review the information collection. If you have comments concerning the accuracy of the time estimate(s) or suggestions for improving this form, please write to: CMS, 7500 Security Boulevard, Attn: PRA Reports Clearance Officer, Mail Stop C4-26-05, Baltimore, Maryland 21244-1850.
C4: Budget neutrality is a Federal policy that governs the Federal expenditures for1115 demonstrations. It is assured by placing an upper limit on the amount of Federal Financial Participation (FFP) the state can receive during the demonstration. The upper limit represents what the state could have received in the absence of the 1115 demonstration. The Budget Neutrality workbook will assist in collecting standardized data in order to determine financial performance for the demonstration in terms of budget neutrality. The workbook has two major groups of tabs: the first group collects and calculates Without Waiver (WOW) numbers, and the second group calculates With Waiver (WW) numbers. Data is collected per each demonstration Medicaid Eligibility Group (MEG), by demonstration year (DY). A Medicaid section 1115 demonstration is considered budget neutral if the Federal title XIX match, or funding received by the state (i.e., “with waiver” expenditures) do not exceed what the state would have (or could have) received without the demonstration (i.e., “without waiver” expenditures). The workbook provides the ability to evaluate any variance between WW and WOW calculations. The workbook consists of 15 tabs which contain different types of data and calculations. The following color schema is applied to the tabs:
B5: Blue | C5: Information populated in the Budget Neutrality workbook template based on the demonstration’s approved STC
B6: Red | C6: Information populated by states on a quarterly basis or per the reporting requirements defined in the STC
B7: Green | C7: Information automatically populated based on the input from other worksheets
B9: Note: Overview and Dropdowns tabs are read-only, no data entry is required. The Dropdowns tab displays the values used to build the dropdowns menus thoroughout the workbook,
B10: including the list of active waivers for the demonstration.
B12: Data Entry | C12: Within the tabs where a State User populates information (C Report, Total Adjustments, WW Spending Projected, MemMon Actual, MemMon Projected, and Summary TC tabs), yellow highlighted cells denote where data entry may be needed (depending on DY being updated).
B14: Pre-populated values in the downloaded Budget Neutrality workbook template
C15: The original workbook entries are based on the STCs and other demonstration approval documentation. These entries are made on the DY Def, MEG Def, WOW PMPM & Agg, Program Spending Limits, and Summary TC tab (Phase-Down Percentage and Cumulative Target Percentage fields). The MEG Def tab defines MEGs as Medicaid populations (core demonstration populations), Hypothetical populations (when a demonstration has separate budget neutrality agreements) and Tracking Only populations (for example, "pass-through" populations). The MEG Def tab also defines how expenditure numbers are calculated for a MEG (Per Capita vs. Aggregate) and the applicable scenarios (WOW, WW, or both). Also, the tab contains indicators defining MEG characteristics such as expenditure caps or applicability of savings phase-down calculations.
B17: Calculating With Waiver (WW) numbers
C18: WW numbers for each active DY of a demonstration are calculated based on a combination of actual WW expenditures, projected future expenditures, and any adjustments entered by a State User. The actual WW expenditures are copied from the Schedule C of the MBES CMS-64 report to the workbook (C Report tab). These numbers are automatically transferred to the C Report Grouper tab, where waiver expenditures are grouped by MEGs. The numbers are also transferred to the WW Spending Actual tab, which factors in adjustments entered on the Total Adjustments tab to calculate total actual WW expenditures. The WW Spending Total tab displays the actual WW expenditures plus future projected expenditures (transferred from the WW Spending Projected tab). Finally, the total WW actual and projected numbers are transferred to the Summary TC (Total Computable) tab (into the With-Waiver Total Expenditures section).
B20: Calculating Without Waiver (WOW) numbers
C21: WOW numbers can be obtained either one of two ways: using Aggregate or Per Capita calculations. If total projected expenditures for a MEG is known and the expenditure calculation type is defined as 'Aggregate' on the MEG Def tab, the total projected expenditure amount is entered for each active DY. However, if the expenditure calculation type is defined as 'Per Capita', total projected expenditures are derived by multiplying per member per month (PMPM) costs by the actual number of member months. Both Aggregate and PMPM numbers are populated on the WOW PMPM & Agg tab. The number of actual member months (number of beneficiaries times the number of months enrolled) are entered by a State User on the MemMon Actual tab for each DY. On the MemMon Projected tab, State User enters projected numbers. The totals for actual and projected member months are calculated on the MemMon Total tab. WOW aggregate, PMPM and member month data is then moved to the the Without-Waiver Total Expenditures section of the Summary TC tab, where final calculations are performed. Based on information from all tabs, the WW and WOW numbers are compared to determine the budget neutrality status of the demonstration.
B23: Below are the definitions for the tabs of the workbook which require data entries from State User.
B25: On top of the C Report tab, enter data in the following highlighted cells:
C27: ‘Data Pulled On:’ - enter the date the source file used to enter data on this tab was pulled
C28: ‘For the Time Period Through :’ - enter the date through which the source file data was pulled
C29: Reporting DY' - enter the Demonstration Year (DY) for which data is being reported. Entered DY value must align with DYs from the DY Def tab.
C30: Reporting Quarter' - enter a number of the quarter (values 1 through 4) for which data is being reported.
C32: Notes:
C33: - Dates must be entered in the following format: mm/dd/yyyy
C34: - Reporting DY and Reporting Quarter entries affect which portion of the 'Medicaid Aggregate' and 'Medicaid Aggregate - WOW only' amounts for a DY will be calculated as Actuals, and which will be calculated as Projected
C35: - Entry for each of these four fields is required for the workbook submission. If any field is not populated, you will receive an error and the document will not be uploaded to the system.
B37: State User enters information on the following tabs:
B39: C Report Tab
C41: Open Schedule C of the CMS 64 Expenditure Report. Under your state, locate expenditure data for the specific demonstration. From this location on the CMS 64 Expenditure Report, copy expenditure data cells for all DYs (active and non-active). On the C Report tab, paste the data into the correct cell/row. Repeat the copy and paste process for MAP Waivers section (Total Computable and Federal Share) and ADM Waivers section (if applicable). Verify that the pasted numbers are correctly aligned with the Waiver Name values.
B43: Total Adjustments tab
C45: When adjustments are relevant for a demonstration, enter the actual numbers of total contributions to the reported expenditures, per each MEG, for the reporting quarter. Add new reported adjustments to any existing numbers for previous quarters for the reported DY. Note: Any adjustments that reduce expenditures must be entered as negative numbers (for example, -$10,000).
B47: WW Spending Projected tab
C49: Enter projected annual expenditures for each MEG for the active DYs of a demonstration. For each reporting quarter, update the projected numbers so they reflect only future quarter projections. Please see the example for the MemMon Projected tab.
B51: MemMonth Actual tab
C53: For each MEG, calculate the actual number of member months for the reported quarter and add this number to the previously entered number for the same DY. For example, for Q3 reporting period, add Q3 member months to the existing number for the same MEG and DY and enter the result into the same cell.
B56: MemMonth Projected tab
C58: For each MEG, enter projected (future) annual member months for all active DYs of the demonstration. Adjust future DY numbers as needed. For the current DY, enter only the number that reflects future quarters. For example, for Q3 reporting, only enter the projected number for Q4. There should be no projected numbers for completed (actual) DYs.
B60: Summary TC tab
C61: In the Net Variance section, for each DY, enter estimated numbers in row '1115A Dual Demonstration Savings (state preliminary estimate)'.
C62: In the next row, '1115A Dual Demonstration Savings (OACT certified)' enter certified numbers.
C63: Both estimated and certified numbers must be negative, as dual demonstration savings numbers reduce the Net Variance amount.

Sheet DY Def
A3: Demonstration Years Definitions
A5: DY | B5: 1 | C5: 2 | D5: 3 | E5: 4 | F5: 5 | G5: 6 | H5: 7 | I5: 8 | J5: 9 | K5: 10 | L5: 11 | M5: 12 | N5: 13 | O5: 14 | P5: 15 | Q5: 16 | R5: 17 | S5: 18 | T5: 19 | U5: 20 | V5: 21 | W5: 22 | X5: 23 | Y5: 24 | Z5: 25 | AA5: 26 | AB5: 27 | AC5: 28 | AD5: 29 | AE5: 30
A6: Start Date | B6: 2012-06-01 | C6: 2012-07-01 | D6: 2014-07-01 | E6: 2015-07-01 | F6: 2016-01-01 | G6: 2017-01-01 | H6: 2018-01-01 | I6: 2019-01-01 | J6: 2020-01-01 | K6: 2021-01-01 | L6: 2022-01-01 | M6: 2023-01-01 | N6: 2024-01-01 | O6: 2025-01-01 | P6: 2026-01-01 | Q6: 2027-01-01 | R6: 2028-01-01
A7: End Date | B7: 2012-06-30 | C7: 2013-06-30 | D7: 2015-06-30 | E7: 2015-12-31 | F7: 2016-12-31 | G7: 2017-12-31 | H7: 2018-12-31 | I7: 2019-12-31 | J7: 2020-12-31 | K7: 2021-12-31 | L7: 2022-12-31 | M7: 2023-12-31 | N7: 2024-12-31 | O7: 2025-12-31 | P7: 2026-12-31 | Q7: 2/31/2027 | R7: 2028-12-31

Sheet MEG Def
H1: Enter any general comments / notes:
B3: MEG Definitions
B5: MEG Name | C5: MEG Description | E5: WOW | F5: WW | G5: Per Capita or Aggregate | H5: Savings Phase-Down | I5: Expenditures Subject to Cap? | J5: Hypothetical Populations Included in Calculations? | K5: Start DY | L5: Start Date | M5: End DY | N5: End Date
B6: Medicaid Per Capita
J7: N/A | L7: =IF(K7<>"",(LOOKUP(K7,'DY Def'!$A$5:$AE$5,'DY Def'!$A$6:$AE$6)),"") ->  | N7: =IF(M7<>"",(LOOKUP(M7,'DY Def'!$A$5:$AE$5,'DY Def'!$A$7:$AE$7)),"") -> 
J8: N/A | L8: =IF(K8<>"",(LOOKUP(K8,'DY Def'!$A$5:$AE$5,'DY Def'!$A$6:$AE$6)),"") ->  | N8: =IF(M8<>"",(LOOKUP(M8,'DY Def'!$A$5:$AE$5,'DY Def'!$A$7:$AE$7)),"") -> 
J9: N/A | L9: =IF(K9<>"",(LOOKUP(K9,'DY Def'!$A$5:$AE$5,'DY Def'!$A$6:$AE$6)),"") ->  | N9: =IF(M9<>"",(LOOKUP(M9,'DY Def'!$A$5:$AE$5,'DY Def'!$A$7:$AE$7)),"") -> 
J10: N/A | L10: =IF(K10<>"",(LOOKUP(K10,'DY Def'!$A$5:$AE$5,'DY Def'!$A$6:$AE$6)),"") ->  | N10: =IF(M10<>"",(LOOKUP(M10,'DY Def'!$A$5:$AE$5,'DY Def'!$A$7:$AE$7)),"") -> 
J11: N/A | L11: =IF(K11<>"",(LOOKUP(K11,'DY Def'!$A$5:$AE$5,'DY Def'!$A$6:$AE$6)),"") ->  | N11: =IF(M11<>"",(LOOKUP(M11,'DY Def'!$A$5:$AE$5,'DY Def'!$A$7:$AE$7)),"") -> 
B13: Medicaid Per Capita - WOW only
H14: N/A | J14: N/A | L14: =IF(K14<>"",(LOOKUP(K14,'DY Def'!$A$5:$AE$5,'DY Def'!$A$6:$AE$6)),"") ->  | N14: =IF(M14<>"",(LOOKUP(M14,'DY Def'!$A$5:$AE$5,'DY Def'!$A$7:$AE$7)),"") -> 
H15: N/A | J15: N/A | L15: =IF(K15<>"",(LOOKUP(K15,'DY Def'!$A$5:$AE$5,'DY Def'!$A$6:$AE$6)),"") ->  | N15: =IF(M15<>"",(LOOKUP(M15,'DY Def'!$A$5:$AE$5,'DY Def'!$A$7:$AE$7)),"") -> 
H16: N/A | J16: N/A | L16: =IF(K16<>"",(LOOKUP(K16,'DY Def'!$A$5:$AE$5,'DY Def'!$A$6:$AE$6)),"") ->  | N16: =IF(M16<>"",(LOOKUP(M16,'DY Def'!$A$5:$AE$5,'DY Def'!$A$7:$AE$7)),"") -> 
H17: N/A | J17: N/A | L17: =IF(K17<>"",(LOOKUP(K17,'DY Def'!$A$5:$AE$5,'DY Def'!$A$6:$AE$6)),"") ->  | N17: =IF(M17<>"",(LOOKUP(M17,'DY Def'!$A$5:$AE$5,'DY Def'!$A$7:$AE$7)),"") -> 
H18: N/A | J18: N/A | L18: =IF(K18<>"",(LOOKUP(K18,'DY Def'!$A$5:$AE$5,'DY Def'!$A$6:$AE$6)),"") ->  | N18: =IF(M18<>"",(LOOKUP(M18,'DY Def'!$A$5:$AE$5,'DY Def'!$A$7:$AE$7)),"") -> 
B20: Medicaid Aggregate
H21: N/A | J21: N/A | L21: =IF(K21<>"",(LOOKUP(K21,'DY Def'!$A$5:$AE$5,'DY Def'!$A$6:$AE$6)),"") ->  | N21: =IF(M21<>"",(LOOKUP(M21,'DY Def'!$A$5:$AE$5,'DY Def'!$A$7:$AE$7)),"") -> 
H22: N/A | J22: N/A | L22: =IF(K22<>"",(LOOKUP(K22,'DY Def'!$A$5:$AE$5,'DY Def'!$A$6:$AE$6)),"") ->  | N22: =IF(M22<>"",(LOOKUP(M22,'DY Def'!$A$5:$AE$5,'DY Def'!$A$7:$AE$7)),"") -> 
H23: N/A | J23: N/A | L23: =IF(K23<>"",(LOOKUP(K23,'DY Def'!$A$5:$AE$5,'DY Def'!$A$6:$AE$6)),"") ->  | N23: =IF(M23<>"",(LOOKUP(M23,'DY Def'!$A$5:$AE$5,'DY Def'!$A$7:$AE$7)),"") -> 
H24: N/A | J24: N/A | L24: =IF(K24<>"",(LOOKUP(K24,'DY Def'!$A$5:$AE$5,'DY Def'!$A$6:$AE$6)),"") ->  | N24: =IF(M24<>"",(LOOKUP(M24,'DY Def'!$A$5:$AE$5,'DY Def'!$A$7:$AE$7)),"") -> 
H25: N/A | J25: N/A | L25: =IF(K25<>"",(LOOKUP(K25,'DY Def'!$A$5:$AE$5,'DY Def'!$A$6:$AE$6)),"") ->  | N25: =IF(M25<>"",(LOOKUP(M25,'DY Def'!$A$5:$AE$5,'DY Def'!$A$7:$AE$7)),"") -> 
B27: Medicaid Aggregate - WOW only
H28: N/A | J28: N/A | L28: =IF(K28<>"",(LOOKUP(K28,'DY Def'!$A$5:$AE$5,'DY Def'!$A$6:$AE$6)),"") ->  | N28: =IF(M28<>"",(LOOKUP(M28,'DY Def'!$A$5:$AE$5,'DY Def'!$A$7:$AE$7)),"") -> 
H29: N/A | J29: N/A | L29: =IF(K29<>"",(LOOKUP(K29,'DY Def'!$A$5:$AE$5,'DY Def'!$A$6:$AE$6)),"") ->  | N29: =IF(M29<>"",(LOOKUP(M29,'DY Def'!$A$5:$AE$5,'DY Def'!$A$7:$AE$7)),"") -> 
H30: N/A | J30: N/A | L30: =IF(K30<>"",(LOOKUP(K30,'DY Def'!$A$5:$AE$5,'DY Def'!$A$6:$AE$6)),"") ->  | N30: =IF(M30<>"",(LOOKUP(M30,'DY Def'!$A$5:$AE$5,'DY Def'!$A$7:$AE$7)),"") -> 
H31: N/A | J31: N/A | L31: =IF(K31<>"",(LOOKUP(K31,'DY Def'!$A$5:$AE$5,'DY Def'!$A$6:$AE$6)),"") ->  | N31: =IF(M31<>"",(LOOKUP(M31,'DY Def'!$A$5:$AE$5,'DY Def'!$A$7:$AE$7)),"") -> 
H32: N/A | J32: N/A | L32: =IF(K32<>"",(LOOKUP(K32,'DY Def'!$A$5:$AE$5,'DY Def'!$A$6:$AE$6)),"") ->  | N32: =IF(M32<>"",(LOOKUP(M32,'DY Def'!$A$5:$AE$5,'DY Def'!$A$7:$AE$7)),"") -> 
B34: Medicaid Aggregate - WW only
H35: N/A | J35: N/A | L35: =IF(K35<>"",(LOOKUP(K35,'DY Def'!$A$5:$AE$5,'DY Def'!$A$6:$AE$6)),"") ->  | N35: =IF(M35<>"",(LOOKUP(M35,'DY Def'!$A$5:$AE$5,'DY Def'!$A$7:$AE$7)),"") -> 
H36: N/A | J36: N/A | L36: =IF(K36<>"",(LOOKUP(K36,'DY Def'!$A$5:$AE$5,'DY Def'!$A$6:$AE$6)),"") ->  | N36: =IF(M36<>"",(LOOKUP(M36,'DY Def'!$A$5:$AE$5,'DY Def'!$A$7:$AE$7)),"") -> 
H37: N/A | J37: N/A | L37: =IF(K37<>"",(LOOKUP(K37,'DY Def'!$A$5:$AE$5,'DY Def'!$A$6:$AE$6)),"") ->  | N37: =IF(M37<>"",(LOOKUP(M37,'DY Def'!$A$5:$AE$5,'DY Def'!$A$7:$AE$7)),"") -> 
H38: N/A | J38: N/A | L38: =IF(K38<>"",(LOOKUP(K38,'DY Def'!$A$5:$AE$5,'DY Def'!$A$6:$AE$6)),"") ->  | N38: =IF(M38<>"",(LOOKUP(M38,'DY Def'!$A$5:$AE$5,'DY Def'!$A$7:$AE$7)),"") -> 
H39: N/A | J39: N/A | L39: =IF(K39<>"",(LOOKUP(K39,'DY Def'!$A$5:$AE$5,'DY Def'!$A$6:$AE$6)),"") ->  | N39: =IF(M39<>"",(LOOKUP(M39,'DY Def'!$A$5:$AE$5,'DY Def'!$A$7:$AE$7)),"") -> 
B41: Hypothetical 1 Per Capita | J41: Hypothetical Test 1
A42: 1 | B42: Plan First | C42: Women aged 19 through 44, with income up to 211 percent of the Federal Poverty Level (FPL) who are not otherwise eligible for Medicaid, who are losing Medicaid pregnancy coverage at the conclusion of 60 days postpartum period or losing Medicaid or CHIP coverage, or who have private health insurance coverage but meet all other demonstration eligibility criteria. | E42: Yes | F42: Yes | G42: Per Capita | H42: N/A | I42: No | J42: Yes | K42: 1 | L42: =IF(K42<>"",(LOOKUP(K42,'DY Def'!$A$5:$AE$5,'DY Def'!$A$6:$AE$6)),"") -> 2012-06-01 | M42: 17 | N42: =IF(M42<>"",(LOOKUP(M42,'DY Def'!$A$5:$AE$5,'DY Def'!$A$7:$AE$7)),"") -> 2028-12-31
H43: N/A | L43: =IF(K43<>"",(LOOKUP(K43,'DY Def'!$A$5:$AE$5,'DY Def'!$A$6:$AE$6)),"") ->  | N43: =IF(M43<>"",(LOOKUP(M43,'DY Def'!$A$5:$AE$5,'DY Def'!$A$7:$AE$7)),"") -> 
H44: N/A | L44: =IF(K44<>"",(LOOKUP(K44,'DY Def'!$A$5:$AE$5,'DY Def'!$A$6:$AE$6)),"") ->  | N44: =IF(M44<>"",(LOOKUP(M44,'DY Def'!$A$5:$AE$5,'DY Def'!$A$7:$AE$7)),"") -> 
B46: Hypothetical 1 Aggregate
H47: N/A | L47: =IF(K47<>"",(LOOKUP(K47,'DY Def'!$A$5:$AE$5,'DY Def'!$A$6:$AE$6)),"") ->  | N47: =IF(M47<>"",(LOOKUP(M47,'DY Def'!$A$5:$AE$5,'DY Def'!$A$7:$AE$7)),"") -> 
H48: N/A | L48: =IF(K48<>"",(LOOKUP(K48,'DY Def'!$A$5:$AE$5,'DY Def'!$A$6:$AE$6)),"") ->  | N48: =IF(M48<>"",(LOOKUP(M48,'DY Def'!$A$5:$AE$5,'DY Def'!$A$7:$AE$7)),"") -> 
H49: N/A | L49: =IF(K49<>"",(LOOKUP(K49,'DY Def'!$A$5:$AE$5,'DY Def'!$A$6:$AE$6)),"") ->  | N49: =IF(M49<>"",(LOOKUP(M49,'DY Def'!$A$5:$AE$5,'DY Def'!$A$7:$AE$7)),"") -> 
B51: Hypothetical 2 Per Capita | J51: Hypothetical Test 2
H52: N/A | L52: =IF(K52<>"",(LOOKUP(K52,'DY Def'!$A$5:$AE$5,'DY Def'!$A$6:$AE$6)),"") ->  | N52: =IF(M52<>"",(LOOKUP(M52,'DY Def'!$A$5:$AE$5,'DY Def'!$A$7:$AE$7)),"") -> 
H53: N/A | L53: =IF(K53<>"",(LOOKUP(K53,'DY Def'!$A$5:$AE$5,'DY Def'!$A$6:$AE$6)),"") ->  | N53: =IF(M53<>"",(LOOKUP(M53,'DY Def'!$A$5:$AE$5,'DY Def'!$A$7:$AE$7)),"") -> 
H54: N/A | L54: =IF(K54<>"",(LOOKUP(K54,'DY Def'!$A$5:$AE$5,'DY Def'!$A$6:$AE$6)),"") ->  | N54: =IF(M54<>"",(LOOKUP(M54,'DY Def'!$A$5:$AE$5,'DY Def'!$A$7:$AE$7)),"") -> 
B56: Hypothetical 2 Aggregate
H57: N/A | L57: =IF(K57<>"",(LOOKUP(K57,'DY Def'!$A$5:$AE$5,'DY Def'!$A$6:$AE$6)),"") ->  | N57: =IF(M57<>"",(LOOKUP(M57,'DY Def'!$A$5:$AE$5,'DY Def'!$A$7:$AE$7)),"") -> 
H58: N/A | L58: =IF(K58<>"",(LOOKUP(K58,'DY Def'!$A$5:$AE$5,'DY Def'!$A$6:$AE$6)),"") ->  | N58: =IF(M58<>"",(LOOKUP(M58,'DY Def'!$A$5:$AE$5,'DY Def'!$A$7:$AE$7)),"") -> 
H59: N/A | L59: =IF(K59<>"",(LOOKUP(K59,'DY Def'!$A$5:$AE$5,'DY Def'!$A$6:$AE$6)),"") ->  | N59: =IF(M59<>"",(LOOKUP(M59,'DY Def'!$A$5:$AE$5,'DY Def'!$A$7:$AE$7)),"") -> 
N60: =IF(M60<>"",(LOOKUP(M60,'DY Def'!$A$5:$AE$5,'DY Def'!$A$7:$AE$7)),"") -> 
B61: Tracking Only | N61: =IF(M61<>"",(LOOKUP(M61,'DY Def'!$A$5:$AE$5,'DY Def'!$A$7:$AE$7)),"") -> 
N62: =IF(M62<>"",(LOOKUP(M62,'DY Def'!$A$5:$AE$5,'DY Def'!$A$7:$AE$7)),"") -> 
N63: =IF(M63<>"",(LOOKUP(M63,'DY Def'!$A$5:$AE$5,'DY Def'!$A$7:$AE$7)),"") -> 
N64: =IF(M64<>"",(LOOKUP(M64,'DY Def'!$A$5:$AE$5,'DY Def'!$A$7:$AE$7)),"") -> 
N65: =IF(M65<>"",(LOOKUP(M65,'DY Def'!$A$5:$AE$5,'DY Def'!$A$7:$AE$7)),"") -> 
N66: =IF(M66<>"",(LOOKUP(M66,'DY Def'!$A$5:$AE$5,'DY Def'!$A$7:$AE$7)),"") -> 
N67: =IF(M67<>"",(LOOKUP(M67,'DY Def'!$A$5:$AE$5,'DY Def'!$A$7:$AE$7)),"") -> 
N68: =IF(M68<>"",(LOOKUP(M68,'DY Def'!$A$5:$AE$5,'DY Def'!$A$7:$AE$7)),"") -> 
N69: =IF(M69<>"",(LOOKUP(M69,'DY Def'!$A$5:$AE$5,'DY Def'!$A$7:$AE$7)),"") -> 
N70: =IF(M70<>"",(LOOKUP(M70,'DY Def'!$A$5:$AE$5,'DY Def'!$A$7:$AE$7)),"") -> 
N71: =IF(M71<>"",(LOOKUP(M71,'DY Def'!$A$5:$AE$5,'DY Def'!$A$7:$AE$7)),"") -> 
N72: =IF(M72<>"",(LOOKUP(M72,'DY Def'!$A$5:$AE$5,'DY Def'!$A$7:$AE$7)),"") -> 
N73: =IF(M73<>"",(LOOKUP(M73,'DY Def'!$A$5:$AE$5,'DY Def'!$A$7:$AE$7)),"") -> 
N74: =IF(M74<>"",(LOOKUP(M74,'DY Def'!$A$5:$AE$5,'DY Def'!$A$7:$AE$7)),"") -> 
N75: =IF(M75<>"",(LOOKUP(M75,'DY Def'!$A$5:$AE$5,'DY Def'!$A$7:$AE$7)),"") -> 
N76: =IF(M76<>"",(LOOKUP(M76,'DY Def'!$A$5:$AE$5,'DY Def'!$A$7:$AE$7)),"") -> 
N77: =IF(M77<>"",(LOOKUP(M77,'DY Def'!$A$5:$AE$5,'DY Def'!$A$7:$AE$7)),"") -> 
N78: =IF(M78<>"",(LOOKUP(M78,'DY Def'!$A$5:$AE$5,'DY Def'!$A$7:$AE$7)),"") -> 
N79: =IF(M79<>"",(LOOKUP(M79,'DY Def'!$A$5:$AE$5,'DY Def'!$A$7:$AE$7)),"") -> 
N80: =IF(M80<>"",(LOOKUP(M80,'DY Def'!$A$5:$AE$5,'DY Def'!$A$7:$AE$7)),"") -> 
N81: =IF(M81<>"",(LOOKUP(M81,'DY Def'!$A$5:$AE$5,'DY Def'!$A$7:$AE$7)),"") -> 
N82: =IF(M82<>"",(LOOKUP(M82,'DY Def'!$A$5:$AE$5,'DY Def'!$A$7:$AE$7)),"") -> 
N83: =IF(M83<>"",(LOOKUP(M83,'DY Def'!$A$5:$AE$5,'DY Def'!$A$7:$AE$7)),"") -> 
N84: =IF(M84<>"",(LOOKUP(M84,'DY Def'!$A$5:$AE$5,'DY Def'!$A$7:$AE$7)),"") -> 
N85: =IF(M85<>"",(LOOKUP(M85,'DY Def'!$A$5:$AE$5,'DY Def'!$A$7:$AE$7)),"") -> 
N86: =IF(M86<>"",(LOOKUP(M86,'DY Def'!$A$5:$AE$5,'DY Def'!$A$7:$AE$7)),"") -> 
N87: =IF(M87<>"",(LOOKUP(M87,'DY Def'!$A$5:$AE$5,'DY Def'!$A$7:$AE$7)),"") -> 
N88: =IF(M88<>"",(LOOKUP(M88,'DY Def'!$A$5:$AE$5,'DY Def'!$A$7:$AE$7)),"") -> 
N89: =IF(M89<>"",(LOOKUP(M89,'DY Def'!$A$5:$AE$5,'DY Def'!$A$7:$AE$7)),"") -> 
N90: =IF(M90<>"",(LOOKUP(M90,'DY Def'!$A$5:$AE$5,'DY Def'!$A$7:$AE$7)),"") -> 
N91: =IF(M91<>"",(LOOKUP(M91,'DY Def'!$A$5:$AE$5,'DY Def'!$A$7:$AE$7)),"") -> 
N92: =IF(M92<>"",(LOOKUP(M92,'DY Def'!$A$5:$AE$5,'DY Def'!$A$7:$AE$7)),"") -> 
N93: =IF(M93<>"",(LOOKUP(M93,'DY Def'!$A$5:$AE$5,'DY Def'!$A$7:$AE$7)),"") -> 
N94: =IF(M94<>"",(LOOKUP(M94,'DY Def'!$A$5:$AE$5,'DY Def'!$A$7:$AE$7)),"") -> 
N95: =IF(M95<>"",(LOOKUP(M95,'DY Def'!$A$5:$AE$5,'DY Def'!$A$7:$AE$7)),"") -> 
N96: =IF(M96<>"",(LOOKUP(M96,'DY Def'!$A$5:$AE$5,'DY Def'!$A$7:$AE$7)),"") -> 
N97: =IF(M97<>"",(LOOKUP(M97,'DY Def'!$A$5:$AE$5,'DY Def'!$A$7:$AE$7)),"") -> 
L101: =IF(K101<>"",(LOOKUP(K101,'DY Def'!$A$5:$AE$5,'DY Def'!$A$6:$AE$6)),"") -> 

Sheet WOW PMPM & Agg
B3: WOW PMPMs and Aggregates
D6: DEMONSTRATION YEARS (DY)
D7: ='[1]DY Def'!B$5 -> 1 | E7: ='[1]DY Def'!C$5 -> 2 | F7: ='[1]DY Def'!D$5 -> 3 | G7: ='[1]DY Def'!E$5 -> 4 | H7: ='[1]DY Def'!F$5 -> 5 | I7: ='[1]DY Def'!G$5 -> 6 | J7: ='[1]DY Def'!H$5 -> 7 | K7: ='[1]DY Def'!I$5 -> 8 | L7: ='[1]DY Def'!J$5 -> 9 | M7: ='[1]DY Def'!K$5 -> 10 | N7: ='[1]DY Def'!L$5 -> 11 | O7: ='[1]DY Def'!M$5 -> 12 | P7: ='[1]DY Def'!N$5 -> 13 | Q7: ='[1]DY Def'!O$5 -> 14 | R7: ='[1]DY Def'!P$5 -> 15 | S7: ='[1]DY Def'!Q$5 -> 16 | T7: ='[1]DY Def'!R$5 -> 17 | U7: ='[1]DY Def'!S$5 -> 18 | V7: ='[1]DY Def'!T$5 -> 19 | W7: ='[1]DY Def'!U$5 -> 20 | X7: ='[1]DY Def'!V$5 -> 21 | Y7: ='[1]DY Def'!W$5 -> 22 | Z7: ='[1]DY Def'!X$5 -> 23 | AA7: ='[1]DY Def'!Y$5 -> 24 | AB7: ='[1]DY Def'!Z$5 -> 25 | AC7: ='DY Def'!AA$5 -> 26 | AD7: ='DY Def'!AB$5 -> 27 | AE7: ='DY Def'!AC$5 -> 28 | AF7: ='DY Def'!AD$5 -> 29 | AG7: ='DY Def'!AE$5 -> 30
B9: Medicaid Per Capita
B10: =IFERROR(VLOOKUP(C10,'MEG Def'!$A$7:$B$12,2),"") -> 
B11: =IFERROR(VLOOKUP(C11,'MEG Def'!$A$7:$B$12,2),"") -> 
B12: =IFERROR(VLOOKUP(C12,'MEG Def'!$A$7:$B$12,2),"") -> 
B13: =IFERROR(VLOOKUP(C13,'MEG Def'!$A$7:$B$12,2),"") -> 
B14: =IFERROR(VLOOKUP(C14,'MEG Def'!$A$7:$B$12,2),"") -> 
B16: Medicaid Per Capita - WOW only
B17: =IFERROR(VLOOKUP(C17,'MEG Def'!$A$14:$B$19,2),0) -> 0
B18: =IFERROR(VLOOKUP(C18,'MEG Def'!$A$14:$B$19,2),0) -> 0
B19: =IFERROR(VLOOKUP(C19,'MEG Def'!$A$14:$B$19,2),0) -> 0
B20: =IFERROR(VLOOKUP(C20,'MEG Def'!$A$14:$B$19,2),0) -> 0
B21: =IFERROR(VLOOKUP(C21,'MEG Def'!$A$14:$B$19,2),0) -> 0
B23: Medicaid Aggregate
B24: =IFERROR(VLOOKUP(C24,'MEG Def'!$A$21:$B$26,2),"") -> 
B25: =IFERROR(VLOOKUP(C25,'MEG Def'!$A$21:$B$26,2),"") -> 
B26: =IFERROR(VLOOKUP(C26,'MEG Def'!$A$21:$B$26,2),"") -> 
B27: =IFERROR(VLOOKUP(C27,'MEG Def'!$A$21:$B$26,2),"") -> 
B28: =IFERROR(VLOOKUP(C28,'MEG Def'!$A$21:$B$26,2),"") -> 
B30: Medicaid Aggregate - WOW only
B31: =IFERROR(VLOOKUP(C31,'MEG Def'!$A$28:$B$33,2),0) -> 0
B32: =IFERROR(VLOOKUP(C32,'MEG Def'!$A$28:$B$33,2),0) -> 0
B33: =IFERROR(VLOOKUP(C33,'MEG Def'!$A$28:$B$33,2),0) -> 0
B34: =IFERROR(VLOOKUP(C34,'MEG Def'!$A$28:$B$33,2),0) -> 0
B35: =IFERROR(VLOOKUP(C35,'MEG Def'!$A$28:$B$33,2),0) -> 0
D38: DEMONSTRATION YEARS (DY)
D39: ='[1]DY Def'!B$5 -> 1 | E39: ='[1]DY Def'!C$5 -> 2 | F39: ='[1]DY Def'!D$5 -> 3 | G39: ='[1]DY Def'!E$5 -> 4 | H39: ='[1]DY Def'!F$5 -> 5 | I39: ='[1]DY Def'!G$5 -> 6 | J39: ='[1]DY Def'!H$5 -> 7 | K39: ='[1]DY Def'!I$5 -> 8 | L39: ='[1]DY Def'!J$5 -> 9 | M39: ='[1]DY Def'!K$5 -> 10 | N39: ='[1]DY Def'!L$5 -> 11 | O39: ='[1]DY Def'!M$5 -> 12 | P39: ='[1]DY Def'!N$5 -> 13 | Q39: ='[1]DY Def'!O$5 -> 14 | R39: ='[1]DY Def'!P$5 -> 15 | S39: ='[1]DY Def'!Q$5 -> 16 | T39: ='[1]DY Def'!R$5 -> 17 | U39: ='[1]DY Def'!S$5 -> 18 | V39: ='[1]DY Def'!T$5 -> 19 | W39: ='[1]DY Def'!U$5 -> 20 | X39: ='[1]DY Def'!V$5 -> 21 | Y39: ='[1]DY Def'!W$5 -> 22 | Z39: ='[1]DY Def'!X$5 -> 23 | AA39: ='[1]DY Def'!Y$5 -> 24 | AB39: ='[1]DY Def'!Z$5 -> 25 | AC39: ='DY Def'!AA$5 -> 26 | AD39: ='DY Def'!AB$5 -> 27 | AE39: ='DY Def'!AC$5 -> 28 | AF39: ='DY Def'!AD$5 -> 29 | AG39: ='DY Def'!AE$5 -> 30
B41: Hypothetical 1 Per Capita
B42: =IFERROR(VLOOKUP(C42,'MEG Def'!$A$42:$B$45,2),0) -> Plan First | C42: 1 | K42: 14.8 | L42: 15.5 | M42: 16.22 | N42: 16.99 | O42: 17.78 | P42: 18.62 | Q42: 19.5 | R42: 20.41 | S42: 21.37 | T42: 22.38
B43: =IFERROR(VLOOKUP(C43,'MEG Def'!$A$42:$B$45,2),0) -> 0
B44: =IFERROR(VLOOKUP(C44,'MEG Def'!$A$42:$B$45,2),0) -> 0
B46: Hypothetical 1 Aggregate
B47: =IFERROR(VLOOKUP(C47,'MEG Def'!$A$47:$B$50,2),0) -> 0
B48: =IFERROR(VLOOKUP(C48,'MEG Def'!$A$47:$B$50,2),0) -> 0
B49: =IFERROR(VLOOKUP(C49,'MEG Def'!$A$47:$B$50,2),0) -> 0
D52: DEMONSTRATION YEARS (DY)
D53: ='[1]DY Def'!B$5 -> 1 | E53: ='[1]DY Def'!C$5 -> 2 | F53: ='[1]DY Def'!D$5 -> 3 | G53: ='[1]DY Def'!E$5 -> 4 | H53: ='[1]DY Def'!F$5 -> 5 | I53: ='[1]DY Def'!G$5 -> 6 | J53: ='[1]DY Def'!H$5 -> 7 | K53: ='[1]DY Def'!I$5 -> 8 | L53: ='[1]DY Def'!J$5 -> 9 | M53: ='[1]DY Def'!K$5 -> 10 | N53: ='[1]DY Def'!L$5 -> 11 | O53: ='[1]DY Def'!M$5 -> 12 | P53: ='[1]DY Def'!N$5 -> 13 | Q53: ='[1]DY Def'!O$5 -> 14 | R53: ='[1]DY Def'!P$5 -> 15 | S53: ='[1]DY Def'!Q$5 -> 16 | T53: ='[1]DY Def'!R$5 -> 17 | U53: ='[1]DY Def'!S$5 -> 18 | V53: ='[1]DY Def'!T$5 -> 19 | W53: ='[1]DY Def'!U$5 -> 20 | X53: ='[1]DY Def'!V$5 -> 21 | Y53: ='[1]DY Def'!W$5 -> 22 | Z53: ='[1]DY Def'!X$5 -> 23 | AA53: ='[1]DY Def'!Y$5 -> 24 | AB53: ='[1]DY Def'!Z$5 -> 25 | AC53: ='DY Def'!AA$5 -> 26 | AD53: ='DY Def'!AB$5 -> 27 | AE53: ='DY Def'!AC$5 -> 28 | AF53: ='DY Def'!AD$5 -> 29 | AG53: ='DY Def'!AE$5 -> 30
B55: Hypothetical 2 Per Capita
B56: =IFERROR(VLOOKUP(C56,'MEG Def'!$A$52:$B$55,2),0) -> 0
B57: =IFERROR(VLOOKUP(C57,'MEG Def'!$A$52:$B$55,2),0) -> 0
B58: =IFERROR(VLOOKUP(C58,'MEG Def'!$A$52:$B$55,2),0) -> 0
B60: Hypothetical 2 Aggregate
B61: =IFERROR(VLOOKUP(C61,'MEG Def'!$A$57:$B$60,2),0) -> 0
B62: =IFERROR(VLOOKUP(C62,'MEG Def'!$A$57:$B$60,2),0) -> 0
B63: =IFERROR(VLOOKUP(C63,'MEG Def'!$A$57:$B$60,2),0) -> 0

Sheet Program Spending Limits
B3: Program Spending Limits
C6: Cap Amounts per Demonstration Year | AG6: TOTAL
B7: Program Name and Associated MEGs | C7: ='DY Def'!B$5 -> 1 | D7: ='DY Def'!C$5 -> 2 | E7: ='DY Def'!D$5 -> 3 | F7: ='DY Def'!E$5 -> 4 | G7: ='DY Def'!F$5 -> 5 | H7: ='DY Def'!G$5 -> 6 | I7: ='DY Def'!H$5 -> 7 | J7: ='DY Def'!I$5 -> 8 | K7: ='DY Def'!J$5 -> 9 | L7: ='DY Def'!K$5 -> 10 | M7: ='DY Def'!L$5 -> 11 | N7: ='DY Def'!M$5 -> 12 | O7: ='DY Def'!N$5 -> 13 | P7: ='DY Def'!O$5 -> 14 | Q7: ='DY Def'!P$5 -> 15 | R7: ='DY Def'!Q$5 -> 16 | S7: ='DY Def'!R$5 -> 17 | T7: ='DY Def'!S$5 -> 18 | U7: ='DY Def'!T$5 -> 19 | V7: ='DY Def'!U$5 -> 20 | W7: ='DY Def'!V$5 -> 21 | X7: ='DY Def'!W$5 -> 22 | Y7: ='DY Def'!X$5 -> 23 | Z7: ='DY Def'!Y$5 -> 24 | AA7: ='DY Def'!Z$5 -> 25 | AB7: ='DY Def'!AA$5 -> 26 | AC7: ='DY Def'!AB$5 -> 27 | AD7: ='DY Def'!AC$5 -> 28 | AE7: ='DY Def'!AD$5 -> 29 | AF7: ='DY Def'!AE$5 -> 30
B8: Spending Cap | AG8: =SUM(C8:AF8) -> 0
AG10: =SUM(C10:AF10) -> 0
B11: Expenditures Subject to Cap
C13: =SUMIF('WW Spending Actual'!$B$10:$B$49,'Program Spending Limits'!$B13,'WW Spending Actual'!D$10:D$49) -> 0 | D13: =SUMIF('WW Spending Actual'!$B$10:$B$49,'Program Spending Limits'!$B13,'WW Spending Actual'!E$10:E$49) -> 0 | E13: =SUMIF('WW Spending Actual'!$B$10:$B$49,'Program Spending Limits'!$B13,'WW Spending Actual'!F$10:F$49) -> 0 | F13: =SUMIF('WW Spending Actual'!$B$10:$B$49,'Program Spending Limits'!$B13,'WW Spending Actual'!G$10:G$49) -> 0 | G13: =SUMIF('WW Spending Actual'!$B$10:$B$49,'Program Spending Limits'!$B13,'WW Spending Actual'!H$10:H$49) -> 0 | H13: =SUMIF('WW Spending Actual'!$B$10:$B$49,'Program Spending Limits'!$B13,'WW Spending Actual'!I$10:I$49) -> 0 | I13: =SUMIF('WW Spending Actual'!$B$10:$B$49,'Program Spending Limits'!$B13,'WW Spending Actual'!J$10:J$49) -> 0 | J13: =SUMIF('WW Spending Actual'!$B$10:$B$49,'Program Spending Limits'!$B13,'WW Spending Actual'!K$10:K$49) -> 0 | K13: =SUMIF('WW Spending Actual'!$B$10:$B$49,'Program Spending Limits'!$B13,'WW Spending Actual'!L$10:L$49) -> 0 | L13: =SUMIF('WW Spending Actual'!$B$10:$B$49,'Program Spending Limits'!$B13,'WW Spending Actual'!M$10:M$49) -> 0 | M13: =SUMIF('WW Spending Actual'!$B$10:$B$49,'Program Spending Limits'!$B13,'WW Spending Actual'!N$10:N$49) -> 0 | N13: =SUMIF('WW Spending Actual'!$B$10:$B$49,'Program Spending Limits'!$B13,'WW Spending Actual'!O$10:O$49) -> 0 | O13: =SUMIF('WW Spending Actual'!$B$10:$B$49,'Program Spending Limits'!$B13,'WW Spending Actual'!P$10:P$49) -> 0 | P13: =SUMIF('WW Spending Actual'!$B$10:$B$49,'Program Spending Limits'!$B13,'WW Spending Actual'!Q$10:Q$49) -> 0 | Q13: =SUMIF('WW Spending Actual'!$B$10:$B$49,'Program Spending Limits'!$B13,'WW Spending Actual'!R$10:R$49) -> 0 | R13: =SUMIF('WW Spending Actual'!$B$10:$B$49,'Program Spending Limits'!$B13,'WW Spending Actual'!S$10:S$49) -> 0 | S13: =SUMIF('WW Spending Actual'!$B$10:$B$49,'Program Spending Limits'!$B13,'WW Spending Actual'!T$10:T$49) -> 0 | T13: =SUMIF('WW Spending Actual'!$B$10:$B$49,'Program Spending Limits'!$B13,'WW Spending Actual'!U$10:U$49) -> 0 | U13: =SUMIF('WW Spending Actual'!$B$10:$B$49,'Program Spending Limits'!$B13,'WW Spending Actual'!V$10:V$49) -> 0 | V13: =SUMIF('WW Spending Actual'!$B$10:$B$49,'Program Spending Limits'!$B13,'WW Spending Actual'!W$10:W$49) -> 0 | W13: =SUMIF('WW Spending Actual'!$B$10:$B$49,'Program Spending Limits'!$B13,'WW Spending Actual'!X$10:X$49) -> 0 | X13: =SUMIF('WW Spending Actual'!$B$10:$B$49,'Program Spending Limits'!$B13,'WW Spending Actual'!Y$10:Y$49) -> 0 | Y13: =SUMIF('WW Spending Actual'!$B$10:$B$49,'Program Spending Limits'!$B13,'WW Spending Actual'!Z$10:Z$49) -> 0 | Z13: =SUMIF('WW Spending Actual'!$B$10:$B$49,'Program Spending Limits'!$B13,'WW Spending Actual'!AA$10:AA$49) -> 0 | AA13: =SUMIF('WW Spending Actual'!$B$10:$B$49,'Program Spending Limits'!$B13,'WW Spending Actual'!AB$10:AB$49) -> 0 | AB13: =SUMIF('WW Spending Actual'!$B$10:$B$49,'Program Spending Limits'!$B13,'WW Spending Actual'!AC$10:AC$49) -> 0 | AC13: =SUMIF('WW Spending Actual'!$B$10:$B$49,'Program Spending Limits'!$B13,'WW Spending Actual'!AD$10:AD$49) -> 0 | AD13: =SUMIF('WW Spending Actual'!$B$10:$B$49,'Program Spending Limits'!$B13,'WW Spending Actual'!AE$10:AE$49) -> 0 | AE13: =SUMIF('WW Spending Actual'!$B$10:$B$49,'Program Spending Limits'!$B13,'WW Spending Actual'!AF$10:AF$49) -> 0 | AF13: =SUMIF('WW Spending Actual'!$B$10:$B$49,'Program Spending Limits'!$B13,'WW Spending Actual'!AG$10:AG$49) -> 0
C14: =SUMIF('WW Spending Actual'!$B$10:$B$49,'Program Spending Limits'!$B14,'WW Spending Actual'!D$10:D$49) -> 0 | D14: =SUMIF('WW Spending Actual'!$B$10:$B$49,'Program Spending Limits'!$B14,'WW Spending Actual'!E$10:E$49) -> 0 | E14: =SUMIF('WW Spending Actual'!$B$10:$B$49,'Program Spending Limits'!$B14,'WW Spending Actual'!F$10:F$49) -> 0 | F14: =SUMIF('WW Spending Actual'!$B$10:$B$49,'Program Spending Limits'!$B14,'WW Spending Actual'!G$10:G$49) -> 0 | G14: =SUMIF('WW Spending Actual'!$B$10:$B$49,'Program Spending Limits'!$B14,'WW Spending Actual'!H$10:H$49) -> 0 | H14: =SUMIF('WW Spending Actual'!$B$10:$B$49,'Program Spending Limits'!$B14,'WW Spending Actual'!I$10:I$49) -> 0 | I14: =SUMIF('WW Spending Actual'!$B$10:$B$49,'Program Spending Limits'!$B14,'WW Spending Actual'!J$10:J$49) -> 0 | J14: =SUMIF('WW Spending Actual'!$B$10:$B$49,'Program Spending Limits'!$B14,'WW Spending Actual'!K$10:K$49) -> 0 | K14: =SUMIF('WW Spending Actual'!$B$10:$B$49,'Program Spending Limits'!$B14,'WW Spending Actual'!L$10:L$49) -> 0 | L14: =SUMIF('WW Spending Actual'!$B$10:$B$49,'Program Spending Limits'!$B14,'WW Spending Actual'!M$10:M$49) -> 0 | M14: =SUMIF('WW Spending Actual'!$B$10:$B$49,'Program Spending Limits'!$B14,'WW Spending Actual'!N$10:N$49) -> 0 | N14: =SUMIF('WW Spending Actual'!$B$10:$B$49,'Program Spending Limits'!$B14,'WW Spending Actual'!O$10:O$49) -> 0 | O14: =SUMIF('WW Spending Actual'!$B$10:$B$49,'Program Spending Limits'!$B14,'WW Spending Actual'!P$10:P$49) -> 0 | P14: =SUMIF('WW Spending Actual'!$B$10:$B$49,'Program Spending Limits'!$B14,'WW Spending Actual'!Q$10:Q$49) -> 0 | Q14: =SUMIF('WW Spending Actual'!$B$10:$B$49,'Program Spending Limits'!$B14,'WW Spending Actual'!R$10:R$49) -> 0 | R14: =SUMIF('WW Spending Actual'!$B$10:$B$49,'Program Spending Limits'!$B14,'WW Spending Actual'!S$10:S$49) -> 0 | S14: =SUMIF('WW Spending Actual'!$B$10:$B$49,'Program Spending Limits'!$B14,'WW Spending Actual'!T$10:T$49) -> 0 | T14: =SUMIF('WW Spending Actual'!$B$10:$B$49,'Program Spending Limits'!$B14,'WW Spending Actual'!U$10:U$49) -> 0 | U14: =SUMIF('WW Spending Actual'!$B$10:$B$49,'Program Spending Limits'!$B14,'WW Spending Actual'!V$10:V$49) -> 0 | V14: =SUMIF('WW Spending Actual'!$B$10:$B$49,'Program Spending Limits'!$B14,'WW Spending Actual'!W$10:W$49) -> 0 | W14: =SUMIF('WW Spending Actual'!$B$10:$B$49,'Program Spending Limits'!$B14,'WW Spending Actual'!X$10:X$49) -> 0 | X14: =SUMIF('WW Spending Actual'!$B$10:$B$49,'Program Spending Limits'!$B14,'WW Spending Actual'!Y$10:Y$49) -> 0 | Y14: =SUMIF('WW Spending Actual'!$B$10:$B$49,'Program Spending Limits'!$B14,'WW Spending Actual'!Z$10:Z$49) -> 0 | Z14: =SUMIF('WW Spending Actual'!$B$10:$B$49,'Program Spending Limits'!$B14,'WW Spending Actual'!AA$10:AA$49) -> 0 | AA14: =SUMIF('WW Spending Actual'!$B$10:$B$49,'Program Spending Limits'!$B14,'WW Spending Actual'!AB$10:AB$49) -> 0
B15: Variance | C15: =C10-C13 -> 0 | D15: =D10-D13 -> 0 | E15: 0 | F15: 0 | G15: 0 | H15: 0 | I15: 0 | J15: 0 | K15: 0 | L15: 0 | M15: 0 | N15: 0 | O15: 0 | P15: 0 | Q15: 0 | R15: 0 | S15: 0 | T15: 0 | U15: 0 | V15: 0 | W15: 0 | X15: 0 | Y15: 0 | Z15: 0 | AA15: 0 | AB15: 0 | AC15: 0 | AD15: 0 | AE15: 0 | AF15: 0 | AG15: =SUM(C15:AF15) -> 0
B16: Over or Under | C16: =IF(C15<0,"Over",".") -> . | D16: . | E16: . | F16: . | G16: . | H16: . | I16: . | J16: . | K16: . | L16: . | M16: . | N16: . | O16: . | P16: . | Q16: . | R16: . | S16: . | T16: . | U16: . | V16: . | W16: . | X16: . | Y16: . | Z16: . | AA16: . | AB16: . | AC16: . | AD16: . | AE16: . | AF16: . | AG16: =IF(AG15<0,"Over",".") -> .

Sheet C Report
G2: Data Pulled On: | H2: 2025-03-12 | J2: Reporting DY | K2: 13
G3: For the Time Period Through: | H3: 2024-12-31 | J3: Reporting Quarter | K3: 4
A5: Paste all information related to the demonstration from Schedule C of the CMS 64 Waiver Expenditure Report.
A6: 1. On the Schedule C Report, locate rows relevant to all expenditures for a specific demonstration.
A7: 2. Complete two rounds of copy/paste starting from the cell in column A (Waiver Name).
A8: · MAP Waivers/ Total Computable section – into cell A100
A9: · MAP Waivers/ Federal Share section – into cell A200
A10: 3. If ADM waivers are applicable to the demonstration, complete two more rounds of copy/paste starting
A11: from the cell in column A (Waiver Name).
A12: · ADM Waivers/ Total Computable section – cell A300
A13: · ADM Waivers/ Federal Share section – cell A400
A97: MAP Waivers
A99: Total Computable
A100: Waiver Name | B100: A | C100: 01 | D100: 02 | E100: 03 | F100: 04 | G100: 05 | H100: 06 | I100: 07 | J100: 08 | K100: 09 | L100: 10 | M100: 11 | N100: 12 | O100: 13 | P100: 14 | Q100: 15 | R100: 16 | S100: 17 | T100: 18 | U100: 19 | V100: 20 | W100: 21 | X100: 22 | Y100: 23 | Z100: 24 | AA100: 25 | AB100: 26 | AC100: 27 | AD100: 28 | AE100: 29 | AF100: 30 | AG100: Total | AH100: Total Less Non-Adds
A101: Plan First | B101: 0 | C101: 397 | D101: 797819 | E101: 1677014 | F101: 889798 | G101: 614818 | H101: 394193 | I101: 276117 | J101: 237862 | K101: 226560 | L101: 185164 | M101: 162483 | N101: 175163 | O101: 231257 | P101: 0 | Q101: 0 | R101: 0 | S101: 0 | T101: 0 | U101: 0 | V101: 0 | W101: 0 | X101: 0 | Y101: 0 | Z101: 0 | AA101: 0 | AB101: 0 | AC101: 0 | AD101: 0 | AE101: 0 | AF101: 0 | AG101: 4710885 | AH101: 4710885
A102: Total | B102: =SUM(B101:B101) -> 0 | C102: 397 | D102: 797819 | E102: 1677014 | F102: 889798 | G102: 614818 | H102: 394193 | I102: 276117 | J102: 237862 | K102: 226560 | L102: 185164 | M102: 162483 | N102: 175163 | O102: 231257 | P102: 0 | Q102: 0 | R102: 0 | S102: 0 | T102: 0 | U102: 0 | V102: 0 | W102: 0 | X102: 0 | Y102: 0 | Z102: 0 | AA102: 0 | AB102: 0 | AC102: 0 | AD102: 0 | AE102: 0 | AF102: 0 | AG102: 4710885 | AH102: 4710885
A199: Federal Share
A200: Waiver Name | B200: A | C200: 01 | D200: 02 | E200: 03 | F200: 04 | G200: 05 | H200: 06 | I200: 07 | J200: 08 | K200: 09 | L200: 10 | M200: 11 | N200: 12 | O200: 13 | P200: 14 | Q200: 15 | R200: 16 | S200: 17 | T200: 18 | U200: 19 | V200: 20 | W200: 21 | X200: 22 | Y200: 23 | Z200: 24 | AA200: 25 | AB200: 26 | AC200: 27 | AD200: 28 | AE200: 29 | AF200: 30 | AG200: Total | AH200: Total Less Non-Adds
A201: Plan First | B201: 0 | C201: 308 | D201: 706939 | E201: 1493733 | F201: 790946 | G201: 544315 | H201: 350564 | I201: 245176 | J201: 211617 | K201: 202373 | L201: 165902 | M201: 145298 | N201: 158094 | O201: 208343 | P201: 0 | Q201: 0 | R201: 0 | S201: 0 | T201: 0 | U201: 0 | V201: 0 | W201: 0 | X201: 0 | Y201: 0 | Z201: 0 | AA201: 0 | AB201: 0 | AC201: 0 | AD201: 0 | AE201: 0 | AF201: 0 | AG201: 4186001 | AH201: 4186001
A202: Total | B202: =SUM(B201:B201) -> 0 | C202: 308 | D202: 706939 | E202: 1493733 | F202: 790946 | G202: 544315 | H202: 350564 | I202: 245176 | J202: 211617 | K202: 202373 | L202: 165902 | M202: 145298 | N202: 158094 | O202: 208343 | P202: 0 | Q202: 0 | R202: 0 | S202: 0 | T202: 0 | U202: 0 | V202: 0 | W202: 0 | X202: 0 | Y202: 0 | Z202: 0 | AA202: 0 | AB202: 0 | AC202: 0 | AD202: 0 | AE202: 0 | AF202: 0 | AG202: 4186001 | AH202: 4186001
A297: ADM Waivers
A299: Total Computable
A300: Waiver Name | B300: A | C300: 01 | D300: 02 | E300: 03 | F300: 04 | G300: 05 | H300: 06 | I300: 07 | J300: 08 | K300: 09 | L300: 10 | M300: 11 | N300: 12 | O300: 13 | P300: 14 | Q300: 15 | R300: 16 | S300: 17 | T300: 18 | U300: 19 | V300: 20 | W300: 21 | X300: 22 | Y300: 23 | Z300: 24 | AA300: 25 | AB300: 26 | AC300: 27 | AD300: 28 | AE300: 29 | AF300: 30 | AG300: Total | AH300: Total Less Non-Adds
A301: Bipolar | B301: 0 | C301: 0 | D301: 0 | E301: 0 | F301: 0 | G301: 0 | H301: 0 | I301: 0 | J301: 0 | K301: 0 | L301: 0 | M301: 9408 | N301: 0 | O301: 0 | P301: 0 | Q301: 0 | R301: 0 | S301: 0 | T301: 0 | U301: 0 | V301: 0 | W301: 0 | X301: 0 | Y301: 0 | Z301: 0 | AA301: 0 | AB301: 0 | AC301: 0 | AD301: 0 | AE301: 0 | AF301: 0 | AG301: 9408 | AH301: 9408
A302: Depression | B302: 0 | C302: 0 | D302: 0 | E302: 0 | F302: 0 | G302: 0 | H302: 0 | I302: 0 | J302: 0 | K302: 0 | L302: 0 | M302: 7709 | N302: 0 | O302: 0 | P302: 0 | Q302: 0 | R302: 0 | S302: 0 | T302: 0 | U302: 0 | V302: 0 | W302: 0 | X302: 0 | Y302: 0 | Z302: 0 | AA302: 0 | AB302: 0 | AC302: 0 | AD302: 0 | AE302: 0 | AF302: 0 | AG302: 7709 | AH302: 7709
A303: Plan First | B303: 0 | C303: 16002 | D303: 83143 | E303: 137962 | F303: 133047 | G303: 233311 | H303: 267900 | I303: 111137 | J303: 102403 | K303: 96116 | L303: 48955 | M303: 38700 | N303: 43216 | O303: 44091 | P303: 0 | Q303: 0 | R303: 0 | S303: 0 | T303: 0 | U303: 0 | V303: 0 | W303: 0 | X303: 0 | Y303: 0 | Z303: 0 | AA303: 0 | AB303: 0 | AC303: 0 | AD303: 0 | AE303: 0 | AF303: 0 | AG303: 1005945 | AH303: 1005945
A304: Schizophrenia | B304: 0 | C304: 0 | D304: 0 | E304: 0 | F304: 0 | G304: 0 | H304: 0 | I304: 0 | J304: 0 | K304: 0 | L304: 0 | M304: 7021 | N304: 0 | O304: 0 | P304: 0 | Q304: 0 | R304: 0 | S304: 0 | T304: 0 | U304: 0 | V304: 0 | W304: 0 | X304: 0 | Y304: 0 | Z304: 0 | AA304: 0 | AB304: 0 | AC304: 0 | AD304: 0 | AE304: 0 | AF304: 0 | AG304: 7021 | AH304: 7021
A305: Total | B305: =SUM(B301:B304) -> 0 | C305: 16002 | D305: 83143 | E305: 137962 | F305: 133047 | G305: 233311 | H305: 267900 | I305: 111137 | J305: 102403 | K305: 96116 | L305: 48955 | M305: 62838 | N305: 43216 | O305: 44091 | P305: 0 | Q305: 0 | R305: 0 | S305: 0 | T305: 0 | U305: 0 | V305: 0 | W305: 0 | X305: 0 | Y305: 0 | Z305: 0 | AA305: 0 | AB305: 0 | AC305: 0 | AD305: 0 | AE305: 0 | AF305: 0 | AG305: 1030083 | AH305: 1030083
A399: Federal Share
A400: Waiver Name | B400: A | C400: 01 | D400: 02 | E400: 03 | F400: 04 | G400: 05 | H400: 06 | I400: 07 | J400: 08 | K400: 09 | L400: 10 | M400: 11 | N400: 12 | O400: 13 | P400: 14 | Q400: 15 | R400: 16 | S400: 17 | T400: 18 | U400: 19 | V400: 20 | W400: 21 | X400: 22 | Y400: 23 | Z400: 24 | AA400: 25 | AB400: 26 | AC400: 27 | AD400: 28 | AE400: 29 | AF400: 30 | AG400: Total | AH400: Total Less Non-Adds
A401: Bipolar | B401: 0 | C401: 0 | D401: 0 | E401: 0 | F401: 0 | G401: 0 | H401: 0 | I401: 0 | J401: 0 | K401: 0 | L401: 0 | M401: 4704 | N401: 0 | O401: 0 | P401: 0 | Q401: 0 | R401: 0 | S401: 0 | T401: 0 | U401: 0 | V401: 0 | W401: 0 | X401: 0 | Y401: 0 | Z401: 0 | AA401: 0 | AB401: 0 | AC401: 0 | AD401: 0 | AE401: 0 | AF401: 0 | AG401: 4704 | AH401: 4704
A402: Depression | B402: 0 | C402: 0 | D402: 0 | E402: 0 | F402: 0 | G402: 0 | H402: 0 | I402: 0 | J402: 0 | K402: 0 | L402: 0 | M402: 3855 | N402: 0 | O402: 0 | P402: 0 | Q402: 0 | R402: 0 | S402: 0 | T402: 0 | U402: 0 | V402: 0 | W402: 0 | X402: 0 | Y402: 0 | Z402: 0 | AA402: 0 | AB402: 0 | AC402: 0 | AD402: 0 | AE402: 0 | AF402: 0 | AG402: 3855 | AH402: 3855
A403: Plan First | B403: 0 | C403: 14402 | D403: 74829 | E403: 124166 | F403: 119743 | G403: 209980 | H403: 241110 | I403: 100022 | J403: 92163 | K403: 86339 | L403: 43014 | M403: 34831 | N403: 38894 | O403: 39682 | P403: 0 | Q403: 0 | R403: 0 | S403: 0 | T403: 0 | U403: 0 | V403: 0 | W403: 0 | X403: 0 | Y403: 0 | Z403: 0 | AA403: 0 | AB403: 0 | AC403: 0 | AD403: 0 | AE403: 0 | AF403: 0 | AG403: 905351 | AH403: 905351
A404: Schizophrenia | B404: 0 | C404: 0 | D404: 0 | E404: 0 | F404: 0 | G404: 0 | H404: 0 | I404: 0 | J404: 0 | K404: 0 | L404: 0 | M404: 3511 | N404: 0 | O404: 0 | P404: 0 | Q404: 0 | R404: 0 | S404: 0 | T404: 0 | U404: 0 | V404: 0 | W404: 0 | X404: 0 | Y404: 0 | Z404: 0 | AA404: 0 | AB404: 0 | AC404: 0 | AD404: 0 | AE404: 0 | AF404: 0 | AG404: 3511 | AH404: 3511
A405: Total | B405: =SUM(B401:B404) -> 0 | C405: 14402 | D405: 74829 | E405: 124166 | F405: 119743 | G405: 209980 | H405: 241110 | I405: 100022 | J405: 92163 | K405: 86339 | L405: 43014 | M405: 46901 | N405: 38894 | O405: 39682 | P405: 0 | Q405: 0 | R405: 0 | S405: 0 | T405: 0 | U405: 0 | V405: 0 | W405: 0 | X405: 0 | Y405: 0 | Z405: 0 | AA405: 0 | AB405: 0 | AC405: 0 | AD405: 0 | AE405: 0 | AF405: 0 | AG405: 917421 | AH405: 917421

Sheet C Report Grouper
B3: C Report Grouper
D4: MAP Waivers Only
B6: Total Computable
B7: MEG Names | D7: C Report Waiver Names | E7: DEMONSTRATION YEARS (DY)
E8: ='DY Def'!B$5 -> 1 | F8: ='DY Def'!C$5 -> 2 | G8: ='DY Def'!D$5 -> 3 | H8: ='DY Def'!E$5 -> 4 | I8: ='DY Def'!F$5 -> 5 | J8: ='DY Def'!G$5 -> 6 | K8: ='DY Def'!H$5 -> 7 | L8: ='DY Def'!I$5 -> 8 | M8: ='DY Def'!J$5 -> 9 | N8: ='DY Def'!K$5 -> 10 | O8: ='DY Def'!L$5 -> 11 | P8: ='DY Def'!M$5 -> 12 | Q8: ='DY Def'!N$5 -> 13 | R8: ='DY Def'!O$5 -> 14 | S8: ='DY Def'!P$5 -> 15 | T8: ='DY Def'!Q$5 -> 16 | U8: ='DY Def'!R$5 -> 17 | V8: ='DY Def'!S$5 -> 18 | W8: ='DY Def'!T$5 -> 19 | X8: ='DY Def'!U$5 -> 20 | Y8: ='DY Def'!V$5 -> 21 | Z8: ='DY Def'!W$5 -> 22 | AA8: ='DY Def'!X$5 -> 23 | AB8: ='DY Def'!Y$5 -> 24 | AC8: ='DY Def'!Z$5 -> 25 | AD8: ='DY Def'!AA$5 -> 26 | AE8: ='DY Def'!AB$5 -> 27 | AF8: ='DY Def'!AC$5 -> 28 | AG8: ='DY Def'!AD$5 -> 29 | AH8: ='DY Def'!AE$5 -> 30
B9: Medicaid Per Capita
B10: =IFERROR(VLOOKUP(C10,'MEG Def'!$A$7:$B$12,2),"") ->  | E10: =IF($D$4="MAP+ADM Waivers",SUMIF('C Report'!$A$100:$A$199,'C Report Grouper'!$D10,'C Report'!C$100:C$199)+SUMIF('C Report'!$A$300:$A$399,'C Report Grouper'!$D10,'C Report'!C$300:C$399),SUMIF('C Report'!$A$100:$A$199,'C Report Grouper'!$D10,'C Report'!C$100:C$199)) -> 0 | F10: =IF($D$4="MAP+ADM Waivers",SUMIF('C Report'!$A$100:$A$199,'C Report Grouper'!$D10,'C Report'!D$100:D$199)+SUMIF('C Report'!$A$300:$A$399,'C Report Grouper'!$D10,'C Report'!D$300:D$399),SUMIF('C Report'!$A$100:$A$199,'C Report Grouper'!$D10,'C Report'!D$100:D$199)) -> 0 | G10: =IF($D$4="MAP+ADM Waivers",SUMIF('C Report'!$A$100:$A$199,'C Report Grouper'!$D10,'C Report'!E$100:E$199)+SUMIF('C Report'!$A$300:$A$399,'C Report Grouper'!$D10,'C Report'!E$300:E$399),SUMIF('C Report'!$A$100:$A$199,'C Report Grouper'!$D10,'C Report'!E$100:E$199)) -> 0 | H10: =IF($D$4="MAP+ADM Waivers",SUMIF('C Report'!$A$100:$A$199,'C Report Grouper'!$D10,'C Report'!F$100:F$199)+SUMIF('C Report'!$A$300:$A$399,'C Report Grouper'!$D10,'C Report'!F$300:F$399),SUMIF('C Report'!$A$100:$A$199,'C Report Grouper'!$D10,'C Report'!F$100:F$199)) -> 0 | I10: =IF($D$4="MAP+ADM Waivers",SUMIF('C Report'!$A$100:$A$199,'C Report Grouper'!$D10,'C Report'!G$100:G$199)+SUMIF('C Report'!$A$300:$A$399,'C Report Grouper'!$D10,'C Report'!G$300:G$399),SUMIF('C Report'!$A$100:$A$199,'C Report Grouper'!$D10,'C Report'!G$100:G$199)) -> 0 | J10: =IF($D$4="MAP+ADM Waivers",SUMIF('C Report'!$A$100:$A$199,'C Report Grouper'!$D10,'C Report'!H$100:H$199)+SUMIF('C Report'!$A$300:$A$399,'C Report Grouper'!$D10,'C Report'!H$300:H$399),SUMIF('C Report'!$A$100:$A$199,'C Report Grouper'!$D10,'C Report'!H$100:H$199)) -> 0 | K10: =IF($D$4="MAP+ADM Waivers",SUMIF('C Report'!$A$100:$A$199,'C Report Grouper'!$D10,'C Report'!I$100:I$199)+SUMIF('C Report'!$A$300:$A$399,'C Report Grouper'!$D10,'C Report'!I$300:I$399),SUMIF('C Report'!$A$100:$A$199,'C Report Grouper'!$D10,'C Report'!I$100:I$199)) -> 0 | L10: =IF($D$4="MAP+ADM Waivers",SUMIF('C Report'!$A$100:$A$199,'C Report Grouper'!$D10,'C Report'!J$100:J$199)+SUMIF('C Report'!$A$300:$A$399,'C Report Grouper'!$D10,'C Report'!J$300:J$399),SUMIF('C Report'!$A$100:$A$199,'C Report Grouper'!$D10,'C Report'!J$100:J$199)) -> 0 | M10: =IF($D$4="MAP+ADM Waivers",SUMIF('C Report'!$A$100:$A$199,'C Report Grouper'!$D10,'C Report'!K$100:K$199)+SUMIF('C Report'!$A$300:$A$399,'C Report Grouper'!$D10,'C Report'!K$300:K$399),SUMIF('C Report'!$A$100:$A$199,'C Report Grouper'!$D10,'C Report'!K$100:K$199)) -> 0 | N10: =IF($D$4="MAP+ADM Waivers",SUMIF('C Report'!$A$100:$A$199,'C Report Grouper'!$D10,'C Report'!L$100:L$199)+SUMIF('C Report'!$A$300:$A$399,'C Report Grouper'!$D10,'C Report'!L$300:L$399),SUMIF('C Report'!$A$100:$A$199,'C Report Grouper'!$D10,'C Report'!L$100:L$199)) -> 0 | O10: =IF($D$4="MAP+ADM Waivers",SUMIF('C Report'!$A$100:$A$199,'C Report Grouper'!$D10,'C Report'!M$100:M$199)+SUMIF('C Report'!$A$300:$A$399,'C Report Grouper'!$D10,'C Report'!M$300:M$399),SUMIF('C Report'!$A$100:$A$199,'C Report Grouper'!$D10,'C Report'!M$100:M$199)) -> 0 | P10: =IF($D$4="MAP+ADM Waivers",SUMIF('C Report'!$A$100:$A$199,'C Report Grouper'!$D10,'C Report'!N$100:N$199)+SUMIF('C Report'!$A$300:$A$399,'C Report Grouper'!$D10,'C Report'!N$300:N$399),SUMIF('C Report'!$A$100:$A$199,'C Report Grouper'!$D10,'C Report'!N$100:N$199)) -> 0 | Q10: =IF($D$4="MAP+ADM Waivers",SUMIF('C Report'!$A$100:$A$199,'C Report Grouper'!$D10,'C Report'!O$100:O$199)+SUMIF('C Report'!$A$300:$A$399,'C Report Grouper'!$D10,'C Report'!O$300:O$399),SUMIF('C Report'!$A$100:$A$199,'C Report Grouper'!$D10,'C Report'!O$100:O$199)) -> 0 | R10: =IF($D$4="MAP+ADM Waivers",SUMIF('C Report'!$A$100:$A$199,'C Report Grouper'!$D10,'C Report'!P$100:P$199)+SUMIF('C Report'!$A$300:$A$399,'C Report Grouper'!$D10,'C Report'!P$300:P$399),SUMIF('C Report'!$A$100:$A$199,'C Report Grouper'!$D10,'C Report'!P$100:P$199)) -> 0 | S10: =IF($D$4="MAP+ADM Waivers",SUMIF('C Report'!$A$100:$A$199,'C Report Grouper'!$D10,'C Report'!Q$100:Q$199)+SUMIF('C Report'!$A$300:$A$399,'C Report Grouper'!$D10,'C Report'!Q$300:Q$399),SUMIF('C Report'!$A$100:$A$199,'C Report Grouper'!$D10,'C Report'!Q$100:Q$199)) -> 0 | T10: =IF($D$4="MAP+ADM Waivers",SUMIF('C Report'!$A$100:$A$199,'C Report Grouper'!$D10,'C Report'!R$100:R$199)+SUMIF('C Report'!$A$300:$A$399,'C Report Grouper'!$D10,'C Report'!R$300:R$399),SUMIF('C Report'!$A$100:$A$199,'C Report Grouper'!$D10,'C Report'!R$100:R$199)) -> 0 | U10: =IF($D$4="MAP+ADM Waivers",SUMIF('C Report'!$A$100:$A$199,'C Report Grouper'!$D10,'C Report'!S$100:S$199)+SUMIF('C Report'!$A$300:$A$399,'C Report Grouper'!$D10,'C Report'!S$300:S$399),SUMIF('C Report'!$A$100:$A$199,'C Report Grouper'!$D10,'C Report'!S$100:S$199)) -> 0 | V10: =IF($D$4="MAP+ADM Waivers",SUMIF('C Report'!$A$100:$A$199,'C Report Grouper'!$D10,'C Report'!T$100:T$199)+SUMIF('C Report'!$A$300:$A$399,'C Report Grouper'!$D10,'C Report'!T$300:T$399),SUMIF('C Report'!$A$100:$A$199,'C Report Grouper'!$D10,'C Report'!T$100:T$199)) -> 0 | W10: =IF($D$4="MAP+ADM Waivers",SUMIF('C Report'!$A$100:$A$199,'C Report Grouper'!$D10,'C Report'!U$100:U$199)+SUMIF('C Report'!$A$300:$A$399,'C Report Grouper'!$D10,'C Report'!U$300:U$399),SUMIF('C Report'!$A$100:$A$199,'C Report Grouper'!$D10,'C Report'!U$100:U$199)) -> 0 | X10: =IF($D$4="MAP+ADM Waivers",SUMIF('C Report'!$A$100:$A$199,'C Report Grouper'!$D10,'C Report'!V$100:V$199)+SUMIF('C Report'!$A$300:$A$399,'C Report Grouper'!$D10,'C Report'!V$300:V$399),SUMIF('C Report'!$A$100:$A$199,'C Report Grouper'!$D10,'C Report'!V$100:V$199)) -> 0 | Y10: =IF($D$4="MAP+ADM Waivers",SUMIF('C Report'!$A$100:$A$199,'C Report Grouper'!$D10,'C Report'!W$100:W$199)+SUMIF('C Report'!$A$300:$A$399,'C Report Grouper'!$D10,'C Report'!W$300:W$399),SUMIF('C Report'!$A$100:$A$199,'C Report Grouper'!$D10,'C Report'!W$100:W$199)) -> 0 | Z10: =IF($D$4="MAP+ADM Waivers",SUMIF('C Report'!$A$100:$A$199,'C Report Grouper'!$D10,'C Report'!X$100:X$199)+SUMIF('C Report'!$A$300:$A$399,'C Report Grouper'!$D10,'C Report'!X$300:X$399),SUMIF('C Report'!$A$100:$A$199,'C Report Grouper'!$D10,'C Report'!X$100:X$199)) -> 0 | AA10: =IF($D$4="MAP+ADM Waivers",SUMIF('C Report'!$A$100:$A$199,'C Report Grouper'!$D10,'C Report'!Y$100:Y$199)+SUMIF('C Report'!$A$300:$A$399,'C Report Grouper'!$D10,'C Report'!Y$300:Y$399),SUMIF('C Report'!$A$100:$A$199,'C Report Grouper'!$D10,'C Report'!Y$100:Y$199)) -> 0 | AB10: =IF($D$4="MAP+ADM Waivers",SUMIF('C Report'!$A$100:$A$199,'C Report Grouper'!$D10,'C Report'!Z$100:Z$199)+SUMIF('C Report'!$A$300:$A$399,'C Report Grouper'!$D10,'C Report'!Z$300:Z$399),SUMIF('C Report'!$A$100:$A$199,'C Report Grouper'!$D10,'C Report'!Z$100:Z$199)) -> 0 | AC10: =IF($D$4="MAP+ADM Waivers",SUMIF('C Report'!$A$100:$A$199,'C Report Grouper'!$D10,'C Report'!AA$100:AA$199)+SUMIF('C Report'!$A$300:$A$399,'C Report Grouper'!$D10,'C Report'!AA$300:AA$399),SUMIF('C Report'!$A$100:$A$199,'C Report Grouper'!$D10,'C Report'!AA$100:AA$199)) -> 0 | AD10: =IF($D$4="MAP+ADM Waivers",SUMIF('C Report'!$A$100:$A$199,'C Report Grouper'!$D10,'C Report'!AB$100:AB$199)+SUMIF('C Report'!$A$300:$A$399,'C Report Grouper'!$D10,'C Report'!AB$300:AB$399),SUMIF('C Report'!$A$100:$A$199,'C Report Grouper'!$D10,'C Report'!AB$100:AB$199)) -> 0 | AE10: =IF($D$4="MAP+ADM Waivers",SUMIF('C Report'!$A$100:$A$199,'C Report Grouper'!$D10,'C Report'!AC$100:AC$199)+SUMIF('C Report'!$A$300:$A$399,'C Report Grouper'!$D10,'C Report'!AC$300:AC$399),SUMIF('C Report'!$A$100:$A$199,'C Report Grouper'!$D10,'C Report'!AC$100:AC$199)) -> 0 | AF10: =IF($D$4="MAP+ADM Waivers",SUMIF('C Report'!$A$100:$A$199,'C Report Grouper'!$D10,'C Report'!AD$100:AD$199)+SUMIF('C Report'!$A$300:$A$399,'C Report Grouper'!$D10,'C Report'!AD$300:AD$399),SUMIF('C Report'!$A$100:$A$199,'C Report Grouper'!$D10,'C Report'!AD$100:AD$199)) -> 0 | AG10: =IF($D$4="MAP+ADM Waivers",SUMIF('C Report'!$A$100:$A$199,'C Report Grouper'!$D10,'C Report'!AE$100:AE$199)+SUMIF('C Report'!$A$300:$A$399,'C Report Grouper'!$D10,'C Report'!AE$300:AE$399),SUMIF('C Report'!$A$100:$A$199,'C Report Grouper'!$D10,'C Report'!AE$100:AE$199)) -> 0 | AH10: =IF($D$4="MAP+ADM Waivers",SUMIF('C Report'!$A$100:$A$199,'C Report Grouper'!$D10,'C Report'!AF$100:AF$199)+SUMIF('C Report'!$A$300:$A$399,'C Report Grouper'!$D10,'C Report'!AF$300:AF$399),SUMIF('C Report'!$A$100:$A$199,'C Report Grouper'!$D10,'C Report'!AF$100:AF$199)) -> 0
B11: =IFERROR(VLOOKUP(C11,'MEG Def'!$A$7:$B$12,2),"") ->  | E11: =IF($D$4="MAP+ADM Waivers",SUMIF('C Report'!$A$100:$A$199,'C Report Grouper'!$D11,'C Report'!C$100:C$199)+SUMIF('C Report'!$A$300:$A$399,'C Report Grouper'!$D11,'C Report'!C$300:C$399),SUMIF('C Report'!$A$100:$A$199,'C Report Grouper'!$D11,'C Report'!C$100:C$199)) -> 0 | F11: =IF($D$4="MAP+ADM Waivers",SUMIF('C Report'!$A$100:$A$199,'C Report Grouper'!$D11,'C Report'!D$100:D$199)+SUMIF('C Report'!$A$300:$A$399,'C Report Grouper'!$D11,'C Report'!D$300:D$399),SUMIF('C Report'!$A$100:$A$199,'C Report Grouper'!$D11,'C Report'!D$100:D$199)) -> 0 | G11: =IF($D$4="MAP+ADM Waivers",SUMIF('C Report'!$A$100:$A$199,'C Report Grouper'!$D11,'C Report'!E$100:E$199)+SUMIF('C Report'!$A$300:$A$399,'C Report Grouper'!$D11,'C Report'!E$300:E$399),SUMIF('C Report'!$A$100:$A$199,'C Report Grouper'!$D11,'C Report'!E$100:E$199)) -> 0 | H11: =IF($D$4="MAP+ADM Waivers",SUMIF('C Report'!$A$100:$A$199,'C Report Grouper'!$D11,'C Report'!F$100:F$199)+SUMIF('C Report'!$A$300:$A$399,'C Report Grouper'!$D11,'C Report'!F$300:F$399),SUMIF('C Report'!$A$100:$A$199,'C Report Grouper'!$D11,'C Report'!F$100:F$199)) -> 0 | I11: =IF($D$4="MAP+ADM Waivers",SUMIF('C Report'!$A$100:$A$199,'C Report Grouper'!$D11,'C Report'!G$100:G$199)+SUMIF('C Report'!$A$300:$A$399,'C Report Grouper'!$D11,'C Report'!G$300:G$399),SUMIF('C Report'!$A$100:$A$199,'C Report Grouper'!$D11,'C Report'!G$100:G$199)) -> 0 | J11: =IF($D$4="MAP+ADM Waivers",SUMIF('C Report'!$A$100:$A$199,'C Report Grouper'!$D11,'C Report'!H$100:H$199)+SUMIF('C Report'!$A$300:$A$399,'C Report Grouper'!$D11,'C Report'!H$300:H$399),SUMIF('C Report'!$A$100:$A$199,'C Report Grouper'!$D11,'C Report'!H$100:H$199)) -> 0 | K11: =IF($D$4="MAP+ADM Waivers",SUMIF('C Report'!$A$100:$A$199,'C Report Grouper'!$D11,'C Report'!I$100:I$199)+SUMIF('C Report'!$A$300:$A$399,'C Report Grouper'!$D11,'C Report'!I$300:I$399),SUMIF('C Report'!$A$100:$A$199,'C Report Grouper'!$D11,'C Report'!I$100:I$199)) -> 0 | L11: =IF($D$4="MAP+ADM Waivers",SUMIF('C Report'!$A$100:$A$199,'C Report Grouper'!$D11,'C Report'!J$100:J$199)+SUMIF('C Report'!$A$300:$A$399,'C Report Grouper'!$D11,'C Report'!J$300:J$399),SUMIF('C Report'!$A$100:$A$199,'C Report Grouper'!$D11,'C Report'!J$100:J$199)) -> 0 | M11: =IF($D$4="MAP+ADM Waivers",SUMIF('C Report'!$A$100:$A$199,'C Report Grouper'!$D11,'C Report'!K$100:K$199)+SUMIF('C Report'!$A$300:$A$399,'C Report Grouper'!$D11,'C Report'!K$300:K$399),SUMIF('C Report'!$A$100:$A$199,'C Report Grouper'!$D11,'C Report'!K$100:K$199)) -> 0 | N11: =IF($D$4="MAP+ADM Waivers",SUMIF('C Report'!$A$100:$A$199,'C Report Grouper'!$D11,'C Report'!L$100:L$199)+SUMIF('C Report'!$A$300:$A$399,'C Report Grouper'!$D11,'C Report'!L$300:L$399),SUMIF('C Report'!$A$100:$A$199,'C Report Grouper'!$D11,'C Report'!L$100:L$199)) -> 0 | O11: =IF($D$4="MAP+ADM Waivers",SUMIF('C Report'!$A$100:$A$199,'C Report Grouper'!$D11,'C Report'!M$100:M$199)+SUMIF('C Report'!$A$300:$A$399,'C Report Grouper'!$D11,'C Report'!M$300:M$399),SUMIF('C Report'!$A$100:$A$199,'C Report Grouper'!$D11,'C Report'!M$100:M$199)) -> 0 | P11: =IF($D$4="MAP+ADM Waivers",SUMIF('C Report'!$A$100:$A$199,'C Report Grouper'!$D11,'C Report'!N$100:N$199)+SUMIF('C Report'!$A$300:$A$399,'C Report Grouper'!$D11,'C Report'!N$300:N$399),SUMIF('C Report'!$A$100:$A$199,'C Report Grouper'!$D11,'C Report'!N$100:N$199)) -> 0 | Q11: =IF($D$4="MAP+ADM Waivers",SUMIF('C Report'!$A$100:$A$199,'C Report Grouper'!$D11,'C Report'!O$100:O$199)+SUMIF('C Report'!$A$300:$A$399,'C Report Grouper'!$D11,'C Report'!O$300:O$399),SUMIF('C Report'!$A$100:$A$199,'C Report Grouper'!$D11,'C Report'!O$100:O$199)) -> 0 | R11: =IF($D$4="MAP+ADM Waivers",SUMIF('C Report'!$A$100:$A$199,'C Report Grouper'!$D11,'C Report'!P$100:P$199)+SUMIF('C Report'!$A$300:$A$399,'C Report Grouper'!$D11,'C Report'!P$300:P$399),SUMIF('C Report'!$A$100:$A$199,'C Report Grouper'!$D11,'C Report'!P$100:P$199)) -> 0 | S11: =IF($D$4="MAP+ADM Waivers",SUMIF('C Report'!$A$100:$A$199,'C Report Grouper'!$D11,'C Report'!Q$100:Q$199)+SUMIF('C Report'!$A$300:$A$399,'C Report Grouper'!$D11,'C Report'!Q$300:Q$399),SUMIF('C Report'!$A$100:$A$199,'C Report Grouper'!$D11,'C Report'!Q$100:Q$199)) -> 0 | T11: =IF($D$4="MAP+ADM Waivers",SUMIF('C Report'!$A$100:$A$199,'C Report Grouper'!$D11,'C Report'!R$100:R$199)+SUMIF('C Report'!$A$300:$A$399,'C Report Grouper'!$D11,'C Report'!R$300:R$399),SUMIF('C Report'!$A$100:$A$199,'C Report Grouper'!$D11,'C Report'!R$100:R$199)) -> 0 | U11: =IF($D$4="MAP+ADM Waivers",SUMIF('C Report'!$A$100:$A$199,'C Report Grouper'!$D11,'C Report'!S$100:S$199)+SUMIF('C Report'!$A$300:$A$399,'C Report Grouper'!$D11,'C Report'!S$300:S$399),SUMIF('C Report'!$A$100:$A$199,'C Report Grouper'!$D11,'C Report'!S$100:S$199)) -> 0 | V11: =IF($D$4="MAP+ADM Waivers",SUMIF('C Report'!$A$100:$A$199,'C Report Grouper'!$D11,'C Report'!T$100:T$199)+SUMIF('C Report'!$A$300:$A$399,'C Report Grouper'!$D11,'C Report'!T$300:T$399),SUMIF('C Report'!$A$100:$A$199,'C Report Grouper'!$D11,'C Report'!T$100:T$199)) -> 0 | W11: =IF($D$4="MAP+ADM Waivers",SUMIF('C Report'!$A$100:$A$199,'C Report Grouper'!$D11,'C Report'!U$100:U$199)+SUMIF('C Report'!$A$300:$A$399,'C Report Grouper'!$D11,'C Report'!U$300:U$399),SUMIF('C Report'!$A$100:$A$199,'C Report Grouper'!$D11,'C Report'!U$100:U$199)) -> 0 | X11: =IF($D$4="MAP+ADM Waivers",SUMIF('C Report'!$A$100:$A$199,'C Report Grouper'!$D11,'C Report'!V$100:V$199)+SUMIF('C Report'!$A$300:$A$399,'C Report Grouper'!$D11,'C Report'!V$300:V$399),SUMIF('C Report'!$A$100:$A$199,'C Report Grouper'!$D11,'C Report'!V$100:V$199)) -> 0 | Y11: =IF($D$4="MAP+ADM Waivers",SUMIF('C Report'!$A$100:$A$199,'C Report Grouper'!$D11,'C Report'!W$100:W$199)+SUMIF('C Report'!$A$300:$A$399,'C Report Grouper'!$D11,'C Report'!W$300:W$399),SUMIF('C Report'!$A$100:$A$199,'C Report Grouper'!$D11,'C Report'!W$100:W$199)) -> 0 | Z11: =IF($D$4="MAP+ADM Waivers",SUMIF('C Report'!$A$100:$A$199,'C Report Grouper'!$D11,'C Report'!X$100:X$199)+SUMIF('C Report'!$A$300:$A$399,'C Report Grouper'!$D11,'C Report'!X$300:X$399),SUMIF('C Report'!$A$100:$A$199,'C Report Grouper'!$D11,'C Report'!X$100:X$199)) -> 0 | AA11: =IF($D$4="MAP+ADM Waivers",SUMIF('C Report'!$A$100:$A$199,'C Report Grouper'!$D11,'C Report'!Y$100:Y$199)+SUMIF('C Report'!$A$300:$A$399,'C Report Grouper'!$D11,'C Report'!Y$300:Y$399),SUMIF('C Report'!$A$100:$A$199,'C Report Grouper'!$D11,'C Report'!Y$100:Y$199)) -> 0 | AB11: =IF($D$4="MAP+ADM Waivers",SUMIF('C Report'!$A$100:$A$199,'C Report Grouper'!$D11,'C Report'!Z$100:Z$199)+SUMIF('C Report'!$A$300:$A$399,'C Report Grouper'!$D11,'C Report'!Z$300:Z$399),SUMIF('C Report'!$A$100:$A$199,'C Report Grouper'!$D11,'C Report'!Z$100:Z$199)) -> 0 | AC11: =IF($D$4="MAP+ADM Waivers",SUMIF('C Report'!$A$100:$A$199,'C Report Grouper'!$D11,'C Report'!AA$100:AA$199)+SUMIF('C Report'!$A$300:$A$399,'C Report Grouper'!$D11,'C Report'!AA$300:AA$399),SUMIF('C Report'!$A$100:$A$199,'C Report Grouper'!$D11,'C Report'!AA$100:AA$199)) -> 0 | AD11: =IF($D$4="MAP+ADM Waivers",SUMIF('C Report'!$A$100:$A$199,'C Report Grouper'!$D11,'C Report'!AB$100:AB$199)+SUMIF('C Report'!$A$300:$A$399,'C Report Grouper'!$D11,'C Report'!AB$300:AB$399),SUMIF('C Report'!$A$100:$A$199,'C Report Grouper'!$D11,'C Report'!AB$100:AB$199)) -> 0 | AE11: =IF($D$4="MAP+ADM Waivers",SUMIF('C Report'!$A$100:$A$199,'C Report Grouper'!$D11,'C Report'!AC$100:AC$199)+SUMIF('C Report'!$A$300:$A$399,'C Report Grouper'!$D11,'C Report'!AC$300:AC$399),SUMIF('C Report'!$A$100:$A$199,'C Report Grouper'!$D11,'C Report'!AC$100:AC$199)) -> 0 | AF11: =IF($D$4="MAP+ADM Waivers",SUMIF('C Report'!$A$100:$A$199,'C Report Grouper'!$D11,'C Report'!AD$100:AD$199)+SUMIF('C Report'!$A$300:$A$399,'C Report Grouper'!$D11,'C Report'!AD$300:AD$399),SUMIF('C Report'!$A$100:$A$199,'C Report Grouper'!$D11,'C Report'!AD$100:AD$199)) -> 0 | AG11: =IF($D$4="MAP+ADM Waivers",SUMIF('C Report'!$A$100:$A$199,'C Report Grouper'!$D11,'C Report'!AE$100:AE$199)+SUMIF('C Report'!$A$300:$A$399,'C Report Grouper'!$D11,'C Report'!AE$300:AE$399),SUMIF('C Report'!$A$100:$A$199,'C Report Grouper'!$D11,'C Report'!AE$100:AE$199)) -> 0 | AH11: =IF($D$4="MAP+ADM Waivers",SUMIF('C Report'!$A$100:$A$199,'C Report Grouper'!$D11,'C Report'!AF$100:AF$199)+SUMIF('C Report'!$A$300:$A$399,'C Report Grouper'!$D11,'C Report'!AF$300:AF$399),SUMIF('C Report'!$A$100:$A$199,'C Report Grouper'!$D11,'C Report'!AF$100:AF$199)) -> 0
B12: =IFERROR(VLOOKUP(C12,'MEG Def'!$A$7:$B$12,2),"") ->  | E12: =IF($D$4="MAP+ADM Waivers",SUMIF('C Report'!$A$100:$A$199,'C Report Grouper'!$D12,'C Report'!C$100:C$199)+SUMIF('C Report'!$A$300:$A$399,'C Report Grouper'!$D12,'C Report'!C$300:C$399),SUMIF('C Report'!$A$100:$A$199,'C Report Grouper'!$D12,'C Report'!C$100:C$199)) -> 0 | F12: =IF($D$4="MAP+ADM Waivers",SUMIF('C Report'!$A$100:$A$199,'C Report Grouper'!$D12,'C Report'!D$100:D$199)+SUMIF('C Report'!$A$300:$A$399,'C Report Grouper'!$D12,'C Report'!D$300:D$399),SUMIF('C Report'!$A$100:$A$199,'C Report Grouper'!$D12,'C Report'!D$100:D$199)) -> 0 | G12: =IF($D$4="MAP+ADM Waivers",SUMIF('C Report'!$A$100:$A$199,'C Report Grouper'!$D12,'C Report'!E$100:E$199)+SUMIF('C Report'!$A$300:$A$399,'C Report Grouper'!$D12,'C Report'!E$300:E$399),SUMIF('C Report'!$A$100:$A$199,'C Report Grouper'!$D12,'C Report'!E$100:E$199)) -> 0 | H12: =IF($D$4="MAP+ADM Waivers",SUMIF('C Report'!$A$100:$A$199,'C Report Grouper'!$D12,'C Report'!F$100:F$199)+SUMIF('C Report'!$A$300:$A$399,'C Report Grouper'!$D12,'C Report'!F$300:F$399),SUMIF('C Report'!$A$100:$A$199,'C Report Grouper'!$D12,'C Report'!F$100:F$199)) -> 0 | I12: =IF($D$4="MAP+ADM Waivers",SUMIF('C Report'!$A$100:$A$199,'C Report Grouper'!$D12,'C Report'!G$100:G$199)+SUMIF('C Report'!$A$300:$A$399,'C Report Grouper'!$D12,'C Report'!G$300:G$399),SUMIF('C Report'!$A$100:$A$199,'C Report Grouper'!$D12,'C Report'!G$100:G$199)) -> 0 | J12: =IF($D$4="MAP+ADM Waivers",SUMIF('C Report'!$A$100:$A$199,'C Report Grouper'!$D12,'C Report'!H$100:H$199)+SUMIF('C Report'!$A$300:$A$399,'C Report Grouper'!$D12,'C Report'!H$300:H$399),SUMIF('C Report'!$A$100:$A$199,'C Report Grouper'!$D12,'C Report'!H$100:H$199)) -> 0 | K12: =IF($D$4="MAP+ADM Waivers",SUMIF('C Report'!$A$100:$A$199,'C Report Grouper'!$D12,'C Report'!I$100:I$199)+SUMIF('C Report'!$A$300:$A$399,'C Report Grouper'!$D12,'C Report'!I$300:I$399),SUMIF('C Report'!$A$100:$A$199,'C Report Grouper'!$D12,'C Report'!I$100:I$199)) -> 0 | L12: =IF($D$4="MAP+ADM Waivers",SUMIF('C Report'!$A$100:$A$199,'C Report Grouper'!$D12,'C Report'!J$100:J$199)+SUMIF('C Report'!$A$300:$A$399,'C Report Grouper'!$D12,'C Report'!J$300:J$399),SUMIF('C Report'!$A$100:$A$199,'C Report Grouper'!$D12,'C Report'!J$100:J$199)) -> 0 | M12: =IF($D$4="MAP+ADM Waivers",SUMIF('C Report'!$A$100:$A$199,'C Report Grouper'!$D12,'C Report'!K$100:K$199)+SUMIF('C Report'!$A$300:$A$399,'C Report Grouper'!$D12,'C Report'!K$300:K$399),SUMIF('C Report'!$A$100:$A$199,'C Report Grouper'!$D12,'C Report'!K$100:K$199)) -> 0 | N12: =IF($D$4="MAP+ADM Waivers",SUMIF('C Report'!$A$100:$A$199,'C Report Grouper'!$D12,'C Report'!L$100:L$199)+SUMIF('C Report'!$A$300:$A$399,'C Report Grouper'!$D12,'C Report'!L$300:L$399),SUMIF('C Report'!$A$100:$A$199,'C Report Grouper'!$D12,'C Report'!L$100:L$199)) -> 0 | O12: =IF($D$4="MAP+ADM Waivers",SUMIF('C Report'!$A$100:$A$199,'C Report Grouper'!$D12,'C Report'!M$100:M$199)+SUMIF('C Report'!$A$300:$A$399,'C Report Grouper'!$D12,'C Report'!M$300:M$399),SUMIF('C Report'!$A$100:$A$199,'C Report Grouper'!$D12,'C Report'!M$100:M$199)) -> 0 | P12: =IF($D$4="MAP+ADM Waivers",SUMIF('C Report'!$A$100:$A$199,'C Report Grouper'!$D12,'C Report'!N$100:N$199)+SUMIF('C Report'!$A$300:$A$399,'C Report Grouper'!$D12,'C Report'!N$300:N$399),SUMIF('C Report'!$A$100:$A$199,'C Report Grouper'!$D12,'C Report'!N$100:N$199)) -> 0 | Q12: =IF($D$4="MAP+ADM Waivers",SUMIF('C Report'!$A$100:$A$199,'C Report Grouper'!$D12,'C Report'!O$100:O$199)+SUMIF('C Report'!$A$300:$A$399,'C Report Grouper'!$D12,'C Report'!O$300:O$399),SUMIF('C Report'!$A$100:$A$199,'C Report Grouper'!$D12,'C Report'!O$100:O$199)) -> 0 | R12: =IF($D$4="MAP+ADM Waivers",SUMIF('C Report'!$A$100:$A$199,'C Report Grouper'!$D12,'C Report'!P$100:P$199)+SUMIF('C Report'!$A$300:$A$399,'C Report Grouper'!$D12,'C Report'!P$300:P$399),SUMIF('C Report'!$A$100:$A$199,'C Report Grouper'!$D12,'C Report'!P$100:P$199)) -> 0 | S12: =IF($D$4="MAP+ADM Waivers",SUMIF('C Report'!$A$100:$A$199,'C Report Grouper'!$D12,'C Report'!Q$100:Q$199)+SUMIF('C Report'!$A$300:$A$399,'C Report Grouper'!$D12,'C Report'!Q$300:Q$399),SUMIF('C Report'!$A$100:$A$199,'C Report Grouper'!$D12,'C Report'!Q$100:Q$199)) -> 0 | T12: =IF($D$4="MAP+ADM Waivers",SUMIF('C Report'!$A$100:$A$199,'C Report Grouper'!$D12,'C Report'!R$100:R$199)+SUMIF('C Report'!$A$300:$A$399,'C Report Grouper'!$D12,'C Report'!R$300:R$399),SUMIF('C Report'!$A$100:$A$199,'C Report Grouper'!$D12,'C Report'!R$100:R$199)) -> 0 | U12: =IF($D$4="MAP+ADM Waivers",SUMIF('C Report'!$A$100:$A$199,'C Report Grouper'!$D12,'C Report'!S$100:S$199)+SUMIF('C Report'!$A$300:$A$399,'C Report Grouper'!$D12,'C Report'!S$300:S$399),SUMIF('C Report'!$A$100:$A$199,'C Report Grouper'!$D12,'C Report'!S$100:S$199)) -> 0 | V12: =IF($D$4="MAP+ADM Waivers",SUMIF('C Report'!$A$100:$A$199,'C Report Grouper'!$D12,'C Report'!T$100:T$199)+SUMIF('C Report'!$A$300:$A$399,'C Report Grouper'!$D12,'C Report'!T$300:T$399),SUMIF('C Report'!$A$100:$A$199,'C Report Grouper'!$D12,'C Report'!T$100:T$199)) -> 0 | W12: =IF($D$4="MAP+ADM Waivers",SUMIF('C Report'!$A$100:$A$199,'C Report Grouper'!$D12,'C Report'!U$100:U$199)+SUMIF('C Report'!$A$300:$A$399,'C Report Grouper'!$D12,'C Report'!U$300:U$399),SUMIF('C Report'!$A$100:$A$199,'C Report Grouper'!$D12,'C Report'!U$100:U$199)) -> 0 | X12: =IF($D$4="MAP+ADM Waivers",SUMIF('C Report'!$A$100:$A$199,'C Report Grouper'!$D12,'C Report'!V$100:V$199)+SUMIF('C Report'!$A$300:$A$399,'C Report Grouper'!$D12,'C Report'!V$300:V$399),SUMIF('C Report'!$A$100:$A$199,'C Report Grouper'!$D12,'C Report'!V$100:V$199)) -> 0 | Y12: =IF($D$4="MAP+ADM Waivers",SUMIF('C Report'!$A$100:$A$199,'C Report Grouper'!$D12,'C Report'!W$100:W$199)+SUMIF('C Report'!$A$300:$A$399,'C Report Grouper'!$D12,'C Report'!W$300:W$399),SUMIF('C Report'!$A$100:$A$199,'C Report Grouper'!$D12,'C Report'!W$100:W$199)) -> 0 | Z12: =IF($D$4="MAP+ADM Waivers",SUMIF('C Report'!$A$100:$A$199,'C Report Grouper'!$D12,'C Report'!X$100:X$199)+SUMIF('C Report'!$A$300:$A$399,'C Report Grouper'!$D12,'C Report'!X$300:X$399),SUMIF('C Report'!$A$100:$A$199,'C Report Grouper'!$D12,'C Report'!X$100:X$199)) -> 0 | AA12: =IF($D$4="MAP+ADM Waivers",SUMIF('C Report'!$A$100:$A$199,'C Report Grouper'!$D12,'C Report'!Y$100:Y$199)+SUMIF('C Report'!$A$300:$A$399,'C Report Grouper'!$D12,'C Report'!Y$300:Y$399),SUMIF('C Report'!$A$100:$A$199,'C Report Grouper'!$D12,'C Report'!Y$100:Y$199)) -> 0 | AB12: =IF($D$4="MAP+ADM Waivers",SUMIF('C Report'!$A$100:$A$199,'C Report Grouper'!$D12,'C Report'!Z$100:Z$199)+SUMIF('C Report'!$A$300:$A$399,'C Report Grouper'!$D12,'C Report'!Z$300:Z$399),SUMIF('C Report'!$A$100:$A$199,'C Report Grouper'!$D12,'C Report'!Z$100:Z$199)) -> 0 | AC12: =IF($D$4="MAP+ADM Waivers",SUMIF('C Report'!$A$100:$A$199,'C Report Grouper'!$D12,'C Report'!AA$100:AA$199)+SUMIF('C Report'!$A$300:$A$399,'C Report Grouper'!$D12,'C Report'!AA$300:AA$399),SUMIF('C Report'!$A$100:$A$199,'C Report Grouper'!$D12,'C Report'!AA$100:AA$199)) -> 0 | AD12: =IF($D$4="MAP+ADM Waivers",SUMIF('C Report'!$A$100:$A$199,'C Report Grouper'!$D12,'C Report'!AB$100:AB$199)+SUMIF('C Report'!$A$300:$A$399,'C Report Grouper'!$D12,'C Report'!AB$300:AB$399),SUMIF('C Report'!$A$100:$A$199,'C Report Grouper'!$D12,'C Report'!AB$100:AB$199)) -> 0 | AE12: =IF($D$4="MAP+ADM Waivers",SUMIF('C Report'!$A$100:$A$199,'C Report Grouper'!$D12,'C Report'!AC$100:AC$199)+SUMIF('C Report'!$A$300:$A$399,'C Report Grouper'!$D12,'C Report'!AC$300:AC$399),SUMIF('C Report'!$A$100:$A$199,'C Report Grouper'!$D12,'C Report'!AC$100:AC$199)) -> 0 | AF12: =IF($D$4="MAP+ADM Waivers",SUMIF('C Report'!$A$100:$A$199,'C Report Grouper'!$D12,'C Report'!AD$100:AD$199)+SUMIF('C Report'!$A$300:$A$399,'C Report Grouper'!$D12,'C Report'!AD$300:AD$399),SUMIF('C Report'!$A$100:$A$199,'C Report Grouper'!$D12,'C Report'!AD$100:AD$199)) -> 0 | AG12: =IF($D$4="MAP+ADM Waivers",SUMIF('C Report'!$A$100:$A$199,'C Report Grouper'!$D12,'C Report'!AE$100:AE$199)+SUMIF('C Report'!$A$300:$A$399,'C Report Grouper'!$D12,'C Report'!AE$300:AE$399),SUMIF('C Report'!$A$100:$A$199,'C Report Grouper'!$D12,'C Report'!AE$100:AE$199)) -> 0 | AH12: =IF($D$4="MAP+ADM Waivers",SUMIF('C Report'!$A$100:$A$199,'C Report Grouper'!$D12,'C Report'!AF$100:AF$199)+SUMIF('C Report'!$A$300:$A$399,'C Report Grouper'!$D12,'C Report'!AF$300:AF$399),SUMIF('C Report'!$A$100:$A$199,'C Report Grouper'!$D12,'C Report'!AF$100:AF$199)) -> 0
B13: =IFERROR(VLOOKUP(C13,'MEG Def'!$A$7:$B$12,2),"") ->  | E13: =IF($D$4="MAP+ADM Waivers",SUMIF('C Report'!$A$100:$A$199,'C Report Grouper'!$D13,'C Report'!C$100:C$199)+SUMIF('C Report'!$A$300:$A$399,'C Report Grouper'!$D13,'C Report'!C$300:C$399),SUMIF('C Report'!$A$100:$A$199,'C Report Grouper'!$D13,'C Report'!C$100:C$199)) -> 0 | F13: =IF($D$4="MAP+ADM Waivers",SUMIF('C Report'!$A$100:$A$199,'C Report Grouper'!$D13,'C Report'!D$100:D$199)+SUMIF('C Report'!$A$300:$A$399,'C Report Grouper'!$D13,'C Report'!D$300:D$399),SUMIF('C Report'!$A$100:$A$199,'C Report Grouper'!$D13,'C Report'!D$100:D$199)) -> 0 | G13: =IF($D$4="MAP+ADM Waivers",SUMIF('C Report'!$A$100:$A$199,'C Report Grouper'!$D13,'C Report'!E$100:E$199)+SUMIF('C Report'!$A$300:$A$399,'C Report Grouper'!$D13,'C Report'!E$300:E$399),SUMIF('C Report'!$A$100:$A$199,'C Report Grouper'!$D13,'C Report'!E$100:E$199)) -> 0 | H13: =IF($D$4="MAP+ADM Waivers",SUMIF('C Report'!$A$100:$A$199,'C Report Grouper'!$D13,'C Report'!F$100:F$199)+SUMIF('C Report'!$A$300:$A$399,'C Report Grouper'!$D13,'C Report'!F$300:F$399),SUMIF('C Report'!$A$100:$A$199,'C Report Grouper'!$D13,'C Report'!F$100:F$199)) -> 0 | I13: =IF($D$4="MAP+ADM Waivers",SUMIF('C Report'!$A$100:$A$199,'C Report Grouper'!$D13,'C Report'!G$100:G$199)+SUMIF('C Report'!$A$300:$A$399,'C Report Grouper'!$D13,'C Report'!G$300:G$399),SUMIF('C Report'!$A$100:$A$199,'C Report Grouper'!$D13,'C Report'!G$100:G$199)) -> 0 | J13: =IF($D$4="MAP+ADM Waivers",SUMIF('C Report'!$A$100:$A$199,'C Report Grouper'!$D13,'C Report'!H$100:H$199)+SUMIF('C Report'!$A$300:$A$399,'C Report Grouper'!$D13,'C Report'!H$300:H$399),SUMIF('C Report'!$A$100:$A$199,'C Report Grouper'!$D13,'C Report'!H$100:H$199)) -> 0 | K13: =IF($D$4="MAP+ADM Waivers",SUMIF('C Report'!$A$100:$A$199,'C Report Grouper'!$D13,'C Report'!I$100:I$199)+SUMIF('C Report'!$A$300:$A$399,'C Report Grouper'!$D13,'C Report'!I$300:I$399),SUMIF('C Report'!$A$100:$A$199,'C Report Grouper'!$D13,'C Report'!I$100:I$199)) -> 0 | L13: =IF($D$4="MAP+ADM Waivers",SUMIF('C Report'!$A$100:$A$199,'C Report Grouper'!$D13,'C Report'!J$100:J$199)+SUMIF('C Report'!$A$300:$A$399,'C Report Grouper'!$D13,'C Report'!J$300:J$399),SUMIF('C Report'!$A$100:$A$199,'C Report Grouper'!$D13,'C Report'!J$100:J$199)) -> 0 | M13: =IF($D$4="MAP+ADM Waivers",SUMIF('C Report'!$A$100:$A$199,'C Report Grouper'!$D13,'C Report'!K$100:K$199)+SUMIF('C Report'!$A$300:$A$399,'C Report Grouper'!$D13,'C Report'!K$300:K$399),SUMIF('C Report'!$A$100:$A$199,'C Report Grouper'!$D13,'C Report'!K$100:K$199)) -> 0 | N13: =IF($D$4="MAP+ADM Waivers",SUMIF('C Report'!$A$100:$A$199,'C Report Grouper'!$D13,'C Report'!L$100:L$199)+SUMIF('C Report'!$A$300:$A$399,'C Report Grouper'!$D13,'C Report'!L$300:L$399),SUMIF('C Report'!$A$100:$A$199,'C Report Grouper'!$D13,'C Report'!L$100:L$199)) -> 0 | O13: =IF($D$4="MAP+ADM Waivers",SUMIF('C Report'!$A$100:$A$199,'C Report Grouper'!$D13,'C Report'!M$100:M$199)+SUMIF('C Report'!$A$300:$A$399,'C Report Grouper'!$D13,'C Report'!M$300:M$399),SUMIF('C Report'!$A$100:$A$199,'C Report Grouper'!$D13,'C Report'!M$100:M$199)) -> 0 | P13: =IF($D$4="MAP+ADM Waivers",SUMIF('C Report'!$A$100:$A$199,'C Report Grouper'!$D13,'C Report'!N$100:N$199)+SUMIF('C Report'!$A$300:$A$399,'C Report Grouper'!$D13,'C Report'!N$300:N$399),SUMIF('C Report'!$A$100:$A$199,'C Report Grouper'!$D13,'C Report'!N$100:N$199)) -> 0 | Q13: =IF($D$4="MAP+ADM Waivers",SUMIF('C Report'!$A$100:$A$199,'C Report Grouper'!$D13,'C Report'!O$100:O$199)+SUMIF('C Report'!$A$300:$A$399,'C Report Grouper'!$D13,'C Report'!O$300:O$399),SUMIF('C Report'!$A$100:$A$199,'C Report Grouper'!$D13,'C Report'!O$100:O$199)) -> 0 | R13: =IF($D$4="MAP+ADM Waivers",SUMIF('C Report'!$A$100:$A$199,'C Report Grouper'!$D13,'C Report'!P$100:P$199)+SUMIF('C Report'!$A$300:$A$399,'C Report Grouper'!$D13,'C Report'!P$300:P$399),SUMIF('C Report'!$A$100:$A$199,'C Report Grouper'!$D13,'C Report'!P$100:P$199)) -> 0 | S13: =IF($D$4="MAP+ADM Waivers",SUMIF('C Report'!$A$100:$A$199,'C Report Grouper'!$D13,'C Report'!Q$100:Q$199)+SUMIF('C Report'!$A$300:$A$399,'C Report Grouper'!$D13,'C Report'!Q$300:Q$399),SUMIF('C Report'!$A$100:$A$199,'C Report Grouper'!$D13,'C Report'!Q$100:Q$199)) -> 0 | T13: =IF($D$4="MAP+ADM Waivers",SUMIF('C Report'!$A$100:$A$199,'C Report Grouper'!$D13,'C Report'!R$100:R$199)+SUMIF('C Report'!$A$300:$A$399,'C Report Grouper'!$D13,'C Report'!R$300:R$399),SUMIF('C Report'!$A$100:$A$199,'C Report Grouper'!$D13,'C Report'!R$100:R$199)) -> 0 | U13: =IF($D$4="MAP+ADM Waivers",SUMIF('C Report'!$A$100:$A$199,'C Report Grouper'!$D13,'C Report'!S$100:S$199)+SUMIF('C Report'!$A$300:$A$399,'C Report Grouper'!$D13,'C Report'!S$300:S$399),SUMIF('C Report'!$A$100:$A$199,'C Report Grouper'!$D13,'C Report'!S$100:S$199)) -> 0 | V13: =IF($D$4="MAP+ADM Waivers",SUMIF('C Report'!$A$100:$A$199,'C Report Grouper'!$D13,'C Report'!T$100:T$199)+SUMIF('C Report'!$A$300:$A$399,'C Report Grouper'!$D13,'C Report'!T$300:T$399),SUMIF('C Report'!$A$100:$A$199,'C Report Grouper'!$D13,'C Report'!T$100:T$199)) -> 0 | W13: =IF($D$4="MAP+ADM Waivers",SUMIF('C Report'!$A$100:$A$199,'C Report Grouper'!$D13,'C Report'!U$100:U$199)+SUMIF('C Report'!$A$300:$A$399,'C Report Grouper'!$D13,'C Report'!U$300:U$399),SUMIF('C Report'!$A$100:$A$199,'C Report Grouper'!$D13,'C Report'!U$100:U$199)) -> 0 | X13: =IF($D$4="MAP+ADM Waivers",SUMIF('C Report'!$A$100:$A$199,'C Report Grouper'!$D13,'C Report'!V$100:V$199)+SUMIF('C Report'!$A$300:$A$399,'C Report Grouper'!$D13,'C Report'!V$300:V$399),SUMIF('C Report'!$A$100:$A$199,'C Report Grouper'!$D13,'C Report'!V$100:V$199)) -> 0 | Y13: =IF($D$4="MAP+ADM Waivers",SUMIF('C Report'!$A$100:$A$199,'C Report Grouper'!$D13,'C Report'!W$100:W$199)+SUMIF('C Report'!$A$300:$A$399,'C Report Grouper'!$D13,'C Report'!W$300:W$399),SUMIF('C Report'!$A$100:$A$199,'C Report Grouper'!$D13,'C Report'!W$100:W$199)) -> 0 | Z13: =IF($D$4="MAP+ADM Waivers",SUMIF('C Report'!$A$100:$A$199,'C Report Grouper'!$D13,'C Report'!X$100:X$199)+SUMIF('C Report'!$A$300:$A$399,'C Report Grouper'!$D13,'C Report'!X$300:X$399),SUMIF('C Report'!$A$100:$A$199,'C Report Grouper'!$D13,'C Report'!X$100:X$199)) -> 0 | AA13: =IF($D$4="MAP+ADM Waivers",SUMIF('C Report'!$A$100:$A$199,'C Report Grouper'!$D13,'C Report'!Y$100:Y$199)+SUMIF('C Report'!$A$300:$A$399,'C Report Grouper'!$D13,'C Report'!Y$300:Y$399),SUMIF('C Report'!$A$100:$A$199,'C Report Grouper'!$D13,'C Report'!Y$100:Y$199)) -> 0 | AB13: =IF($D$4="MAP+ADM Waivers",SUMIF('C Report'!$A$100:$A$199,'C Report Grouper'!$D13,'C Report'!Z$100:Z$199)+SUMIF('C Report'!$A$300:$A$399,'C Report Grouper'!$D13,'C Report'!Z$300:Z$399),SUMIF('C Report'!$A$100:$A$199,'C Report Grouper'!$D13,'C Report'!Z$100:Z$199)) -> 0 | AC13: =IF($D$4="MAP+ADM Waivers",SUMIF('C Report'!$A$100:$A$199,'C Report Grouper'!$D13,'C Report'!AA$100:AA$199)+SUMIF('C Report'!$A$300:$A$399,'C Report Grouper'!$D13,'C Report'!AA$300:AA$399),SUMIF('C Report'!$A$100:$A$199,'C Report Grouper'!$D13,'C Report'!AA$100:AA$199)) -> 0 | AD13: =IF($D$4="MAP+ADM Waivers",SUMIF('C Report'!$A$100:$A$199,'C Report Grouper'!$D13,'C Report'!AB$100:AB$199)+SUMIF('C Report'!$A$300:$A$399,'C Report Grouper'!$D13,'C Report'!AB$300:AB$399),SUMIF('C Report'!$A$100:$A$199,'C Report Grouper'!$D13,'C Report'!AB$100:AB$199)) -> 0 | AE13: =IF($D$4="MAP+ADM Waivers",SUMIF('C Report'!$A$100:$A$199,'C Report Grouper'!$D13,'C Report'!AC$100:AC$199)+SUMIF('C Report'!$A$300:$A$399,'C Report Grouper'!$D13,'C Report'!AC$300:AC$399),SUMIF('C Report'!$A$100:$A$199,'C Report Grouper'!$D13,'C Report'!AC$100:AC$199)) -> 0 | AF13: =IF($D$4="MAP+ADM Waivers",SUMIF('C Report'!$A$100:$A$199,'C Report Grouper'!$D13,'C Report'!AD$100:AD$199)+SUMIF('C Report'!$A$300:$A$399,'C Report Grouper'!$D13,'C Report'!AD$300:AD$399),SUMIF('C Report'!$A$100:$A$199,'C Report Grouper'!$D13,'C Report'!AD$100:AD$199)) -> 0 | AG13: =IF($D$4="MAP+ADM Waivers",SUMIF('C Report'!$A$100:$A$199,'C Report Grouper'!$D13,'C Report'!AE$100:AE$199)+SUMIF('C Report'!$A$300:$A$399,'C Report Grouper'!$D13,'C Report'!AE$300:AE$399),SUMIF('C Report'!$A$100:$A$199,'C Report Grouper'!$D13,'C Report'!AE$100:AE$199)) -> 0 | AH13: =IF($D$4="MAP+ADM Waivers",SUMIF('C Report'!$A$100:$A$199,'C Report Grouper'!$D13,'C Report'!AF$100:AF$199)+SUMIF('C Report'!$A$300:$A$399,'C Report Grouper'!$D13,'C Report'!AF$300:AF$399),SUMIF('C Report'!$A$100:$A$199,'C Report Grouper'!$D13,'C Report'!AF$100:AF$199)) -> 0
B14: =IFERROR(VLOOKUP(C14,'MEG Def'!$A$7:$B$12,2),"") ->  | E14: =IF($D$4="MAP+ADM Waivers",SUMIF('C Report'!$A$100:$A$199,'C Report Grouper'!$D14,'C Report'!C$100:C$199)+SUMIF('C Report'!$A$300:$A$399,'C Report Grouper'!$D14,'C Report'!C$300:C$399),SUMIF('C Report'!$A$100:$A$199,'C Report Grouper'!$D14,'C Report'!C$100:C$199)) -> 0 | F14: =IF($D$4="MAP+ADM Waivers",SUMIF('C Report'!$A$100:$A$199,'C Report Grouper'!$D14,'C Report'!D$100:D$199)+SUMIF('C Report'!$A$300:$A$399,'C Report Grouper'!$D14,'C Report'!D$300:D$399),SUMIF('C Report'!$A$100:$A$199,'C Report Grouper'!$D14,'C Report'!D$100:D$199)) -> 0 | G14: =IF($D$4="MAP+ADM Waivers",SUMIF('C Report'!$A$100:$A$199,'C Report Grouper'!$D14,'C Report'!E$100:E$199)+SUMIF('C Report'!$A$300:$A$399,'C Report Grouper'!$D14,'C Report'!E$300:E$399),SUMIF('C Report'!$A$100:$A$199,'C Report Grouper'!$D14,'C Report'!E$100:E$199)) -> 0 | H14: =IF($D$4="MAP+ADM Waivers",SUMIF('C Report'!$A$100:$A$199,'C Report Grouper'!$D14,'C Report'!F$100:F$199)+SUMIF('C Report'!$A$300:$A$399,'C Report Grouper'!$D14,'C Report'!F$300:F$399),SUMIF('C Report'!$A$100:$A$199,'C Report Grouper'!$D14,'C Report'!F$100:F$199)) -> 0 | I14: =IF($D$4="MAP+ADM Waivers",SUMIF('C Report'!$A$100:$A$199,'C Report Grouper'!$D14,'C Report'!G$100:G$199)+SUMIF('C Report'!$A$300:$A$399,'C Report Grouper'!$D14,'C Report'!G$300:G$399),SUMIF('C Report'!$A$100:$A$199,'C Report Grouper'!$D14,'C Report'!G$100:G$199)) -> 0 | J14: =IF($D$4="MAP+ADM Waivers",SUMIF('C Report'!$A$100:$A$199,'C Report Grouper'!$D14,'C Report'!H$100:H$199)+SUMIF('C Report'!$A$300:$A$399,'C Report Grouper'!$D14,'C Report'!H$300:H$399),SUMIF('C Report'!$A$100:$A$199,'C Report Grouper'!$D14,'C Report'!H$100:H$199)) -> 0 | K14: =IF($D$4="MAP+ADM Waivers",SUMIF('C Report'!$A$100:$A$199,'C Report Grouper'!$D14,'C Report'!I$100:I$199)+SUMIF('C Report'!$A$300:$A$399,'C Report Grouper'!$D14,'C Report'!I$300:I$399),SUMIF('C Report'!$A$100:$A$199,'C Report Grouper'!$D14,'C Report'!I$100:I$199)) -> 0 | L14: =IF($D$4="MAP+ADM Waivers",SUMIF('C Report'!$A$100:$A$199,'C Report Grouper'!$D14,'C Report'!J$100:J$199)+SUMIF('C Report'!$A$300:$A$399,'C Report Grouper'!$D14,'C Report'!J$300:J$399),SUMIF('C Report'!$A$100:$A$199,'C Report Grouper'!$D14,'C Report'!J$100:J$199)) -> 0 | M14: =IF($D$4="MAP+ADM Waivers",SUMIF('C Report'!$A$100:$A$199,'C Report Grouper'!$D14,'C Report'!K$100:K$199)+SUMIF('C Report'!$A$300:$A$399,'C Report Grouper'!$D14,'C Report'!K$300:K$399),SUMIF('C Report'!$A$100:$A$199,'C Report Grouper'!$D14,'C Report'!K$100:K$199)) -> 0 | N14: =IF($D$4="MAP+ADM Waivers",SUMIF('C Report'!$A$100:$A$199,'C Report Grouper'!$D14,'C Report'!L$100:L$199)+SUMIF('C Report'!$A$300:$A$399,'C Report Grouper'!$D14,'C Report'!L$300:L$399),SUMIF('C Report'!$A$100:$A$199,'C Report Grouper'!$D14,'C Report'!L$100:L$199)) -> 0 | O14: =IF($D$4="MAP+ADM Waivers",SUMIF('C Report'!$A$100:$A$199,'C Report Grouper'!$D14,'C Report'!M$100:M$199)+SUMIF('C Report'!$A$300:$A$399,'C Report Grouper'!$D14,'C Report'!M$300:M$399),SUMIF('C Report'!$A$100:$A$199,'C Report Grouper'!$D14,'C Report'!M$100:M$199)) -> 0 | P14: =IF($D$4="MAP+ADM Waivers",SUMIF('C Report'!$A$100:$A$199,'C Report Grouper'!$D14,'C Report'!N$100:N$199)+SUMIF('C Report'!$A$300:$A$399,'C Report Grouper'!$D14,'C Report'!N$300:N$399),SUMIF('C Report'!$A$100:$A$199,'C Report Grouper'!$D14,'C Report'!N$100:N$199)) -> 0 | Q14: =IF($D$4="MAP+ADM Waivers",SUMIF('C Report'!$A$100:$A$199,'C Report Grouper'!$D14,'C Report'!O$100:O$199)+SUMIF('C Report'!$A$300:$A$399,'C Report Grouper'!$D14,'C Report'!O$300:O$399),SUMIF('C Report'!$A$100:$A$199,'C Report Grouper'!$D14,'C Report'!O$100:O$199)) -> 0 | R14: =IF($D$4="MAP+ADM Waivers",SUMIF('C Report'!$A$100:$A$199,'C Report Grouper'!$D14,'C Report'!P$100:P$199)+SUMIF('C Report'!$A$300:$A$399,'C Report Grouper'!$D14,'C Report'!P$300:P$399),SUMIF('C Report'!$A$100:$A$199,'C Report Grouper'!$D14,'C Report'!P$100:P$199)) -> 0 | S14: =IF($D$4="MAP+ADM Waivers",SUMIF('C Report'!$A$100:$A$199,'C Report Grouper'!$D14,'C Report'!Q$100:Q$199)+SUMIF('C Report'!$A$300:$A$399,'C Report Grouper'!$D14,'C Report'!Q$300:Q$399),SUMIF('C Report'!$A$100:$A$199,'C Report Grouper'!$D14,'C Report'!Q$100:Q$199)) -> 0 | T14: =IF($D$4="MAP+ADM Waivers",SUMIF('C Report'!$A$100:$A$199,'C Report Grouper'!$D14,'C Report'!R$100:R$199)+SUMIF('C Report'!$A$300:$A$399,'C Report Grouper'!$D14,'C Report'!R$300:R$399),SUMIF('C Report'!$A$100:$A$199,'C Report Grouper'!$D14,'C Report'!R$100:R$199)) -> 0 | U14: =IF($D$4="MAP+ADM Waivers",SUMIF('C Report'!$A$100:$A$199,'C Report Grouper'!$D14,'C Report'!S$100:S$199)+SUMIF('C Report'!$A$300:$A$399,'C Report Grouper'!$D14,'C Report'!S$300:S$399),SUMIF('C Report'!$A$100:$A$199,'C Report Grouper'!$D14,'C Report'!S$100:S$199)) -> 0 | V14: =IF($D$4="MAP+ADM Waivers",SUMIF('C Report'!$A$100:$A$199,'C Report Grouper'!$D14,'C Report'!T$100:T$199)+SUMIF('C Report'!$A$300:$A$399,'C Report Grouper'!$D14,'C Report'!T$300:T$399),SUMIF('C Report'!$A$100:$A$199,'C Report Grouper'!$D14,'C Report'!T$100:T$199)) -> 0 | W14: =IF($D$4="MAP+ADM Waivers",SUMIF('C Report'!$A$100:$A$199,'C Report Grouper'!$D14,'C Report'!U$100:U$199)+SUMIF('C Report'!$A$300:$A$399,'C Report Grouper'!$D14,'C Report'!U$300:U$399),SUMIF('C Report'!$A$100:$A$199,'C Report Grouper'!$D14,'C Report'!U$100:U$199)) -> 0 | X14: =IF($D$4="MAP+ADM Waivers",SUMIF('C Report'!$A$100:$A$199,'C Report Grouper'!$D14,'C Report'!V$100:V$199)+SUMIF('C Report'!$A$300:$A$399,'C Report Grouper'!$D14,'C Report'!V$300:V$399),SUMIF('C Report'!$A$100:$A$199,'C Report Grouper'!$D14,'C Report'!V$100:V$199)) -> 0 | Y14: =IF($D$4="MAP+ADM Waivers",SUMIF('C Report'!$A$100:$A$199,'C Report Grouper'!$D14,'C Report'!W$100:W$199)+SUMIF('C Report'!$A$300:$A$399,'C Report Grouper'!$D14,'C Report'!W$300:W$399),SUMIF('C Report'!$A$100:$A$199,'C Report Grouper'!$D14,'C Report'!W$100:W$199)) -> 0 | Z14: =IF($D$4="MAP+ADM Waivers",SUMIF('C Report'!$A$100:$A$199,'C Report Grouper'!$D14,'C Report'!X$100:X$199)+SUMIF('C Report'!$A$300:$A$399,'C Report Grouper'!$D14,'C Report'!X$300:X$399),SUMIF('C Report'!$A$100:$A$199,'C Report Grouper'!$D14,'C Report'!X$100:X$199)) -> 0 | AA14: =IF($D$4="MAP+ADM Waivers",SUMIF('C Report'!$A$100:$A$199,'C Report Grouper'!$D14,'C Report'!Y$100:Y$199)+SUMIF('C Report'!$A$300:$A$399,'C Report Grouper'!$D14,'C Report'!Y$300:Y$399),SUMIF('C Report'!$A$100:$A$199,'C Report Grouper'!$D14,'C Report'!Y$100:Y$199)) -> 0 | AB14: =IF($D$4="MAP+ADM Waivers",SUMIF('C Report'!$A$100:$A$199,'C Report Grouper'!$D14,'C Report'!Z$100:Z$199)+SUMIF('C Report'!$A$300:$A$399,'C Report Grouper'!$D14,'C Report'!Z$300:Z$399),SUMIF('C Report'!$A$100:$A$199,'C Report Grouper'!$D14,'C Report'!Z$100:Z$199)) -> 0 | AC14: =IF($D$4="MAP+ADM Waivers",SUMIF('C Report'!$A$100:$A$199,'C Report Grouper'!$D14,'C Report'!AA$100:AA$199)+SUMIF('C Report'!$A$300:$A$399,'C Report Grouper'!$D14,'C Report'!AA$300:AA$399),SUMIF('C Report'!$A$100:$A$199,'C Report Grouper'!$D14,'C Report'!AA$100:AA$199)) -> 0 | AD14: =IF($D$4="MAP+ADM Waivers",SUMIF('C Report'!$A$100:$A$199,'C Report Grouper'!$D14,'C Report'!AB$100:AB$199)+SUMIF('C Report'!$A$300:$A$399,'C Report Grouper'!$D14,'C Report'!AB$300:AB$399),SUMIF('C Report'!$A$100:$A$199,'C Report Grouper'!$D14,'C Report'!AB$100:AB$199)) -> 0 | AE14: =IF($D$4="MAP+ADM Waivers",SUMIF('C Report'!$A$100:$A$199,'C Report Grouper'!$D14,'C Report'!AC$100:AC$199)+SUMIF('C Report'!$A$300:$A$399,'C Report Grouper'!$D14,'C Report'!AC$300:AC$399),SUMIF('C Report'!$A$100:$A$199,'C Report Grouper'!$D14,'C Report'!AC$100:AC$199)) -> 0 | AF14: =IF($D$4="MAP+ADM Waivers",SUMIF('C Report'!$A$100:$A$199,'C Report Grouper'!$D14,'C Report'!AD$100:AD$199)+SUMIF('C Report'!$A$300:$A$399,'C Report Grouper'!$D14,'C Report'!AD$300:AD$399),SUMIF('C Report'!$A$100:$A$199,'C Report Grouper'!$D14,'C Report'!AD$100:AD$199)) -> 0 | AG14: =IF($D$4="MAP+ADM Waivers",SUMIF('C Report'!$A$100:$A$199,'C Report Grouper'!$D14,'C Report'!AE$100:AE$199)+SUMIF('C Report'!$A$300:$A$399,'C Report Grouper'!$D14,'C Report'!AE$300:AE$399),SUMIF('C Report'!$A$100:$A$199,'C Report Grouper'!$D14,'C Report'!AE$100:AE$199)) -> 0 | AH14: =IF($D$4="MAP+ADM Waivers",SUMIF('C Report'!$A$100:$A$199,'C Report Grouper'!$D14,'C Report'!AF$100:AF$199)+SUMIF('C Report'!$A$300:$A$399,'C Report Grouper'!$D14,'C Report'!AF$300:AF$399),SUMIF('C Report'!$A$100:$A$199,'C Report Grouper'!$D14,'C Report'!AF$100:AF$199)) -> 0
E15: =IF($D$4="MAP+ADM Waivers",SUMIF('C Report'!$A$100:$A$199,'C Report Grouper'!$D15,'C Report'!C$100:C$199)+SUMIF('C Report'!$A$300:$A$399,'C Report Grouper'!$D15,'C Report'!C$300:C$399),SUMIF('C Report'!$A$100:$A$199,'C Report Grouper'!$D15,'C Report'!C$100:C$199)) -> 0 | F15: =IF($D$4="MAP+ADM Waivers",SUMIF('C Report'!$A$100:$A$199,'C Report Grouper'!$D15,'C Report'!D$100:D$199)+SUMIF('C Report'!$A$300:$A$399,'C Report Grouper'!$D15,'C Report'!D$300:D$399),SUMIF('C Report'!$A$100:$A$199,'C Report Grouper'!$D15,'C Report'!D$100:D$199)) -> 0 | G15: =IF($D$4="MAP+ADM Waivers",SUMIF('C Report'!$A$100:$A$199,'C Report Grouper'!$D15,'C Report'!E$100:E$199)+SUMIF('C Report'!$A$300:$A$399,'C Report Grouper'!$D15,'C Report'!E$300:E$399),SUMIF('C Report'!$A$100:$A$199,'C Report Grouper'!$D15,'C Report'!E$100:E$199)) -> 0 | H15: =IF($D$4="MAP+ADM Waivers",SUMIF('C Report'!$A$100:$A$199,'C Report Grouper'!$D15,'C Report'!F$100:F$199)+SUMIF('C Report'!$A$300:$A$399,'C Report Grouper'!$D15,'C Report'!F$300:F$399),SUMIF('C Report'!$A$100:$A$199,'C Report Grouper'!$D15,'C Report'!F$100:F$199)) -> 0 | I15: =IF($D$4="MAP+ADM Waivers",SUMIF('C Report'!$A$100:$A$199,'C Report Grouper'!$D15,'C Report'!G$100:G$199)+SUMIF('C Report'!$A$300:$A$399,'C Report Grouper'!$D15,'C Report'!G$300:G$399),SUMIF('C Report'!$A$100:$A$199,'C Report Grouper'!$D15,'C Report'!G$100:G$199)) -> 0 | J15: =IF($D$4="MAP+ADM Waivers",SUMIF('C Report'!$A$100:$A$199,'C Report Grouper'!$D15,'C Report'!H$100:H$199)+SUMIF('C Report'!$A$300:$A$399,'C Report Grouper'!$D15,'C Report'!H$300:H$399),SUMIF('C Report'!$A$100:$A$199,'C Report Grouper'!$D15,'C Report'!H$100:H$199)) -> 0 | K15: =IF($D$4="MAP+ADM Waivers",SUMIF('C Report'!$A$100:$A$199,'C Report Grouper'!$D15,'C Report'!I$100:I$199)+SUMIF('C Report'!$A$300:$A$399,'C Report Grouper'!$D15,'C Report'!I$300:I$399),SUMIF('C Report'!$A$100:$A$199,'C Report Grouper'!$D15,'C Report'!I$100:I$199)) -> 0 | L15: =IF($D$4="MAP+ADM Waivers",SUMIF('C Report'!$A$100:$A$199,'C Report Grouper'!$D15,'C Report'!J$100:J$199)+SUMIF('C Report'!$A$300:$A$399,'C Report Grouper'!$D15,'C Report'!J$300:J$399),SUMIF('C Report'!$A$100:$A$199,'C Report Grouper'!$D15,'C Report'!J$100:J$199)) -> 0 | M15: =IF($D$4="MAP+ADM Waivers",SUMIF('C Report'!$A$100:$A$199,'C Report Grouper'!$D15,'C Report'!K$100:K$199)+SUMIF('C Report'!$A$300:$A$399,'C Report Grouper'!$D15,'C Report'!K$300:K$399),SUMIF('C Report'!$A$100:$A$199,'C Report Grouper'!$D15,'C Report'!K$100:K$199)) -> 0 | N15: =IF($D$4="MAP+ADM Waivers",SUMIF('C Report'!$A$100:$A$199,'C Report Grouper'!$D15,'C Report'!L$100:L$199)+SUMIF('C Report'!$A$300:$A$399,'C Report Grouper'!$D15,'C Report'!L$300:L$399),SUMIF('C Report'!$A$100:$A$199,'C Report Grouper'!$D15,'C Report'!L$100:L$199)) -> 0 | O15: =IF($D$4="MAP+ADM Waivers",SUMIF('C Report'!$A$100:$A$199,'C Report Grouper'!$D15,'C Report'!M$100:M$199)+SUMIF('C Report'!$A$300:$A$399,'C Report Grouper'!$D15,'C Report'!M$300:M$399),SUMIF('C Report'!$A$100:$A$199,'C Report Grouper'!$D15,'C Report'!M$100:M$199)) -> 0 | P15: =IF($D$4="MAP+ADM Waivers",SUMIF('C Report'!$A$100:$A$199,'C Report Grouper'!$D15,'C Report'!N$100:N$199)+SUMIF('C Report'!$A$300:$A$399,'C Report Grouper'!$D15,'C Report'!N$300:N$399),SUMIF('C Report'!$A$100:$A$199,'C Report Grouper'!$D15,'C Report'!N$100:N$199)) -> 0 | Q15: =IF($D$4="MAP+ADM Waivers",SUMIF('C Report'!$A$100:$A$199,'C Report Grouper'!$D15,'C Report'!O$100:O$199)+SUMIF('C Report'!$A$300:$A$399,'C Report Grouper'!$D15,'C Report'!O$300:O$399),SUMIF('C Report'!$A$100:$A$199,'C Report Grouper'!$D15,'C Report'!O$100:O$199)) -> 0 | R15: =IF($D$4="MAP+ADM Waivers",SUMIF('C Report'!$A$100:$A$199,'C Report Grouper'!$D15,'C Report'!P$100:P$199)+SUMIF('C Report'!$A$300:$A$399,'C Report Grouper'!$D15,'C Report'!P$300:P$399),SUMIF('C Report'!$A$100:$A$199,'C Report Grouper'!$D15,'C Report'!P$100:P$199)) -> 0 | S15: =IF($D$4="MAP+ADM Waivers",SUMIF('C Report'!$A$100:$A$199,'C Report Grouper'!$D15,'C Report'!Q$100:Q$199)+SUMIF('C Report'!$A$300:$A$399,'C Report Grouper'!$D15,'C Report'!Q$300:Q$399),SUMIF('C Report'!$A$100:$A$199,'C Report Grouper'!$D15,'C Report'!Q$100:Q$199)) -> 0 | T15: =IF($D$4="MAP+ADM Waivers",SUMIF('C Report'!$A$100:$A$199,'C Report Grouper'!$D15,'C Report'!R$100:R$199)+SUMIF('C Report'!$A$300:$A$399,'C Report Grouper'!$D15,'C Report'!R$300:R$399),SUMIF('C Report'!$A$100:$A$199,'C Report Grouper'!$D15,'C Report'!R$100:R$199)) -> 0 | U15: =IF($D$4="MAP+ADM Waivers",SUMIF('C Report'!$A$100:$A$199,'C Report Grouper'!$D15,'C Report'!S$100:S$199)+SUMIF('C Report'!$A$300:$A$399,'C Report Grouper'!$D15,'C Report'!S$300:S$399),SUMIF('C Report'!$A$100:$A$199,'C Report Grouper'!$D15,'C Report'!S$100:S$199)) -> 0 | V15: =IF($D$4="MAP+ADM Waivers",SUMIF('C Report'!$A$100:$A$199,'C Report Grouper'!$D15,'C Report'!T$100:T$199)+SUMIF('C Report'!$A$300:$A$399,'C Report Grouper'!$D15,'C Report'!T$300:T$399),SUMIF('C Report'!$A$100:$A$199,'C Report Grouper'!$D15,'C Report'!T$100:T$199)) -> 0 | W15: =IF($D$4="MAP+ADM Waivers",SUMIF('C Report'!$A$100:$A$199,'C Report Grouper'!$D15,'C Report'!U$100:U$199)+SUMIF('C Report'!$A$300:$A$399,'C Report Grouper'!$D15,'C Report'!U$300:U$399),SUMIF('C Report'!$A$100:$A$199,'C Report Grouper'!$D15,'C Report'!U$100:U$199)) -> 0 | X15: =IF($D$4="MAP+ADM Waivers",SUMIF('C Report'!$A$100:$A$199,'C Report Grouper'!$D15,'C Report'!V$100:V$199)+SUMIF('C Report'!$A$300:$A$399,'C Report Grouper'!$D15,'C Report'!V$300:V$399),SUMIF('C Report'!$A$100:$A$199,'C Report Grouper'!$D15,'C Report'!V$100:V$199)) -> 0 | Y15: =IF($D$4="MAP+ADM Waivers",SUMIF('C Report'!$A$100:$A$199,'C Report Grouper'!$D15,'C Report'!W$100:W$199)+SUMIF('C Report'!$A$300:$A$399,'C Report Grouper'!$D15,'C Report'!W$300:W$399),SUMIF('C Report'!$A$100:$A$199,'C Report Grouper'!$D15,'C Report'!W$100:W$199)) -> 0 | Z15: =IF($D$4="MAP+ADM Waivers",SUMIF('C Report'!$A$100:$A$199,'C Report Grouper'!$D15,'C Report'!X$100:X$199)+SUMIF('C Report'!$A$300:$A$399,'C Report Grouper'!$D15,'C Report'!X$300:X$399),SUMIF('C Report'!$A$100:$A$199,'C Report Grouper'!$D15,'C Report'!X$100:X$199)) -> 0 | AA15: =IF($D$4="MAP+ADM Waivers",SUMIF('C Report'!$A$100:$A$199,'C Report Grouper'!$D15,'C Report'!Y$100:Y$199)+SUMIF('C Report'!$A$300:$A$399,'C Report Grouper'!$D15,'C Report'!Y$300:Y$399),SUMIF('C Report'!$A$100:$A$199,'C Report Grouper'!$D15,'C Report'!Y$100:Y$199)) -> 0 | AB15: =IF($D$4="MAP+ADM Waivers",SUMIF('C Report'!$A$100:$A$199,'C Report Grouper'!$D15,'C Report'!Z$100:Z$199)+SUMIF('C Report'!$A$300:$A$399,'C Report Grouper'!$D15,'C Report'!Z$300:Z$399),SUMIF('C Report'!$A$100:$A$199,'C Report Grouper'!$D15,'C Report'!Z$100:Z$199)) -> 0 | AC15: =IF($D$4="MAP+ADM Waivers",SUMIF('C Report'!$A$100:$A$199,'C Report Grouper'!$D15,'C Report'!AA$100:AA$199)+SUMIF('C Report'!$A$300:$A$399,'C Report Grouper'!$D15,'C Report'!AA$300:AA$399),SUMIF('C Report'!$A$100:$A$199,'C Report Grouper'!$D15,'C Report'!AA$100:AA$199)) -> 0 | AD15: =IF($D$4="MAP+ADM Waivers",SUMIF('C Report'!$A$100:$A$199,'C Report Grouper'!$D15,'C Report'!AB$100:AB$199)+SUMIF('C Report'!$A$300:$A$399,'C Report Grouper'!$D15,'C Report'!AB$300:AB$399),SUMIF('C Report'!$A$100:$A$199,'C Report Grouper'!$D15,'C Report'!AB$100:AB$199)) -> 0 | AE15: =IF($D$4="MAP+ADM Waivers",SUMIF('C Report'!$A$100:$A$199,'C Report Grouper'!$D15,'C Report'!AC$100:AC$199)+SUMIF('C Report'!$A$300:$A$399,'C Report Grouper'!$D15,'C Report'!AC$300:AC$399),SUMIF('C Report'!$A$100:$A$199,'C Report Grouper'!$D15,'C Report'!AC$100:AC$199)) -> 0 | AF15: =IF($D$4="MAP+ADM Waivers",SUMIF('C Report'!$A$100:$A$199,'C Report Grouper'!$D15,'C Report'!AD$100:AD$199)+SUMIF('C Report'!$A$300:$A$399,'C Report Grouper'!$D15,'C Report'!AD$300:AD$399),SUMIF('C Report'!$A$100:$A$199,'C Report Grouper'!$D15,'C Report'!AD$100:AD$199)) -> 0 | AG15: =IF($D$4="MAP+ADM Waivers",SUMIF('C Report'!$A$100:$A$199,'C Report Grouper'!$D15,'C Report'!AE$100:AE$199)+SUMIF('C Report'!$A$300:$A$399,'C Report Grouper'!$D15,'C Report'!AE$300:AE$399),SUMIF('C Report'!$A$100:$A$199,'C Report Grouper'!$D15,'C Report'!AE$100:AE$199)) -> 0 | AH15: =IF($D$4="MAP+ADM Waivers",SUMIF('C Report'!$A$100:$A$199,'C Report Grouper'!$D15,'C Report'!AF$100:AF$199)+SUMIF('C Report'!$A$300:$A$399,'C Report Grouper'!$D15,'C Report'!AF$300:AF$399),SUMIF('C Report'!$A$100:$A$199,'C Report Grouper'!$D15,'C Report'!AF$100:AF$199)) -> 0
B16: Medicaid Aggregate | E16: =IF($D$4="MAP+ADM Waivers",SUMIF('C Report'!$A$100:$A$199,'C Report Grouper'!$D16,'C Report'!C$100:C$199)+SUMIF('C Report'!$A$300:$A$399,'C Report Grouper'!$D16,'C Report'!C$300:C$399),SUMIF('C Report'!$A$100:$A$199,'C Report Grouper'!$D16,'C Report'!C$100:C$199)) -> 0 | F16: =IF($D$4="MAP+ADM Waivers",SUMIF('C Report'!$A$100:$A$199,'C Report Grouper'!$D16,'C Report'!D$100:D$199)+SUMIF('C Report'!$A$300:$A$399,'C Report Grouper'!$D16,'C Report'!D$300:D$399),SUMIF('C Report'!$A$100:$A$199,'C Report Grouper'!$D16,'C Report'!D$100:D$199)) -> 0 | G16: =IF($D$4="MAP+ADM Waivers",SUMIF('C Report'!$A$100:$A$199,'C Report Grouper'!$D16,'C Report'!E$100:E$199)+SUMIF('C Report'!$A$300:$A$399,'C Report Grouper'!$D16,'C Report'!E$300:E$399),SUMIF('C Report'!$A$100:$A$199,'C Report Grouper'!$D16,'C Report'!E$100:E$199)) -> 0 | H16: =IF($D$4="MAP+ADM Waivers",SUMIF('C Report'!$A$100:$A$199,'C Report Grouper'!$D16,'C Report'!F$100:F$199)+SUMIF('C Report'!$A$300:$A$399,'C Report Grouper'!$D16,'C Report'!F$300:F$399),SUMIF('C Report'!$A$100:$A$199,'C Report Grouper'!$D16,'C Report'!F$100:F$199)) -> 0 | I16: =IF($D$4="MAP+ADM Waivers",SUMIF('C Report'!$A$100:$A$199,'C Report Grouper'!$D16,'C Report'!G$100:G$199)+SUMIF('C Report'!$A$300:$A$399,'C Report Grouper'!$D16,'C Report'!G$300:G$399),SUMIF('C Report'!$A$100:$A$199,'C Report Grouper'!$D16,'C Report'!G$100:G$199)) -> 0 | J16: =IF($D$4="MAP+ADM Waivers",SUMIF('C Report'!$A$100:$A$199,'C Report Grouper'!$D16,'C Report'!H$100:H$199)+SUMIF('C Report'!$A$300:$A$399,'C Report Grouper'!$D16,'C Report'!H$300:H$399),SUMIF('C Report'!$A$100:$A$199,'C Report Grouper'!$D16,'C Report'!H$100:H$199)) -> 0 | K16: =IF($D$4="MAP+ADM Waivers",SUMIF('C Report'!$A$100:$A$199,'C Report Grouper'!$D16,'C Report'!I$100:I$199)+SUMIF('C Report'!$A$300:$A$399,'C Report Grouper'!$D16,'C Report'!I$300:I$399),SUMIF('C Report'!$A$100:$A$199,'C Report Grouper'!$D16,'C Report'!I$100:I$199)) -> 0 | L16: =IF($D$4="MAP+ADM Waivers",SUMIF('C Report'!$A$100:$A$199,'C Report Grouper'!$D16,'C Report'!J$100:J$199)+SUMIF('C Report'!$A$300:$A$399,'C Report Grouper'!$D16,'C Report'!J$300:J$399),SUMIF('C Report'!$A$100:$A$199,'C Report Grouper'!$D16,'C Report'!J$100:J$199)) -> 0 | M16: =IF($D$4="MAP+ADM Waivers",SUMIF('C Report'!$A$100:$A$199,'C Report Grouper'!$D16,'C Report'!K$100:K$199)+SUMIF('C Report'!$A$300:$A$399,'C Report Grouper'!$D16,'C Report'!K$300:K$399),SUMIF('C Report'!$A$100:$A$199,'C Report Grouper'!$D16,'C Report'!K$100:K$199)) -> 0 | N16: =IF($D$4="MAP+ADM Waivers",SUMIF('C Report'!$A$100:$A$199,'C Report Grouper'!$D16,'C Report'!L$100:L$199)+SUMIF('C Report'!$A$300:$A$399,'C Report Grouper'!$D16,'C Report'!L$300:L$399),SUMIF('C Report'!$A$100:$A$199,'C Report Grouper'!$D16,'C Report'!L$100:L$199)) -> 0 | O16: =IF($D$4="MAP+ADM Waivers",SUMIF('C Report'!$A$100:$A$199,'C Report Grouper'!$D16,'C Report'!M$100:M$199)+SUMIF('C Report'!$A$300:$A$399,'C Report Grouper'!$D16,'C Report'!M$300:M$399),SUMIF('C Report'!$A$100:$A$199,'C Report Grouper'!$D16,'C Report'!M$100:M$199)) -> 0 | P16: =IF($D$4="MAP+ADM Waivers",SUMIF('C Report'!$A$100:$A$199,'C Report Grouper'!$D16,'C Report'!N$100:N$199)+SUMIF('C Report'!$A$300:$A$399,'C Report Grouper'!$D16,'C Report'!N$300:N$399),SUMIF('C Report'!$A$100:$A$199,'C Report Grouper'!$D16,'C Report'!N$100:N$199)) -> 0 | Q16: =IF($D$4="MAP+ADM Waivers",SUMIF('C Report'!$A$100:$A$199,'C Report Grouper'!$D16,'C Report'!O$100:O$199)+SUMIF('C Report'!$A$300:$A$399,'C Report Grouper'!$D16,'C Report'!O$300:O$399),SUMIF('C Report'!$A$100:$A$199,'C Report Grouper'!$D16,'C Report'!O$100:O$199)) -> 0 | R16: =IF($D$4="MAP+ADM Waivers",SUMIF('C Report'!$A$100:$A$199,'C Report Grouper'!$D16,'C Report'!P$100:P$199)+SUMIF('C Report'!$A$300:$A$399,'C Report Grouper'!$D16,'C Report'!P$300:P$399),SUMIF('C Report'!$A$100:$A$199,'C Report Grouper'!$D16,'C Report'!P$100:P$199)) -> 0 | S16: =IF($D$4="MAP+ADM Waivers",SUMIF('C Report'!$A$100:$A$199,'C Report Grouper'!$D16,'C Report'!Q$100:Q$199)+SUMIF('C Report'!$A$300:$A$399,'C Report Grouper'!$D16,'C Report'!Q$300:Q$399),SUMIF('C Report'!$A$100:$A$199,'C Report Grouper'!$D16,'C Report'!Q$100:Q$199)) -> 0 | T16: =IF($D$4="MAP+ADM Waivers",SUMIF('C Report'!$A$100:$A$199,'C Report Grouper'!$D16,'C Report'!R$100:R$199)+SUMIF('C Report'!$A$300:$A$399,'C Report Grouper'!$D16,'C Report'!R$300:R$399),SUMIF('C Report'!$A$100:$A$199,'C Report Grouper'!$D16,'C Report'!R$100:R$199)) -> 0 | U16: =IF($D$4="MAP+ADM Waivers",SUMIF('C Report'!$A$100:$A$199,'C Report Grouper'!$D16,'C Report'!S$100:S$199)+SUMIF('C Report'!$A$300:$A$399,'C Report Grouper'!$D16,'C Report'!S$300:S$399),SUMIF('C Report'!$A$100:$A$199,'C Report Grouper'!$D16,'C Report'!S$100:S$199)) -> 0 | V16: =IF($D$4="MAP+ADM Waivers",SUMIF('C Report'!$A$100:$A$199,'C Report Grouper'!$D16,'C Report'!T$100:T$199)+SUMIF('C Report'!$A$300:$A$399,'C Report Grouper'!$D16,'C Report'!T$300:T$399),SUMIF('C Report'!$A$100:$A$199,'C Report Grouper'!$D16,'C Report'!T$100:T$199)) -> 0 | W16: =IF($D$4="MAP+ADM Waivers",SUMIF('C Report'!$A$100:$A$199,'C Report Grouper'!$D16,'C Report'!U$100:U$199)+SUMIF('C Report'!$A$300:$A$399,'C Report Grouper'!$D16,'C Report'!U$300:U$399),SUMIF('C Report'!$A$100:$A$199,'C Report Grouper'!$D16,'C Report'!U$100:U$199)) -> 0 | X16: =IF($D$4="MAP+ADM Waivers",SUMIF('C Report'!$A$100:$A$199,'C Report Grouper'!$D16,'C Report'!V$100:V$199)+SUMIF('C Report'!$A$300:$A$399,'C Report Grouper'!$D16,'C Report'!V$300:V$399),SUMIF('C Report'!$A$100:$A$199,'C Report Grouper'!$D16,'C Report'!V$100:V$199)) -> 0 | Y16: =IF($D$4="MAP+ADM Waivers",SUMIF('C Report'!$A$100:$A$199,'C Report Grouper'!$D16,'C Report'!W$100:W$199)+SUMIF('C Report'!$A$300:$A$399,'C Report Grouper'!$D16,'C Report'!W$300:W$399),SUMIF('C Report'!$A$100:$A$199,'C Report Grouper'!$D16,'C Report'!W$100:W$199)) -> 0 | Z16: =IF($D$4="MAP+ADM Waivers",SUMIF('C Report'!$A$100:$A$199,'C Report Grouper'!$D16,'C Report'!X$100:X$199)+SUMIF('C Report'!$A$300:$A$399,'C Report Grouper'!$D16,'C Report'!X$300:X$399),SUMIF('C Report'!$A$100:$A$199,'C Report Grouper'!$D16,'C Report'!X$100:X$199)) -> 0 | AA16: =IF($D$4="MAP+ADM Waivers",SUMIF('C Report'!$A$100:$A$199,'C Report Grouper'!$D16,'C Report'!Y$100:Y$199)+SUMIF('C Report'!$A$300:$A$399,'C Report Grouper'!$D16,'C Report'!Y$300:Y$399),SUMIF('C Report'!$A$100:$A$199,'C Report Grouper'!$D16,'C Report'!Y$100:Y$199)) -> 0 | AB16: =IF($D$4="MAP+ADM Waivers",SUMIF('C Report'!$A$100:$A$199,'C Report Grouper'!$D16,'C Report'!Z$100:Z$199)+SUMIF('C Report'!$A$300:$A$399,'C Report Grouper'!$D16,'C Report'!Z$300:Z$399),SUMIF('C Report'!$A$100:$A$199,'C Report Grouper'!$D16,'C Report'!Z$100:Z$199)) -> 0 | AC16: =IF($D$4="MAP+ADM Waivers",SUMIF('C Report'!$A$100:$A$199,'C Report Grouper'!$D16,'C Report'!AA$100:AA$199)+SUMIF('C Report'!$A$300:$A$399,'C Report Grouper'!$D16,'C Report'!AA$300:AA$399),SUMIF('C Report'!$A$100:$A$199,'C Report Grouper'!$D16,'C Report'!AA$100:AA$199)) -> 0 | AD16: =IF($D$4="MAP+ADM Waivers",SUMIF('C Report'!$A$100:$A$199,'C Report Grouper'!$D16,'C Report'!AB$100:AB$199)+SUMIF('C Report'!$A$300:$A$399,'C Report Grouper'!$D16,'C Report'!AB$300:AB$399),SUMIF('C Report'!$A$100:$A$199,'C Report Grouper'!$D16,'C Report'!AB$100:AB$199)) -> 0 | AE16: =IF($D$4="MAP+ADM Waivers",SUMIF('C Report'!$A$100:$A$199,'C Report Grouper'!$D16,'C Report'!AC$100:AC$199)+SUMIF('C Report'!$A$300:$A$399,'C Report Grouper'!$D16,'C Report'!AC$300:AC$399),SUMIF('C Report'!$A$100:$A$199,'C Report Grouper'!$D16,'C Report'!AC$100:AC$199)) -> 0 | AF16: =IF($D$4="MAP+ADM Waivers",SUMIF('C Report'!$A$100:$A$199,'C Report Grouper'!$D16,'C Report'!AD$100:AD$199)+SUMIF('C Report'!$A$300:$A$399,'C Report Grouper'!$D16,'C Report'!AD$300:AD$399),SUMIF('C Report'!$A$100:$A$199,'C Report Grouper'!$D16,'C Report'!AD$100:AD$199)) -> 0 | AG16: =IF($D$4="MAP+ADM Waivers",SUMIF('C Report'!$A$100:$A$199,'C Report Grouper'!$D16,'C Report'!AE$100:AE$199)+SUMIF('C Report'!$A$300:$A$399,'C Report Grouper'!$D16,'C Report'!AE$300:AE$399),SUMIF('C Report'!$A$100:$A$199,'C Report Grouper'!$D16,'C Report'!AE$100:AE$199)) -> 0 | AH16: =IF($D$4="MAP+ADM Waivers",SUMIF('C Report'!$A$100:$A$199,'C Report Grouper'!$D16,'C Report'!AF$100:AF$199)+SUMIF('C Report'!$A$300:$A$399,'C Report Grouper'!$D16,'C Report'!AF$300:AF$399),SUMIF('C Report'!$A$100:$A$199,'C Report Grouper'!$D16,'C Report'!AF$100:AF$199)) -> 0
B17: =IFERROR(VLOOKUP(C17,'MEG Def'!$A$21:$B$26,2),"") ->  | E17: =IF($D$4="MAP+ADM Waivers",SUMIF('C Report'!$A$100:$A$199,'C Report Grouper'!$D17,'C Report'!C$100:C$199)+SUMIF('C Report'!$A$300:$A$399,'C Report Grouper'!$D17,'C Report'!C$300:C$399),SUMIF('C Report'!$A$100:$A$199,'C Report Grouper'!$D17,'C Report'!C$100:C$199)) -> 0 | F17: =IF($D$4="MAP+ADM Waivers",SUMIF('C Report'!$A$100:$A$199,'C Report Grouper'!$D17,'C Report'!D$100:D$199)+SUMIF('C Report'!$A$300:$A$399,'C Report Grouper'!$D17,'C Report'!D$300:D$399),SUMIF('C Report'!$A$100:$A$199,'C Report Grouper'!$D17,'C Report'!D$100:D$199)) -> 0 | G17: =IF($D$4="MAP+ADM Waivers",SUMIF('C Report'!$A$100:$A$199,'C Report Grouper'!$D17,'C Report'!E$100:E$199)+SUMIF('C Report'!$A$300:$A$399,'C Report Grouper'!$D17,'C Report'!E$300:E$399),SUMIF('C Report'!$A$100:$A$199,'C Report Grouper'!$D17,'C Report'!E$100:E$199)) -> 0 | H17: =IF($D$4="MAP+ADM Waivers",SUMIF('C Report'!$A$100:$A$199,'C Report Grouper'!$D17,'C Report'!F$100:F$199)+SUMIF('C Report'!$A$300:$A$399,'C Report Grouper'!$D17,'C Report'!F$300:F$399),SUMIF('C Report'!$A$100:$A$199,'C Report Grouper'!$D17,'C Report'!F$100:F$199)) -> 0 | I17: =IF($D$4="MAP+ADM Waivers",SUMIF('C Report'!$A$100:$A$199,'C Report Grouper'!$D17,'C Report'!G$100:G$199)+SUMIF('C Report'!$A$300:$A$399,'C Report Grouper'!$D17,'C Report'!G$300:G$399),SUMIF('C Report'!$A$100:$A$199,'C Report Grouper'!$D17,'C Report'!G$100:G$199)) -> 0 | J17: =IF($D$4="MAP+ADM Waivers",SUMIF('C Report'!$A$100:$A$199,'C Report Grouper'!$D17,'C Report'!H$100:H$199)+SUMIF('C Report'!$A$300:$A$399,'C Report Grouper'!$D17,'C Report'!H$300:H$399),SUMIF('C Report'!$A$100:$A$199,'C Report Grouper'!$D17,'C Report'!H$100:H$199)) -> 0 | K17: =IF($D$4="MAP+ADM Waivers",SUMIF('C Report'!$A$100:$A$199,'C Report Grouper'!$D17,'C Report'!I$100:I$199)+SUMIF('C Report'!$A$300:$A$399,'C Report Grouper'!$D17,'C Report'!I$300:I$399),SUMIF('C Report'!$A$100:$A$199,'C Report Grouper'!$D17,'C Report'!I$100:I$199)) -> 0 | L17: =IF($D$4="MAP+ADM Waivers",SUMIF('C Report'!$A$100:$A$199,'C Report Grouper'!$D17,'C Report'!J$100:J$199)+SUMIF('C Report'!$A$300:$A$399,'C Report Grouper'!$D17,'C Report'!J$300:J$399),SUMIF('C Report'!$A$100:$A$199,'C Report Grouper'!$D17,'C Report'!J$100:J$199)) -> 0 | M17: =IF($D$4="MAP+ADM Waivers",SUMIF('C Report'!$A$100:$A$199,'C Report Grouper'!$D17,'C Report'!K$100:K$199)+SUMIF('C Report'!$A$300:$A$399,'C Report Grouper'!$D17,'C Report'!K$300:K$399),SUMIF('C Report'!$A$100:$A$199,'C Report Grouper'!$D17,'C Report'!K$100:K$199)) -> 0 | N17: =IF($D$4="MAP+ADM Waivers",SUMIF('C Report'!$A$100:$A$199,'C Report Grouper'!$D17,'C Report'!L$100:L$199)+SUMIF('C Report'!$A$300:$A$399,'C Report Grouper'!$D17,'C Report'!L$300:L$399),SUMIF('C Report'!$A$100:$A$199,'C Report Grouper'!$D17,'C Report'!L$100:L$199)) -> 0 | O17: =IF($D$4="MAP+ADM Waivers",SUMIF('C Report'!$A$100:$A$199,'C Report Grouper'!$D17,'C Report'!M$100:M$199)+SUMIF('C Report'!$A$300:$A$399,'C Report Grouper'!$D17,'C Report'!M$300:M$399),SUMIF('C Report'!$A$100:$A$199,'C Report Grouper'!$D17,'C Report'!M$100:M$199)) -> 0 | P17: =IF($D$4="MAP+ADM Waivers",SUMIF('C Report'!$A$100:$A$199,'C Report Grouper'!$D17,'C Report'!N$100:N$199)+SUMIF('C Report'!$A$300:$A$399,'C Report Grouper'!$D17,'C Report'!N$300:N$399),SUMIF('C Report'!$A$100:$A$199,'C Report Grouper'!$D17,'C Report'!N$100:N$199)) -> 0 | Q17: =IF($D$4="MAP+ADM Waivers",SUMIF('C Report'!$A$100:$A$199,'C Report Grouper'!$D17,'C Report'!O$100:O$199)+SUMIF('C Report'!$A$300:$A$399,'C Report Grouper'!$D17,'C Report'!O$300:O$399),SUMIF('C Report'!$A$100:$A$199,'C Report Grouper'!$D17,'C Report'!O$100:O$199)) -> 0 | R17: =IF($D$4="MAP+ADM Waivers",SUMIF('C Report'!$A$100:$A$199,'C Report Grouper'!$D17,'C Report'!P$100:P$199)+SUMIF('C Report'!$A$300:$A$399,'C Report Grouper'!$D17,'C Report'!P$300:P$399),SUMIF('C Report'!$A$100:$A$199,'C Report Grouper'!$D17,'C Report'!P$100:P$199)) -> 0 | S17: =IF($D$4="MAP+ADM Waivers",SUMIF('C Report'!$A$100:$A$199,'C Report Grouper'!$D17,'C Report'!Q$100:Q$199)+SUMIF('C Report'!$A$300:$A$399,'C Report Grouper'!$D17,'C Report'!Q$300:Q$399),SUMIF('C Report'!$A$100:$A$199,'C Report Grouper'!$D17,'C Report'!Q$100:Q$199)) -> 0 | T17: =IF($D$4="MAP+ADM Waivers",SUMIF('C Report'!$A$100:$A$199,'C Report Grouper'!$D17,'C Report'!R$100:R$199)+SUMIF('C Report'!$A$300:$A$399,'C Report Grouper'!$D17,'C Report'!R$300:R$399),SUMIF('C Report'!$A$100:$A$199,'C Report Grouper'!$D17,'C Report'!R$100:R$199)) -> 0 | U17: =IF($D$4="MAP+ADM Waivers",SUMIF('C Report'!$A$100:$A$199,'C Report Grouper'!$D17,'C Report'!S$100:S$199)+SUMIF('C Report'!$A$300:$A$399,'C Report Grouper'!$D17,'C Report'!S$300:S$399),SUMIF('C Report'!$A$100:$A$199,'C Report Grouper'!$D17,'C Report'!S$100:S$199)) -> 0 | V17: =IF($D$4="MAP+ADM Waivers",SUMIF('C Report'!$A$100:$A$199,'C Report Grouper'!$D17,'C Report'!T$100:T$199)+SUMIF('C Report'!$A$300:$A$399,'C Report Grouper'!$D17,'C Report'!T$300:T$399),SUMIF('C Report'!$A$100:$A$199,'C Report Grouper'!$D17,'C Report'!T$100:T$199)) -> 0 | W17: =IF($D$4="MAP+ADM Waivers",SUMIF('C Report'!$A$100:$A$199,'C Report Grouper'!$D17,'C Report'!U$100:U$199)+SUMIF('C Report'!$A$300:$A$399,'C Report Grouper'!$D17,'C Report'!U$300:U$399),SUMIF('C Report'!$A$100:$A$199,'C Report Grouper'!$D17,'C Report'!U$100:U$199)) -> 0 | X17: =IF($D$4="MAP+ADM Waivers",SUMIF('C Report'!$A$100:$A$199,'C Report Grouper'!$D17,'C Report'!V$100:V$199)+SUMIF('C Report'!$A$300:$A$399,'C Report Grouper'!$D17,'C Report'!V$300:V$399),SUMIF('C Report'!$A$100:$A$199,'C Report Grouper'!$D17,'C Report'!V$100:V$199)) -> 0 | Y17: =IF($D$4="MAP+ADM Waivers",SUMIF('C Report'!$A$100:$A$199,'C Report Grouper'!$D17,'C Report'!W$100:W$199)+SUMIF('C Report'!$A$300:$A$399,'C Report Grouper'!$D17,'C Report'!W$300:W$399),SUMIF('C Report'!$A$100:$A$199,'C Report Grouper'!$D17,'C Report'!W$100:W$199)) -> 0 | Z17: =IF($D$4="MAP+ADM Waivers",SUMIF('C Report'!$A$100:$A$199,'C Report Grouper'!$D17,'C Report'!X$100:X$199)+SUMIF('C Report'!$A$300:$A$399,'C Report Grouper'!$D17,'C Report'!X$300:X$399),SUMIF('C Report'!$A$100:$A$199,'C Report Grouper'!$D17,'C Report'!X$100:X$199)) -> 0 | AA17: =IF($D$4="MAP+ADM Waivers",SUMIF('C Report'!$A$100:$A$199,'C Report Grouper'!$D17,'C Report'!Y$100:Y$199)+SUMIF('C Report'!$A$300:$A$399,'C Report Grouper'!$D17,'C Report'!Y$300:Y$399),SUMIF('C Report'!$A$100:$A$199,'C Report Grouper'!$D17,'C Report'!Y$100:Y$199)) -> 0 | AB17: =IF($D$4="MAP+ADM Waivers",SUMIF('C Report'!$A$100:$A$199,'C Report Grouper'!$D17,'C Report'!Z$100:Z$199)+SUMIF('C Report'!$A$300:$A$399,'C Report Grouper'!$D17,'C Report'!Z$300:Z$399),SUMIF('C Report'!$A$100:$A$199,'C Report Grouper'!$D17,'C Report'!Z$100:Z$199)) -> 0 | AC17: =IF($D$4="MAP+ADM Waivers",SUMIF('C Report'!$A$100:$A$199,'C Report Grouper'!$D17,'C Report'!AA$100:AA$199)+SUMIF('C Report'!$A$300:$A$399,'C Report Grouper'!$D17,'C Report'!AA$300:AA$399),SUMIF('C Report'!$A$100:$A$199,'C Report Grouper'!$D17,'C Report'!AA$100:AA$199)) -> 0 | AD17: =IF($D$4="MAP+ADM Waivers",SUMIF('C Report'!$A$100:$A$199,'C Report Grouper'!$D17,'C Report'!AB$100:AB$199)+SUMIF('C Report'!$A$300:$A$399,'C Report Grouper'!$D17,'C Report'!AB$300:AB$399),SUMIF('C Report'!$A$100:$A$199,'C Report Grouper'!$D17,'C Report'!AB$100:AB$199)) -> 0 | AE17: =IF($D$4="MAP+ADM Waivers",SUMIF('C Report'!$A$100:$A$199,'C Report Grouper'!$D17,'C Report'!AC$100:AC$199)+SUMIF('C Report'!$A$300:$A$399,'C Report Grouper'!$D17,'C Report'!AC$300:AC$399),SUMIF('C Report'!$A$100:$A$199,'C Report Grouper'!$D17,'C Report'!AC$100:AC$199)) -> 0 | AF17: =IF($D$4="MAP+ADM Waivers",SUMIF('C Report'!$A$100:$A$199,'C Report Grouper'!$D17,'C Report'!AD$100:AD$199)+SUMIF('C Report'!$A$300:$A$399,'C Report Grouper'!$D17,'C Report'!AD$300:AD$399),SUMIF('C Report'!$A$100:$A$199,'C Report Grouper'!$D17,'C Report'!AD$100:AD$199)) -> 0 | AG17: =IF($D$4="MAP+ADM Waivers",SUMIF('C Report'!$A$100:$A$199,'C Report Grouper'!$D17,'C Report'!AE$100:AE$199)+SUMIF('C Report'!$A$300:$A$399,'C Report Grouper'!$D17,'C Report'!AE$300:AE$399),SUMIF('C Report'!$A$100:$A$199,'C Report Grouper'!$D17,'C Report'!AE$100:AE$199)) -> 0 | AH17: =IF($D$4="MAP+ADM Waivers",SUMIF('C Report'!$A$100:$A$199,'C Report Grouper'!$D17,'C Report'!AF$100:AF$199)+SUMIF('C Report'!$A$300:$A$399,'C Report Grouper'!$D17,'C Report'!AF$300:AF$399),SUMIF('C Report'!$A$100:$A$199,'C Report Grouper'!$D17,'C Report'!AF$100:AF$199)) -> 0
B18: =IFERROR(VLOOKUP(C18,'MEG Def'!$A$21:$B$26,2),"") ->  | E18: =IF($D$4="MAP+ADM Waivers",SUMIF('C Report'!$A$100:$A$199,'C Report Grouper'!$D18,'C Report'!C$100:C$199)+SUMIF('C Report'!$A$300:$A$399,'C Report Grouper'!$D18,'C Report'!C$300:C$399),SUMIF('C Report'!$A$100:$A$199,'C Report Grouper'!$D18,'C Report'!C$100:C$199)) -> 0 | F18: =IF($D$4="MAP+ADM Waivers",SUMIF('C Report'!$A$100:$A$199,'C Report Grouper'!$D18,'C Report'!D$100:D$199)+SUMIF('C Report'!$A$300:$A$399,'C Report Grouper'!$D18,'C Report'!D$300:D$399),SUMIF('C Report'!$A$100:$A$199,'C Report Grouper'!$D18,'C Report'!D$100:D$199)) -> 0 | G18: =IF($D$4="MAP+ADM Waivers",SUMIF('C Report'!$A$100:$A$199,'C Report Grouper'!$D18,'C Report'!E$100:E$199)+SUMIF('C Report'!$A$300:$A$399,'C Report Grouper'!$D18,'C Report'!E$300:E$399),SUMIF('C Report'!$A$100:$A$199,'C Report Grouper'!$D18,'C Report'!E$100:E$199)) -> 0 | H18: =IF($D$4="MAP+ADM Waivers",SUMIF('C Report'!$A$100:$A$199,'C Report Grouper'!$D18,'C Report'!F$100:F$199)+SUMIF('C Report'!$A$300:$A$399,'C Report Grouper'!$D18,'C Report'!F$300:F$399),SUMIF('C Report'!$A$100:$A$199,'C Report Grouper'!$D18,'C Report'!F$100:F$199)) -> 0 | I18: =IF($D$4="MAP+ADM Waivers",SUMIF('C Report'!$A$100:$A$199,'C Report Grouper'!$D18,'C Report'!G$100:G$199)+SUMIF('C Report'!$A$300:$A$399,'C Report Grouper'!$D18,'C Report'!G$300:G$399),SUMIF('C Report'!$A$100:$A$199,'C Report Grouper'!$D18,'C Report'!G$100:G$199)) -> 0 | J18: =IF($D$4="MAP+ADM Waivers",SUMIF('C Report'!$A$100:$A$199,'C Report Grouper'!$D18,'C Report'!H$100:H$199)+SUMIF('C Report'!$A$300:$A$399,'C Report Grouper'!$D18,'C Report'!H$300:H$399),SUMIF('C Report'!$A$100:$A$199,'C Report Grouper'!$D18,'C Report'!H$100:H$199)) -> 0 | K18: =IF($D$4="MAP+ADM Waivers",SUMIF('C Report'!$A$100:$A$199,'C Report Grouper'!$D18,'C Report'!I$100:I$199)+SUMIF('C Report'!$A$300:$A$399,'C Report Grouper'!$D18,'C Report'!I$300:I$399),SUMIF('C Report'!$A$100:$A$199,'C Report Grouper'!$D18,'C Report'!I$100:I$199)) -> 0 | L18: =IF($D$4="MAP+ADM Waivers",SUMIF('C Report'!$A$100:$A$199,'C Report Grouper'!$D18,'C Report'!J$100:J$199)+SUMIF('C Report'!$A$300:$A$399,'C Report Grouper'!$D18,'C Report'!J$300:J$399),SUMIF('C Report'!$A$100:$A$199,'C Report Grouper'!$D18,'C Report'!J$100:J$199)) -> 0 | M18: =IF($D$4="MAP+ADM Waivers",SUMIF('C Report'!$A$100:$A$199,'C Report Grouper'!$D18,'C Report'!K$100:K$199)+SUMIF('C Report'!$A$300:$A$399,'C Report Grouper'!$D18,'C Report'!K$300:K$399),SUMIF('C Report'!$A$100:$A$199,'C Report Grouper'!$D18,'C Report'!K$100:K$199)) -> 0 | N18: =IF($D$4="MAP+ADM Waivers",SUMIF('C Report'!$A$100:$A$199,'C Report Grouper'!$D18,'C Report'!L$100:L$199)+SUMIF('C Report'!$A$300:$A$399,'C Report Grouper'!$D18,'C Report'!L$300:L$399),SUMIF('C Report'!$A$100:$A$199,'C Report Grouper'!$D18,'C Report'!L$100:L$199)) -> 0 | O18: =IF($D$4="MAP+ADM Waivers",SUMIF('C Report'!$A$100:$A$199,'C Report Grouper'!$D18,'C Report'!M$100:M$199)+SUMIF('C Report'!$A$300:$A$399,'C Report Grouper'!$D18,'C Report'!M$300:M$399),SUMIF('C Report'!$A$100:$A$199,'C Report Grouper'!$D18,'C Report'!M$100:M$199)) -> 0 | P18: =IF($D$4="MAP+ADM Waivers",SUMIF('C Report'!$A$100:$A$199,'C Report Grouper'!$D18,'C Report'!N$100:N$199)+SUMIF('C Report'!$A$300:$A$399,'C Report Grouper'!$D18,'C Report'!N$300:N$399),SUMIF('C Report'!$A$100:$A$199,'C Report Grouper'!$D18,'C Report'!N$100:N$199)) -> 0 | Q18: =IF($D$4="MAP+ADM Waivers",SUMIF('C Report'!$A$100:$A$199,'C Report Grouper'!$D18,'C Report'!O$100:O$199)+SUMIF('C Report'!$A$300:$A$399,'C Report Grouper'!$D18,'C Report'!O$300:O$399),SUMIF('C Report'!$A$100:$A$199,'C Report Grouper'!$D18,'C Report'!O$100:O$199)) -> 0 | R18: =IF($D$4="MAP+ADM Waivers",SUMIF('C Report'!$A$100:$A$199,'C Report Grouper'!$D18,'C Report'!P$100:P$199)+SUMIF('C Report'!$A$300:$A$399,'C Report Grouper'!$D18,'C Report'!P$300:P$399),SUMIF('C Report'!$A$100:$A$199,'C Report Grouper'!$D18,'C Report'!P$100:P$199)) -> 0 | S18: =IF($D$4="MAP+ADM Waivers",SUMIF('C Report'!$A$100:$A$199,'C Report Grouper'!$D18,'C Report'!Q$100:Q$199)+SUMIF('C Report'!$A$300:$A$399,'C Report Grouper'!$D18,'C Report'!Q$300:Q$399),SUMIF('C Report'!$A$100:$A$199,'C Report Grouper'!$D18,'C Report'!Q$100:Q$199)) -> 0 | T18: =IF($D$4="MAP+ADM Waivers",SUMIF('C Report'!$A$100:$A$199,'C Report Grouper'!$D18,'C Report'!R$100:R$199)+SUMIF('C Report'!$A$300:$A$399,'C Report Grouper'!$D18,'C Report'!R$300:R$399),SUMIF('C Report'!$A$100:$A$199,'C Report Grouper'!$D18,'C Report'!R$100:R$199)) -> 0 | U18: =IF($D$4="MAP+ADM Waivers",SUMIF('C Report'!$A$100:$A$199,'C Report Grouper'!$D18,'C Report'!S$100:S$199)+SUMIF('C Report'!$A$300:$A$399,'C Report Grouper'!$D18,'C Report'!S$300:S$399),SUMIF('C Report'!$A$100:$A$199,'C Report Grouper'!$D18,'C Report'!S$100:S$199)) -> 0 | V18: =IF($D$4="MAP+ADM Waivers",SUMIF('C Report'!$A$100:$A$199,'C Report Grouper'!$D18,'C Report'!T$100:T$199)+SUMIF('C Report'!$A$300:$A$399,'C Report Grouper'!$D18,'C Report'!T$300:T$399),SUMIF('C Report'!$A$100:$A$199,'C Report Grouper'!$D18,'C Report'!T$100:T$199)) -> 0 | W18: =IF($D$4="MAP+ADM Waivers",SUMIF('C Report'!$A$100:$A$199,'C Report Grouper'!$D18,'C Report'!U$100:U$199)+SUMIF('C Report'!$A$300:$A$399,'C Report Grouper'!$D18,'C Report'!U$300:U$399),SUMIF('C Report'!$A$100:$A$199,'C Report Grouper'!$D18,'C Report'!U$100:U$199)) -> 0 | X18: =IF($D$4="MAP+ADM Waivers",SUMIF('C Report'!$A$100:$A$199,'C Report Grouper'!$D18,'C Report'!V$100:V$199)+SUMIF('C Report'!$A$300:$A$399,'C Report Grouper'!$D18,'C Report'!V$300:V$399),SUMIF('C Report'!$A$100:$A$199,'C Report Grouper'!$D18,'C Report'!V$100:V$199)) -> 0 | Y18: =IF($D$4="MAP+ADM Waivers",SUMIF('C Report'!$A$100:$A$199,'C Report Grouper'!$D18,'C Report'!W$100:W$199)+SUMIF('C Report'!$A$300:$A$399,'C Report Grouper'!$D18,'C Report'!W$300:W$399),SUMIF('C Report'!$A$100:$A$199,'C Report Grouper'!$D18,'C Report'!W$100:W$199)) -> 0 | Z18: =IF($D$4="MAP+ADM Waivers",SUMIF('C Report'!$A$100:$A$199,'C Report Grouper'!$D18,'C Report'!X$100:X$199)+SUMIF('C Report'!$A$300:$A$399,'C Report Grouper'!$D18,'C Report'!X$300:X$399),SUMIF('C Report'!$A$100:$A$199,'C Report Grouper'!$D18,'C Report'!X$100:X$199)) -> 0 | AA18: =IF($D$4="MAP+ADM Waivers",SUMIF('C Report'!$A$100:$A$199,'C Report Grouper'!$D18,'C Report'!Y$100:Y$199)+SUMIF('C Report'!$A$300:$A$399,'C Report Grouper'!$D18,'C Report'!Y$300:Y$399),SUMIF('C Report'!$A$100:$A$199,'C Report Grouper'!$D18,'C Report'!Y$100:Y$199)) -> 0 | AB18: =IF($D$4="MAP+ADM Waivers",SUMIF('C Report'!$A$100:$A$199,'C Report Grouper'!$D18,'C Report'!Z$100:Z$199)+SUMIF('C Report'!$A$300:$A$399,'C Report Grouper'!$D18,'C Report'!Z$300:Z$399),SUMIF('C Report'!$A$100:$A$199,'C Report Grouper'!$D18,'C Report'!Z$100:Z$199)) -> 0 | AC18: =IF($D$4="MAP+ADM Waivers",SUMIF('C Report'!$A$100:$A$199,'C Report Grouper'!$D18,'C Report'!AA$100:AA$199)+SUMIF('C Report'!$A$300:$A$399,'C Report Grouper'!$D18,'C Report'!AA$300:AA$399),SUMIF('C Report'!$A$100:$A$199,'C Report Grouper'!$D18,'C Report'!AA$100:AA$199)) -> 0 | AD18: =IF($D$4="MAP+ADM Waivers",SUMIF('C Report'!$A$100:$A$199,'C Report Grouper'!$D18,'C Report'!AB$100:AB$199)+SUMIF('C Report'!$A$300:$A$399,'C Report Grouper'!$D18,'C Report'!AB$300:AB$399),SUMIF('C Report'!$A$100:$A$199,'C Report Grouper'!$D18,'C Report'!AB$100:AB$199)) -> 0 | AE18: =IF($D$4="MAP+ADM Waivers",SUMIF('C Report'!$A$100:$A$199,'C Report Grouper'!$D18,'C Report'!AC$100:AC$199)+SUMIF('C Report'!$A$300:$A$399,'C Report Grouper'!$D18,'C Report'!AC$300:AC$399),SUMIF('C Report'!$A$100:$A$199,'C Report Grouper'!$D18,'C Report'!AC$100:AC$199)) -> 0 | AF18: =IF($D$4="MAP+ADM Waivers",SUMIF('C Report'!$A$100:$A$199,'C Report Grouper'!$D18,'C Report'!AD$100:AD$199)+SUMIF('C Report'!$A$300:$A$399,'C Report Grouper'!$D18,'C Report'!AD$300:AD$399),SUMIF('C Report'!$A$100:$A$199,'C Report Grouper'!$D18,'C Report'!AD$100:AD$199)) -> 0 | AG18: =IF($D$4="MAP+ADM Waivers",SUMIF('C Report'!$A$100:$A$199,'C Report Grouper'!$D18,'C Report'!AE$100:AE$199)+SUMIF('C Report'!$A$300:$A$399,'C Report Grouper'!$D18,'C Report'!AE$300:AE$399),SUMIF('C Report'!$A$100:$A$199,'C Report Grouper'!$D18,'C Report'!AE$100:AE$199)) -> 0 | AH18: =IF($D$4="MAP+ADM Waivers",SUMIF('C Report'!$A$100:$A$199,'C Report Grouper'!$D18,'C Report'!AF$100:AF$199)+SUMIF('C Report'!$A$300:$A$399,'C Report Grouper'!$D18,'C Report'!AF$300:AF$399),SUMIF('C Report'!$A$100:$A$199,'C Report Grouper'!$D18,'C Report'!AF$100:AF$199)) -> 0
B19: =IFERROR(VLOOKUP(C19,'MEG Def'!$A$21:$B$26,2),"") ->  | E19: =IF($D$4="MAP+ADM Waivers",SUMIF('C Report'!$A$100:$A$199,'C Report Grouper'!$D19,'C Report'!C$100:C$199)+SUMIF('C Report'!$A$300:$A$399,'C Report Grouper'!$D19,'C Report'!C$300:C$399),SUMIF('C Report'!$A$100:$A$199,'C Report Grouper'!$D19,'C Report'!C$100:C$199)) -> 0 | F19: =IF($D$4="MAP+ADM Waivers",SUMIF('C Report'!$A$100:$A$199,'C Report Grouper'!$D19,'C Report'!D$100:D$199)+SUMIF('C Report'!$A$300:$A$399,'C Report Grouper'!$D19,'C Report'!D$300:D$399),SUMIF('C Report'!$A$100:$A$199,'C Report Grouper'!$D19,'C Report'!D$100:D$199)) -> 0 | G19: =IF($D$4="MAP+ADM Waivers",SUMIF('C Report'!$A$100:$A$199,'C Report Grouper'!$D19,'C Report'!E$100:E$199)+SUMIF('C Report'!$A$300:$A$399,'C Report Grouper'!$D19,'C Report'!E$300:E$399),SUMIF('C Report'!$A$100:$A$199,'C Report Grouper'!$D19,'C Report'!E$100:E$199)) -> 0 | H19: =IF($D$4="MAP+ADM Waivers",SUMIF('C Report'!$A$100:$A$199,'C Report Grouper'!$D19,'C Report'!F$100:F$199)+SUMIF('C Report'!$A$300:$A$399,'C Report Grouper'!$D19,'C Report'!F$300:F$399),SUMIF('C Report'!$A$100:$A$199,'C Report Grouper'!$D19,'C Report'!F$100:F$199)) -> 0 | I19: =IF($D$4="MAP+ADM Waivers",SUMIF('C Report'!$A$100:$A$199,'C Report Grouper'!$D19,'C Report'!G$100:G$199)+SUMIF('C Report'!$A$300:$A$399,'C Report Grouper'!$D19,'C Report'!G$300:G$399),SUMIF('C Report'!$A$100:$A$199,'C Report Grouper'!$D19,'C Report'!G$100:G$199)) -> 0 | J19: =IF($D$4="MAP+ADM Waivers",SUMIF('C Report'!$A$100:$A$199,'C Report Grouper'!$D19,'C Report'!H$100:H$199)+SUMIF('C Report'!$A$300:$A$399,'C Report Grouper'!$D19,'C Report'!H$300:H$399),SUMIF('C Report'!$A$100:$A$199,'C Report Grouper'!$D19,'C Report'!H$100:H$199)) -> 0 | K19: =IF($D$4="MAP+ADM Waivers",SUMIF('C Report'!$A$100:$A$199,'C Report Grouper'!$D19,'C Report'!I$100:I$199)+SUMIF('C Report'!$A$300:$A$399,'C Report Grouper'!$D19,'C Report'!I$300:I$399),SUMIF('C Report'!$A$100:$A$199,'C Report Grouper'!$D19,'C Report'!I$100:I$199)) -> 0 | L19: =IF($D$4="MAP+ADM Waivers",SUMIF('C Report'!$A$100:$A$199,'C Report Grouper'!$D19,'C Report'!J$100:J$199)+SUMIF('C Report'!$A$300:$A$399,'C Report Grouper'!$D19,'C Report'!J$300:J$399),SUMIF('C Report'!$A$100:$A$199,'C Report Grouper'!$D19,'C Report'!J$100:J$199)) -> 0 | M19: =IF($D$4="MAP+ADM Waivers",SUMIF('C Report'!$A$100:$A$199,'C Report Grouper'!$D19,'C Report'!K$100:K$199)+SUMIF('C Report'!$A$300:$A$399,'C Report Grouper'!$D19,'C Report'!K$300:K$399),SUMIF('C Report'!$A$100:$A$199,'C Report Grouper'!$D19,'C Report'!K$100:K$199)) -> 0 | N19: =IF($D$4="MAP+ADM Waivers",SUMIF('C Report'!$A$100:$A$199,'C Report Grouper'!$D19,'C Report'!L$100:L$199)+SUMIF('C Report'!$A$300:$A$399,'C Report Grouper'!$D19,'C Report'!L$300:L$399),SUMIF('C Report'!$A$100:$A$199,'C Report Grouper'!$D19,'C Report'!L$100:L$199)) -> 0 | O19: =IF($D$4="MAP+ADM Waivers",SUMIF('C Report'!$A$100:$A$199,'C Report Grouper'!$D19,'C Report'!M$100:M$199)+SUMIF('C Report'!$A$300:$A$399,'C Report Grouper'!$D19,'C Report'!M$300:M$399),SUMIF('C Report'!$A$100:$A$199,'C Report Grouper'!$D19,'C Report'!M$100:M$199)) -> 0 | P19: =IF($D$4="MAP+ADM Waivers",SUMIF('C Report'!$A$100:$A$199,'C Report Grouper'!$D19,'C Report'!N$100:N$199)+SUMIF('C Report'!$A$300:$A$399,'C Report Grouper'!$D19,'C Report'!N$300:N$399),SUMIF('C Report'!$A$100:$A$199,'C Report Grouper'!$D19,'C Report'!N$100:N$199)) -> 0 | Q19: =IF($D$4="MAP+ADM Waivers",SUMIF('C Report'!$A$100:$A$199,'C Report Grouper'!$D19,'C Report'!O$100:O$199)+SUMIF('C Report'!$A$300:$A$399,'C Report Grouper'!$D19,'C Report'!O$300:O$399),SUMIF('C Report'!$A$100:$A$199,'C Report Grouper'!$D19,'C Report'!O$100:O$199)) -> 0 | R19: =IF($D$4="MAP+ADM Waivers",SUMIF('C Report'!$A$100:$A$199,'C Report Grouper'!$D19,'C Report'!P$100:P$199)+SUMIF('C Report'!$A$300:$A$399,'C Report Grouper'!$D19,'C Report'!P$300:P$399),SUMIF('C Report'!$A$100:$A$199,'C Report Grouper'!$D19,'C Report'!P$100:P$199)) -> 0 | S19: =IF($D$4="MAP+ADM Waivers",SUMIF('C Report'!$A$100:$A$199,'C Report Grouper'!$D19,'C Report'!Q$100:Q$199)+SUMIF('C Report'!$A$300:$A$399,'C Report Grouper'!$D19,'C Report'!Q$300:Q$399),SUMIF('C Report'!$A$100:$A$199,'C Report Grouper'!$D19,'C Report'!Q$100:Q$199)) -> 0 | T19: =IF($D$4="MAP+ADM Waivers",SUMIF('C Report'!$A$100:$A$199,'C Report Grouper'!$D19,'C Report'!R$100:R$199)+SUMIF('C Report'!$A$300:$A$399,'C Report Grouper'!$D19,'C Report'!R$300:R$399),SUMIF('C Report'!$A$100:$A$199,'C Report Grouper'!$D19,'C Report'!R$100:R$199)) -> 0 | U19: =IF($D$4="MAP+ADM Waivers",SUMIF('C Report'!$A$100:$A$199,'C Report Grouper'!$D19,'C Report'!S$100:S$199)+SUMIF('C Report'!$A$300:$A$399,'C Report Grouper'!$D19,'C Report'!S$300:S$399),SUMIF('C Report'!$A$100:$A$199,'C Report Grouper'!$D19,'C Report'!S$100:S$199)) -> 0 | V19: =IF($D$4="MAP+ADM Waivers",SUMIF('C Report'!$A$100:$A$199,'C Report Grouper'!$D19,'C Report'!T$100:T$199)+SUMIF('C Report'!$A$300:$A$399,'C Report Grouper'!$D19,'C Report'!T$300:T$399),SUMIF('C Report'!$A$100:$A$199,'C Report Grouper'!$D19,'C Report'!T$100:T$199)) -> 0 | W19: =IF($D$4="MAP+ADM Waivers",SUMIF('C Report'!$A$100:$A$199,'C Report Grouper'!$D19,'C Report'!U$100:U$199)+SUMIF('C Report'!$A$300:$A$399,'C Report Grouper'!$D19,'C Report'!U$300:U$399),SUMIF('C Report'!$A$100:$A$199,'C Report Grouper'!$D19,'C Report'!U$100:U$199)) -> 0 | X19: =IF($D$4="MAP+ADM Waivers",SUMIF('C Report'!$A$100:$A$199,'C Report Grouper'!$D19,'C Report'!V$100:V$199)+SUMIF('C Report'!$A$300:$A$399,'C Report Grouper'!$D19,'C Report'!V$300:V$399),SUMIF('C Report'!$A$100:$A$199,'C Report Grouper'!$D19,'C Report'!V$100:V$199)) -> 0 | Y19: =IF($D$4="MAP+ADM Waivers",SUMIF('C Report'!$A$100:$A$199,'C Report Grouper'!$D19,'C Report'!W$100:W$199)+SUMIF('C Report'!$A$300:$A$399,'C Report Grouper'!$D19,'C Report'!W$300:W$399),SUMIF('C Report'!$A$100:$A$199,'C Report Grouper'!$D19,'C Report'!W$100:W$199)) -> 0 | Z19: =IF($D$4="MAP+ADM Waivers",SUMIF('C Report'!$A$100:$A$199,'C Report Grouper'!$D19,'C Report'!X$100:X$199)+SUMIF('C Report'!$A$300:$A$399,'C Report Grouper'!$D19,'C Report'!X$300:X$399),SUMIF('C Report'!$A$100:$A$199,'C Report Grouper'!$D19,'C Report'!X$100:X$199)) -> 0 | AA19: =IF($D$4="MAP+ADM Waivers",SUMIF('C Report'!$A$100:$A$199,'C Report Grouper'!$D19,'C Report'!Y$100:Y$199)+SUMIF('C Report'!$A$300:$A$399,'C Report Grouper'!$D19,'C Report'!Y$300:Y$399),SUMIF('C Report'!$A$100:$A$199,'C Report Grouper'!$D19,'C Report'!Y$100:Y$199)) -> 0 | AB19: =IF($D$4="MAP+ADM Waivers",SUMIF('C Report'!$A$100:$A$199,'C Report Grouper'!$D19,'C Report'!Z$100:Z$199)+SUMIF('C Report'!$A$300:$A$399,'C Report Grouper'!$D19,'C Report'!Z$300:Z$399),SUMIF('C Report'!$A$100:$A$199,'C Report Grouper'!$D19,'C Report'!Z$100:Z$199)) -> 0 | AC19: =IF($D$4="MAP+ADM Waivers",SUMIF('C Report'!$A$100:$A$199,'C Report Grouper'!$D19,'C Report'!AA$100:AA$199)+SUMIF('C Report'!$A$300:$A$399,'C Report Grouper'!$D19,'C Report'!AA$300:AA$399),SUMIF('C Report'!$A$100:$A$199,'C Report Grouper'!$D19,'C Report'!AA$100:AA$199)) -> 0 | AD19: =IF($D$4="MAP+ADM Waivers",SUMIF('C Report'!$A$100:$A$199,'C Report Grouper'!$D19,'C Report'!AB$100:AB$199)+SUMIF('C Report'!$A$300:$A$399,'C Report Grouper'!$D19,'C Report'!AB$300:AB$399),SUMIF('C Report'!$A$100:$A$199,'C Report Grouper'!$D19,'C Report'!AB$100:AB$199)) -> 0 | AE19: =IF($D$4="MAP+ADM Waivers",SUMIF('C Report'!$A$100:$A$199,'C Report Grouper'!$D19,'C Report'!AC$100:AC$199)+SUMIF('C Report'!$A$300:$A$399,'C Report Grouper'!$D19,'C Report'!AC$300:AC$399),SUMIF('C Report'!$A$100:$A$199,'C Report Grouper'!$D19,'C Report'!AC$100:AC$199)) -> 0 | AF19: =IF($D$4="MAP+ADM Waivers",SUMIF('C Report'!$A$100:$A$199,'C Report Grouper'!$D19,'C Report'!AD$100:AD$199)+SUMIF('C Report'!$A$300:$A$399,'C Report Grouper'!$D19,'C Report'!AD$300:AD$399),SUMIF('C Report'!$A$100:$A$199,'C Report Grouper'!$D19,'C Report'!AD$100:AD$199)) -> 0 | AG19: =IF($D$4="MAP+ADM Waivers",SUMIF('C Report'!$A$100:$A$199,'C Report Grouper'!$D19,'C Report'!AE$100:AE$199)+SUMIF('C Report'!$A$300:$A$399,'C Report Grouper'!$D19,'C Report'!AE$300:AE$399),SUMIF('C Report'!$A$100:$A$199,'C Report Grouper'!$D19,'C Report'!AE$100:AE$199)) -> 0 | AH19: =IF($D$4="MAP+ADM Waivers",SUMIF('C Report'!$A$100:$A$199,'C Report Grouper'!$D19,'C Report'!AF$100:AF$199)+SUMIF('C Report'!$A$300:$A$399,'C Report Grouper'!$D19,'C Report'!AF$300:AF$399),SUMIF('C Report'!$A$100:$A$199,'C Report Grouper'!$D19,'C Report'!AF$100:AF$199)) -> 0
B20: =IFERROR(VLOOKUP(C20,'MEG Def'!$A$21:$B$26,2),"") ->  | E20: =IF($D$4="MAP+ADM Waivers",SUMIF('C Report'!$A$100:$A$199,'C Report Grouper'!$D20,'C Report'!C$100:C$199)+SUMIF('C Report'!$A$300:$A$399,'C Report Grouper'!$D20,'C Report'!C$300:C$399),SUMIF('C Report'!$A$100:$A$199,'C Report Grouper'!$D20,'C Report'!C$100:C$199)) -> 0 | F20: =IF($D$4="MAP+ADM Waivers",SUMIF('C Report'!$A$100:$A$199,'C Report Grouper'!$D20,'C Report'!D$100:D$199)+SUMIF('C Report'!$A$300:$A$399,'C Report Grouper'!$D20,'C Report'!D$300:D$399),SUMIF('C Report'!$A$100:$A$199,'C Report Grouper'!$D20,'C Report'!D$100:D$199)) -> 0 | G20: =IF($D$4="MAP+ADM Waivers",SUMIF('C Report'!$A$100:$A$199,'C Report Grouper'!$D20,'C Report'!E$100:E$199)+SUMIF('C Report'!$A$300:$A$399,'C Report Grouper'!$D20,'C Report'!E$300:E$399),SUMIF('C Report'!$A$100:$A$199,'C Report Grouper'!$D20,'C Report'!E$100:E$199)) -> 0 | H20: =IF($D$4="MAP+ADM Waivers",SUMIF('C Report'!$A$100:$A$199,'C Report Grouper'!$D20,'C Report'!F$100:F$199)+SUMIF('C Report'!$A$300:$A$399,'C Report Grouper'!$D20,'C Report'!F$300:F$399),SUMIF('C Report'!$A$100:$A$199,'C Report Grouper'!$D20,'C Report'!F$100:F$199)) -> 0 | I20: =IF($D$4="MAP+ADM Waivers",SUMIF('C Report'!$A$100:$A$199,'C Report Grouper'!$D20,'C Report'!G$100:G$199)+SUMIF('C Report'!$A$300:$A$399,'C Report Grouper'!$D20,'C Report'!G$300:G$399),SUMIF('C Report'!$A$100:$A$199,'C Report Grouper'!$D20,'C Report'!G$100:G$199)) -> 0 | J20: =IF($D$4="MAP+ADM Waivers",SUMIF('C Report'!$A$100:$A$199,'C Report Grouper'!$D20,'C Report'!H$100:H$199)+SUMIF('C Report'!$A$300:$A$399,'C Report Grouper'!$D20,'C Report'!H$300:H$399),SUMIF('C Report'!$A$100:$A$199,'C Report Grouper'!$D20,'C Report'!H$100:H$199)) -> 0 | K20: =IF($D$4="MAP+ADM Waivers",SUMIF('C Report'!$A$100:$A$199,'C Report Grouper'!$D20,'C Report'!I$100:I$199)+SUMIF('C Report'!$A$300:$A$399,'C Report Grouper'!$D20,'C Report'!I$300:I$399),SUMIF('C Report'!$A$100:$A$199,'C Report Grouper'!$D20,'C Report'!I$100:I$199)) -> 0 | L20: =IF($D$4="MAP+ADM Waivers",SUMIF('C Report'!$A$100:$A$199,'C Report Grouper'!$D20,'C Report'!J$100:J$199)+SUMIF('C Report'!$A$300:$A$399,'C Report Grouper'!$D20,'C Report'!J$300:J$399),SUMIF('C Report'!$A$100:$A$199,'C Report Grouper'!$D20,'C Report'!J$100:J$199)) -> 0 | M20: =IF($D$4="MAP+ADM Waivers",SUMIF('C Report'!$A$100:$A$199,'C Report Grouper'!$D20,'C Report'!K$100:K$199)+SUMIF('C Report'!$A$300:$A$399,'C Report Grouper'!$D20,'C Report'!K$300:K$399),SUMIF('C Report'!$A$100:$A$199,'C Report Grouper'!$D20,'C Report'!K$100:K$199)) -> 0 | N20: =IF($D$4="MAP+ADM Waivers",SUMIF('C Report'!$A$100:$A$199,'C Report Grouper'!$D20,'C Report'!L$100:L$199)+SUMIF('C Report'!$A$300:$A$399,'C Report Grouper'!$D20,'C Report'!L$300:L$399),SUMIF('C Report'!$A$100:$A$199,'C Report Grouper'!$D20,'C Report'!L$100:L$199)) -> 0 | O20: =IF($D$4="MAP+ADM Waivers",SUMIF('C Report'!$A$100:$A$199,'C Report Grouper'!$D20,'C Report'!M$100:M$199)+SUMIF('C Report'!$A$300:$A$399,'C Report Grouper'!$D20,'C Report'!M$300:M$399),SUMIF('C Report'!$A$100:$A$199,'C Report Grouper'!$D20,'C Report'!M$100:M$199)) -> 0 | P20: =IF($D$4="MAP+ADM Waivers",SUMIF('C Report'!$A$100:$A$199,'C Report Grouper'!$D20,'C Report'!N$100:N$199)+SUMIF('C Report'!$A$300:$A$399,'C Report Grouper'!$D20,'C Report'!N$300:N$399),SUMIF('C Report'!$A$100:$A$199,'C Report Grouper'!$D20,'C Report'!N$100:N$199)) -> 0 | Q20: =IF($D$4="MAP+ADM Waivers",SUMIF('C Report'!$A$100:$A$199,'C Report Grouper'!$D20,'C Report'!O$100:O$199)+SUMIF('C Report'!$A$300:$A$399,'C Report Grouper'!$D20,'C Report'!O$300:O$399),SUMIF('C Report'!$A$100:$A$199,'C Report Grouper'!$D20,'C Report'!O$100:O$199)) -> 0 | R20: =IF($D$4="MAP+ADM Waivers",SUMIF('C Report'!$A$100:$A$199,'C Report Grouper'!$D20,'C Report'!P$100:P$199)+SUMIF('C Report'!$A$300:$A$399,'C Report Grouper'!$D20,'C Report'!P$300:P$399),SUMIF('C Report'!$A$100:$A$199,'C Report Grouper'!$D20,'C Report'!P$100:P$199)) -> 0 | S20: =IF($D$4="MAP+ADM Waivers",SUMIF('C Report'!$A$100:$A$199,'C Report Grouper'!$D20,'C Report'!Q$100:Q$199)+SUMIF('C Report'!$A$300:$A$399,'C Report Grouper'!$D20,'C Report'!Q$300:Q$399),SUMIF('C Report'!$A$100:$A$199,'C Report Grouper'!$D20,'C Report'!Q$100:Q$199)) -> 0 | T20: =IF($D$4="MAP+ADM Waivers",SUMIF('C Report'!$A$100:$A$199,'C Report Grouper'!$D20,'C Report'!R$100:R$199)+SUMIF('C Report'!$A$300:$A$399,'C Report Grouper'!$D20,'C Report'!R$300:R$399),SUMIF('C Report'!$A$100:$A$199,'C Report Grouper'!$D20,'C Report'!R$100:R$199)) -> 0 | U20: =IF($D$4="MAP+ADM Waivers",SUMIF('C Report'!$A$100:$A$199,'C Report Grouper'!$D20,'C Report'!S$100:S$199)+SUMIF('C Report'!$A$300:$A$399,'C Report Grouper'!$D20,'C Report'!S$300:S$399),SUMIF('C Report'!$A$100:$A$199,'C Report Grouper'!$D20,'C Report'!S$100:S$199)) -> 0 | V20: =IF($D$4="MAP+ADM Waivers",SUMIF('C Report'!$A$100:$A$199,'C Report Grouper'!$D20,'C Report'!T$100:T$199)+SUMIF('C Report'!$A$300:$A$399,'C Report Grouper'!$D20,'C Report'!T$300:T$399),SUMIF('C Report'!$A$100:$A$199,'C Report Grouper'!$D20,'C Report'!T$100:T$199)) -> 0 | W20: =IF($D$4="MAP+ADM Waivers",SUMIF('C Report'!$A$100:$A$199,'C Report Grouper'!$D20,'C Report'!U$100:U$199)+SUMIF('C Report'!$A$300:$A$399,'C Report Grouper'!$D20,'C Report'!U$300:U$399),SUMIF('C Report'!$A$100:$A$199,'C Report Grouper'!$D20,'C Report'!U$100:U$199)) -> 0 | X20: =IF($D$4="MAP+ADM Waivers",SUMIF('C Report'!$A$100:$A$199,'C Report Grouper'!$D20,'C Report'!V$100:V$199)+SUMIF('C Report'!$A$300:$A$399,'C Report Grouper'!$D20,'C Report'!V$300:V$399),SUMIF('C Report'!$A$100:$A$199,'C Report Grouper'!$D20,'C Report'!V$100:V$199)) -> 0 | Y20: =IF($D$4="MAP+ADM Waivers",SUMIF('C Report'!$A$100:$A$199,'C Report Grouper'!$D20,'C Report'!W$100:W$199)+SUMIF('C Report'!$A$300:$A$399,'C Report Grouper'!$D20,'C Report'!W$300:W$399),SUMIF('C Report'!$A$100:$A$199,'C Report Grouper'!$D20,'C Report'!W$100:W$199)) -> 0 | Z20: =IF($D$4="MAP+ADM Waivers",SUMIF('C Report'!$A$100:$A$199,'C Report Grouper'!$D20,'C Report'!X$100:X$199)+SUMIF('C Report'!$A$300:$A$399,'C Report Grouper'!$D20,'C Report'!X$300:X$399),SUMIF('C Report'!$A$100:$A$199,'C Report Grouper'!$D20,'C Report'!X$100:X$199)) -> 0 | AA20: =IF($D$4="MAP+ADM Waivers",SUMIF('C Report'!$A$100:$A$199,'C Report Grouper'!$D20,'C Report'!Y$100:Y$199)+SUMIF('C Report'!$A$300:$A$399,'C Report Grouper'!$D20,'C Report'!Y$300:Y$399),SUMIF('C Report'!$A$100:$A$199,'C Report Grouper'!$D20,'C Report'!Y$100:Y$199)) -> 0 | AB20: =IF($D$4="MAP+ADM Waivers",SUMIF('C Report'!$A$100:$A$199,'C Report Grouper'!$D20,'C Report'!Z$100:Z$199)+SUMIF('C Report'!$A$300:$A$399,'C Report Grouper'!$D20,'C Report'!Z$300:Z$399),SUMIF('C Report'!$A$100:$A$199,'C Report Grouper'!$D20,'C Report'!Z$100:Z$199)) -> 0 | AC20: =IF($D$4="MAP+ADM Waivers",SUMIF('C Report'!$A$100:$A$199,'C Report Grouper'!$D20,'C Report'!AA$100:AA$199)+SUMIF('C Report'!$A$300:$A$399,'C Report Grouper'!$D20,'C Report'!AA$300:AA$399),SUMIF('C Report'!$A$100:$A$199,'C Report Grouper'!$D20,'C Report'!AA$100:AA$199)) -> 0 | AD20: =IF($D$4="MAP+ADM Waivers",SUMIF('C Report'!$A$100:$A$199,'C Report Grouper'!$D20,'C Report'!AB$100:AB$199)+SUMIF('C Report'!$A$300:$A$399,'C Report Grouper'!$D20,'C Report'!AB$300:AB$399),SUMIF('C Report'!$A$100:$A$199,'C Report Grouper'!$D20,'C Report'!AB$100:AB$199)) -> 0 | AE20: =IF($D$4="MAP+ADM Waivers",SUMIF('C Report'!$A$100:$A$199,'C Report Grouper'!$D20,'C Report'!AC$100:AC$199)+SUMIF('C Report'!$A$300:$A$399,'C Report Grouper'!$D20,'C Report'!AC$300:AC$399),SUMIF('C Report'!$A$100:$A$199,'C Report Grouper'!$D20,'C Report'!AC$100:AC$199)) -> 0 | AF20: =IF($D$4="MAP+ADM Waivers",SUMIF('C Report'!$A$100:$A$199,'C Report Grouper'!$D20,'C Report'!AD$100:AD$199)+SUMIF('C Report'!$A$300:$A$399,'C Report Grouper'!$D20,'C Report'!AD$300:AD$399),SUMIF('C Report'!$A$100:$A$199,'C Report Grouper'!$D20,'C Report'!AD$100:AD$199)) -> 0 | AG20: =IF($D$4="MAP+ADM Waivers",SUMIF('C Report'!$A$100:$A$199,'C Report Grouper'!$D20,'C Report'!AE$100:AE$199)+SUMIF('C Report'!$A$300:$A$399,'C Report Grouper'!$D20,'C Report'!AE$300:AE$399),SUMIF('C Report'!$A$100:$A$199,'C Report Grouper'!$D20,'C Report'!AE$100:AE$199)) -> 0 | AH20: =IF($D$4="MAP+ADM Waivers",SUMIF('C Report'!$A$100:$A$199,'C Report Grouper'!$D20,'C Report'!AF$100:AF$199)+SUMIF('C Report'!$A$300:$A$399,'C Report Grouper'!$D20,'C Report'!AF$300:AF$399),SUMIF('C Report'!$A$100:$A$199,'C Report Grouper'!$D20,'C Report'!AF$100:AF$199)) -> 0
B21: =IFERROR(VLOOKUP(C21,'MEG Def'!$A$21:$B$26,2),"") ->  | E21: =IF($D$4="MAP+ADM Waivers",SUMIF('C Report'!$A$100:$A$199,'C Report Grouper'!$D21,'C Report'!C$100:C$199)+SUMIF('C Report'!$A$300:$A$399,'C Report Grouper'!$D21,'C Report'!C$300:C$399),SUMIF('C Report'!$A$100:$A$199,'C Report Grouper'!$D21,'C Report'!C$100:C$199)) -> 0 | F21: =IF($D$4="MAP+ADM Waivers",SUMIF('C Report'!$A$100:$A$199,'C Report Grouper'!$D21,'C Report'!D$100:D$199)+SUMIF('C Report'!$A$300:$A$399,'C Report Grouper'!$D21,'C Report'!D$300:D$399),SUMIF('C Report'!$A$100:$A$199,'C Report Grouper'!$D21,'C Report'!D$100:D$199)) -> 0 | G21: =IF($D$4="MAP+ADM Waivers",SUMIF('C Report'!$A$100:$A$199,'C Report Grouper'!$D21,'C Report'!E$100:E$199)+SUMIF('C Report'!$A$300:$A$399,'C Report Grouper'!$D21,'C Report'!E$300:E$399),SUMIF('C Report'!$A$100:$A$199,'C Report Grouper'!$D21,'C Report'!E$100:E$199)) -> 0 | H21: =IF($D$4="MAP+ADM Waivers",SUMIF('C Report'!$A$100:$A$199,'C Report Grouper'!$D21,'C Report'!F$100:F$199)+SUMIF('C Report'!$A$300:$A$399,'C Report Grouper'!$D21,'C Report'!F$300:F$399),SUMIF('C Report'!$A$100:$A$199,'C Report Grouper'!$D21,'C Report'!F$100:F$199)) -> 0 | I21: =IF($D$4="MAP+ADM Waivers",SUMIF('C Report'!$A$100:$A$199,'C Report Grouper'!$D21,'C Report'!G$100:G$199)+SUMIF('C Report'!$A$300:$A$399,'C Report Grouper'!$D21,'C Report'!G$300:G$399),SUMIF('C Report'!$A$100:$A$199,'C Report Grouper'!$D21,'C Report'!G$100:G$199)) -> 0 | J21: =IF($D$4="MAP+ADM Waivers",SUMIF('C Report'!$A$100:$A$199,'C Report Grouper'!$D21,'C Report'!H$100:H$199)+SUMIF('C Report'!$A$300:$A$399,'C Report Grouper'!$D21,'C Report'!H$300:H$399),SUMIF('C Report'!$A$100:$A$199,'C Report Grouper'!$D21,'C Report'!H$100:H$199)) -> 0 | K21: =IF($D$4="MAP+ADM Waivers",SUMIF('C Report'!$A$100:$A$199,'C Report Grouper'!$D21,'C Report'!I$100:I$199)+SUMIF('C Report'!$A$300:$A$399,'C Report Grouper'!$D21,'C Report'!I$300:I$399),SUMIF('C Report'!$A$100:$A$199,'C Report Grouper'!$D21,'C Report'!I$100:I$199)) -> 0 | L21: =IF($D$4="MAP+ADM Waivers",SUMIF('C Report'!$A$100:$A$199,'C Report Grouper'!$D21,'C Report'!J$100:J$199)+SUMIF('C Report'!$A$300:$A$399,'C Report Grouper'!$D21,'C Report'!J$300:J$399),SUMIF('C Report'!$A$100:$A$199,'C Report Grouper'!$D21,'C Report'!J$100:J$199)) -> 0 | M21: =IF($D$4="MAP+ADM Waivers",SUMIF('C Report'!$A$100:$A$199,'C Report Grouper'!$D21,'C Report'!K$100:K$199)+SUMIF('C Report'!$A$300:$A$399,'C Report Grouper'!$D21,'C Report'!K$300:K$399),SUMIF('C Report'!$A$100:$A$199,'C Report Grouper'!$D21,'C Report'!K$100:K$199)) -> 0 | N21: =IF($D$4="MAP+ADM Waivers",SUMIF('C Report'!$A$100:$A$199,'C Report Grouper'!$D21,'C Report'!L$100:L$199)+SUMIF('C Report'!$A$300:$A$399,'C Report Grouper'!$D21,'C Report'!L$300:L$399),SUMIF('C Report'!$A$100:$A$199,'C Report Grouper'!$D21,'C Report'!L$100:L$199)) -> 0 | O21: =IF($D$4="MAP+ADM Waivers",SUMIF('C Report'!$A$100:$A$199,'C Report Grouper'!$D21,'C Report'!M$100:M$199)+SUMIF('C Report'!$A$300:$A$399,'C Report Grouper'!$D21,'C Report'!M$300:M$399),SUMIF('C Report'!$A$100:$A$199,'C Report Grouper'!$D21,'C Report'!M$100:M$199)) -> 0 | P21: =IF($D$4="MAP+ADM Waivers",SUMIF('C Report'!$A$100:$A$199,'C Report Grouper'!$D21,'C Report'!N$100:N$199)+SUMIF('C Report'!$A$300:$A$399,'C Report Grouper'!$D21,'C Report'!N$300:N$399),SUMIF('C Report'!$A$100:$A$199,'C Report Grouper'!$D21,'C Report'!N$100:N$199)) -> 0 | Q21: =IF($D$4="MAP+ADM Waivers",SUMIF('C Report'!$A$100:$A$199,'C Report Grouper'!$D21,'C Report'!O$100:O$199)+SUMIF('C Report'!$A$300:$A$399,'C Report Grouper'!$D21,'C Report'!O$300:O$399),SUMIF('C Report'!$A$100:$A$199,'C Report Grouper'!$D21,'C Report'!O$100:O$199)) -> 0 | R21: =IF($D$4="MAP+ADM Waivers",SUMIF('C Report'!$A$100:$A$199,'C Report Grouper'!$D21,'C Report'!P$100:P$199)+SUMIF('C Report'!$A$300:$A$399,'C Report Grouper'!$D21,'C Report'!P$300:P$399),SUMIF('C Report'!$A$100:$A$199,'C Report Grouper'!$D21,'C Report'!P$100:P$199)) -> 0 | S21: =IF($D$4="MAP+ADM Waivers",SUMIF('C Report'!$A$100:$A$199,'C Report Grouper'!$D21,'C Report'!Q$100:Q$199)+SUMIF('C Report'!$A$300:$A$399,'C Report Grouper'!$D21,'C Report'!Q$300:Q$399),SUMIF('C Report'!$A$100:$A$199,'C Report Grouper'!$D21,'C Report'!Q$100:Q$199)) -> 0 | T21: =IF($D$4="MAP+ADM Waivers",SUMIF('C Report'!$A$100:$A$199,'C Report Grouper'!$D21,'C Report'!R$100:R$199)+SUMIF('C Report'!$A$300:$A$399,'C Report Grouper'!$D21,'C Report'!R$300:R$399),SUMIF('C Report'!$A$100:$A$199,'C Report Grouper'!$D21,'C Report'!R$100:R$199)) -> 0 | U21: =IF($D$4="MAP+ADM Waivers",SUMIF('C Report'!$A$100:$A$199,'C Report Grouper'!$D21,'C Report'!S$100:S$199)+SUMIF('C Report'!$A$300:$A$399,'C Report Grouper'!$D21,'C Report'!S$300:S$399),SUMIF('C Report'!$A$100:$A$199,'C Report Grouper'!$D21,'C Report'!S$100:S$199)) -> 0 | V21: =IF($D$4="MAP+ADM Waivers",SUMIF('C Report'!$A$100:$A$199,'C Report Grouper'!$D21,'C Report'!T$100:T$199)+SUMIF('C Report'!$A$300:$A$399,'C Report Grouper'!$D21,'C Report'!T$300:T$399),SUMIF('C Report'!$A$100:$A$199,'C Report Grouper'!$D21,'C Report'!T$100:T$199)) -> 0 | W21: =IF($D$4="MAP+ADM Waivers",SUMIF('C Report'!$A$100:$A$199,'C Report Grouper'!$D21,'C Report'!U$100:U$199)+SUMIF('C Report'!$A$300:$A$399,'C Report Grouper'!$D21,'C Report'!U$300:U$399),SUMIF('C Report'!$A$100:$A$199,'C Report Grouper'!$D21,'C Report'!U$100:U$199)) -> 0 | X21: =IF($D$4="MAP+ADM Waivers",SUMIF('C Report'!$A$100:$A$199,'C Report Grouper'!$D21,'C Report'!V$100:V$199)+SUMIF('C Report'!$A$300:$A$399,'C Report Grouper'!$D21,'C Report'!V$300:V$399),SUMIF('C Report'!$A$100:$A$199,'C Report Grouper'!$D21,'C Report'!V$100:V$199)) -> 0 | Y21: =IF($D$4="MAP+ADM Waivers",SUMIF('C Report'!$A$100:$A$199,'C Report Grouper'!$D21,'C Report'!W$100:W$199)+SUMIF('C Report'!$A$300:$A$399,'C Report Grouper'!$D21,'C Report'!W$300:W$399),SUMIF('C Report'!$A$100:$A$199,'C Report Grouper'!$D21,'C Report'!W$100:W$199)) -> 0 | Z21: =IF($D$4="MAP+ADM Waivers",SUMIF('C Report'!$A$100:$A$199,'C Report Grouper'!$D21,'C Report'!X$100:X$199)+SUMIF('C Report'!$A$300:$A$399,'C Report Grouper'!$D21,'C Report'!X$300:X$399),SUMIF('C Report'!$A$100:$A$199,'C Report Grouper'!$D21,'C Report'!X$100:X$199)) -> 0 | AA21: =IF($D$4="MAP+ADM Waivers",SUMIF('C Report'!$A$100:$A$199,'C Report Grouper'!$D21,'C Report'!Y$100:Y$199)+SUMIF('C Report'!$A$300:$A$399,'C Report Grouper'!$D21,'C Report'!Y$300:Y$399),SUMIF('C Report'!$A$100:$A$199,'C Report Grouper'!$D21,'C Report'!Y$100:Y$199)) -> 0 | AB21: =IF($D$4="MAP+ADM Waivers",SUMIF('C Report'!$A$100:$A$199,'C Report Grouper'!$D21,'C Report'!Z$100:Z$199)+SUMIF('C Report'!$A$300:$A$399,'C Report Grouper'!$D21,'C Report'!Z$300:Z$399),SUMIF('C Report'!$A$100:$A$199,'C Report Grouper'!$D21,'C Report'!Z$100:Z$199)) -> 0 | AC21: =IF($D$4="MAP+ADM Waivers",SUMIF('C Report'!$A$100:$A$199,'C Report Grouper'!$D21,'C Report'!AA$100:AA$199)+SUMIF('C Report'!$A$300:$A$399,'C Report Grouper'!$D21,'C Report'!AA$300:AA$399),SUMIF('C Report'!$A$100:$A$199,'C Report Grouper'!$D21,'C Report'!AA$100:AA$199)) -> 0 | AD21: =IF($D$4="MAP+ADM Waivers",SUMIF('C Report'!$A$100:$A$199,'C Report Grouper'!$D21,'C Report'!AB$100:AB$199)+SUMIF('C Report'!$A$300:$A$399,'C Report Grouper'!$D21,'C Report'!AB$300:AB$399),SUMIF('C Report'!$A$100:$A$199,'C Report Grouper'!$D21,'C Report'!AB$100:AB$199)) -> 0 | AE21: =IF($D$4="MAP+ADM Waivers",SUMIF('C Report'!$A$100:$A$199,'C Report Grouper'!$D21,'C Report'!AC$100:AC$199)+SUMIF('C Report'!$A$300:$A$399,'C Report Grouper'!$D21,'C Report'!AC$300:AC$399),SUMIF('C Report'!$A$100:$A$199,'C Report Grouper'!$D21,'C Report'!AC$100:AC$199)) -> 0 | AF21: =IF($D$4="MAP+ADM Waivers",SUMIF('C Report'!$A$100:$A$199,'C Report Grouper'!$D21,'C Report'!AD$100:AD$199)+SUMIF('C Report'!$A$300:$A$399,'C Report Grouper'!$D21,'C Report'!AD$300:AD$399),SUMIF('C Report'!$A$100:$A$199,'C Report Grouper'!$D21,'C Report'!AD$100:AD$199)) -> 0 | AG21: =IF($D$4="MAP+ADM Waivers",SUMIF('C Report'!$A$100:$A$199,'C Report Grouper'!$D21,'C Report'!AE$100:AE$199)+SUMIF('C Report'!$A$300:$A$399,'C Report Grouper'!$D21,'C Report'!AE$300:AE$399),SUMIF('C Report'!$A$100:$A$199,'C Report Grouper'!$D21,'C Report'!AE$100:AE$199)) -> 0 | AH21: =IF($D$4="MAP+ADM Waivers",SUMIF('C Report'!$A$100:$A$199,'C Report Grouper'!$D21,'C Report'!AF$100:AF$199)+SUMIF('C Report'!$A$300:$A$399,'C Report Grouper'!$D21,'C Report'!AF$300:AF$399),SUMIF('C Report'!$A$100:$A$199,'C Report Grouper'!$D21,'C Report'!AF$100:AF$199)) -> 0
E22: =IF($D$4="MAP+ADM Waivers",SUMIF('C Report'!$A$100:$A$199,'C Report Grouper'!$D22,'C Report'!C$100:C$199)+SUMIF('C Report'!$A$300:$A$399,'C Report Grouper'!$D22,'C Report'!C$300:C$399),SUMIF('C Report'!$A$100:$A$199,'C Report Grouper'!$D22,'C Report'!C$100:C$199)) -> 0 | F22: =IF($D$4="MAP+ADM Waivers",SUMIF('C Report'!$A$100:$A$199,'C Report Grouper'!$D22,'C Report'!D$100:D$199)+SUMIF('C Report'!$A$300:$A$399,'C Report Grouper'!$D22,'C Report'!D$300:D$399),SUMIF('C Report'!$A$100:$A$199,'C Report Grouper'!$D22,'C Report'!D$100:D$199)) -> 0 | G22: =IF($D$4="MAP+ADM Waivers",SUMIF('C Report'!$A$100:$A$199,'C Report Grouper'!$D22,'C Report'!E$100:E$199)+SUMIF('C Report'!$A$300:$A$399,'C Report Grouper'!$D22,'C Report'!E$300:E$399),SUMIF('C Report'!$A$100:$A$199,'C Report Grouper'!$D22,'C Report'!E$100:E$199)) -> 0 | H22: =IF($D$4="MAP+ADM Waivers",SUMIF('C Report'!$A$100:$A$199,'C Report Grouper'!$D22,'C Report'!F$100:F$199)+SUMIF('C Report'!$A$300:$A$399,'C Report Grouper'!$D22,'C Report'!F$300:F$399),SUMIF('C Report'!$A$100:$A$199,'C Report Grouper'!$D22,'C Report'!F$100:F$199)) -> 0 | I22: =IF($D$4="MAP+ADM Waivers",SUMIF('C Report'!$A$100:$A$199,'C Report Grouper'!$D22,'C Report'!G$100:G$199)+SUMIF('C Report'!$A$300:$A$399,'C Report Grouper'!$D22,'C Report'!G$300:G$399),SUMIF('C Report'!$A$100:$A$199,'C Report Grouper'!$D22,'C Report'!G$100:G$199)) -> 0 | J22: =IF($D$4="MAP+ADM Waivers",SUMIF('C Report'!$A$100:$A$199,'C Report Grouper'!$D22,'C Report'!H$100:H$199)+SUMIF('C Report'!$A$300:$A$399,'C Report Grouper'!$D22,'C Report'!H$300:H$399),SUMIF('C Report'!$A$100:$A$199,'C Report Grouper'!$D22,'C Report'!H$100:H$199)) -> 0 | K22: =IF($D$4="MAP+ADM Waivers",SUMIF('C Report'!$A$100:$A$199,'C Report Grouper'!$D22,'C Report'!I$100:I$199)+SUMIF('C Report'!$A$300:$A$399,'C Report Grouper'!$D22,'C Report'!I$300:I$399),SUMIF('C Report'!$A$100:$A$199,'C Report Grouper'!$D22,'C Report'!I$100:I$199)) -> 0 | L22: =IF($D$4="MAP+ADM Waivers",SUMIF('C Report'!$A$100:$A$199,'C Report Grouper'!$D22,'C Report'!J$100:J$199)+SUMIF('C Report'!$A$300:$A$399,'C Report Grouper'!$D22,'C Report'!J$300:J$399),SUMIF('C Report'!$A$100:$A$199,'C Report Grouper'!$D22,'C Report'!J$100:J$199)) -> 0 | M22: =IF($D$4="MAP+ADM Waivers",SUMIF('C Report'!$A$100:$A$199,'C Report Grouper'!$D22,'C Report'!K$100:K$199)+SUMIF('C Report'!$A$300:$A$399,'C Report Grouper'!$D22,'C Report'!K$300:K$399),SUMIF('C Report'!$A$100:$A$199,'C Report Grouper'!$D22,'C Report'!K$100:K$199)) -> 0 | N22: =IF($D$4="MAP+ADM Waivers",SUMIF('C Report'!$A$100:$A$199,'C Report Grouper'!$D22,'C Report'!L$100:L$199)+SUMIF('C Report'!$A$300:$A$399,'C Report Grouper'!$D22,'C Report'!L$300:L$399),SUMIF('C Report'!$A$100:$A$199,'C Report Grouper'!$D22,'C Report'!L$100:L$199)) -> 0 | O22: =IF($D$4="MAP+ADM Waivers",SUMIF('C Report'!$A$100:$A$199,'C Report Grouper'!$D22,'C Report'!M$100:M$199)+SUMIF('C Report'!$A$300:$A$399,'C Report Grouper'!$D22,'C Report'!M$300:M$399),SUMIF('C Report'!$A$100:$A$199,'C Report Grouper'!$D22,'C Report'!M$100:M$199)) -> 0 | P22: =IF($D$4="MAP+ADM Waivers",SUMIF('C Report'!$A$100:$A$199,'C Report Grouper'!$D22,'C Report'!N$100:N$199)+SUMIF('C Report'!$A$300:$A$399,'C Report Grouper'!$D22,'C Report'!N$300:N$399),SUMIF('C Report'!$A$100:$A$199,'C Report Grouper'!$D22,'C Report'!N$100:N$199)) -> 0 | Q22: =IF($D$4="MAP+ADM Waivers",SUMIF('C Report'!$A$100:$A$199,'C Report Grouper'!$D22,'C Report'!O$100:O$199)+SUMIF('C Report'!$A$300:$A$399,'C Report Grouper'!$D22,'C Report'!O$300:O$399),SUMIF('C Report'!$A$100:$A$199,'C Report Grouper'!$D22,'C Report'!O$100:O$199)) -> 0 | R22: =IF($D$4="MAP+ADM Waivers",SUMIF('C Report'!$A$100:$A$199,'C Report Grouper'!$D22,'C Report'!P$100:P$199)+SUMIF('C Report'!$A$300:$A$399,'C Report Grouper'!$D22,'C Report'!P$300:P$399),SUMIF('C Report'!$A$100:$A$199,'C Report Grouper'!$D22,'C Report'!P$100:P$199)) -> 0 | S22: =IF($D$4="MAP+ADM Waivers",SUMIF('C Report'!$A$100:$A$199,'C Report Grouper'!$D22,'C Report'!Q$100:Q$199)+SUMIF('C Report'!$A$300:$A$399,'C Report Grouper'!$D22,'C Report'!Q$300:Q$399),SUMIF('C Report'!$A$100:$A$199,'C Report Grouper'!$D22,'C Report'!Q$100:Q$199)) -> 0 | T22: =IF($D$4="MAP+ADM Waivers",SUMIF('C Report'!$A$100:$A$199,'C Report Grouper'!$D22,'C Report'!R$100:R$199)+SUMIF('C Report'!$A$300:$A$399,'C Report Grouper'!$D22,'C Report'!R$300:R$399),SUMIF('C Report'!$A$100:$A$199,'C Report Grouper'!$D22,'C Report'!R$100:R$199)) -> 0 | U22: =IF($D$4="MAP+ADM Waivers",SUMIF('C Report'!$A$100:$A$199,'C Report Grouper'!$D22,'C Report'!S$100:S$199)+SUMIF('C Report'!$A$300:$A$399,'C Report Grouper'!$D22,'C Report'!S$300:S$399),SUMIF('C Report'!$A$100:$A$199,'C Report Grouper'!$D22,'C Report'!S$100:S$199)) -> 0 | V22: =IF($D$4="MAP+ADM Waivers",SUMIF('C Report'!$A$100:$A$199,'C Report Grouper'!$D22,'C Report'!T$100:T$199)+SUMIF('C Report'!$A$300:$A$399,'C Report Grouper'!$D22,'C Report'!T$300:T$399),SUMIF('C Report'!$A$100:$A$199,'C Report Grouper'!$D22,'C Report'!T$100:T$199)) -> 0 | W22: =IF($D$4="MAP+ADM Waivers",SUMIF('C Report'!$A$100:$A$199,'C Report Grouper'!$D22,'C Report'!U$100:U$199)+SUMIF('C Report'!$A$300:$A$399,'C Report Grouper'!$D22,'C Report'!U$300:U$399),SUMIF('C Report'!$A$100:$A$199,'C Report Grouper'!$D22,'C Report'!U$100:U$199)) -> 0 | X22: =IF($D$4="MAP+ADM Waivers",SUMIF('C Report'!$A$100:$A$199,'C Report Grouper'!$D22,'C Report'!V$100:V$199)+SUMIF('C Report'!$A$300:$A$399,'C Report Grouper'!$D22,'C Report'!V$300:V$399),SUMIF('C Report'!$A$100:$A$199,'C Report Grouper'!$D22,'C Report'!V$100:V$199)) -> 0 | Y22: =IF($D$4="MAP+ADM Waivers",SUMIF('C Report'!$A$100:$A$199,'C Report Grouper'!$D22,'C Report'!W$100:W$199)+SUMIF('C Report'!$A$300:$A$399,'C Report Grouper'!$D22,'C Report'!W$300:W$399),SUMIF('C Report'!$A$100:$A$199,'C Report Grouper'!$D22,'C Report'!W$100:W$199)) -> 0 | Z22: =IF($D$4="MAP+ADM Waivers",SUMIF('C Report'!$A$100:$A$199,'C Report Grouper'!$D22,'C Report'!X$100:X$199)+SUMIF('C Report'!$A$300:$A$399,'C Report Grouper'!$D22,'C Report'!X$300:X$399),SUMIF('C Report'!$A$100:$A$199,'C Report Grouper'!$D22,'C Report'!X$100:X$199)) -> 0 | AA22: =IF($D$4="MAP+ADM Waivers",SUMIF('C Report'!$A$100:$A$199,'C Report Grouper'!$D22,'C Report'!Y$100:Y$199)+SUMIF('C Report'!$A$300:$A$399,'C Report Grouper'!$D22,'C Report'!Y$300:Y$399),SUMIF('C Report'!$A$100:$A$199,'C Report Grouper'!$D22,'C Report'!Y$100:Y$199)) -> 0 | AB22: =IF($D$4="MAP+ADM Waivers",SUMIF('C Report'!$A$100:$A$199,'C Report Grouper'!$D22,'C Report'!Z$100:Z$199)+SUMIF('C Report'!$A$300:$A$399,'C Report Grouper'!$D22,'C Report'!Z$300:Z$399),SUMIF('C Report'!$A$100:$A$199,'C Report Grouper'!$D22,'C Report'!Z$100:Z$199)) -> 0 | AC22: =IF($D$4="MAP+ADM Waivers",SUMIF('C Report'!$A$100:$A$199,'C Report Grouper'!$D22,'C Report'!AA$100:AA$199)+SUMIF('C Report'!$A$300:$A$399,'C Report Grouper'!$D22,'C Report'!AA$300:AA$399),SUMIF('C Report'!$A$100:$A$199,'C Report Grouper'!$D22,'C Report'!AA$100:AA$199)) -> 0 | AD22: =IF($D$4="MAP+ADM Waivers",SUMIF('C Report'!$A$100:$A$199,'C Report Grouper'!$D22,'C Report'!AB$100:AB$199)+SUMIF('C Report'!$A$300:$A$399,'C Report Grouper'!$D22,'C Report'!AB$300:AB$399),SUMIF('C Report'!$A$100:$A$199,'C Report Grouper'!$D22,'C Report'!AB$100:AB$199)) -> 0 | AE22: =IF($D$4="MAP+ADM Waivers",SUMIF('C Report'!$A$100:$A$199,'C Report Grouper'!$D22,'C Report'!AC$100:AC$199)+SUMIF('C Report'!$A$300:$A$399,'C Report Grouper'!$D22,'C Report'!AC$300:AC$399),SUMIF('C Report'!$A$100:$A$199,'C Report Grouper'!$D22,'C Report'!AC$100:AC$199)) -> 0 | AF22: =IF($D$4="MAP+ADM Waivers",SUMIF('C Report'!$A$100:$A$199,'C Report Grouper'!$D22,'C Report'!AD$100:AD$199)+SUMIF('C Report'!$A$300:$A$399,'C Report Grouper'!$D22,'C Report'!AD$300:AD$399),SUMIF('C Report'!$A$100:$A$199,'C Report Grouper'!$D22,'C Report'!AD$100:AD$199)) -> 0 | AG22: =IF($D$4="MAP+ADM Waivers",SUMIF('C Report'!$A$100:$A$199,'C Report Grouper'!$D22,'C Report'!AE$100:AE$199)+SUMIF('C Report'!$A$300:$A$399,'C Report Grouper'!$D22,'C Report'!AE$300:AE$399),SUMIF('C Report'!$A$100:$A$199,'C Report Grouper'!$D22,'C Report'!AE$100:AE$199)) -> 0 | AH22: =IF($D$4="MAP+ADM Waivers",SUMIF('C Report'!$A$100:$A$199,'C Report Grouper'!$D22,'C Report'!AF$100:AF$199)+SUMIF('C Report'!$A$300:$A$399,'C Report Grouper'!$D22,'C Report'!AF$300:AF$399),SUMIF('C Report'!$A$100:$A$199,'C Report Grouper'!$D22,'C Report'!AF$100:AF$199)) -> 0
B23: Medicaid Aggregate - WW only | E23: =IF($D$4="MAP+ADM Waivers",SUMIF('C Report'!$A$100:$A$199,'C Report Grouper'!$D23,'C Report'!C$100:C$199)+SUMIF('C Report'!$A$300:$A$399,'C Report Grouper'!$D23,'C Report'!C$300:C$399),SUMIF('C Report'!$A$100:$A$199,'C Report Grouper'!$D23,'C Report'!C$100:C$199)) -> 0 | F23: =IF($D$4="MAP+ADM Waivers",SUMIF('C Report'!$A$100:$A$199,'C Report Grouper'!$D23,'C Report'!D$100:D$199)+SUMIF('C Report'!$A$300:$A$399,'C Report Grouper'!$D23,'C Report'!D$300:D$399),SUMIF('C Report'!$A$100:$A$199,'C Report Grouper'!$D23,'C Report'!D$100:D$199)) -> 0 | G23: =IF($D$4="MAP+ADM Waivers",SUMIF('C Report'!$A$100:$A$199,'C Report Grouper'!$D23,'C Report'!E$100:E$199)+SUMIF('C Report'!$A$300:$A$399,'C Report Grouper'!$D23,'C Report'!E$300:E$399),SUMIF('C Report'!$A$100:$A$199,'C Report Grouper'!$D23,'C Report'!E$100:E$199)) -> 0 | H23: =IF($D$4="MAP+ADM Waivers",SUMIF('C Report'!$A$100:$A$199,'C Report Grouper'!$D23,'C Report'!F$100:F$199)+SUMIF('C Report'!$A$300:$A$399,'C Report Grouper'!$D23,'C Report'!F$300:F$399),SUMIF('C Report'!$A$100:$A$199,'C Report Grouper'!$D23,'C Report'!F$100:F$199)) -> 0 | I23: =IF($D$4="MAP+ADM Waivers",SUMIF('C Report'!$A$100:$A$199,'C Report Grouper'!$D23,'C Report'!G$100:G$199)+SUMIF('C Report'!$A$300:$A$399,'C Report Grouper'!$D23,'C Report'!G$300:G$399),SUMIF('C Report'!$A$100:$A$199,'C Report Grouper'!$D23,'C Report'!G$100:G$199)) -> 0 | J23: =IF($D$4="MAP+ADM Waivers",SUMIF('C Report'!$A$100:$A$199,'C Report Grouper'!$D23,'C Report'!H$100:H$199)+SUMIF('C Report'!$A$300:$A$399,'C Report Grouper'!$D23,'C Report'!H$300:H$399),SUMIF('C Report'!$A$100:$A$199,'C Report Grouper'!$D23,'C Report'!H$100:H$199)) -> 0 | K23: =IF($D$4="MAP+ADM Waivers",SUMIF('C Report'!$A$100:$A$199,'C Report Grouper'!$D23,'C Report'!I$100:I$199)+SUMIF('C Report'!$A$300:$A$399,'C Report Grouper'!$D23,'C Report'!I$300:I$399),SUMIF('C Report'!$A$100:$A$199,'C Report Grouper'!$D23,'C Report'!I$100:I$199)) -> 0 | L23: =IF($D$4="MAP+ADM Waivers",SUMIF('C Report'!$A$100:$A$199,'C Report Grouper'!$D23,'C Report'!J$100:J$199)+SUMIF('C Report'!$A$300:$A$399,'C Report Grouper'!$D23,'C Report'!J$300:J$399),SUMIF('C Report'!$A$100:$A$199,'C Report Grouper'!$D23,'C Report'!J$100:J$199)) -> 0 | M23: =IF($D$4="MAP+ADM Waivers",SUMIF('C Report'!$A$100:$A$199,'C Report Grouper'!$D23,'C Report'!K$100:K$199)+SUMIF('C Report'!$A$300:$A$399,'C Report Grouper'!$D23,'C Report'!K$300:K$399),SUMIF('C Report'!$A$100:$A$199,'C Report Grouper'!$D23,'C Report'!K$100:K$199)) -> 0 | N23: =IF($D$4="MAP+ADM Waivers",SUMIF('C Report'!$A$100:$A$199,'C Report Grouper'!$D23,'C Report'!L$100:L$199)+SUMIF('C Report'!$A$300:$A$399,'C Report Grouper'!$D23,'C Report'!L$300:L$399),SUMIF('C Report'!$A$100:$A$199,'C Report Grouper'!$D23,'C Report'!L$100:L$199)) -> 0 | O23: =IF($D$4="MAP+ADM Waivers",SUMIF('C Report'!$A$100:$A$199,'C Report Grouper'!$D23,'C Report'!M$100:M$199)+SUMIF('C Report'!$A$300:$A$399,'C Report Grouper'!$D23,'C Report'!M$300:M$399),SUMIF('C Report'!$A$100:$A$199,'C Report Grouper'!$D23,'C Report'!M$100:M$199)) -> 0 | P23: =IF($D$4="MAP+ADM Waivers",SUMIF('C Report'!$A$100:$A$199,'C Report Grouper'!$D23,'C Report'!N$100:N$199)+SUMIF('C Report'!$A$300:$A$399,'C Report Grouper'!$D23,'C Report'!N$300:N$399),SUMIF('C Report'!$A$100:$A$199,'C Report Grouper'!$D23,'C Report'!N$100:N$199)) -> 0 | Q23: =IF($D$4="MAP+ADM Waivers",SUMIF('C Report'!$A$100:$A$199,'C Report Grouper'!$D23,'C Report'!O$100:O$199)+SUMIF('C Report'!$A$300:$A$399,'C Report Grouper'!$D23,'C Report'!O$300:O$399),SUMIF('C Report'!$A$100:$A$199,'C Report Grouper'!$D23,'C Report'!O$100:O$199)) -> 0 | R23: =IF($D$4="MAP+ADM Waivers",SUMIF('C Report'!$A$100:$A$199,'C Report Grouper'!$D23,'C Report'!P$100:P$199)+SUMIF('C Report'!$A$300:$A$399,'C Report Grouper'!$D23,'C Report'!P$300:P$399),SUMIF('C Report'!$A$100:$A$199,'C Report Grouper'!$D23,'C Report'!P$100:P$199)) -> 0 | S23: =IF($D$4="MAP+ADM Waivers",SUMIF('C Report'!$A$100:$A$199,'C Report Grouper'!$D23,'C Report'!Q$100:Q$199)+SUMIF('C Report'!$A$300:$A$399,'C Report Grouper'!$D23,'C Report'!Q$300:Q$399),SUMIF('C Report'!$A$100:$A$199,'C Report Grouper'!$D23,'C Report'!Q$100:Q$199)) -> 0 | T23: =IF($D$4="MAP+ADM Waivers",SUMIF('C Report'!$A$100:$A$199,'C Report Grouper'!$D23,'C Report'!R$100:R$199)+SUMIF('C Report'!$A$300:$A$399,'C Report Grouper'!$D23,'C Report'!R$300:R$399),SUMIF('C Report'!$A$100:$A$199,'C Report Grouper'!$D23,'C Report'!R$100:R$199)) -> 0 | U23: =IF($D$4="MAP+ADM Waivers",SUMIF('C Report'!$A$100:$A$199,'C Report Grouper'!$D23,'C Report'!S$100:S$199)+SUMIF('C Report'!$A$300:$A$399,'C Report Grouper'!$D23,'C Report'!S$300:S$399),SUMIF('C Report'!$A$100:$A$199,'C Report Grouper'!$D23,'C Report'!S$100:S$199)) -> 0 | V23: =IF($D$4="MAP+ADM Waivers",SUMIF('C Report'!$A$100:$A$199,'C Report Grouper'!$D23,'C Report'!T$100:T$199)+SUMIF('C Report'!$A$300:$A$399,'C Report Grouper'!$D23,'C Report'!T$300:T$399),SUMIF('C Report'!$A$100:$A$199,'C Report Grouper'!$D23,'C Report'!T$100:T$199)) -> 0 | W23: =IF($D$4="MAP+ADM Waivers",SUMIF('C Report'!$A$100:$A$199,'C Report Grouper'!$D23,'C Report'!U$100:U$199)+SUMIF('C Report'!$A$300:$A$399,'C Report Grouper'!$D23,'C Report'!U$300:U$399),SUMIF('C Report'!$A$100:$A$199,'C Report Grouper'!$D23,'C Report'!U$100:U$199)) -> 0 | X23: =IF($D$4="MAP+ADM Waivers",SUMIF('C Report'!$A$100:$A$199,'C Report Grouper'!$D23,'C Report'!V$100:V$199)+SUMIF('C Report'!$A$300:$A$399,'C Report Grouper'!$D23,'C Report'!V$300:V$399),SUMIF('C Report'!$A$100:$A$199,'C Report Grouper'!$D23,'C Report'!V$100:V$199)) -> 0 | Y23: =IF($D$4="MAP+ADM Waivers",SUMIF('C Report'!$A$100:$A$199,'C Report Grouper'!$D23,'C Report'!W$100:W$199)+SUMIF('C Report'!$A$300:$A$399,'C Report Grouper'!$D23,'C Report'!W$300:W$399),SUMIF('C Report'!$A$100:$A$199,'C Report Grouper'!$D23,'C Report'!W$100:W$199)) -> 0 | Z23: =IF($D$4="MAP+ADM Waivers",SUMIF('C Report'!$A$100:$A$199,'C Report Grouper'!$D23,'C Report'!X$100:X$199)+SUMIF('C Report'!$A$300:$A$399,'C Report Grouper'!$D23,'C Report'!X$300:X$399),SUMIF('C Report'!$A$100:$A$199,'C Report Grouper'!$D23,'C Report'!X$100:X$199)) -> 0 | AA23: =IF($D$4="MAP+ADM Waivers",SUMIF('C Report'!$A$100:$A$199,'C Report Grouper'!$D23,'C Report'!Y$100:Y$199)+SUMIF('C Report'!$A$300:$A$399,'C Report Grouper'!$D23,'C Report'!Y$300:Y$399),SUMIF('C Report'!$A$100:$A$199,'C Report Grouper'!$D23,'C Report'!Y$100:Y$199)) -> 0 | AB23: =IF($D$4="MAP+ADM Waivers",SUMIF('C Report'!$A$100:$A$199,'C Report Grouper'!$D23,'C Report'!Z$100:Z$199)+SUMIF('C Report'!$A$300:$A$399,'C Report Grouper'!$D23,'C Report'!Z$300:Z$399),SUMIF('C Report'!$A$100:$A$199,'C Report Grouper'!$D23,'C Report'!Z$100:Z$199)) -> 0 | AC23: =IF($D$4="MAP+ADM Waivers",SUMIF('C Report'!$A$100:$A$199,'C Report Grouper'!$D23,'C Report'!AA$100:AA$199)+SUMIF('C Report'!$A$300:$A$399,'C Report Grouper'!$D23,'C Report'!AA$300:AA$399),SUMIF('C Report'!$A$100:$A$199,'C Report Grouper'!$D23,'C Report'!AA$100:AA$199)) -> 0 | AD23: =IF($D$4="MAP+ADM Waivers",SUMIF('C Report'!$A$100:$A$199,'C Report Grouper'!$D23,'C Report'!AB$100:AB$199)+SUMIF('C Report'!$A$300:$A$399,'C Report Grouper'!$D23,'C Report'!AB$300:AB$399),SUMIF('C Report'!$A$100:$A$199,'C Report Grouper'!$D23,'C Report'!AB$100:AB$199)) -> 0 | AE23: =IF($D$4="MAP+ADM Waivers",SUMIF('C Report'!$A$100:$A$199,'C Report Grouper'!$D23,'C Report'!AC$100:AC$199)+SUMIF('C Report'!$A$300:$A$399,'C Report Grouper'!$D23,'C Report'!AC$300:AC$399),SUMIF('C Report'!$A$100:$A$199,'C Report Grouper'!$D23,'C Report'!AC$100:AC$199)) -> 0 | AF23: =IF($D$4="MAP+ADM Waivers",SUMIF('C Report'!$A$100:$A$199,'C Report Grouper'!$D23,'C Report'!AD$100:AD$199)+SUMIF('C Report'!$A$300:$A$399,'C Report Grouper'!$D23,'C Report'!AD$300:AD$399),SUMIF('C Report'!$A$100:$A$199,'C Report Grouper'!$D23,'C Report'!AD$100:AD$199)) -> 0 | AG23: =IF($D$4="MAP+ADM Waivers",SUMIF('C Report'!$A$100:$A$199,'C Report Grouper'!$D23,'C Report'!AE$100:AE$199)+SUMIF('C Report'!$A$300:$A$399,'C Report Grouper'!$D23,'C Report'!AE$300:AE$399),SUMIF('C Report'!$A$100:$A$199,'C Report Grouper'!$D23,'C Report'!AE$100:AE$199)) -> 0 | AH23: =IF($D$4="MAP+ADM Waivers",SUMIF('C Report'!$A$100:$A$199,'C Report Grouper'!$D23,'C Report'!AF$100:AF$199)+SUMIF('C Report'!$A$300:$A$399,'C Report Grouper'!$D23,'C Report'!AF$300:AF$399),SUMIF('C Report'!$A$100:$A$199,'C Report Grouper'!$D23,'C Report'!AF$100:AF$199)) -> 0
B24: =IFERROR(VLOOKUP(C24,'MEG Def'!$A$35:$B$40,2),"") ->  | E24: =IF($D$4="MAP+ADM Waivers",SUMIF('C Report'!$A$100:$A$199,'C Report Grouper'!$D24,'C Report'!C$100:C$199)+SUMIF('C Report'!$A$300:$A$399,'C Report Grouper'!$D24,'C Report'!C$300:C$399),SUMIF('C Report'!$A$100:$A$199,'C Report Grouper'!$D24,'C Report'!C$100:C$199)) -> 0 | F24: =IF($D$4="MAP+ADM Waivers",SUMIF('C Report'!$A$100:$A$199,'C Report Grouper'!$D24,'C Report'!D$100:D$199)+SUMIF('C Report'!$A$300:$A$399,'C Report Grouper'!$D24,'C Report'!D$300:D$399),SUMIF('C Report'!$A$100:$A$199,'C Report Grouper'!$D24,'C Report'!D$100:D$199)) -> 0 | G24: =IF($D$4="MAP+ADM Waivers",SUMIF('C Report'!$A$100:$A$199,'C Report Grouper'!$D24,'C Report'!E$100:E$199)+SUMIF('C Report'!$A$300:$A$399,'C Report Grouper'!$D24,'C Report'!E$300:E$399),SUMIF('C Report'!$A$100:$A$199,'C Report Grouper'!$D24,'C Report'!E$100:E$199)) -> 0 | H24: =IF($D$4="MAP+ADM Waivers",SUMIF('C Report'!$A$100:$A$199,'C Report Grouper'!$D24,'C Report'!F$100:F$199)+SUMIF('C Report'!$A$300:$A$399,'C Report Grouper'!$D24,'C Report'!F$300:F$399),SUMIF('C Report'!$A$100:$A$199,'C Report Grouper'!$D24,'C Report'!F$100:F$199)) -> 0 | I24: =IF($D$4="MAP+ADM Waivers",SUMIF('C Report'!$A$100:$A$199,'C Report Grouper'!$D24,'C Report'!G$100:G$199)+SUMIF('C Report'!$A$300:$A$399,'C Report Grouper'!$D24,'C Report'!G$300:G$399),SUMIF('C Report'!$A$100:$A$199,'C Report Grouper'!$D24,'C Report'!G$100:G$199)) -> 0 | J24: =IF($D$4="MAP+ADM Waivers",SUMIF('C Report'!$A$100:$A$199,'C Report Grouper'!$D24,'C Report'!H$100:H$199)+SUMIF('C Report'!$A$300:$A$399,'C Report Grouper'!$D24,'C Report'!H$300:H$399),SUMIF('C Report'!$A$100:$A$199,'C Report Grouper'!$D24,'C Report'!H$100:H$199)) -> 0 | K24: =IF($D$4="MAP+ADM Waivers",SUMIF('C Report'!$A$100:$A$199,'C Report Grouper'!$D24,'C Report'!I$100:I$199)+SUMIF('C Report'!$A$300:$A$399,'C Report Grouper'!$D24,'C Report'!I$300:I$399),SUMIF('C Report'!$A$100:$A$199,'C Report Grouper'!$D24,'C Report'!I$100:I$199)) -> 0 | L24: =IF($D$4="MAP+ADM Waivers",SUMIF('C Report'!$A$100:$A$199,'C Report Grouper'!$D24,'C Report'!J$100:J$199)+SUMIF('C Report'!$A$300:$A$399,'C Report Grouper'!$D24,'C Report'!J$300:J$399),SUMIF('C Report'!$A$100:$A$199,'C Report Grouper'!$D24,'C Report'!J$100:J$199)) -> 0 | M24: =IF($D$4="MAP+ADM Waivers",SUMIF('C Report'!$A$100:$A$199,'C Report Grouper'!$D24,'C Report'!K$100:K$199)+SUMIF('C Report'!$A$300:$A$399,'C Report Grouper'!$D24,'C Report'!K$300:K$399),SUMIF('C Report'!$A$100:$A$199,'C Report Grouper'!$D24,'C Report'!K$100:K$199)) -> 0 | N24: =IF($D$4="MAP+ADM Waivers",SUMIF('C Report'!$A$100:$A$199,'C Report Grouper'!$D24,'C Report'!L$100:L$199)+SUMIF('C Report'!$A$300:$A$399,'C Report Grouper'!$D24,'C Report'!L$300:L$399),SUMIF('C Report'!$A$100:$A$199,'C Report Grouper'!$D24,'C Report'!L$100:L$199)) -> 0 | O24: =IF($D$4="MAP+ADM Waivers",SUMIF('C Report'!$A$100:$A$199,'C Report Grouper'!$D24,'C Report'!M$100:M$199)+SUMIF('C Report'!$A$300:$A$399,'C Report Grouper'!$D24,'C Report'!M$300:M$399),SUMIF('C Report'!$A$100:$A$199,'C Report Grouper'!$D24,'C Report'!M$100:M$199)) -> 0 | P24: =IF($D$4="MAP+ADM Waivers",SUMIF('C Report'!$A$100:$A$199,'C Report Grouper'!$D24,'C Report'!N$100:N$199)+SUMIF('C Report'!$A$300:$A$399,'C Report Grouper'!$D24,'C Report'!N$300:N$399),SUMIF('C Report'!$A$100:$A$199,'C Report Grouper'!$D24,'C Report'!N$100:N$199)) -> 0 | Q24: =IF($D$4="MAP+ADM Waivers",SUMIF('C Report'!$A$100:$A$199,'C Report Grouper'!$D24,'C Report'!O$100:O$199)+SUMIF('C Report'!$A$300:$A$399,'C Report Grouper'!$D24,'C Report'!O$300:O$399),SUMIF('C Report'!$A$100:$A$199,'C Report Grouper'!$D24,'C Report'!O$100:O$199)) -> 0 | R24: =IF($D$4="MAP+ADM Waivers",SUMIF('C Report'!$A$100:$A$199,'C Report Grouper'!$D24,'C Report'!P$100:P$199)+SUMIF('C Report'!$A$300:$A$399,'C Report Grouper'!$D24,'C Report'!P$300:P$399),SUMIF('C Report'!$A$100:$A$199,'C Report Grouper'!$D24,'C Report'!P$100:P$199)) -> 0 | S24: =IF($D$4="MAP+ADM Waivers",SUMIF('C Report'!$A$100:$A$199,'C Report Grouper'!$D24,'C Report'!Q$100:Q$199)+SUMIF('C Report'!$A$300:$A$399,'C Report Grouper'!$D24,'C Report'!Q$300:Q$399),SUMIF('C Report'!$A$100:$A$199,'C Report Grouper'!$D24,'C Report'!Q$100:Q$199)) -> 0 | T24: =IF($D$4="MAP+ADM Waivers",SUMIF('C Report'!$A$100:$A$199,'C Report Grouper'!$D24,'C Report'!R$100:R$199)+SUMIF('C Report'!$A$300:$A$399,'C Report Grouper'!$D24,'C Report'!R$300:R$399),SUMIF('C Report'!$A$100:$A$199,'C Report Grouper'!$D24,'C Report'!R$100:R$199)) -> 0 | U24: =IF($D$4="MAP+ADM Waivers",SUMIF('C Report'!$A$100:$A$199,'C Report Grouper'!$D24,'C Report'!S$100:S$199)+SUMIF('C Report'!$A$300:$A$399,'C Report Grouper'!$D24,'C Report'!S$300:S$399),SUMIF('C Report'!$A$100:$A$199,'C Report Grouper'!$D24,'C Report'!S$100:S$199)) -> 0 | V24: =IF($D$4="MAP+ADM Waivers",SUMIF('C Report'!$A$100:$A$199,'C Report Grouper'!$D24,'C Report'!T$100:T$199)+SUMIF('C Report'!$A$300:$A$399,'C Report Grouper'!$D24,'C Report'!T$300:T$399),SUMIF('C Report'!$A$100:$A$199,'C Report Grouper'!$D24,'C Report'!T$100:T$199)) -> 0 | W24: =IF($D$4="MAP+ADM Waivers",SUMIF('C Report'!$A$100:$A$199,'C Report Grouper'!$D24,'C Report'!U$100:U$199)+SUMIF('C Report'!$A$300:$A$399,'C Report Grouper'!$D24,'C Report'!U$300:U$399),SUMIF('C Report'!$A$100:$A$199,'C Report Grouper'!$D24,'C Report'!U$100:U$199)) -> 0 | X24: =IF($D$4="MAP+ADM Waivers",SUMIF('C Report'!$A$100:$A$199,'C Report Grouper'!$D24,'C Report'!V$100:V$199)+SUMIF('C Report'!$A$300:$A$399,'C Report Grouper'!$D24,'C Report'!V$300:V$399),SUMIF('C Report'!$A$100:$A$199,'C Report Grouper'!$D24,'C Report'!V$100:V$199)) -> 0 | Y24: =IF($D$4="MAP+ADM Waivers",SUMIF('C Report'!$A$100:$A$199,'C Report Grouper'!$D24,'C Report'!W$100:W$199)+SUMIF('C Report'!$A$300:$A$399,'C Report Grouper'!$D24,'C Report'!W$300:W$399),SUMIF('C Report'!$A$100:$A$199,'C Report Grouper'!$D24,'C Report'!W$100:W$199)) -> 0 | Z24: =IF($D$4="MAP+ADM Waivers",SUMIF('C Report'!$A$100:$A$199,'C Report Grouper'!$D24,'C Report'!X$100:X$199)+SUMIF('C Report'!$A$300:$A$399,'C Report Grouper'!$D24,'C Report'!X$300:X$399),SUMIF('C Report'!$A$100:$A$199,'C Report Grouper'!$D24,'C Report'!X$100:X$199)) -> 0 | AA24: =IF($D$4="MAP+ADM Waivers",SUMIF('C Report'!$A$100:$A$199,'C Report Grouper'!$D24,'C Report'!Y$100:Y$199)+SUMIF('C Report'!$A$300:$A$399,'C Report Grouper'!$D24,'C Report'!Y$300:Y$399),SUMIF('C Report'!$A$100:$A$199,'C Report Grouper'!$D24,'C Report'!Y$100:Y$199)) -> 0 | AB24: =IF($D$4="MAP+ADM Waivers",SUMIF('C Report'!$A$100:$A$199,'C Report Grouper'!$D24,'C Report'!Z$100:Z$199)+SUMIF('C Report'!$A$300:$A$399,'C Report Grouper'!$D24,'C Report'!Z$300:Z$399),SUMIF('C Report'!$A$100:$A$199,'C Report Grouper'!$D24,'C Report'!Z$100:Z$199)) -> 0 | AC24: =IF($D$4="MAP+ADM Waivers",SUMIF('C Report'!$A$100:$A$199,'C Report Grouper'!$D24,'C Report'!AA$100:AA$199)+SUMIF('C Report'!$A$300:$A$399,'C Report Grouper'!$D24,'C Report'!AA$300:AA$399),SUMIF('C Report'!$A$100:$A$199,'C Report Grouper'!$D24,'C Report'!AA$100:AA$199)) -> 0 | AD24: =IF($D$4="MAP+ADM Waivers",SUMIF('C Report'!$A$100:$A$199,'C Report Grouper'!$D24,'C Report'!AB$100:AB$199)+SUMIF('C Report'!$A$300:$A$399,'C Report Grouper'!$D24,'C Report'!AB$300:AB$399),SUMIF('C Report'!$A$100:$A$199,'C Report Grouper'!$D24,'C Report'!AB$100:AB$199)) -> 0 | AE24: =IF($D$4="MAP+ADM Waivers",SUMIF('C Report'!$A$100:$A$199,'C Report Grouper'!$D24,'C Report'!AC$100:AC$199)+SUMIF('C Report'!$A$300:$A$399,'C Report Grouper'!$D24,'C Report'!AC$300:AC$399),SUMIF('C Report'!$A$100:$A$199,'C Report Grouper'!$D24,'C Report'!AC$100:AC$199)) -> 0 | AF24: =IF($D$4="MAP+ADM Waivers",SUMIF('C Report'!$A$100:$A$199,'C Report Grouper'!$D24,'C Report'!AD$100:AD$199)+SUMIF('C Report'!$A$300:$A$399,'C Report Grouper'!$D24,'C Report'!AD$300:AD$399),SUMIF('C Report'!$A$100:$A$199,'C Report Grouper'!$D24,'C Report'!AD$100:AD$199)) -> 0 | AG24: =IF($D$4="MAP+ADM Waivers",SUMIF('C Report'!$A$100:$A$199,'C Report Grouper'!$D24,'C Report'!AE$100:AE$199)+SUMIF('C Report'!$A$300:$A$399,'C Report Grouper'!$D24,'C Report'!AE$300:AE$399),SUMIF('C Report'!$A$100:$A$199,'C Report Grouper'!$D24,'C Report'!AE$100:AE$199)) -> 0 | AH24: =IF($D$4="MAP+ADM Waivers",SUMIF('C Report'!$A$100:$A$199,'C Report Grouper'!$D24,'C Report'!AF$100:AF$199)+SUMIF('C Report'!$A$300:$A$399,'C Report Grouper'!$D24,'C Report'!AF$300:AF$399),SUMIF('C Report'!$A$100:$A$199,'C Report Grouper'!$D24,'C Report'!AF$100:AF$199)) -> 0
B25: =IFERROR(VLOOKUP(C25,'MEG Def'!$A$35:$B$40,2),"") ->  | E25: =IF($D$4="MAP+ADM Waivers",SUMIF('C Report'!$A$100:$A$199,'C Report Grouper'!$D25,'C Report'!C$100:C$199)+SUMIF('C Report'!$A$300:$A$399,'C Report Grouper'!$D25,'C Report'!C$300:C$399),SUMIF('C Report'!$A$100:$A$199,'C Report Grouper'!$D25,'C Report'!C$100:C$199)) -> 0 | F25: =IF($D$4="MAP+ADM Waivers",SUMIF('C Report'!$A$100:$A$199,'C Report Grouper'!$D25,'C Report'!D$100:D$199)+SUMIF('C Report'!$A$300:$A$399,'C Report Grouper'!$D25,'C Report'!D$300:D$399),SUMIF('C Report'!$A$100:$A$199,'C Report Grouper'!$D25,'C Report'!D$100:D$199)) -> 0 | G25: =IF($D$4="MAP+ADM Waivers",SUMIF('C Report'!$A$100:$A$199,'C Report Grouper'!$D25,'C Report'!E$100:E$199)+SUMIF('C Report'!$A$300:$A$399,'C Report Grouper'!$D25,'C Report'!E$300:E$399),SUMIF('C Report'!$A$100:$A$199,'C Report Grouper'!$D25,'C Report'!E$100:E$199)) -> 0 | H25: =IF($D$4="MAP+ADM Waivers",SUMIF('C Report'!$A$100:$A$199,'C Report Grouper'!$D25,'C Report'!F$100:F$199)+SUMIF('C Report'!$A$300:$A$399,'C Report Grouper'!$D25,'C Report'!F$300:F$399),SUMIF('C Report'!$A$100:$A$199,'C Report Grouper'!$D25,'C Report'!F$100:F$199)) -> 0 | I25: =IF($D$4="MAP+ADM Waivers",SUMIF('C Report'!$A$100:$A$199,'C Report Grouper'!$D25,'C Report'!G$100:G$199)+SUMIF('C Report'!$A$300:$A$399,'C Report Grouper'!$D25,'C Report'!G$300:G$399),SUMIF('C Report'!$A$100:$A$199,'C Report Grouper'!$D25,'C Report'!G$100:G$199)) -> 0 | J25: =IF($D$4="MAP+ADM Waivers",SUMIF('C Report'!$A$100:$A$199,'C Report Grouper'!$D25,'C Report'!H$100:H$199)+SUMIF('C Report'!$A$300:$A$399,'C Report Grouper'!$D25,'C Report'!H$300:H$399),SUMIF('C Report'!$A$100:$A$199,'C Report Grouper'!$D25,'C Report'!H$100:H$199)) -> 0 | K25: =IF($D$4="MAP+ADM Waivers",SUMIF('C Report'!$A$100:$A$199,'C Report Grouper'!$D25,'C Report'!I$100:I$199)+SUMIF('C Report'!$A$300:$A$399,'C Report Grouper'!$D25,'C Report'!I$300:I$399),SUMIF('C Report'!$A$100:$A$199,'C Report Grouper'!$D25,'C Report'!I$100:I$199)) -> 0 | L25: =IF($D$4="MAP+ADM Waivers",SUMIF('C Report'!$A$100:$A$199,'C Report Grouper'!$D25,'C Report'!J$100:J$199)+SUMIF('C Report'!$A$300:$A$399,'C Report Grouper'!$D25,'C Report'!J$300:J$399),SUMIF('C Report'!$A$100:$A$199,'C Report Grouper'!$D25,'C Report'!J$100:J$199)) -> 0 | M25: =IF($D$4="MAP+ADM Waivers",SUMIF('C Report'!$A$100:$A$199,'C Report Grouper'!$D25,'C Report'!K$100:K$199)+SUMIF('C Report'!$A$300:$A$399,'C Report Grouper'!$D25,'C Report'!K$300:K$399),SUMIF('C Report'!$A$100:$A$199,'C Report Grouper'!$D25,'C Report'!K$100:K$199)) -> 0 | N25: =IF($D$4="MAP+ADM Waivers",SUMIF('C Report'!$A$100:$A$199,'C Report Grouper'!$D25,'C Report'!L$100:L$199)+SUMIF('C Report'!$A$300:$A$399,'C Report Grouper'!$D25,'C Report'!L$300:L$399),SUMIF('C Report'!$A$100:$A$199,'C Report Grouper'!$D25,'C Report'!L$100:L$199)) -> 0 | O25: =IF($D$4="MAP+ADM Waivers",SUMIF('C Report'!$A$100:$A$199,'C Report Grouper'!$D25,'C Report'!M$100:M$199)+SUMIF('C Report'!$A$300:$A$399,'C Report Grouper'!$D25,'C Report'!M$300:M$399),SUMIF('C Report'!$A$100:$A$199,'C Report Grouper'!$D25,'C Report'!M$100:M$199)) -> 0 | P25: =IF($D$4="MAP+ADM Waivers",SUMIF('C Report'!$A$100:$A$199,'C Report Grouper'!$D25,'C Report'!N$100:N$199)+SUMIF('C Report'!$A$300:$A$399,'C Report Grouper'!$D25,'C Report'!N$300:N$399),SUMIF('C Report'!$A$100:$A$199,'C Report Grouper'!$D25,'C Report'!N$100:N$199)) -> 0 | Q25: =IF($D$4="MAP+ADM Waivers",SUMIF('C Report'!$A$100:$A$199,'C Report Grouper'!$D25,'C Report'!O$100:O$199)+SUMIF('C Report'!$A$300:$A$399,'C Report Grouper'!$D25,'C Report'!O$300:O$399),SUMIF('C Report'!$A$100:$A$199,'C Report Grouper'!$D25,'C Report'!O$100:O$199)) -> 0 | R25: =IF($D$4="MAP+ADM Waivers",SUMIF('C Report'!$A$100:$A$199,'C Report Grouper'!$D25,'C Report'!P$100:P$199)+SUMIF('C Report'!$A$300:$A$399,'C Report Grouper'!$D25,'C Report'!P$300:P$399),SUMIF('C Report'!$A$100:$A$199,'C Report Grouper'!$D25,'C Report'!P$100:P$199)) -> 0 | S25: =IF($D$4="MAP+ADM Waivers",SUMIF('C Report'!$A$100:$A$199,'C Report Grouper'!$D25,'C Report'!Q$100:Q$199)+SUMIF('C Report'!$A$300:$A$399,'C Report Grouper'!$D25,'C Report'!Q$300:Q$399),SUMIF('C Report'!$A$100:$A$199,'C Report Grouper'!$D25,'C Report'!Q$100:Q$199)) -> 0 | T25: =IF($D$4="MAP+ADM Waivers",SUMIF('C Report'!$A$100:$A$199,'C Report Grouper'!$D25,'C Report'!R$100:R$199)+SUMIF('C Report'!$A$300:$A$399,'C Report Grouper'!$D25,'C Report'!R$300:R$399),SUMIF('C Report'!$A$100:$A$199,'C Report Grouper'!$D25,'C Report'!R$100:R$199)) -> 0 | U25: =IF($D$4="MAP+ADM Waivers",SUMIF('C Report'!$A$100:$A$199,'C Report Grouper'!$D25,'C Report'!S$100:S$199)+SUMIF('C Report'!$A$300:$A$399,'C Report Grouper'!$D25,'C Report'!S$300:S$399),SUMIF('C Report'!$A$100:$A$199,'C Report Grouper'!$D25,'C Report'!S$100:S$199)) -> 0 | V25: =IF($D$4="MAP+ADM Waivers",SUMIF('C Report'!$A$100:$A$199,'C Report Grouper'!$D25,'C Report'!T$100:T$199)+SUMIF('C Report'!$A$300:$A$399,'C Report Grouper'!$D25,'C Report'!T$300:T$399),SUMIF('C Report'!$A$100:$A$199,'C Report Grouper'!$D25,'C Report'!T$100:T$199)) -> 0 | W25: =IF($D$4="MAP+ADM Waivers",SUMIF('C Report'!$A$100:$A$199,'C Report Grouper'!$D25,'C Report'!U$100:U$199)+SUMIF('C Report'!$A$300:$A$399,'C Report Grouper'!$D25,'C Report'!U$300:U$399),SUMIF('C Report'!$A$100:$A$199,'C Report Grouper'!$D25,'C Report'!U$100:U$199)) -> 0 | X25: =IF($D$4="MAP+ADM Waivers",SUMIF('C Report'!$A$100:$A$199,'C Report Grouper'!$D25,'C Report'!V$100:V$199)+SUMIF('C Report'!$A$300:$A$399,'C Report Grouper'!$D25,'C Report'!V$300:V$399),SUMIF('C Report'!$A$100:$A$199,'C Report Grouper'!$D25,'C Report'!V$100:V$199)) -> 0 | Y25: =IF($D$4="MAP+ADM Waivers",SUMIF('C Report'!$A$100:$A$199,'C Report Grouper'!$D25,'C Report'!W$100:W$199)+SUMIF('C Report'!$A$300:$A$399,'C Report Grouper'!$D25,'C Report'!W$300:W$399),SUMIF('C Report'!$A$100:$A$199,'C Report Grouper'!$D25,'C Report'!W$100:W$199)) -> 0 | Z25: =IF($D$4="MAP+ADM Waivers",SUMIF('C Report'!$A$100:$A$199,'C Report Grouper'!$D25,'C Report'!X$100:X$199)+SUMIF('C Report'!$A$300:$A$399,'C Report Grouper'!$D25,'C Report'!X$300:X$399),SUMIF('C Report'!$A$100:$A$199,'C Report Grouper'!$D25,'C Report'!X$100:X$199)) -> 0 | AA25: =IF($D$4="MAP+ADM Waivers",SUMIF('C Report'!$A$100:$A$199,'C Report Grouper'!$D25,'C Report'!Y$100:Y$199)+SUMIF('C Report'!$A$300:$A$399,'C Report Grouper'!$D25,'C Report'!Y$300:Y$399),SUMIF('C Report'!$A$100:$A$199,'C Report Grouper'!$D25,'C Report'!Y$100:Y$199)) -> 0 | AB25: =IF($D$4="MAP+ADM Waivers",SUMIF('C Report'!$A$100:$A$199,'C Report Grouper'!$D25,'C Report'!Z$100:Z$199)+SUMIF('C Report'!$A$300:$A$399,'C Report Grouper'!$D25,'C Report'!Z$300:Z$399),SUMIF('C Report'!$A$100:$A$199,'C Report Grouper'!$D25,'C Report'!Z$100:Z$199)) -> 0 | AC25: =IF($D$4="MAP+ADM Waivers",SUMIF('C Report'!$A$100:$A$199,'C Report Grouper'!$D25,'C Report'!AA$100:AA$199)+SUMIF('C Report'!$A$300:$A$399,'C Report Grouper'!$D25,'C Report'!AA$300:AA$399),SUMIF('C Report'!$A$100:$A$199,'C Report Grouper'!$D25,'C Report'!AA$100:AA$199)) -> 0 | AD25: =IF($D$4="MAP+ADM Waivers",SUMIF('C Report'!$A$100:$A$199,'C Report Grouper'!$D25,'C Report'!AB$100:AB$199)+SUMIF('C Report'!$A$300:$A$399,'C Report Grouper'!$D25,'C Report'!AB$300:AB$399),SUMIF('C Report'!$A$100:$A$199,'C Report Grouper'!$D25,'C Report'!AB$100:AB$199)) -> 0 | AE25: =IF($D$4="MAP+ADM Waivers",SUMIF('C Report'!$A$100:$A$199,'C Report Grouper'!$D25,'C Report'!AC$100:AC$199)+SUMIF('C Report'!$A$300:$A$399,'C Report Grouper'!$D25,'C Report'!AC$300:AC$399),SUMIF('C Report'!$A$100:$A$199,'C Report Grouper'!$D25,'C Report'!AC$100:AC$199)) -> 0 | AF25: =IF($D$4="MAP+ADM Waivers",SUMIF('C Report'!$A$100:$A$199,'C Report Grouper'!$D25,'C Report'!AD$100:AD$199)+SUMIF('C Report'!$A$300:$A$399,'C Report Grouper'!$D25,'C Report'!AD$300:AD$399),SUMIF('C Report'!$A$100:$A$199,'C Report Grouper'!$D25,'C Report'!AD$100:AD$199)) -> 0 | AG25: =IF($D$4="MAP+ADM Waivers",SUMIF('C Report'!$A$100:$A$199,'C Report Grouper'!$D25,'C Report'!AE$100:AE$199)+SUMIF('C Report'!$A$300:$A$399,'C Report Grouper'!$D25,'C Report'!AE$300:AE$399),SUMIF('C Report'!$A$100:$A$199,'C Report Grouper'!$D25,'C Report'!AE$100:AE$199)) -> 0 | AH25: =IF($D$4="MAP+ADM Waivers",SUMIF('C Report'!$A$100:$A$199,'C Report Grouper'!$D25,'C Report'!AF$100:AF$199)+SUMIF('C Report'!$A$300:$A$399,'C Report Grouper'!$D25,'C Report'!AF$300:AF$399),SUMIF('C Report'!$A$100:$A$199,'C Report Grouper'!$D25,'C Report'!AF$100:AF$199)) -> 0
B26: =IFERROR(VLOOKUP(C26,'MEG Def'!$A$35:$B$40,2),"") ->  | E26: =IF($D$4="MAP+ADM Waivers",SUMIF('C Report'!$A$100:$A$199,'C Report Grouper'!$D26,'C Report'!C$100:C$199)+SUMIF('C Report'!$A$300:$A$399,'C Report Grouper'!$D26,'C Report'!C$300:C$399),SUMIF('C Report'!$A$100:$A$199,'C Report Grouper'!$D26,'C Report'!C$100:C$199)) -> 0 | F26: =IF($D$4="MAP+ADM Waivers",SUMIF('C Report'!$A$100:$A$199,'C Report Grouper'!$D26,'C Report'!D$100:D$199)+SUMIF('C Report'!$A$300:$A$399,'C Report Grouper'!$D26,'C Report'!D$300:D$399),SUMIF('C Report'!$A$100:$A$199,'C Report Grouper'!$D26,'C Report'!D$100:D$199)) -> 0 | G26: =IF($D$4="MAP+ADM Waivers",SUMIF('C Report'!$A$100:$A$199,'C Report Grouper'!$D26,'C Report'!E$100:E$199)+SUMIF('C Report'!$A$300:$A$399,'C Report Grouper'!$D26,'C Report'!E$300:E$399),SUMIF('C Report'!$A$100:$A$199,'C Report Grouper'!$D26,'C Report'!E$100:E$199)) -> 0 | H26: =IF($D$4="MAP+ADM Waivers",SUMIF('C Report'!$A$100:$A$199,'C Report Grouper'!$D26,'C Report'!F$100:F$199)+SUMIF('C Report'!$A$300:$A$399,'C Report Grouper'!$D26,'C Report'!F$300:F$399),SUMIF('C Report'!$A$100:$A$199,'C Report Grouper'!$D26,'C Report'!F$100:F$199)) -> 0 | I26: =IF($D$4="MAP+ADM Waivers",SUMIF('C Report'!$A$100:$A$199,'C Report Grouper'!$D26,'C Report'!G$100:G$199)+SUMIF('C Report'!$A$300:$A$399,'C Report Grouper'!$D26,'C Report'!G$300:G$399),SUMIF('C Report'!$A$100:$A$199,'C Report Grouper'!$D26,'C Report'!G$100:G$199)) -> 0 | J26: =IF($D$4="MAP+ADM Waivers",SUMIF('C Report'!$A$100:$A$199,'C Report Grouper'!$D26,'C Report'!H$100:H$199)+SUMIF('C Report'!$A$300:$A$399,'C Report Grouper'!$D26,'C Report'!H$300:H$399),SUMIF('C Report'!$A$100:$A$199,'C Report Grouper'!$D26,'C Report'!H$100:H$199)) -> 0 | K26: =IF($D$4="MAP+ADM Waivers",SUMIF('C Report'!$A$100:$A$199,'C Report Grouper'!$D26,'C Report'!I$100:I$199)+SUMIF('C Report'!$A$300:$A$399,'C Report Grouper'!$D26,'C Report'!I$300:I$399),SUMIF('C Report'!$A$100:$A$199,'C Report Grouper'!$D26,'C Report'!I$100:I$199)) -> 0 | L26: =IF($D$4="MAP+ADM Waivers",SUMIF('C Report'!$A$100:$A$199,'C Report Grouper'!$D26,'C Report'!J$100:J$199)+SUMIF('C Report'!$A$300:$A$399,'C Report Grouper'!$D26,'C Report'!J$300:J$399),SUMIF('C Report'!$A$100:$A$199,'C Report Grouper'!$D26,'C Report'!J$100:J$199)) -> 0 | M26: =IF($D$4="MAP+ADM Waivers",SUMIF('C Report'!$A$100:$A$199,'C Report Grouper'!$D26,'C Report'!K$100:K$199)+SUMIF('C Report'!$A$300:$A$399,'C Report Grouper'!$D26,'C Report'!K$300:K$399),SUMIF('C Report'!$A$100:$A$199,'C Report Grouper'!$D26,'C Report'!K$100:K$199)) -> 0 | N26: =IF($D$4="MAP+ADM Waivers",SUMIF('C Report'!$A$100:$A$199,'C Report Grouper'!$D26,'C Report'!L$100:L$199)+SUMIF('C Report'!$A$300:$A$399,'C Report Grouper'!$D26,'C Report'!L$300:L$399),SUMIF('C Report'!$A$100:$A$199,'C Report Grouper'!$D26,'C Report'!L$100:L$199)) -> 0 | O26: =IF($D$4="MAP+ADM Waivers",SUMIF('C Report'!$A$100:$A$199,'C Report Grouper'!$D26,'C Report'!M$100:M$199)+SUMIF('C Report'!$A$300:$A$399,'C Report Grouper'!$D26,'C Report'!M$300:M$399),SUMIF('C Report'!$A$100:$A$199,'C Report Grouper'!$D26,'C Report'!M$100:M$199)) -> 0 | P26: =IF($D$4="MAP+ADM Waivers",SUMIF('C Report'!$A$100:$A$199,'C Report Grouper'!$D26,'C Report'!N$100:N$199)+SUMIF('C Report'!$A$300:$A$399,'C Report Grouper'!$D26,'C Report'!N$300:N$399),SUMIF('C Report'!$A$100:$A$199,'C Report Grouper'!$D26,'C Report'!N$100:N$199)) -> 0 | Q26: =IF($D$4="MAP+ADM Waivers",SUMIF('C Report'!$A$100:$A$199,'C Report Grouper'!$D26,'C Report'!O$100:O$199)+SUMIF('C Report'!$A$300:$A$399,'C Report Grouper'!$D26,'C Report'!O$300:O$399),SUMIF('C Report'!$A$100:$A$199,'C Report Grouper'!$D26,'C Report'!O$100:O$199)) -> 0 | R26: =IF($D$4="MAP+ADM Waivers",SUMIF('C Report'!$A$100:$A$199,'C Report Grouper'!$D26,'C Report'!P$100:P$199)+SUMIF('C Report'!$A$300:$A$399,'C Report Grouper'!$D26,'C Report'!P$300:P$399),SUMIF('C Report'!$A$100:$A$199,'C Report Grouper'!$D26,'C Report'!P$100:P$199)) -> 0 | S26: =IF($D$4="MAP+ADM Waivers",SUMIF('C Report'!$A$100:$A$199,'C Report Grouper'!$D26,'C Report'!Q$100:Q$199)+SUMIF('C Report'!$A$300:$A$399,'C Report Grouper'!$D26,'C Report'!Q$300:Q$399),SUMIF('C Report'!$A$100:$A$199,'C Report Grouper'!$D26,'C Report'!Q$100:Q$199)) -> 0 | T26: =IF($D$4="MAP+ADM Waivers",SUMIF('C Report'!$A$100:$A$199,'C Report Grouper'!$D26,'C Report'!R$100:R$199)+SUMIF('C Report'!$A$300:$A$399,'C Report Grouper'!$D26,'C Report'!R$300:R$399),SUMIF('C Report'!$A$100:$A$199,'C Report Grouper'!$D26,'C Report'!R$100:R$199)) -> 0 | U26: =IF($D$4="MAP+ADM Waivers",SUMIF('C Report'!$A$100:$A$199,'C Report Grouper'!$D26,'C Report'!S$100:S$199)+SUMIF('C Report'!$A$300:$A$399,'C Report Grouper'!$D26,'C Report'!S$300:S$399),SUMIF('C Report'!$A$100:$A$199,'C Report Grouper'!$D26,'C Report'!S$100:S$199)) -> 0 | V26: =IF($D$4="MAP+ADM Waivers",SUMIF('C Report'!$A$100:$A$199,'C Report Grouper'!$D26,'C Report'!T$100:T$199)+SUMIF('C Report'!$A$300:$A$399,'C Report Grouper'!$D26,'C Report'!T$300:T$399),SUMIF('C Report'!$A$100:$A$199,'C Report Grouper'!$D26,'C Report'!T$100:T$199)) -> 0 | W26: =IF($D$4="MAP+ADM Waivers",SUMIF('C Report'!$A$100:$A$199,'C Report Grouper'!$D26,'C Report'!U$100:U$199)+SUMIF('C Report'!$A$300:$A$399,'C Report Grouper'!$D26,'C Report'!U$300:U$399),SUMIF('C Report'!$A$100:$A$199,'C Report Grouper'!$D26,'C Report'!U$100:U$199)) -> 0 | X26: =IF($D$4="MAP+ADM Waivers",SUMIF('C Report'!$A$100:$A$199,'C Report Grouper'!$D26,'C Report'!V$100:V$199)+SUMIF('C Report'!$A$300:$A$399,'C Report Grouper'!$D26,'C Report'!V$300:V$399),SUMIF('C Report'!$A$100:$A$199,'C Report Grouper'!$D26,'C Report'!V$100:V$199)) -> 0 | Y26: =IF($D$4="MAP+ADM Waivers",SUMIF('C Report'!$A$100:$A$199,'C Report Grouper'!$D26,'C Report'!W$100:W$199)+SUMIF('C Report'!$A$300:$A$399,'C Report Grouper'!$D26,'C Report'!W$300:W$399),SUMIF('C Report'!$A$100:$A$199,'C Report Grouper'!$D26,'C Report'!W$100:W$199)) -> 0 | Z26: =IF($D$4="MAP+ADM Waivers",SUMIF('C Report'!$A$100:$A$199,'C Report Grouper'!$D26,'C Report'!X$100:X$199)+SUMIF('C Report'!$A$300:$A$399,'C Report Grouper'!$D26,'C Report'!X$300:X$399),SUMIF('C Report'!$A$100:$A$199,'C Report Grouper'!$D26,'C Report'!X$100:X$199)) -> 0 | AA26: =IF($D$4="MAP+ADM Waivers",SUMIF('C Report'!$A$100:$A$199,'C Report Grouper'!$D26,'C Report'!Y$100:Y$199)+SUMIF('C Report'!$A$300:$A$399,'C Report Grouper'!$D26,'C Report'!Y$300:Y$399),SUMIF('C Report'!$A$100:$A$199,'C Report Grouper'!$D26,'C Report'!Y$100:Y$199)) -> 0 | AB26: =IF($D$4="MAP+ADM Waivers",SUMIF('C Report'!$A$100:$A$199,'C Report Grouper'!$D26,'C Report'!Z$100:Z$199)+SUMIF('C Report'!$A$300:$A$399,'C Report Grouper'!$D26,'C Report'!Z$300:Z$399),SUMIF('C Report'!$A$100:$A$199,'C Report Grouper'!$D26,'C Report'!Z$100:Z$199)) -> 0 | AC26: =IF($D$4="MAP+ADM Waivers",SUMIF('C Report'!$A$100:$A$199,'C Report Grouper'!$D26,'C Report'!AA$100:AA$199)+SUMIF('C Report'!$A$300:$A$399,'C Report Grouper'!$D26,'C Report'!AA$300:AA$399),SUMIF('C Report'!$A$100:$A$199,'C Report Grouper'!$D26,'C Report'!AA$100:AA$199)) -> 0 | AD26: =IF($D$4="MAP+ADM Waivers",SUMIF('C Report'!$A$100:$A$199,'C Report Grouper'!$D26,'C Report'!AB$100:AB$199)+SUMIF('C Report'!$A$300:$A$399,'C Report Grouper'!$D26,'C Report'!AB$300:AB$399),SUMIF('C Report'!$A$100:$A$199,'C Report Grouper'!$D26,'C Report'!AB$100:AB$199)) -> 0 | AE26: =IF($D$4="MAP+ADM Waivers",SUMIF('C Report'!$A$100:$A$199,'C Report Grouper'!$D26,'C Report'!AC$100:AC$199)+SUMIF('C Report'!$A$300:$A$399,'C Report Grouper'!$D26,'C Report'!AC$300:AC$399),SUMIF('C Report'!$A$100:$A$199,'C Report Grouper'!$D26,'C Report'!AC$100:AC$199)) -> 0 | AF26: =IF($D$4="MAP+ADM Waivers",SUMIF('C Report'!$A$100:$A$199,'C Report Grouper'!$D26,'C Report'!AD$100:AD$199)+SUMIF('C Report'!$A$300:$A$399,'C Report Grouper'!$D26,'C Report'!AD$300:AD$399),SUMIF('C Report'!$A$100:$A$199,'C Report Grouper'!$D26,'C Report'!AD$100:AD$199)) -> 0 | AG26: =IF($D$4="MAP+ADM Waivers",SUMIF('C Report'!$A$100:$A$199,'C Report Grouper'!$D26,'C Report'!AE$100:AE$199)+SUMIF('C Report'!$A$300:$A$399,'C Report Grouper'!$D26,'C Report'!AE$300:AE$399),SUMIF('C Report'!$A$100:$A$199,'C Report Grouper'!$D26,'C Report'!AE$100:AE$199)) -> 0 | AH26: =IF($D$4="MAP+ADM Waivers",SUMIF('C Report'!$A$100:$A$199,'C Report Grouper'!$D26,'C Report'!AF$100:AF$199)+SUMIF('C Report'!$A$300:$A$399,'C Report Grouper'!$D26,'C Report'!AF$300:AF$399),SUMIF('C Report'!$A$100:$A$199,'C Report Grouper'!$D26,'C Report'!AF$100:AF$199)) -> 0
B27: =IFERROR(VLOOKUP(C27,'MEG Def'!$A$35:$B$40,2),"") ->  | E27: =IF($D$4="MAP+ADM Waivers",SUMIF('C Report'!$A$100:$A$199,'C Report Grouper'!$D27,'C Report'!C$100:C$199)+SUMIF('C Report'!$A$300:$A$399,'C Report Grouper'!$D27,'C Report'!C$300:C$399),SUMIF('C Report'!$A$100:$A$199,'C Report Grouper'!$D27,'C Report'!C$100:C$199)) -> 0 | F27: =IF($D$4="MAP+ADM Waivers",SUMIF('C Report'!$A$100:$A$199,'C Report Grouper'!$D27,'C Report'!D$100:D$199)+SUMIF('C Report'!$A$300:$A$399,'C Report Grouper'!$D27,'C Report'!D$300:D$399),SUMIF('C Report'!$A$100:$A$199,'C Report Grouper'!$D27,'C Report'!D$100:D$199)) -> 0 | G27: =IF($D$4="MAP+ADM Waivers",SUMIF('C Report'!$A$100:$A$199,'C Report Grouper'!$D27,'C Report'!E$100:E$199)+SUMIF('C Report'!$A$300:$A$399,'C Report Grouper'!$D27,'C Report'!E$300:E$399),SUMIF('C Report'!$A$100:$A$199,'C Report Grouper'!$D27,'C Report'!E$100:E$199)) -> 0 | H27: =IF($D$4="MAP+ADM Waivers",SUMIF('C Report'!$A$100:$A$199,'C Report Grouper'!$D27,'C Report'!F$100:F$199)+SUMIF('C Report'!$A$300:$A$399,'C Report Grouper'!$D27,'C Report'!F$300:F$399),SUMIF('C Report'!$A$100:$A$199,'C Report Grouper'!$D27,'C Report'!F$100:F$199)) -> 0 | I27: =IF($D$4="MAP+ADM Waivers",SUMIF('C Report'!$A$100:$A$199,'C Report Grouper'!$D27,'C Report'!G$100:G$199)+SUMIF('C Report'!$A$300:$A$399,'C Report Grouper'!$D27,'C Report'!G$300:G$399),SUMIF('C Report'!$A$100:$A$199,'C Report Grouper'!$D27,'C Report'!G$100:G$199)) -> 0 | J27: =IF($D$4="MAP+ADM Waivers",SUMIF('C Report'!$A$100:$A$199,'C Report Grouper'!$D27,'C Report'!H$100:H$199)+SUMIF('C Report'!$A$300:$A$399,'C Report Grouper'!$D27,'C Report'!H$300:H$399),SUMIF('C Report'!$A$100:$A$199,'C Report Grouper'!$D27,'C Report'!H$100:H$199)) -> 0 | K27: =IF($D$4="MAP+ADM Waivers",SUMIF('C Report'!$A$100:$A$199,'C Report Grouper'!$D27,'C Report'!I$100:I$199)+SUMIF('C Report'!$A$300:$A$399,'C Report Grouper'!$D27,'C Report'!I$300:I$399),SUMIF('C Report'!$A$100:$A$199,'C Report Grouper'!$D27,'C Report'!I$100:I$199)) -> 0 | L27: =IF($D$4="MAP+ADM Waivers",SUMIF('C Report'!$A$100:$A$199,'C Report Grouper'!$D27,'C Report'!J$100:J$199)+SUMIF('C Report'!$A$300:$A$399,'C Report Grouper'!$D27,'C Report'!J$300:J$399),SUMIF('C Report'!$A$100:$A$199,'C Report Grouper'!$D27,'C Report'!J$100:J$199)) -> 0 | M27: =IF($D$4="MAP+ADM Waivers",SUMIF('C Report'!$A$100:$A$199,'C Report Grouper'!$D27,'C Report'!K$100:K$199)+SUMIF('C Report'!$A$300:$A$399,'C Report Grouper'!$D27,'C Report'!K$300:K$399),SUMIF('C Report'!$A$100:$A$199,'C Report Grouper'!$D27,'C Report'!K$100:K$199)) -> 0 | N27: =IF($D$4="MAP+ADM Waivers",SUMIF('C Report'!$A$100:$A$199,'C Report Grouper'!$D27,'C Report'!L$100:L$199)+SUMIF('C Report'!$A$300:$A$399,'C Report Grouper'!$D27,'C Report'!L$300:L$399),SUMIF('C Report'!$A$100:$A$199,'C Report Grouper'!$D27,'C Report'!L$100:L$199)) -> 0 | O27: =IF($D$4="MAP+ADM Waivers",SUMIF('C Report'!$A$100:$A$199,'C Report Grouper'!$D27,'C Report'!M$100:M$199)+SUMIF('C Report'!$A$300:$A$399,'C Report Grouper'!$D27,'C Report'!M$300:M$399),SUMIF('C Report'!$A$100:$A$199,'C Report Grouper'!$D27,'C Report'!M$100:M$199)) -> 0 | P27: =IF($D$4="MAP+ADM Waivers",SUMIF('C Report'!$A$100:$A$199,'C Report Grouper'!$D27,'C Report'!N$100:N$199)+SUMIF('C Report'!$A$300:$A$399,'C Report Grouper'!$D27,'C Report'!N$300:N$399),SUMIF('C Report'!$A$100:$A$199,'C Report Grouper'!$D27,'C Report'!N$100:N$199)) -> 0 | Q27: =IF($D$4="MAP+ADM Waivers",SUMIF('C Report'!$A$100:$A$199,'C Report Grouper'!$D27,'C Report'!O$100:O$199)+SUMIF('C Report'!$A$300:$A$399,'C Report Grouper'!$D27,'C Report'!O$300:O$399),SUMIF('C Report'!$A$100:$A$199,'C Report Grouper'!$D27,'C Report'!O$100:O$199)) -> 0 | R27: =IF($D$4="MAP+ADM Waivers",SUMIF('C Report'!$A$100:$A$199,'C Report Grouper'!$D27,'C Report'!P$100:P$199)+SUMIF('C Report'!$A$300:$A$399,'C Report Grouper'!$D27,'C Report'!P$300:P$399),SUMIF('C Report'!$A$100:$A$199,'C Report Grouper'!$D27,'C Report'!P$100:P$199)) -> 0 | S27: =IF($D$4="MAP+ADM Waivers",SUMIF('C Report'!$A$100:$A$199,'C Report Grouper'!$D27,'C Report'!Q$100:Q$199)+SUMIF('C Report'!$A$300:$A$399,'C Report Grouper'!$D27,'C Report'!Q$300:Q$399),SUMIF('C Report'!$A$100:$A$199,'C Report Grouper'!$D27,'C Report'!Q$100:Q$199)) -> 0 | T27: =IF($D$4="MAP+ADM Waivers",SUMIF('C Report'!$A$100:$A$199,'C Report Grouper'!$D27,'C Report'!R$100:R$199)+SUMIF('C Report'!$A$300:$A$399,'C Report Grouper'!$D27,'C Report'!R$300:R$399),SUMIF('C Report'!$A$100:$A$199,'C Report Grouper'!$D27,'C Report'!R$100:R$199)) -> 0 | U27: =IF($D$4="MAP+ADM Waivers",SUMIF('C Report'!$A$100:$A$199,'C Report Grouper'!$D27,'C Report'!S$100:S$199)+SUMIF('C Report'!$A$300:$A$399,'C Report Grouper'!$D27,'C Report'!S$300:S$399),SUMIF('C Report'!$A$100:$A$199,'C Report Grouper'!$D27,'C Report'!S$100:S$199)) -> 0 | V27: =IF($D$4="MAP+ADM Waivers",SUMIF('C Report'!$A$100:$A$199,'C Report Grouper'!$D27,'C Report'!T$100:T$199)+SUMIF('C Report'!$A$300:$A$399,'C Report Grouper'!$D27,'C Report'!T$300:T$399),SUMIF('C Report'!$A$100:$A$199,'C Report Grouper'!$D27,'C Report'!T$100:T$199)) -> 0 | W27: =IF($D$4="MAP+ADM Waivers",SUMIF('C Report'!$A$100:$A$199,'C Report Grouper'!$D27,'C Report'!U$100:U$199)+SUMIF('C Report'!$A$300:$A$399,'C Report Grouper'!$D27,'C Report'!U$300:U$399),SUMIF('C Report'!$A$100:$A$199,'C Report Grouper'!$D27,'C Report'!U$100:U$199)) -> 0 | X27: =IF($D$4="MAP+ADM Waivers",SUMIF('C Report'!$A$100:$A$199,'C Report Grouper'!$D27,'C Report'!V$100:V$199)+SUMIF('C Report'!$A$300:$A$399,'C Report Grouper'!$D27,'C Report'!V$300:V$399),SUMIF('C Report'!$A$100:$A$199,'C Report Grouper'!$D27,'C Report'!V$100:V$199)) -> 0 | Y27: =IF($D$4="MAP+ADM Waivers",SUMIF('C Report'!$A$100:$A$199,'C Report Grouper'!$D27,'C Report'!W$100:W$199)+SUMIF('C Report'!$A$300:$A$399,'C Report Grouper'!$D27,'C Report'!W$300:W$399),SUMIF('C Report'!$A$100:$A$199,'C Report Grouper'!$D27,'C Report'!W$100:W$199)) -> 0 | Z27: =IF($D$4="MAP+ADM Waivers",SUMIF('C Report'!$A$100:$A$199,'C Report Grouper'!$D27,'C Report'!X$100:X$199)+SUMIF('C Report'!$A$300:$A$399,'C Report Grouper'!$D27,'C Report'!X$300:X$399),SUMIF('C Report'!$A$100:$A$199,'C Report Grouper'!$D27,'C Report'!X$100:X$199)) -> 0 | AA27: =IF($D$4="MAP+ADM Waivers",SUMIF('C Report'!$A$100:$A$199,'C Report Grouper'!$D27,'C Report'!Y$100:Y$199)+SUMIF('C Report'!$A$300:$A$399,'C Report Grouper'!$D27,'C Report'!Y$300:Y$399),SUMIF('C Report'!$A$100:$A$199,'C Report Grouper'!$D27,'C Report'!Y$100:Y$199)) -> 0 | AB27: =IF($D$4="MAP+ADM Waivers",SUMIF('C Report'!$A$100:$A$199,'C Report Grouper'!$D27,'C Report'!Z$100:Z$199)+SUMIF('C Report'!$A$300:$A$399,'C Report Grouper'!$D27,'C Report'!Z$300:Z$399),SUMIF('C Report'!$A$100:$A$199,'C Report Grouper'!$D27,'C Report'!Z$100:Z$199)) -> 0 | AC27: =IF($D$4="MAP+ADM Waivers",SUMIF('C Report'!$A$100:$A$199,'C Report Grouper'!$D27,'C Report'!AA$100:AA$199)+SUMIF('C Report'!$A$300:$A$399,'C Report Grouper'!$D27,'C Report'!AA$300:AA$399),SUMIF('C Report'!$A$100:$A$199,'C Report Grouper'!$D27,'C Report'!AA$100:AA$199)) -> 0 | AD27: =IF($D$4="MAP+ADM Waivers",SUMIF('C Report'!$A$100:$A$199,'C Report Grouper'!$D27,'C Report'!AB$100:AB$199)+SUMIF('C Report'!$A$300:$A$399,'C Report Grouper'!$D27,'C Report'!AB$300:AB$399),SUMIF('C Report'!$A$100:$A$199,'C Report Grouper'!$D27,'C Report'!AB$100:AB$199)) -> 0 | AE27: =IF($D$4="MAP+ADM Waivers",SUMIF('C Report'!$A$100:$A$199,'C Report Grouper'!$D27,'C Report'!AC$100:AC$199)+SUMIF('C Report'!$A$300:$A$399,'C Report Grouper'!$D27,'C Report'!AC$300:AC$399),SUMIF('C Report'!$A$100:$A$199,'C Report Grouper'!$D27,'C Report'!AC$100:AC$199)) -> 0 | AF27: =IF($D$4="MAP+ADM Waivers",SUMIF('C Report'!$A$100:$A$199,'C Report Grouper'!$D27,'C Report'!AD$100:AD$199)+SUMIF('C Report'!$A$300:$A$399,'C Report Grouper'!$D27,'C Report'!AD$300:AD$399),SUMIF('C Report'!$A$100:$A$199,'C Report Grouper'!$D27,'C Report'!AD$100:AD$199)) -> 0 | AG27: =IF($D$4="MAP+ADM Waivers",SUMIF('C Report'!$A$100:$A$199,'C Report Grouper'!$D27,'C Report'!AE$100:AE$199)+SUMIF('C Report'!$A$300:$A$399,'C Report Grouper'!$D27,'C Report'!AE$300:AE$399),SUMIF('C Report'!$A$100:$A$199,'C Report Grouper'!$D27,'C Report'!AE$100:AE$199)) -> 0 | AH27: =IF($D$4="MAP+ADM Waivers",SUMIF('C Report'!$A$100:$A$199,'C Report Grouper'!$D27,'C Report'!AF$100:AF$199)+SUMIF('C Report'!$A$300:$A$399,'C Report Grouper'!$D27,'C Report'!AF$300:AF$399),SUMIF('C Report'!$A$100:$A$199,'C Report Grouper'!$D27,'C Report'!AF$100:AF$199)) -> 0
B28: =IFERROR(VLOOKUP(C28,'MEG Def'!$A$35:$B$40,2),"") ->  | E28: =IF($D$4="MAP+ADM Waivers",SUMIF('C Report'!$A$100:$A$199,'C Report Grouper'!$D28,'C Report'!C$100:C$199)+SUMIF('C Report'!$A$300:$A$399,'C Report Grouper'!$D28,'C Report'!C$300:C$399),SUMIF('C Report'!$A$100:$A$199,'C Report Grouper'!$D28,'C Report'!C$100:C$199)) -> 0 | F28: =IF($D$4="MAP+ADM Waivers",SUMIF('C Report'!$A$100:$A$199,'C Report Grouper'!$D28,'C Report'!D$100:D$199)+SUMIF('C Report'!$A$300:$A$399,'C Report Grouper'!$D28,'C Report'!D$300:D$399),SUMIF('C Report'!$A$100:$A$199,'C Report Grouper'!$D28,'C Report'!D$100:D$199)) -> 0 | G28: =IF($D$4="MAP+ADM Waivers",SUMIF('C Report'!$A$100:$A$199,'C Report Grouper'!$D28,'C Report'!E$100:E$199)+SUMIF('C Report'!$A$300:$A$399,'C Report Grouper'!$D28,'C Report'!E$300:E$399),SUMIF('C Report'!$A$100:$A$199,'C Report Grouper'!$D28,'C Report'!E$100:E$199)) -> 0 | H28: =IF($D$4="MAP+ADM Waivers",SUMIF('C Report'!$A$100:$A$199,'C Report Grouper'!$D28,'C Report'!F$100:F$199)+SUMIF('C Report'!$A$300:$A$399,'C Report Grouper'!$D28,'C Report'!F$300:F$399),SUMIF('C Report'!$A$100:$A$199,'C Report Grouper'!$D28,'C Report'!F$100:F$199)) -> 0 | I28: =IF($D$4="MAP+ADM Waivers",SUMIF('C Report'!$A$100:$A$199,'C Report Grouper'!$D28,'C Report'!G$100:G$199)+SUMIF('C Report'!$A$300:$A$399,'C Report Grouper'!$D28,'C Report'!G$300:G$399),SUMIF('C Report'!$A$100:$A$199,'C Report Grouper'!$D28,'C Report'!G$100:G$199)) -> 0 | J28: =IF($D$4="MAP+ADM Waivers",SUMIF('C Report'!$A$100:$A$199,'C Report Grouper'!$D28,'C Report'!H$100:H$199)+SUMIF('C Report'!$A$300:$A$399,'C Report Grouper'!$D28,'C Report'!H$300:H$399),SUMIF('C Report'!$A$100:$A$199,'C Report Grouper'!$D28,'C Report'!H$100:H$199)) -> 0 | K28: =IF($D$4="MAP+ADM Waivers",SUMIF('C Report'!$A$100:$A$199,'C Report Grouper'!$D28,'C Report'!I$100:I$199)+SUMIF('C Report'!$A$300:$A$399,'C Report Grouper'!$D28,'C Report'!I$300:I$399),SUMIF('C Report'!$A$100:$A$199,'C Report Grouper'!$D28,'C Report'!I$100:I$199)) -> 0 | L28: =IF($D$4="MAP+ADM Waivers",SUMIF('C Report'!$A$100:$A$199,'C Report Grouper'!$D28,'C Report'!J$100:J$199)+SUMIF('C Report'!$A$300:$A$399,'C Report Grouper'!$D28,'C Report'!J$300:J$399),SUMIF('C Report'!$A$100:$A$199,'C Report Grouper'!$D28,'C Report'!J$100:J$199)) -> 0 | M28: =IF($D$4="MAP+ADM Waivers",SUMIF('C Report'!$A$100:$A$199,'C Report Grouper'!$D28,'C Report'!K$100:K$199)+SUMIF('C Report'!$A$300:$A$399,'C Report Grouper'!$D28,'C Report'!K$300:K$399),SUMIF('C Report'!$A$100:$A$199,'C Report Grouper'!$D28,'C Report'!K$100:K$199)) -> 0 | N28: =IF($D$4="MAP+ADM Waivers",SUMIF('C Report'!$A$100:$A$199,'C Report Grouper'!$D28,'C Report'!L$100:L$199)+SUMIF('C Report'!$A$300:$A$399,'C Report Grouper'!$D28,'C Report'!L$300:L$399),SUMIF('C Report'!$A$100:$A$199,'C Report Grouper'!$D28,'C Report'!L$100:L$199)) -> 0 | O28: =IF($D$4="MAP+ADM Waivers",SUMIF('C Report'!$A$100:$A$199,'C Report Grouper'!$D28,'C Report'!M$100:M$199)+SUMIF('C Report'!$A$300:$A$399,'C Report Grouper'!$D28,'C Report'!M$300:M$399),SUMIF('C Report'!$A$100:$A$199,'C Report Grouper'!$D28,'C Report'!M$100:M$199)) -> 0 | P28: =IF($D$4="MAP+ADM Waivers",SUMIF('C Report'!$A$100:$A$199,'C Report Grouper'!$D28,'C Report'!N$100:N$199)+SUMIF('C Report'!$A$300:$A$399,'C Report Grouper'!$D28,'C Report'!N$300:N$399),SUMIF('C Report'!$A$100:$A$199,'C Report Grouper'!$D28,'C Report'!N$100:N$199)) -> 0 | Q28: =IF($D$4="MAP+ADM Waivers",SUMIF('C Report'!$A$100:$A$199,'C Report Grouper'!$D28,'C Report'!O$100:O$199)+SUMIF('C Report'!$A$300:$A$399,'C Report Grouper'!$D28,'C Report'!O$300:O$399),SUMIF('C Report'!$A$100:$A$199,'C Report Grouper'!$D28,'C Report'!O$100:O$199)) -> 0 | R28: =IF($D$4="MAP+ADM Waivers",SUMIF('C Report'!$A$100:$A$199,'C Report Grouper'!$D28,'C Report'!P$100:P$199)+SUMIF('C Report'!$A$300:$A$399,'C Report Grouper'!$D28,'C Report'!P$300:P$399),SUMIF('C Report'!$A$100:$A$199,'C Report Grouper'!$D28,'C Report'!P$100:P$199)) -> 0 | S28: =IF($D$4="MAP+ADM Waivers",SUMIF('C Report'!$A$100:$A$199,'C Report Grouper'!$D28,'C Report'!Q$100:Q$199)+SUMIF('C Report'!$A$300:$A$399,'C Report Grouper'!$D28,'C Report'!Q$300:Q$399),SUMIF('C Report'!$A$100:$A$199,'C Report Grouper'!$D28,'C Report'!Q$100:Q$199)) -> 0 | T28: =IF($D$4="MAP+ADM Waivers",SUMIF('C Report'!$A$100:$A$199,'C Report Grouper'!$D28,'C Report'!R$100:R$199)+SUMIF('C Report'!$A$300:$A$399,'C Report Grouper'!$D28,'C Report'!R$300:R$399),SUMIF('C Report'!$A$100:$A$199,'C Report Grouper'!$D28,'C Report'!R$100:R$199)) -> 0 | U28: =IF($D$4="MAP+ADM Waivers",SUMIF('C Report'!$A$100:$A$199,'C Report Grouper'!$D28,'C Report'!S$100:S$199)+SUMIF('C Report'!$A$300:$A$399,'C Report Grouper'!$D28,'C Report'!S$300:S$399),SUMIF('C Report'!$A$100:$A$199,'C Report Grouper'!$D28,'C Report'!S$100:S$199)) -> 0 | V28: =IF($D$4="MAP+ADM Waivers",SUMIF('C Report'!$A$100:$A$199,'C Report Grouper'!$D28,'C Report'!T$100:T$199)+SUMIF('C Report'!$A$300:$A$399,'C Report Grouper'!$D28,'C Report'!T$300:T$399),SUMIF('C Report'!$A$100:$A$199,'C Report Grouper'!$D28,'C Report'!T$100:T$199)) -> 0 | W28: =IF($D$4="MAP+ADM Waivers",SUMIF('C Report'!$A$100:$A$199,'C Report Grouper'!$D28,'C Report'!U$100:U$199)+SUMIF('C Report'!$A$300:$A$399,'C Report Grouper'!$D28,'C Report'!U$300:U$399),SUMIF('C Report'!$A$100:$A$199,'C Report Grouper'!$D28,'C Report'!U$100:U$199)) -> 0 | X28: =IF($D$4="MAP+ADM Waivers",SUMIF('C Report'!$A$100:$A$199,'C Report Grouper'!$D28,'C Report'!V$100:V$199)+SUMIF('C Report'!$A$300:$A$399,'C Report Grouper'!$D28,'C Report'!V$300:V$399),SUMIF('C Report'!$A$100:$A$199,'C Report Grouper'!$D28,'C Report'!V$100:V$199)) -> 0 | Y28: =IF($D$4="MAP+ADM Waivers",SUMIF('C Report'!$A$100:$A$199,'C Report Grouper'!$D28,'C Report'!W$100:W$199)+SUMIF('C Report'!$A$300:$A$399,'C Report Grouper'!$D28,'C Report'!W$300:W$399),SUMIF('C Report'!$A$100:$A$199,'C Report Grouper'!$D28,'C Report'!W$100:W$199)) -> 0 | Z28: =IF($D$4="MAP+ADM Waivers",SUMIF('C Report'!$A$100:$A$199,'C Report Grouper'!$D28,'C Report'!X$100:X$199)+SUMIF('C Report'!$A$300:$A$399,'C Report Grouper'!$D28,'C Report'!X$300:X$399),SUMIF('C Report'!$A$100:$A$199,'C Report Grouper'!$D28,'C Report'!X$100:X$199)) -> 0 | AA28: =IF($D$4="MAP+ADM Waivers",SUMIF('C Report'!$A$100:$A$199,'C Report Grouper'!$D28,'C Report'!Y$100:Y$199)+SUMIF('C Report'!$A$300:$A$399,'C Report Grouper'!$D28,'C Report'!Y$300:Y$399),SUMIF('C Report'!$A$100:$A$199,'C Report Grouper'!$D28,'C Report'!Y$100:Y$199)) -> 0 | AB28: =IF($D$4="MAP+ADM Waivers",SUMIF('C Report'!$A$100:$A$199,'C Report Grouper'!$D28,'C Report'!Z$100:Z$199)+SUMIF('C Report'!$A$300:$A$399,'C Report Grouper'!$D28,'C Report'!Z$300:Z$399),SUMIF('C Report'!$A$100:$A$199,'C Report Grouper'!$D28,'C Report'!Z$100:Z$199)) -> 0 | AC28: =IF($D$4="MAP+ADM Waivers",SUMIF('C Report'!$A$100:$A$199,'C Report Grouper'!$D28,'C Report'!AA$100:AA$199)+SUMIF('C Report'!$A$300:$A$399,'C Report Grouper'!$D28,'C Report'!AA$300:AA$399),SUMIF('C Report'!$A$100:$A$199,'C Report Grouper'!$D28,'C Report'!AA$100:AA$199)) -> 0 | AD28: =IF($D$4="MAP+ADM Waivers",SUMIF('C Report'!$A$100:$A$199,'C Report Grouper'!$D28,'C Report'!AB$100:AB$199)+SUMIF('C Report'!$A$300:$A$399,'C Report Grouper'!$D28,'C Report'!AB$300:AB$399),SUMIF('C Report'!$A$100:$A$199,'C Report Grouper'!$D28,'C Report'!AB$100:AB$199)) -> 0 | AE28: =IF($D$4="MAP+ADM Waivers",SUMIF('C Report'!$A$100:$A$199,'C Report Grouper'!$D28,'C Report'!AC$100:AC$199)+SUMIF('C Report'!$A$300:$A$399,'C Report Grouper'!$D28,'C Report'!AC$300:AC$399),SUMIF('C Report'!$A$100:$A$199,'C Report Grouper'!$D28,'C Report'!AC$100:AC$199)) -> 0 | AF28: =IF($D$4="MAP+ADM Waivers",SUMIF('C Report'!$A$100:$A$199,'C Report Grouper'!$D28,'C Report'!AD$100:AD$199)+SUMIF('C Report'!$A$300:$A$399,'C Report Grouper'!$D28,'C Report'!AD$300:AD$399),SUMIF('C Report'!$A$100:$A$199,'C Report Grouper'!$D28,'C Report'!AD$100:AD$199)) -> 0 | AG28: =IF($D$4="MAP+ADM Waivers",SUMIF('C Report'!$A$100:$A$199,'C Report Grouper'!$D28,'C Report'!AE$100:AE$199)+SUMIF('C Report'!$A$300:$A$399,'C Report Grouper'!$D28,'C Report'!AE$300:AE$399),SUMIF('C Report'!$A$100:$A$199,'C Report Grouper'!$D28,'C Report'!AE$100:AE$199)) -> 0 | AH28: =IF($D$4="MAP+ADM Waivers",SUMIF('C Report'!$A$100:$A$199,'C Report Grouper'!$D28,'C Report'!AF$100:AF$199)+SUMIF('C Report'!$A$300:$A$399,'C Report Grouper'!$D28,'C Report'!AF$300:AF$399),SUMIF('C Report'!$A$100:$A$199,'C Report Grouper'!$D28,'C Report'!AF$100:AF$199)) -> 0
E29: =IF($D$4="MAP+ADM Waivers",SUMIF('C Report'!$A$100:$A$199,'C Report Grouper'!$D29,'C Report'!C$100:C$199)+SUMIF('C Report'!$A$300:$A$399,'C Report Grouper'!$D29,'C Report'!C$300:C$399),SUMIF('C Report'!$A$100:$A$199,'C Report Grouper'!$D29,'C Report'!C$100:C$199)) -> 0 | F29: =IF($D$4="MAP+ADM Waivers",SUMIF('C Report'!$A$100:$A$199,'C Report Grouper'!$D29,'C Report'!D$100:D$199)+SUMIF('C Report'!$A$300:$A$399,'C Report Grouper'!$D29,'C Report'!D$300:D$399),SUMIF('C Report'!$A$100:$A$199,'C Report Grouper'!$D29,'C Report'!D$100:D$199)) -> 0 | G29: =IF($D$4="MAP+ADM Waivers",SUMIF('C Report'!$A$100:$A$199,'C Report Grouper'!$D29,'C Report'!E$100:E$199)+SUMIF('C Report'!$A$300:$A$399,'C Report Grouper'!$D29,'C Report'!E$300:E$399),SUMIF('C Report'!$A$100:$A$199,'C Report Grouper'!$D29,'C Report'!E$100:E$199)) -> 0 | H29: =IF($D$4="MAP+ADM Waivers",SUMIF('C Report'!$A$100:$A$199,'C Report Grouper'!$D29,'C Report'!F$100:F$199)+SUMIF('C Report'!$A$300:$A$399,'C Report Grouper'!$D29,'C Report'!F$300:F$399),SUMIF('C Report'!$A$100:$A$199,'C Report Grouper'!$D29,'C Report'!F$100:F$199)) -> 0 | I29: =IF($D$4="MAP+ADM Waivers",SUMIF('C Report'!$A$100:$A$199,'C Report Grouper'!$D29,'C Report'!G$100:G$199)+SUMIF('C Report'!$A$300:$A$399,'C Report Grouper'!$D29,'C Report'!G$300:G$399),SUMIF('C Report'!$A$100:$A$199,'C Report Grouper'!$D29,'C Report'!G$100:G$199)) -> 0 | J29: =IF($D$4="MAP+ADM Waivers",SUMIF('C Report'!$A$100:$A$199,'C Report Grouper'!$D29,'C Report'!H$100:H$199)+SUMIF('C Report'!$A$300:$A$399,'C Report Grouper'!$D29,'C Report'!H$300:H$399),SUMIF('C Report'!$A$100:$A$199,'C Report Grouper'!$D29,'C Report'!H$100:H$199)) -> 0 | K29: =IF($D$4="MAP+ADM Waivers",SUMIF('C Report'!$A$100:$A$199,'C Report Grouper'!$D29,'C Report'!I$100:I$199)+SUMIF('C Report'!$A$300:$A$399,'C Report Grouper'!$D29,'C Report'!I$300:I$399),SUMIF('C Report'!$A$100:$A$199,'C Report Grouper'!$D29,'C Report'!I$100:I$199)) -> 0 | L29: =IF($D$4="MAP+ADM Waivers",SUMIF('C Report'!$A$100:$A$199,'C Report Grouper'!$D29,'C Report'!J$100:J$199)+SUMIF('C Report'!$A$300:$A$399,'C Report Grouper'!$D29,'C Report'!J$300:J$399),SUMIF('C Report'!$A$100:$A$199,'C Report Grouper'!$D29,'C Report'!J$100:J$199)) -> 0 | M29: =IF($D$4="MAP+ADM Waivers",SUMIF('C Report'!$A$100:$A$199,'C Report Grouper'!$D29,'C Report'!K$100:K$199)+SUMIF('C Report'!$A$300:$A$399,'C Report Grouper'!$D29,'C Report'!K$300:K$399),SUMIF('C Report'!$A$100:$A$199,'C Report Grouper'!$D29,'C Report'!K$100:K$199)) -> 0 | N29: =IF($D$4="MAP+ADM Waivers",SUMIF('C Report'!$A$100:$A$199,'C Report Grouper'!$D29,'C Report'!L$100:L$199)+SUMIF('C Report'!$A$300:$A$399,'C Report Grouper'!$D29,'C Report'!L$300:L$399),SUMIF('C Report'!$A$100:$A$199,'C Report Grouper'!$D29,'C Report'!L$100:L$199)) -> 0 | O29: =IF($D$4="MAP+ADM Waivers",SUMIF('C Report'!$A$100:$A$199,'C Report Grouper'!$D29,'C Report'!M$100:M$199)+SUMIF('C Report'!$A$300:$A$399,'C Report Grouper'!$D29,'C Report'!M$300:M$399),SUMIF('C Report'!$A$100:$A$199,'C Report Grouper'!$D29,'C Report'!M$100:M$199)) -> 0 | P29: =IF($D$4="MAP+ADM Waivers",SUMIF('C Report'!$A$100:$A$199,'C Report Grouper'!$D29,'C Report'!N$100:N$199)+SUMIF('C Report'!$A$300:$A$399,'C Report Grouper'!$D29,'C Report'!N$300:N$399),SUMIF('C Report'!$A$100:$A$199,'C Report Grouper'!$D29,'C Report'!N$100:N$199)) -> 0 | Q29: =IF($D$4="MAP+ADM Waivers",SUMIF('C Report'!$A$100:$A$199,'C Report Grouper'!$D29,'C Report'!O$100:O$199)+SUMIF('C Report'!$A$300:$A$399,'C Report Grouper'!$D29,'C Report'!O$300:O$399),SUMIF('C Report'!$A$100:$A$199,'C Report Grouper'!$D29,'C Report'!O$100:O$199)) -> 0 | R29: =IF($D$4="MAP+ADM Waivers",SUMIF('C Report'!$A$100:$A$199,'C Report Grouper'!$D29,'C Report'!P$100:P$199)+SUMIF('C Report'!$A$300:$A$399,'C Report Grouper'!$D29,'C Report'!P$300:P$399),SUMIF('C Report'!$A$100:$A$199,'C Report Grouper'!$D29,'C Report'!P$100:P$199)) -> 0 | S29: =IF($D$4="MAP+ADM Waivers",SUMIF('C Report'!$A$100:$A$199,'C Report Grouper'!$D29,'C Report'!Q$100:Q$199)+SUMIF('C Report'!$A$300:$A$399,'C Report Grouper'!$D29,'C Report'!Q$300:Q$399),SUMIF('C Report'!$A$100:$A$199,'C Report Grouper'!$D29,'C Report'!Q$100:Q$199)) -> 0 | T29: =IF($D$4="MAP+ADM Waivers",SUMIF('C Report'!$A$100:$A$199,'C Report Grouper'!$D29,'C Report'!R$100:R$199)+SUMIF('C Report'!$A$300:$A$399,'C Report Grouper'!$D29,'C Report'!R$300:R$399),SUMIF('C Report'!$A$100:$A$199,'C Report Grouper'!$D29,'C Report'!R$100:R$199)) -> 0 | U29: =IF($D$4="MAP+ADM Waivers",SUMIF('C Report'!$A$100:$A$199,'C Report Grouper'!$D29,'C Report'!S$100:S$199)+SUMIF('C Report'!$A$300:$A$399,'C Report Grouper'!$D29,'C Report'!S$300:S$399),SUMIF('C Report'!$A$100:$A$199,'C Report Grouper'!$D29,'C Report'!S$100:S$199)) -> 0 | V29: =IF($D$4="MAP+ADM Waivers",SUMIF('C Report'!$A$100:$A$199,'C Report Grouper'!$D29,'C Report'!T$100:T$199)+SUMIF('C Report'!$A$300:$A$399,'C Report Grouper'!$D29,'C Report'!T$300:T$399),SUMIF('C Report'!$A$100:$A$199,'C Report Grouper'!$D29,'C Report'!T$100:T$199)) -> 0 | W29: =IF($D$4="MAP+ADM Waivers",SUMIF('C Report'!$A$100:$A$199,'C Report Grouper'!$D29,'C Report'!U$100:U$199)+SUMIF('C Report'!$A$300:$A$399,'C Report Grouper'!$D29,'C Report'!U$300:U$399),SUMIF('C Report'!$A$100:$A$199,'C Report Grouper'!$D29,'C Report'!U$100:U$199)) -> 0 | X29: =IF($D$4="MAP+ADM Waivers",SUMIF('C Report'!$A$100:$A$199,'C Report Grouper'!$D29,'C Report'!V$100:V$199)+SUMIF('C Report'!$A$300:$A$399,'C Report Grouper'!$D29,'C Report'!V$300:V$399),SUMIF('C Report'!$A$100:$A$199,'C Report Grouper'!$D29,'C Report'!V$100:V$199)) -> 0 | Y29: =IF($D$4="MAP+ADM Waivers",SUMIF('C Report'!$A$100:$A$199,'C Report Grouper'!$D29,'C Report'!W$100:W$199)+SUMIF('C Report'!$A$300:$A$399,'C Report Grouper'!$D29,'C Report'!W$300:W$399),SUMIF('C Report'!$A$100:$A$199,'C Report Grouper'!$D29,'C Report'!W$100:W$199)) -> 0 | Z29: =IF($D$4="MAP+ADM Waivers",SUMIF('C Report'!$A$100:$A$199,'C Report Grouper'!$D29,'C Report'!X$100:X$199)+SUMIF('C Report'!$A$300:$A$399,'C Report Grouper'!$D29,'C Report'!X$300:X$399),SUMIF('C Report'!$A$100:$A$199,'C Report Grouper'!$D29,'C Report'!X$100:X$199)) -> 0 | AA29: =IF($D$4="MAP+ADM Waivers",SUMIF('C Report'!$A$100:$A$199,'C Report Grouper'!$D29,'C Report'!Y$100:Y$199)+SUMIF('C Report'!$A$300:$A$399,'C Report Grouper'!$D29,'C Report'!Y$300:Y$399),SUMIF('C Report'!$A$100:$A$199,'C Report Grouper'!$D29,'C Report'!Y$100:Y$199)) -> 0 | AB29: =IF($D$4="MAP+ADM Waivers",SUMIF('C Report'!$A$100:$A$199,'C Report Grouper'!$D29,'C Report'!Z$100:Z$199)+SUMIF('C Report'!$A$300:$A$399,'C Report Grouper'!$D29,'C Report'!Z$300:Z$399),SUMIF('C Report'!$A$100:$A$199,'C Report Grouper'!$D29,'C Report'!Z$100:Z$199)) -> 0 | AC29: =IF($D$4="MAP+ADM Waivers",SUMIF('C Report'!$A$100:$A$199,'C Report Grouper'!$D29,'C Report'!AA$100:AA$199)+SUMIF('C Report'!$A$300:$A$399,'C Report Grouper'!$D29,'C Report'!AA$300:AA$399),SUMIF('C Report'!$A$100:$A$199,'C Report Grouper'!$D29,'C Report'!AA$100:AA$199)) -> 0 | AD29: =IF($D$4="MAP+ADM Waivers",SUMIF('C Report'!$A$100:$A$199,'C Report Grouper'!$D29,'C Report'!AB$100:AB$199)+SUMIF('C Report'!$A$300:$A$399,'C Report Grouper'!$D29,'C Report'!AB$300:AB$399),SUMIF('C Report'!$A$100:$A$199,'C Report Grouper'!$D29,'C Report'!AB$100:AB$199)) -> 0 | AE29: =IF($D$4="MAP+ADM Waivers",SUMIF('C Report'!$A$100:$A$199,'C Report Grouper'!$D29,'C Report'!AC$100:AC$199)+SUMIF('C Report'!$A$300:$A$399,'C Report Grouper'!$D29,'C Report'!AC$300:AC$399),SUMIF('C Report'!$A$100:$A$199,'C Report Grouper'!$D29,'C Report'!AC$100:AC$199)) -> 0 | AF29: =IF($D$4="MAP+ADM Waivers",SUMIF('C Report'!$A$100:$A$199,'C Report Grouper'!$D29,'C Report'!AD$100:AD$199)+SUMIF('C Report'!$A$300:$A$399,'C Report Grouper'!$D29,'C Report'!AD$300:AD$399),SUMIF('C Report'!$A$100:$A$199,'C Report Grouper'!$D29,'C Report'!AD$100:AD$199)) -> 0 | AG29: =IF($D$4="MAP+ADM Waivers",SUMIF('C Report'!$A$100:$A$199,'C Report Grouper'!$D29,'C Report'!AE$100:AE$199)+SUMIF('C Report'!$A$300:$A$399,'C Report Grouper'!$D29,'C Report'!AE$300:AE$399),SUMIF('C Report'!$A$100:$A$199,'C Report Grouper'!$D29,'C Report'!AE$100:AE$199)) -> 0 | AH29: =IF($D$4="MAP+ADM Waivers",SUMIF('C Report'!$A$100:$A$199,'C Report Grouper'!$D29,'C Report'!AF$100:AF$199)+SUMIF('C Report'!$A$300:$A$399,'C Report Grouper'!$D29,'C Report'!AF$300:AF$399),SUMIF('C Report'!$A$100:$A$199,'C Report Grouper'!$D29,'C Report'!AF$100:AF$199)) -> 0
B30: Hypothetical 1 Per Capita | E30: =IF($D$4="MAP+ADM Waivers",SUMIF('C Report'!$A$100:$A$199,'C Report Grouper'!$D30,'C Report'!C$100:C$199)+SUMIF('C Report'!$A$300:$A$399,'C Report Grouper'!$D30,'C Report'!C$300:C$399),SUMIF('C Report'!$A$100:$A$199,'C Report Grouper'!$D30,'C Report'!C$100:C$199)) -> 0 | F30: =IF($D$4="MAP+ADM Waivers",SUMIF('C Report'!$A$100:$A$199,'C Report Grouper'!$D30,'C Report'!D$100:D$199)+SUMIF('C Report'!$A$300:$A$399,'C Report Grouper'!$D30,'C Report'!D$300:D$399),SUMIF('C Report'!$A$100:$A$199,'C Report Grouper'!$D30,'C Report'!D$100:D$199)) -> 0 | G30: =IF($D$4="MAP+ADM Waivers",SUMIF('C Report'!$A$100:$A$199,'C Report Grouper'!$D30,'C Report'!E$100:E$199)+SUMIF('C Report'!$A$300:$A$399,'C Report Grouper'!$D30,'C Report'!E$300:E$399),SUMIF('C Report'!$A$100:$A$199,'C Report Grouper'!$D30,'C Report'!E$100:E$199)) -> 0 | H30: =IF($D$4="MAP+ADM Waivers",SUMIF('C Report'!$A$100:$A$199,'C Report Grouper'!$D30,'C Report'!F$100:F$199)+SUMIF('C Report'!$A$300:$A$399,'C Report Grouper'!$D30,'C Report'!F$300:F$399),SUMIF('C Report'!$A$100:$A$199,'C Report Grouper'!$D30,'C Report'!F$100:F$199)) -> 0 | I30: =IF($D$4="MAP+ADM Waivers",SUMIF('C Report'!$A$100:$A$199,'C Report Grouper'!$D30,'C Report'!G$100:G$199)+SUMIF('C Report'!$A$300:$A$399,'C Report Grouper'!$D30,'C Report'!G$300:G$399),SUMIF('C Report'!$A$100:$A$199,'C Report Grouper'!$D30,'C Report'!G$100:G$199)) -> 0 | J30: =IF($D$4="MAP+ADM Waivers",SUMIF('C Report'!$A$100:$A$199,'C Report Grouper'!$D30,'C Report'!H$100:H$199)+SUMIF('C Report'!$A$300:$A$399,'C Report Grouper'!$D30,'C Report'!H$300:H$399),SUMIF('C Report'!$A$100:$A$199,'C Report Grouper'!$D30,'C Report'!H$100:H$199)) -> 0 | K30: =IF($D$4="MAP+ADM Waivers",SUMIF('C Report'!$A$100:$A$199,'C Report Grouper'!$D30,'C Report'!I$100:I$199)+SUMIF('C Report'!$A$300:$A$399,'C Report Grouper'!$D30,'C Report'!I$300:I$399),SUMIF('C Report'!$A$100:$A$199,'C Report Grouper'!$D30,'C Report'!I$100:I$199)) -> 0 | L30: =IF($D$4="MAP+ADM Waivers",SUMIF('C Report'!$A$100:$A$199,'C Report Grouper'!$D30,'C Report'!J$100:J$199)+SUMIF('C Report'!$A$300:$A$399,'C Report Grouper'!$D30,'C Report'!J$300:J$399),SUMIF('C Report'!$A$100:$A$199,'C Report Grouper'!$D30,'C Report'!J$100:J$199)) -> 0 | M30: =IF($D$4="MAP+ADM Waivers",SUMIF('C Report'!$A$100:$A$199,'C Report Grouper'!$D30,'C Report'!K$100:K$199)+SUMIF('C Report'!$A$300:$A$399,'C Report Grouper'!$D30,'C Report'!K$300:K$399),SUMIF('C Report'!$A$100:$A$199,'C Report Grouper'!$D30,'C Report'!K$100:K$199)) -> 0 | N30: =IF($D$4="MAP+ADM Waivers",SUMIF('C Report'!$A$100:$A$199,'C Report Grouper'!$D30,'C Report'!L$100:L$199)+SUMIF('C Report'!$A$300:$A$399,'C Report Grouper'!$D30,'C Report'!L$300:L$399),SUMIF('C Report'!$A$100:$A$199,'C Report Grouper'!$D30,'C Report'!L$100:L$199)) -> 0 | O30: =IF($D$4="MAP+ADM Waivers",SUMIF('C Report'!$A$100:$A$199,'C Report Grouper'!$D30,'C Report'!M$100:M$199)+SUMIF('C Report'!$A$300:$A$399,'C Report Grouper'!$D30,'C Report'!M$300:M$399),SUMIF('C Report'!$A$100:$A$199,'C Report Grouper'!$D30,'C Report'!M$100:M$199)) -> 0 | P30: =IF($D$4="MAP+ADM Waivers",SUMIF('C Report'!$A$100:$A$199,'C Report Grouper'!$D30,'C Report'!N$100:N$199)+SUMIF('C Report'!$A$300:$A$399,'C Report Grouper'!$D30,'C Report'!N$300:N$399),SUMIF('C Report'!$A$100:$A$199,'C Report Grouper'!$D30,'C Report'!N$100:N$199)) -> 0 | Q30: =IF($D$4="MAP+ADM Waivers",SUMIF('C Report'!$A$100:$A$199,'C Report Grouper'!$D30,'C Report'!O$100:O$199)+SUMIF('C Report'!$A$300:$A$399,'C Report Grouper'!$D30,'C Report'!O$300:O$399),SUMIF('C Report'!$A$100:$A$199,'C Report Grouper'!$D30,'C Report'!O$100:O$199)) -> 0 | R30: =IF($D$4="MAP+ADM Waivers",SUMIF('C Report'!$A$100:$A$199,'C Report Grouper'!$D30,'C Report'!P$100:P$199)+SUMIF('C Report'!$A$300:$A$399,'C Report Grouper'!$D30,'C Report'!P$300:P$399),SUMIF('C Report'!$A$100:$A$199,'C Report Grouper'!$D30,'C Report'!P$100:P$199)) -> 0 | S30: =IF($D$4="MAP+ADM Waivers",SUMIF('C Report'!$A$100:$A$199,'C Report Grouper'!$D30,'C Report'!Q$100:Q$199)+SUMIF('C Report'!$A$300:$A$399,'C Report Grouper'!$D30,'C Report'!Q$300:Q$399),SUMIF('C Report'!$A$100:$A$199,'C Report Grouper'!$D30,'C Report'!Q$100:Q$199)) -> 0 | T30: =IF($D$4="MAP+ADM Waivers",SUMIF('C Report'!$A$100:$A$199,'C Report Grouper'!$D30,'C Report'!R$100:R$199)+SUMIF('C Report'!$A$300:$A$399,'C Report Grouper'!$D30,'C Report'!R$300:R$399),SUMIF('C Report'!$A$100:$A$199,'C Report Grouper'!$D30,'C Report'!R$100:R$199)) -> 0 | U30: =IF($D$4="MAP+ADM Waivers",SUMIF('C Report'!$A$100:$A$199,'C Report Grouper'!$D30,'C Report'!S$100:S$199)+SUMIF('C Report'!$A$300:$A$399,'C Report Grouper'!$D30,'C Report'!S$300:S$399),SUMIF('C Report'!$A$100:$A$199,'C Report Grouper'!$D30,'C Report'!S$100:S$199)) -> 0 | V30: =IF($D$4="MAP+ADM Waivers",SUMIF('C Report'!$A$100:$A$199,'C Report Grouper'!$D30,'C Report'!T$100:T$199)+SUMIF('C Report'!$A$300:$A$399,'C Report Grouper'!$D30,'C Report'!T$300:T$399),SUMIF('C Report'!$A$100:$A$199,'C Report Grouper'!$D30,'C Report'!T$100:T$199)) -> 0 | W30: =IF($D$4="MAP+ADM Waivers",SUMIF('C Report'!$A$100:$A$199,'C Report Grouper'!$D30,'C Report'!U$100:U$199)+SUMIF('C Report'!$A$300:$A$399,'C Report Grouper'!$D30,'C Report'!U$300:U$399),SUMIF('C Report'!$A$100:$A$199,'C Report Grouper'!$D30,'C Report'!U$100:U$199)) -> 0 | X30: =IF($D$4="MAP+ADM Waivers",SUMIF('C Report'!$A$100:$A$199,'C Report Grouper'!$D30,'C Report'!V$100:V$199)+SUMIF('C Report'!$A$300:$A$399,'C Report Grouper'!$D30,'C Report'!V$300:V$399),SUMIF('C Report'!$A$100:$A$199,'C Report Grouper'!$D30,'C Report'!V$100:V$199)) -> 0 | Y30: =IF($D$4="MAP+ADM Waivers",SUMIF('C Report'!$A$100:$A$199,'C Report Grouper'!$D30,'C Report'!W$100:W$199)+SUMIF('C Report'!$A$300:$A$399,'C Report Grouper'!$D30,'C Report'!W$300:W$399),SUMIF('C Report'!$A$100:$A$199,'C Report Grouper'!$D30,'C Report'!W$100:W$199)) -> 0 | Z30: =IF($D$4="MAP+ADM Waivers",SUMIF('C Report'!$A$100:$A$199,'C Report Grouper'!$D30,'C Report'!X$100:X$199)+SUMIF('C Report'!$A$300:$A$399,'C Report Grouper'!$D30,'C Report'!X$300:X$399),SUMIF('C Report'!$A$100:$A$199,'C Report Grouper'!$D30,'C Report'!X$100:X$199)) -> 0 | AA30: =IF($D$4="MAP+ADM Waivers",SUMIF('C Report'!$A$100:$A$199,'C Report Grouper'!$D30,'C Report'!Y$100:Y$199)+SUMIF('C Report'!$A$300:$A$399,'C Report Grouper'!$D30,'C Report'!Y$300:Y$399),SUMIF('C Report'!$A$100:$A$199,'C Report Grouper'!$D30,'C Report'!Y$100:Y$199)) -> 0 | AB30: =IF($D$4="MAP+ADM Waivers",SUMIF('C Report'!$A$100:$A$199,'C Report Grouper'!$D30,'C Report'!Z$100:Z$199)+SUMIF('C Report'!$A$300:$A$399,'C Report Grouper'!$D30,'C Report'!Z$300:Z$399),SUMIF('C Report'!$A$100:$A$199,'C Report Grouper'!$D30,'C Report'!Z$100:Z$199)) -> 0 | AC30: =IF($D$4="MAP+ADM Waivers",SUMIF('C Report'!$A$100:$A$199,'C Report Grouper'!$D30,'C Report'!AA$100:AA$199)+SUMIF('C Report'!$A$300:$A$399,'C Report Grouper'!$D30,'C Report'!AA$300:AA$399),SUMIF('C Report'!$A$100:$A$199,'C Report Grouper'!$D30,'C Report'!AA$100:AA$199)) -> 0 | AD30: =IF($D$4="MAP+ADM Waivers",SUMIF('C Report'!$A$100:$A$199,'C Report Grouper'!$D30,'C Report'!AB$100:AB$199)+SUMIF('C Report'!$A$300:$A$399,'C Report Grouper'!$D30,'C Report'!AB$300:AB$399),SUMIF('C Report'!$A$100:$A$199,'C Report Grouper'!$D30,'C Report'!AB$100:AB$199)) -> 0 | AE30: =IF($D$4="MAP+ADM Waivers",SUMIF('C Report'!$A$100:$A$199,'C Report Grouper'!$D30,'C Report'!AC$100:AC$199)+SUMIF('C Report'!$A$300:$A$399,'C Report Grouper'!$D30,'C Report'!AC$300:AC$399),SUMIF('C Report'!$A$100:$A$199,'C Report Grouper'!$D30,'C Report'!AC$100:AC$199)) -> 0 | AF30: =IF($D$4="MAP+ADM Waivers",SUMIF('C Report'!$A$100:$A$199,'C Report Grouper'!$D30,'C Report'!AD$100:AD$199)+SUMIF('C Report'!$A$300:$A$399,'C Report Grouper'!$D30,'C Report'!AD$300:AD$399),SUMIF('C Report'!$A$100:$A$199,'C Report Grouper'!$D30,'C Report'!AD$100:AD$199)) -> 0 | AG30: =IF($D$4="MAP+ADM Waivers",SUMIF('C Report'!$A$100:$A$199,'C Report Grouper'!$D30,'C Report'!AE$100:AE$199)+SUMIF('C Report'!$A$300:$A$399,'C Report Grouper'!$D30,'C Report'!AE$300:AE$399),SUMIF('C Report'!$A$100:$A$199,'C Report Grouper'!$D30,'C Report'!AE$100:AE$199)) -> 0 | AH30: =IF($D$4="MAP+ADM Waivers",SUMIF('C Report'!$A$100:$A$199,'C Report Grouper'!$D30,'C Report'!AF$100:AF$199)+SUMIF('C Report'!$A$300:$A$399,'C Report Grouper'!$D30,'C Report'!AF$300:AF$399),SUMIF('C Report'!$A$100:$A$199,'C Report Grouper'!$D30,'C Report'!AF$100:AF$199)) -> 0
B31: =IFERROR(VLOOKUP(C31,'MEG Def'!$A$42:$B$45,2),"") -> Plan First | C31: 1 | D31: Plan First | E31: =IF($D$4="MAP+ADM Waivers",SUMIF('C Report'!$A$100:$A$199,'C Report Grouper'!$D31,'C Report'!C$100:C$199)+SUMIF('C Report'!$A$300:$A$399,'C Report Grouper'!$D31,'C Report'!C$300:C$399),SUMIF('C Report'!$A$100:$A$199,'C Report Grouper'!$D31,'C Report'!C$100:C$199)) -> 397 | F31: =IF($D$4="MAP+ADM Waivers",SUMIF('C Report'!$A$100:$A$199,'C Report Grouper'!$D31,'C Report'!D$100:D$199)+SUMIF('C Report'!$A$300:$A$399,'C Report Grouper'!$D31,'C Report'!D$300:D$399),SUMIF('C Report'!$A$100:$A$199,'C Report Grouper'!$D31,'C Report'!D$100:D$199)) -> 797819 | G31: =IF($D$4="MAP+ADM Waivers",SUMIF('C Report'!$A$100:$A$199,'C Report Grouper'!$D31,'C Report'!E$100:E$199)+SUMIF('C Report'!$A$300:$A$399,'C Report Grouper'!$D31,'C Report'!E$300:E$399),SUMIF('C Report'!$A$100:$A$199,'C Report Grouper'!$D31,'C Report'!E$100:E$199)) -> 1677014 | H31: =IF($D$4="MAP+ADM Waivers",SUMIF('C Report'!$A$100:$A$199,'C Report Grouper'!$D31,'C Report'!F$100:F$199)+SUMIF('C Report'!$A$300:$A$399,'C Report Grouper'!$D31,'C Report'!F$300:F$399),SUMIF('C Report'!$A$100:$A$199,'C Report Grouper'!$D31,'C Report'!F$100:F$199)) -> 889798 | I31: =IF($D$4="MAP+ADM Waivers",SUMIF('C Report'!$A$100:$A$199,'C Report Grouper'!$D31,'C Report'!G$100:G$199)+SUMIF('C Report'!$A$300:$A$399,'C Report Grouper'!$D31,'C Report'!G$300:G$399),SUMIF('C Report'!$A$100:$A$199,'C Report Grouper'!$D31,'C Report'!G$100:G$199)) -> 614818 | J31: =IF($D$4="MAP+ADM Waivers",SUMIF('C Report'!$A$100:$A$199,'C Report Grouper'!$D31,'C Report'!H$100:H$199)+SUMIF('C Report'!$A$300:$A$399,'C Report Grouper'!$D31,'C Report'!H$300:H$399),SUMIF('C Report'!$A$100:$A$199,'C Report Grouper'!$D31,'C Report'!H$100:H$199)) -> 394193 | K31: =IF($D$4="MAP+ADM Waivers",SUMIF('C Report'!$A$100:$A$199,'C Report Grouper'!$D31,'C Report'!I$100:I$199)+SUMIF('C Report'!$A$300:$A$399,'C Report Grouper'!$D31,'C Report'!I$300:I$399),SUMIF('C Report'!$A$100:$A$199,'C Report Grouper'!$D31,'C Report'!I$100:I$199)) -> 276117 | L31: =IF($D$4="MAP+ADM Waivers",SUMIF('C Report'!$A$100:$A$199,'C Report Grouper'!$D31,'C Report'!J$100:J$199)+SUMIF('C Report'!$A$300:$A$399,'C Report Grouper'!$D31,'C Report'!J$300:J$399),SUMIF('C Report'!$A$100:$A$199,'C Report Grouper'!$D31,'C Report'!J$100:J$199)) -> 237862 | M31: =IF($D$4="MAP+ADM Waivers",SUMIF('C Report'!$A$100:$A$199,'C Report Grouper'!$D31,'C Report'!K$100:K$199)+SUMIF('C Report'!$A$300:$A$399,'C Report Grouper'!$D31,'C Report'!K$300:K$399),SUMIF('C Report'!$A$100:$A$199,'C Report Grouper'!$D31,'C Report'!K$100:K$199)) -> 226560 | N31: =IF($D$4="MAP+ADM Waivers",SUMIF('C Report'!$A$100:$A$199,'C Report Grouper'!$D31,'C Report'!L$100:L$199)+SUMIF('C Report'!$A$300:$A$399,'C Report Grouper'!$D31,'C Report'!L$300:L$399),SUMIF('C Report'!$A$100:$A$199,'C Report Grouper'!$D31,'C Report'!L$100:L$199)) -> 185164 | O31: =IF($D$4="MAP+ADM Waivers",SUMIF('C Report'!$A$100:$A$199,'C Report Grouper'!$D31,'C Report'!M$100:M$199)+SUMIF('C Report'!$A$300:$A$399,'C Report Grouper'!$D31,'C Report'!M$300:M$399),SUMIF('C Report'!$A$100:$A$199,'C Report Grouper'!$D31,'C Report'!M$100:M$199)) -> 162483 | P31: =IF($D$4="MAP+ADM Waivers",SUMIF('C Report'!$A$100:$A$199,'C Report Grouper'!$D31,'C Report'!N$100:N$199)+SUMIF('C Report'!$A$300:$A$399,'C Report Grouper'!$D31,'C Report'!N$300:N$399),SUMIF('C Report'!$A$100:$A$199,'C Report Grouper'!$D31,'C Report'!N$100:N$199)) -> 175163 | Q31: =IF($D$4="MAP+ADM Waivers",SUMIF('C Report'!$A$100:$A$199,'C Report Grouper'!$D31,'C Report'!O$100:O$199)+SUMIF('C Report'!$A$300:$A$399,'C Report Grouper'!$D31,'C Report'!O$300:O$399),SUMIF('C Report'!$A$100:$A$199,'C Report Grouper'!$D31,'C Report'!O$100:O$199)) -> 231257 | R31: =IF($D$4="MAP+ADM Waivers",SUMIF('C Report'!$A$100:$A$199,'C Report Grouper'!$D31,'C Report'!P$100:P$199)+SUMIF('C Report'!$A$300:$A$399,'C Report Grouper'!$D31,'C Report'!P$300:P$399),SUMIF('C Report'!$A$100:$A$199,'C Report Grouper'!$D31,'C Report'!P$100:P$199)) -> 0 | S31: =IF($D$4="MAP+ADM Waivers",SUMIF('C Report'!$A$100:$A$199,'C Report Grouper'!$D31,'C Report'!Q$100:Q$199)+SUMIF('C Report'!$A$300:$A$399,'C Report Grouper'!$D31,'C Report'!Q$300:Q$399),SUMIF('C Report'!$A$100:$A$199,'C Report Grouper'!$D31,'C Report'!Q$100:Q$199)) -> 0 | T31: =IF($D$4="MAP+ADM Waivers",SUMIF('C Report'!$A$100:$A$199,'C Report Grouper'!$D31,'C Report'!R$100:R$199)+SUMIF('C Report'!$A$300:$A$399,'C Report Grouper'!$D31,'C Report'!R$300:R$399),SUMIF('C Report'!$A$100:$A$199,'C Report Grouper'!$D31,'C Report'!R$100:R$199)) -> 0 | U31: =IF($D$4="MAP+ADM Waivers",SUMIF('C Report'!$A$100:$A$199,'C Report Grouper'!$D31,'C Report'!S$100:S$199)+SUMIF('C Report'!$A$300:$A$399,'C Report Grouper'!$D31,'C Report'!S$300:S$399),SUMIF('C Report'!$A$100:$A$199,'C Report Grouper'!$D31,'C Report'!S$100:S$199)) -> 0 | V31: =IF($D$4="MAP+ADM Waivers",SUMIF('C Report'!$A$100:$A$199,'C Report Grouper'!$D31,'C Report'!T$100:T$199)+SUMIF('C Report'!$A$300:$A$399,'C Report Grouper'!$D31,'C Report'!T$300:T$399),SUMIF('C Report'!$A$100:$A$199,'C Report Grouper'!$D31,'C Report'!T$100:T$199)) -> 0 | W31: =IF($D$4="MAP+ADM Waivers",SUMIF('C Report'!$A$100:$A$199,'C Report Grouper'!$D31,'C Report'!U$100:U$199)+SUMIF('C Report'!$A$300:$A$399,'C Report Grouper'!$D31,'C Report'!U$300:U$399),SUMIF('C Report'!$A$100:$A$199,'C Report Grouper'!$D31,'C Report'!U$100:U$199)) -> 0 | X31: =IF($D$4="MAP+ADM Waivers",SUMIF('C Report'!$A$100:$A$199,'C Report Grouper'!$D31,'C Report'!V$100:V$199)+SUMIF('C Report'!$A$300:$A$399,'C Report Grouper'!$D31,'C Report'!V$300:V$399),SUMIF('C Report'!$A$100:$A$199,'C Report Grouper'!$D31,'C Report'!V$100:V$199)) -> 0 | Y31: =IF($D$4="MAP+ADM Waivers",SUMIF('C Report'!$A$100:$A$199,'C Report Grouper'!$D31,'C Report'!W$100:W$199)+SUMIF('C Report'!$A$300:$A$399,'C Report Grouper'!$D31,'C Report'!W$300:W$399),SUMIF('C Report'!$A$100:$A$199,'C Report Grouper'!$D31,'C Report'!W$100:W$199)) -> 0 | Z31: =IF($D$4="MAP+ADM Waivers",SUMIF('C Report'!$A$100:$A$199,'C Report Grouper'!$D31,'C Report'!X$100:X$199)+SUMIF('C Report'!$A$300:$A$399,'C Report Grouper'!$D31,'C Report'!X$300:X$399),SUMIF('C Report'!$A$100:$A$199,'C Report Grouper'!$D31,'C Report'!X$100:X$199)) -> 0 | AA31: =IF($D$4="MAP+ADM Waivers",SUMIF('C Report'!$A$100:$A$199,'C Report Grouper'!$D31,'C Report'!Y$100:Y$199)+SUMIF('C Report'!$A$300:$A$399,'C Report Grouper'!$D31,'C Report'!Y$300:Y$399),SUMIF('C Report'!$A$100:$A$199,'C Report Grouper'!$D31,'C Report'!Y$100:Y$199)) -> 0 | AB31: =IF($D$4="MAP+ADM Waivers",SUMIF('C Report'!$A$100:$A$199,'C Report Grouper'!$D31,'C Report'!Z$100:Z$199)+SUMIF('C Report'!$A$300:$A$399,'C Report Grouper'!$D31,'C Report'!Z$300:Z$399),SUMIF('C Report'!$A$100:$A$199,'C Report Grouper'!$D31,'C Report'!Z$100:Z$199)) -> 0 | AC31: =IF($D$4="MAP+ADM Waivers",SUMIF('C Report'!$A$100:$A$199,'C Report Grouper'!$D31,'C Report'!AA$100:AA$199)+SUMIF('C Report'!$A$300:$A$399,'C Report Grouper'!$D31,'C Report'!AA$300:AA$399),SUMIF('C Report'!$A$100:$A$199,'C Report Grouper'!$D31,'C Report'!AA$100:AA$199)) -> 0 | AD31: =IF($D$4="MAP+ADM Waivers",SUMIF('C Report'!$A$100:$A$199,'C Report Grouper'!$D31,'C Report'!AB$100:AB$199)+SUMIF('C Report'!$A$300:$A$399,'C Report Grouper'!$D31,'C Report'!AB$300:AB$399),SUMIF('C Report'!$A$100:$A$199,'C Report Grouper'!$D31,'C Report'!AB$100:AB$199)) -> 0 | AE31: =IF($D$4="MAP+ADM Waivers",SUMIF('C Report'!$A$100:$A$199,'C Report Grouper'!$D31,'C Report'!AC$100:AC$199)+SUMIF('C Report'!$A$300:$A$399,'C Report Grouper'!$D31,'C Report'!AC$300:AC$399),SUMIF('C Report'!$A$100:$A$199,'C Report Grouper'!$D31,'C Report'!AC$100:AC$199)) -> 0 | AF31: =IF($D$4="MAP+ADM Waivers",SUMIF('C Report'!$A$100:$A$199,'C Report Grouper'!$D31,'C Report'!AD$100:AD$199)+SUMIF('C Report'!$A$300:$A$399,'C Report Grouper'!$D31,'C Report'!AD$300:AD$399),SUMIF('C Report'!$A$100:$A$199,'C Report Grouper'!$D31,'C Report'!AD$100:AD$199)) -> 0 | AG31: =IF($D$4="MAP+ADM Waivers",SUMIF('C Report'!$A$100:$A$199,'C Report Grouper'!$D31,'C Report'!AE$100:AE$199)+SUMIF('C Report'!$A$300:$A$399,'C Report Grouper'!$D31,'C Report'!AE$300:AE$399),SUMIF('C Report'!$A$100:$A$199,'C Report Grouper'!$D31,'C Report'!AE$100:AE$199)) -> 0 | AH31: =IF($D$4="MAP+ADM Waivers",SUMIF('C Report'!$A$100:$A$199,'C Report Grouper'!$D31,'C Report'!AF$100:AF$199)+SUMIF('C Report'!$A$300:$A$399,'C Report Grouper'!$D31,'C Report'!AF$300:AF$399),SUMIF('C Report'!$A$100:$A$199,'C Report Grouper'!$D31,'C Report'!AF$100:AF$199)) -> 0
B32: =IFERROR(VLOOKUP(C32,'MEG Def'!$A$42:$B$45,2),"") ->  | E32: =IF($D$4="MAP+ADM Waivers",SUMIF('C Report'!$A$100:$A$199,'C Report Grouper'!$D32,'C Report'!C$100:C$199)+SUMIF('C Report'!$A$300:$A$399,'C Report Grouper'!$D32,'C Report'!C$300:C$399),SUMIF('C Report'!$A$100:$A$199,'C Report Grouper'!$D32,'C Report'!C$100:C$199)) -> 0 | F32: =IF($D$4="MAP+ADM Waivers",SUMIF('C Report'!$A$100:$A$199,'C Report Grouper'!$D32,'C Report'!D$100:D$199)+SUMIF('C Report'!$A$300:$A$399,'C Report Grouper'!$D32,'C Report'!D$300:D$399),SUMIF('C Report'!$A$100:$A$199,'C Report Grouper'!$D32,'C Report'!D$100:D$199)) -> 0 | G32: =IF($D$4="MAP+ADM Waivers",SUMIF('C Report'!$A$100:$A$199,'C Report Grouper'!$D32,'C Report'!E$100:E$199)+SUMIF('C Report'!$A$300:$A$399,'C Report Grouper'!$D32,'C Report'!E$300:E$399),SUMIF('C Report'!$A$100:$A$199,'C Report Grouper'!$D32,'C Report'!E$100:E$199)) -> 0 | H32: =IF($D$4="MAP+ADM Waivers",SUMIF('C Report'!$A$100:$A$199,'C Report Grouper'!$D32,'C Report'!F$100:F$199)+SUMIF('C Report'!$A$300:$A$399,'C Report Grouper'!$D32,'C Report'!F$300:F$399),SUMIF('C Report'!$A$100:$A$199,'C Report Grouper'!$D32,'C Report'!F$100:F$199)) -> 0 | I32: =IF($D$4="MAP+ADM Waivers",SUMIF('C Report'!$A$100:$A$199,'C Report Grouper'!$D32,'C Report'!G$100:G$199)+SUMIF('C Report'!$A$300:$A$399,'C Report Grouper'!$D32,'C Report'!G$300:G$399),SUMIF('C Report'!$A$100:$A$199,'C Report Grouper'!$D32,'C Report'!G$100:G$199)) -> 0 | J32: =IF($D$4="MAP+ADM Waivers",SUMIF('C Report'!$A$100:$A$199,'C Report Grouper'!$D32,'C Report'!H$100:H$199)+SUMIF('C Report'!$A$300:$A$399,'C Report Grouper'!$D32,'C Report'!H$300:H$399),SUMIF('C Report'!$A$100:$A$199,'C Report Grouper'!$D32,'C Report'!H$100:H$199)) -> 0 | K32: =IF($D$4="MAP+ADM Waivers",SUMIF('C Report'!$A$100:$A$199,'C Report Grouper'!$D32,'C Report'!I$100:I$199)+SUMIF('C Report'!$A$300:$A$399,'C Report Grouper'!$D32,'C Report'!I$300:I$399),SUMIF('C Report'!$A$100:$A$199,'C Report Grouper'!$D32,'C Report'!I$100:I$199)) -> 0 | L32: =IF($D$4="MAP+ADM Waivers",SUMIF('C Report'!$A$100:$A$199,'C Report Grouper'!$D32,'C Report'!J$100:J$199)+SUMIF('C Report'!$A$300:$A$399,'C Report Grouper'!$D32,'C Report'!J$300:J$399),SUMIF('C Report'!$A$100:$A$199,'C Report Grouper'!$D32,'C Report'!J$100:J$199)) -> 0 | M32: =IF($D$4="MAP+ADM Waivers",SUMIF('C Report'!$A$100:$A$199,'C Report Grouper'!$D32,'C Report'!K$100:K$199)+SUMIF('C Report'!$A$300:$A$399,'C Report Grouper'!$D32,'C Report'!K$300:K$399),SUMIF('C Report'!$A$100:$A$199,'C Report Grouper'!$D32,'C Report'!K$100:K$199)) -> 0 | N32: =IF($D$4="MAP+ADM Waivers",SUMIF('C Report'!$A$100:$A$199,'C Report Grouper'!$D32,'C Report'!L$100:L$199)+SUMIF('C Report'!$A$300:$A$399,'C Report Grouper'!$D32,'C Report'!L$300:L$399),SUMIF('C Report'!$A$100:$A$199,'C Report Grouper'!$D32,'C Report'!L$100:L$199)) -> 0 | O32: =IF($D$4="MAP+ADM Waivers",SUMIF('C Report'!$A$100:$A$199,'C Report Grouper'!$D32,'C Report'!M$100:M$199)+SUMIF('C Report'!$A$300:$A$399,'C Report Grouper'!$D32,'C Report'!M$300:M$399),SUMIF('C Report'!$A$100:$A$199,'C Report Grouper'!$D32,'C Report'!M$100:M$199)) -> 0 | P32: =IF($D$4="MAP+ADM Waivers",SUMIF('C Report'!$A$100:$A$199,'C Report Grouper'!$D32,'C Report'!N$100:N$199)+SUMIF('C Report'!$A$300:$A$399,'C Report Grouper'!$D32,'C Report'!N$300:N$399),SUMIF('C Report'!$A$100:$A$199,'C Report Grouper'!$D32,'C Report'!N$100:N$199)) -> 0 | Q32: =IF($D$4="MAP+ADM Waivers",SUMIF('C Report'!$A$100:$A$199,'C Report Grouper'!$D32,'C Report'!O$100:O$199)+SUMIF('C Report'!$A$300:$A$399,'C Report Grouper'!$D32,'C Report'!O$300:O$399),SUMIF('C Report'!$A$100:$A$199,'C Report Grouper'!$D32,'C Report'!O$100:O$199)) -> 0 | R32: =IF($D$4="MAP+ADM Waivers",SUMIF('C Report'!$A$100:$A$199,'C Report Grouper'!$D32,'C Report'!P$100:P$199)+SUMIF('C Report'!$A$300:$A$399,'C Report Grouper'!$D32,'C Report'!P$300:P$399),SUMIF('C Report'!$A$100:$A$199,'C Report Grouper'!$D32,'C Report'!P$100:P$199)) -> 0 | S32: =IF($D$4="MAP+ADM Waivers",SUMIF('C Report'!$A$100:$A$199,'C Report Grouper'!$D32,'C Report'!Q$100:Q$199)+SUMIF('C Report'!$A$300:$A$399,'C Report Grouper'!$D32,'C Report'!Q$300:Q$399),SUMIF('C Report'!$A$100:$A$199,'C Report Grouper'!$D32,'C Report'!Q$100:Q$199)) -> 0 | T32: =IF($D$4="MAP+ADM Waivers",SUMIF('C Report'!$A$100:$A$199,'C Report Grouper'!$D32,'C Report'!R$100:R$199)+SUMIF('C Report'!$A$300:$A$399,'C Report Grouper'!$D32,'C Report'!R$300:R$399),SUMIF('C Report'!$A$100:$A$199,'C Report Grouper'!$D32,'C Report'!R$100:R$199)) -> 0 | U32: =IF($D$4="MAP+ADM Waivers",SUMIF('C Report'!$A$100:$A$199,'C Report Grouper'!$D32,'C Report'!S$100:S$199)+SUMIF('C Report'!$A$300:$A$399,'C Report Grouper'!$D32,'C Report'!S$300:S$399),SUMIF('C Report'!$A$100:$A$199,'C Report Grouper'!$D32,'C Report'!S$100:S$199)) -> 0 | V32: =IF($D$4="MAP+ADM Waivers",SUMIF('C Report'!$A$100:$A$199,'C Report Grouper'!$D32,'C Report'!T$100:T$199)+SUMIF('C Report'!$A$300:$A$399,'C Report Grouper'!$D32,'C Report'!T$300:T$399),SUMIF('C Report'!$A$100:$A$199,'C Report Grouper'!$D32,'C Report'!T$100:T$199)) -> 0 | W32: =IF($D$4="MAP+ADM Waivers",SUMIF('C Report'!$A$100:$A$199,'C Report Grouper'!$D32,'C Report'!U$100:U$199)+SUMIF('C Report'!$A$300:$A$399,'C Report Grouper'!$D32,'C Report'!U$300:U$399),SUMIF('C Report'!$A$100:$A$199,'C Report Grouper'!$D32,'C Report'!U$100:U$199)) -> 0 | X32: =IF($D$4="MAP+ADM Waivers",SUMIF('C Report'!$A$100:$A$199,'C Report Grouper'!$D32,'C Report'!V$100:V$199)+SUMIF('C Report'!$A$300:$A$399,'C Report Grouper'!$D32,'C Report'!V$300:V$399),SUMIF('C Report'!$A$100:$A$199,'C Report Grouper'!$D32,'C Report'!V$100:V$199)) -> 0 | Y32: =IF($D$4="MAP+ADM Waivers",SUMIF('C Report'!$A$100:$A$199,'C Report Grouper'!$D32,'C Report'!W$100:W$199)+SUMIF('C Report'!$A$300:$A$399,'C Report Grouper'!$D32,'C Report'!W$300:W$399),SUMIF('C Report'!$A$100:$A$199,'C Report Grouper'!$D32,'C Report'!W$100:W$199)) -> 0 | Z32: =IF($D$4="MAP+ADM Waivers",SUMIF('C Report'!$A$100:$A$199,'C Report Grouper'!$D32,'C Report'!X$100:X$199)+SUMIF('C Report'!$A$300:$A$399,'C Report Grouper'!$D32,'C Report'!X$300:X$399),SUMIF('C Report'!$A$100:$A$199,'C Report Grouper'!$D32,'C Report'!X$100:X$199)) -> 0 | AA32: =IF($D$4="MAP+ADM Waivers",SUMIF('C Report'!$A$100:$A$199,'C Report Grouper'!$D32,'C Report'!Y$100:Y$199)+SUMIF('C Report'!$A$300:$A$399,'C Report Grouper'!$D32,'C Report'!Y$300:Y$399),SUMIF('C Report'!$A$100:$A$199,'C Report Grouper'!$D32,'C Report'!Y$100:Y$199)) -> 0 | AB32: =IF($D$4="MAP+ADM Waivers",SUMIF('C Report'!$A$100:$A$199,'C Report Grouper'!$D32,'C Report'!Z$100:Z$199)+SUMIF('C Report'!$A$300:$A$399,'C Report Grouper'!$D32,'C Report'!Z$300:Z$399),SUMIF('C Report'!$A$100:$A$199,'C Report Grouper'!$D32,'C Report'!Z$100:Z$199)) -> 0 | AC32: =IF($D$4="MAP+ADM Waivers",SUMIF('C Report'!$A$100:$A$199,'C Report Grouper'!$D32,'C Report'!AA$100:AA$199)+SUMIF('C Report'!$A$300:$A$399,'C Report Grouper'!$D32,'C Report'!AA$300:AA$399),SUMIF('C Report'!$A$100:$A$199,'C Report Grouper'!$D32,'C Report'!AA$100:AA$199)) -> 0 | AD32: =IF($D$4="MAP+ADM Waivers",SUMIF('C Report'!$A$100:$A$199,'C Report Grouper'!$D32,'C Report'!AB$100:AB$199)+SUMIF('C Report'!$A$300:$A$399,'C Report Grouper'!$D32,'C Report'!AB$300:AB$399),SUMIF('C Report'!$A$100:$A$199,'C Report Grouper'!$D32,'C Report'!AB$100:AB$199)) -> 0 | AE32: =IF($D$4="MAP+ADM Waivers",SUMIF('C Report'!$A$100:$A$199,'C Report Grouper'!$D32,'C Report'!AC$100:AC$199)+SUMIF('C Report'!$A$300:$A$399,'C Report Grouper'!$D32,'C Report'!AC$300:AC$399),SUMIF('C Report'!$A$100:$A$199,'C Report Grouper'!$D32,'C Report'!AC$100:AC$199)) -> 0 | AF32: =IF($D$4="MAP+ADM Waivers",SUMIF('C Report'!$A$100:$A$199,'C Report Grouper'!$D32,'C Report'!AD$100:AD$199)+SUMIF('C Report'!$A$300:$A$399,'C Report Grouper'!$D32,'C Report'!AD$300:AD$399),SUMIF('C Report'!$A$100:$A$199,'C Report Grouper'!$D32,'C Report'!AD$100:AD$199)) -> 0 | AG32: =IF($D$4="MAP+ADM Waivers",SUMIF('C Report'!$A$100:$A$199,'C Report Grouper'!$D32,'C Report'!AE$100:AE$199)+SUMIF('C Report'!$A$300:$A$399,'C Report Grouper'!$D32,'C Report'!AE$300:AE$399),SUMIF('C Report'!$A$100:$A$199,'C Report Grouper'!$D32,'C Report'!AE$100:AE$199)) -> 0 | AH32: =IF($D$4="MAP+ADM Waivers",SUMIF('C Report'!$A$100:$A$199,'C Report Grouper'!$D32,'C Report'!AF$100:AF$199)+SUMIF('C Report'!$A$300:$A$399,'C Report Grouper'!$D32,'C Report'!AF$300:AF$399),SUMIF('C Report'!$A$100:$A$199,'C Report Grouper'!$D32,'C Report'!AF$100:AF$199)) -> 0
B33: =IFERROR(VLOOKUP(C33,'MEG Def'!$A$42:$B$45,2),"") ->  | E33: =IF($D$4="MAP+ADM Waivers",SUMIF('C Report'!$A$100:$A$199,'C Report Grouper'!$D33,'C Report'!C$100:C$199)+SUMIF('C Report'!$A$300:$A$399,'C Report Grouper'!$D33,'C Report'!C$300:C$399),SUMIF('C Report'!$A$100:$A$199,'C Report Grouper'!$D33,'C Report'!C$100:C$199)) -> 0 | F33: =IF($D$4="MAP+ADM Waivers",SUMIF('C Report'!$A$100:$A$199,'C Report Grouper'!$D33,'C Report'!D$100:D$199)+SUMIF('C Report'!$A$300:$A$399,'C Report Grouper'!$D33,'C Report'!D$300:D$399),SUMIF('C Report'!$A$100:$A$199,'C Report Grouper'!$D33,'C Report'!D$100:D$199)) -> 0 | G33: =IF($D$4="MAP+ADM Waivers",SUMIF('C Report'!$A$100:$A$199,'C Report Grouper'!$D33,'C Report'!E$100:E$199)+SUMIF('C Report'!$A$300:$A$399,'C Report Grouper'!$D33,'C Report'!E$300:E$399),SUMIF('C Report'!$A$100:$A$199,'C Report Grouper'!$D33,'C Report'!E$100:E$199)) -> 0 | H33: =IF($D$4="MAP+ADM Waivers",SUMIF('C Report'!$A$100:$A$199,'C Report Grouper'!$D33,'C Report'!F$100:F$199)+SUMIF('C Report'!$A$300:$A$399,'C Report Grouper'!$D33,'C Report'!F$300:F$399),SUMIF('C Report'!$A$100:$A$199,'C Report Grouper'!$D33,'C Report'!F$100:F$199)) -> 0 | I33: =IF($D$4="MAP+ADM Waivers",SUMIF('C Report'!$A$100:$A$199,'C Report Grouper'!$D33,'C Report'!G$100:G$199)+SUMIF('C Report'!$A$300:$A$399,'C Report Grouper'!$D33,'C Report'!G$300:G$399),SUMIF('C Report'!$A$100:$A$199,'C Report Grouper'!$D33,'C Report'!G$100:G$199)) -> 0 | J33: =IF($D$4="MAP+ADM Waivers",SUMIF('C Report'!$A$100:$A$199,'C Report Grouper'!$D33,'C Report'!H$100:H$199)+SUMIF('C Report'!$A$300:$A$399,'C Report Grouper'!$D33,'C Report'!H$300:H$399),SUMIF('C Report'!$A$100:$A$199,'C Report Grouper'!$D33,'C Report'!H$100:H$199)) -> 0 | K33: =IF($D$4="MAP+ADM Waivers",SUMIF('C Report'!$A$100:$A$199,'C Report Grouper'!$D33,'C Report'!I$100:I$199)+SUMIF('C Report'!$A$300:$A$399,'C Report Grouper'!$D33,'C Report'!I$300:I$399),SUMIF('C Report'!$A$100:$A$199,'C Report Grouper'!$D33,'C Report'!I$100:I$199)) -> 0 | L33: =IF($D$4="MAP+ADM Waivers",SUMIF('C Report'!$A$100:$A$199,'C Report Grouper'!$D33,'C Report'!J$100:J$199)+SUMIF('C Report'!$A$300:$A$399,'C Report Grouper'!$D33,'C Report'!J$300:J$399),SUMIF('C Report'!$A$100:$A$199,'C Report Grouper'!$D33,'C Report'!J$100:J$199)) -> 0 | M33: =IF($D$4="MAP+ADM Waivers",SUMIF('C Report'!$A$100:$A$199,'C Report Grouper'!$D33,'C Report'!K$100:K$199)+SUMIF('C Report'!$A$300:$A$399,'C Report Grouper'!$D33,'C Report'!K$300:K$399),SUMIF('C Report'!$A$100:$A$199,'C Report Grouper'!$D33,'C Report'!K$100:K$199)) -> 0 | N33: =IF($D$4="MAP+ADM Waivers",SUMIF('C Report'!$A$100:$A$199,'C Report Grouper'!$D33,'C Report'!L$100:L$199)+SUMIF('C Report'!$A$300:$A$399,'C Report Grouper'!$D33,'C Report'!L$300:L$399),SUMIF('C Report'!$A$100:$A$199,'C Report Grouper'!$D33,'C Report'!L$100:L$199)) -> 0 | O33: =IF($D$4="MAP+ADM Waivers",SUMIF('C Report'!$A$100:$A$199,'C Report Grouper'!$D33,'C Report'!M$100:M$199)+SUMIF('C Report'!$A$300:$A$399,'C Report Grouper'!$D33,'C Report'!M$300:M$399),SUMIF('C Report'!$A$100:$A$199,'C Report Grouper'!$D33,'C Report'!M$100:M$199)) -> 0 | P33: =IF($D$4="MAP+ADM Waivers",SUMIF('C Report'!$A$100:$A$199,'C Report Grouper'!$D33,'C Report'!N$100:N$199)+SUMIF('C Report'!$A$300:$A$399,'C Report Grouper'!$D33,'C Report'!N$300:N$399),SUMIF('C Report'!$A$100:$A$199,'C Report Grouper'!$D33,'C Report'!N$100:N$199)) -> 0 | Q33: =IF($D$4="MAP+ADM Waivers",SUMIF('C Report'!$A$100:$A$199,'C Report Grouper'!$D33,'C Report'!O$100:O$199)+SUMIF('C Report'!$A$300:$A$399,'C Report Grouper'!$D33,'C Report'!O$300:O$399),SUMIF('C Report'!$A$100:$A$199,'C Report Grouper'!$D33,'C Report'!O$100:O$199)) -> 0 | R33: =IF($D$4="MAP+ADM Waivers",SUMIF('C Report'!$A$100:$A$199,'C Report Grouper'!$D33,'C Report'!P$100:P$199)+SUMIF('C Report'!$A$300:$A$399,'C Report Grouper'!$D33,'C Report'!P$300:P$399),SUMIF('C Report'!$A$100:$A$199,'C Report Grouper'!$D33,'C Report'!P$100:P$199)) -> 0 | S33: =IF($D$4="MAP+ADM Waivers",SUMIF('C Report'!$A$100:$A$199,'C Report Grouper'!$D33,'C Report'!Q$100:Q$199)+SUMIF('C Report'!$A$300:$A$399,'C Report Grouper'!$D33,'C Report'!Q$300:Q$399),SUMIF('C Report'!$A$100:$A$199,'C Report Grouper'!$D33,'C Report'!Q$100:Q$199)) -> 0 | T33: =IF($D$4="MAP+ADM Waivers",SUMIF('C Report'!$A$100:$A$199,'C Report Grouper'!$D33,'C Report'!R$100:R$199)+SUMIF('C Report'!$A$300:$A$399,'C Report Grouper'!$D33,'C Report'!R$300:R$399),SUMIF('C Report'!$A$100:$A$199,'C Report Grouper'!$D33,'C Report'!R$100:R$199)) -> 0 | U33: =IF($D$4="MAP+ADM Waivers",SUMIF('C Report'!$A$100:$A$199,'C Report Grouper'!$D33,'C Report'!S$100:S$199)+SUMIF('C Report'!$A$300:$A$399,'C Report Grouper'!$D33,'C Report'!S$300:S$399),SUMIF('C Report'!$A$100:$A$199,'C Report Grouper'!$D33,'C Report'!S$100:S$199)) -> 0 | V33: =IF($D$4="MAP+ADM Waivers",SUMIF('C Report'!$A$100:$A$199,'C Report Grouper'!$D33,'C Report'!T$100:T$199)+SUMIF('C Report'!$A$300:$A$399,'C Report Grouper'!$D33,'C Report'!T$300:T$399),SUMIF('C Report'!$A$100:$A$199,'C Report Grouper'!$D33,'C Report'!T$100:T$199)) -> 0 | W33: =IF($D$4="MAP+ADM Waivers",SUMIF('C Report'!$A$100:$A$199,'C Report Grouper'!$D33,'C Report'!U$100:U$199)+SUMIF('C Report'!$A$300:$A$399,'C Report Grouper'!$D33,'C Report'!U$300:U$399),SUMIF('C Report'!$A$100:$A$199,'C Report Grouper'!$D33,'C Report'!U$100:U$199)) -> 0 | X33: =IF($D$4="MAP+ADM Waivers",SUMIF('C Report'!$A$100:$A$199,'C Report Grouper'!$D33,'C Report'!V$100:V$199)+SUMIF('C Report'!$A$300:$A$399,'C Report Grouper'!$D33,'C Report'!V$300:V$399),SUMIF('C Report'!$A$100:$A$199,'C Report Grouper'!$D33,'C Report'!V$100:V$199)) -> 0 | Y33: =IF($D$4="MAP+ADM Waivers",SUMIF('C Report'!$A$100:$A$199,'C Report Grouper'!$D33,'C Report'!W$100:W$199)+SUMIF('C Report'!$A$300:$A$399,'C Report Grouper'!$D33,'C Report'!W$300:W$399),SUMIF('C Report'!$A$100:$A$199,'C Report Grouper'!$D33,'C Report'!W$100:W$199)) -> 0 | Z33: =IF($D$4="MAP+ADM Waivers",SUMIF('C Report'!$A$100:$A$199,'C Report Grouper'!$D33,'C Report'!X$100:X$199)+SUMIF('C Report'!$A$300:$A$399,'C Report Grouper'!$D33,'C Report'!X$300:X$399),SUMIF('C Report'!$A$100:$A$199,'C Report Grouper'!$D33,'C Report'!X$100:X$199)) -> 0 | AA33: =IF($D$4="MAP+ADM Waivers",SUMIF('C Report'!$A$100:$A$199,'C Report Grouper'!$D33,'C Report'!Y$100:Y$199)+SUMIF('C Report'!$A$300:$A$399,'C Report Grouper'!$D33,'C Report'!Y$300:Y$399),SUMIF('C Report'!$A$100:$A$199,'C Report Grouper'!$D33,'C Report'!Y$100:Y$199)) -> 0 | AB33: =IF($D$4="MAP+ADM Waivers",SUMIF('C Report'!$A$100:$A$199,'C Report Grouper'!$D33,'C Report'!Z$100:Z$199)+SUMIF('C Report'!$A$300:$A$399,'C Report Grouper'!$D33,'C Report'!Z$300:Z$399),SUMIF('C Report'!$A$100:$A$199,'C Report Grouper'!$D33,'C Report'!Z$100:Z$199)) -> 0 | AC33: =IF($D$4="MAP+ADM Waivers",SUMIF('C Report'!$A$100:$A$199,'C Report Grouper'!$D33,'C Report'!AA$100:AA$199)+SUMIF('C Report'!$A$300:$A$399,'C Report Grouper'!$D33,'C Report'!AA$300:AA$399),SUMIF('C Report'!$A$100:$A$199,'C Report Grouper'!$D33,'C Report'!AA$100:AA$199)) -> 0 | AD33: =IF($D$4="MAP+ADM Waivers",SUMIF('C Report'!$A$100:$A$199,'C Report Grouper'!$D33,'C Report'!AB$100:AB$199)+SUMIF('C Report'!$A$300:$A$399,'C Report Grouper'!$D33,'C Report'!AB$300:AB$399),SUMIF('C Report'!$A$100:$A$199,'C Report Grouper'!$D33,'C Report'!AB$100:AB$199)) -> 0 | AE33: =IF($D$4="MAP+ADM Waivers",SUMIF('C Report'!$A$100:$A$199,'C Report Grouper'!$D33,'C Report'!AC$100:AC$199)+SUMIF('C Report'!$A$300:$A$399,'C Report Grouper'!$D33,'C Report'!AC$300:AC$399),SUMIF('C Report'!$A$100:$A$199,'C Report Grouper'!$D33,'C Report'!AC$100:AC$199)) -> 0 | AF33: =IF($D$4="MAP+ADM Waivers",SUMIF('C Report'!$A$100:$A$199,'C Report Grouper'!$D33,'C Report'!AD$100:AD$199)+SUMIF('C Report'!$A$300:$A$399,'C Report Grouper'!$D33,'C Report'!AD$300:AD$399),SUMIF('C Report'!$A$100:$A$199,'C Report Grouper'!$D33,'C Report'!AD$100:AD$199)) -> 0 | AG33: =IF($D$4="MAP+ADM Waivers",SUMIF('C Report'!$A$100:$A$199,'C Report Grouper'!$D33,'C Report'!AE$100:AE$199)+SUMIF('C Report'!$A$300:$A$399,'C Report Grouper'!$D33,'C Report'!AE$300:AE$399),SUMIF('C Report'!$A$100:$A$199,'C Report Grouper'!$D33,'C Report'!AE$100:AE$199)) -> 0 | AH33: =IF($D$4="MAP+ADM Waivers",SUMIF('C Report'!$A$100:$A$199,'C Report Grouper'!$D33,'C Report'!AF$100:AF$199)+SUMIF('C Report'!$A$300:$A$399,'C Report Grouper'!$D33,'C Report'!AF$300:AF$399),SUMIF('C Report'!$A$100:$A$199,'C Report Grouper'!$D33,'C Report'!AF$100:AF$199)) -> 0
E34: =IF($D$4="MAP+ADM Waivers",SUMIF('C Report'!$A$100:$A$199,'C Report Grouper'!$D34,'C Report'!C$100:C$199)+SUMIF('C Report'!$A$300:$A$399,'C Report Grouper'!$D34,'C Report'!C$300:C$399),SUMIF('C Report'!$A$100:$A$199,'C Report Grouper'!$D34,'C Report'!C$100:C$199)) -> 0 | F34: =IF($D$4="MAP+ADM Waivers",SUMIF('C Report'!$A$100:$A$199,'C Report Grouper'!$D34,'C Report'!D$100:D$199)+SUMIF('C Report'!$A$300:$A$399,'C Report Grouper'!$D34,'C Report'!D$300:D$399),SUMIF('C Report'!$A$100:$A$199,'C Report Grouper'!$D34,'C Report'!D$100:D$199)) -> 0 | G34: =IF($D$4="MAP+ADM Waivers",SUMIF('C Report'!$A$100:$A$199,'C Report Grouper'!$D34,'C Report'!E$100:E$199)+SUMIF('C Report'!$A$300:$A$399,'C Report Grouper'!$D34,'C Report'!E$300:E$399),SUMIF('C Report'!$A$100:$A$199,'C Report Grouper'!$D34,'C Report'!E$100:E$199)) -> 0 | H34: =IF($D$4="MAP+ADM Waivers",SUMIF('C Report'!$A$100:$A$199,'C Report Grouper'!$D34,'C Report'!F$100:F$199)+SUMIF('C Report'!$A$300:$A$399,'C Report Grouper'!$D34,'C Report'!F$300:F$399),SUMIF('C Report'!$A$100:$A$199,'C Report Grouper'!$D34,'C Report'!F$100:F$199)) -> 0 | I34: =IF($D$4="MAP+ADM Waivers",SUMIF('C Report'!$A$100:$A$199,'C Report Grouper'!$D34,'C Report'!G$100:G$199)+SUMIF('C Report'!$A$300:$A$399,'C Report Grouper'!$D34,'C Report'!G$300:G$399),SUMIF('C Report'!$A$100:$A$199,'C Report Grouper'!$D34,'C Report'!G$100:G$199)) -> 0 | J34: =IF($D$4="MAP+ADM Waivers",SUMIF('C Report'!$A$100:$A$199,'C Report Grouper'!$D34,'C Report'!H$100:H$199)+SUMIF('C Report'!$A$300:$A$399,'C Report Grouper'!$D34,'C Report'!H$300:H$399),SUMIF('C Report'!$A$100:$A$199,'C Report Grouper'!$D34,'C Report'!H$100:H$199)) -> 0 | K34: =IF($D$4="MAP+ADM Waivers",SUMIF('C Report'!$A$100:$A$199,'C Report Grouper'!$D34,'C Report'!I$100:I$199)+SUMIF('C Report'!$A$300:$A$399,'C Report Grouper'!$D34,'C Report'!I$300:I$399),SUMIF('C Report'!$A$100:$A$199,'C Report Grouper'!$D34,'C Report'!I$100:I$199)) -> 0 | L34: =IF($D$4="MAP+ADM Waivers",SUMIF('C Report'!$A$100:$A$199,'C Report Grouper'!$D34,'C Report'!J$100:J$199)+SUMIF('C Report'!$A$300:$A$399,'C Report Grouper'!$D34,'C Report'!J$300:J$399),SUMIF('C Report'!$A$100:$A$199,'C Report Grouper'!$D34,'C Report'!J$100:J$199)) -> 0 | M34: =IF($D$4="MAP+ADM Waivers",SUMIF('C Report'!$A$100:$A$199,'C Report Grouper'!$D34,'C Report'!K$100:K$199)+SUMIF('C Report'!$A$300:$A$399,'C Report Grouper'!$D34,'C Report'!K$300:K$399),SUMIF('C Report'!$A$100:$A$199,'C Report Grouper'!$D34,'C Report'!K$100:K$199)) -> 0 | N34: =IF($D$4="MAP+ADM Waivers",SUMIF('C Report'!$A$100:$A$199,'C Report Grouper'!$D34,'C Report'!L$100:L$199)+SUMIF('C Report'!$A$300:$A$399,'C Report Grouper'!$D34,'C Report'!L$300:L$399),SUMIF('C Report'!$A$100:$A$199,'C Report Grouper'!$D34,'C Report'!L$100:L$199)) -> 0 | O34: =IF($D$4="MAP+ADM Waivers",SUMIF('C Report'!$A$100:$A$199,'C Report Grouper'!$D34,'C Report'!M$100:M$199)+SUMIF('C Report'!$A$300:$A$399,'C Report Grouper'!$D34,'C Report'!M$300:M$399),SUMIF('C Report'!$A$100:$A$199,'C Report Grouper'!$D34,'C Report'!M$100:M$199)) -> 0 | P34: =IF($D$4="MAP+ADM Waivers",SUMIF('C Report'!$A$100:$A$199,'C Report Grouper'!$D34,'C Report'!N$100:N$199)+SUMIF('C Report'!$A$300:$A$399,'C Report Grouper'!$D34,'C Report'!N$300:N$399),SUMIF('C Report'!$A$100:$A$199,'C Report Grouper'!$D34,'C Report'!N$100:N$199)) -> 0 | Q34: =IF($D$4="MAP+ADM Waivers",SUMIF('C Report'!$A$100:$A$199,'C Report Grouper'!$D34,'C Report'!O$100:O$199)+SUMIF('C Report'!$A$300:$A$399,'C Report Grouper'!$D34,'C Report'!O$300:O$399),SUMIF('C Report'!$A$100:$A$199,'C Report Grouper'!$D34,'C Report'!O$100:O$199)) -> 0 | R34: =IF($D$4="MAP+ADM Waivers",SUMIF('C Report'!$A$100:$A$199,'C Report Grouper'!$D34,'C Report'!P$100:P$199)+SUMIF('C Report'!$A$300:$A$399,'C Report Grouper'!$D34,'C Report'!P$300:P$399),SUMIF('C Report'!$A$100:$A$199,'C Report Grouper'!$D34,'C Report'!P$100:P$199)) -> 0 | S34: =IF($D$4="MAP+ADM Waivers",SUMIF('C Report'!$A$100:$A$199,'C Report Grouper'!$D34,'C Report'!Q$100:Q$199)+SUMIF('C Report'!$A$300:$A$399,'C Report Grouper'!$D34,'C Report'!Q$300:Q$399),SUMIF('C Report'!$A$100:$A$199,'C Report Grouper'!$D34,'C Report'!Q$100:Q$199)) -> 0 | T34: =IF($D$4="MAP+ADM Waivers",SUMIF('C Report'!$A$100:$A$199,'C Report Grouper'!$D34,'C Report'!R$100:R$199)+SUMIF('C Report'!$A$300:$A$399,'C Report Grouper'!$D34,'C Report'!R$300:R$399),SUMIF('C Report'!$A$100:$A$199,'C Report Grouper'!$D34,'C Report'!R$100:R$199)) -> 0 | U34: =IF($D$4="MAP+ADM Waivers",SUMIF('C Report'!$A$100:$A$199,'C Report Grouper'!$D34,'C Report'!S$100:S$199)+SUMIF('C Report'!$A$300:$A$399,'C Report Grouper'!$D34,'C Report'!S$300:S$399),SUMIF('C Report'!$A$100:$A$199,'C Report Grouper'!$D34,'C Report'!S$100:S$199)) -> 0 | V34: =IF($D$4="MAP+ADM Waivers",SUMIF('C Report'!$A$100:$A$199,'C Report Grouper'!$D34,'C Report'!T$100:T$199)+SUMIF('C Report'!$A$300:$A$399,'C Report Grouper'!$D34,'C Report'!T$300:T$399),SUMIF('C Report'!$A$100:$A$199,'C Report Grouper'!$D34,'C Report'!T$100:T$199)) -> 0 | W34: =IF($D$4="MAP+ADM Waivers",SUMIF('C Report'!$A$100:$A$199,'C Report Grouper'!$D34,'C Report'!U$100:U$199)+SUMIF('C Report'!$A$300:$A$399,'C Report Grouper'!$D34,'C Report'!U$300:U$399),SUMIF('C Report'!$A$100:$A$199,'C Report Grouper'!$D34,'C Report'!U$100:U$199)) -> 0 | X34: =IF($D$4="MAP+ADM Waivers",SUMIF('C Report'!$A$100:$A$199,'C Report Grouper'!$D34,'C Report'!V$100:V$199)+SUMIF('C Report'!$A$300:$A$399,'C Report Grouper'!$D34,'C Report'!V$300:V$399),SUMIF('C Report'!$A$100:$A$199,'C Report Grouper'!$D34,'C Report'!V$100:V$199)) -> 0 | Y34: =IF($D$4="MAP+ADM Waivers",SUMIF('C Report'!$A$100:$A$199,'C Report Grouper'!$D34,'C Report'!W$100:W$199)+SUMIF('C Report'!$A$300:$A$399,'C Report Grouper'!$D34,'C Report'!W$300:W$399),SUMIF('C Report'!$A$100:$A$199,'C Report Grouper'!$D34,'C Report'!W$100:W$199)) -> 0 | Z34: =IF($D$4="MAP+ADM Waivers",SUMIF('C Report'!$A$100:$A$199,'C Report Grouper'!$D34,'C Report'!X$100:X$199)+SUMIF('C Report'!$A$300:$A$399,'C Report Grouper'!$D34,'C Report'!X$300:X$399),SUMIF('C Report'!$A$100:$A$199,'C Report Grouper'!$D34,'C Report'!X$100:X$199)) -> 0 | AA34: =IF($D$4="MAP+ADM Waivers",SUMIF('C Report'!$A$100:$A$199,'C Report Grouper'!$D34,'C Report'!Y$100:Y$199)+SUMIF('C Report'!$A$300:$A$399,'C Report Grouper'!$D34,'C Report'!Y$300:Y$399),SUMIF('C Report'!$A$100:$A$199,'C Report Grouper'!$D34,'C Report'!Y$100:Y$199)) -> 0 | AB34: =IF($D$4="MAP+ADM Waivers",SUMIF('C Report'!$A$100:$A$199,'C Report Grouper'!$D34,'C Report'!Z$100:Z$199)+SUMIF('C Report'!$A$300:$A$399,'C Report Grouper'!$D34,'C Report'!Z$300:Z$399),SUMIF('C Report'!$A$100:$A$199,'C Report Grouper'!$D34,'C Report'!Z$100:Z$199)) -> 0 | AC34: =IF($D$4="MAP+ADM Waivers",SUMIF('C Report'!$A$100:$A$199,'C Report Grouper'!$D34,'C Report'!AA$100:AA$199)+SUMIF('C Report'!$A$300:$A$399,'C Report Grouper'!$D34,'C Report'!AA$300:AA$399),SUMIF('C Report'!$A$100:$A$199,'C Report Grouper'!$D34,'C Report'!AA$100:AA$199)) -> 0 | AD34: =IF($D$4="MAP+ADM Waivers",SUMIF('C Report'!$A$100:$A$199,'C Report Grouper'!$D34,'C Report'!AB$100:AB$199)+SUMIF('C Report'!$A$300:$A$399,'C Report Grouper'!$D34,'C Report'!AB$300:AB$399),SUMIF('C Report'!$A$100:$A$199,'C Report Grouper'!$D34,'C Report'!AB$100:AB$199)) -> 0 | AE34: =IF($D$4="MAP+ADM Waivers",SUMIF('C Report'!$A$100:$A$199,'C Report Grouper'!$D34,'C Report'!AC$100:AC$199)+SUMIF('C Report'!$A$300:$A$399,'C Report Grouper'!$D34,'C Report'!AC$300:AC$399),SUMIF('C Report'!$A$100:$A$199,'C Report Grouper'!$D34,'C Report'!AC$100:AC$199)) -> 0 | AF34: =IF($D$4="MAP+ADM Waivers",SUMIF('C Report'!$A$100:$A$199,'C Report Grouper'!$D34,'C Report'!AD$100:AD$199)+SUMIF('C Report'!$A$300:$A$399,'C Report Grouper'!$D34,'C Report'!AD$300:AD$399),SUMIF('C Report'!$A$100:$A$199,'C Report Grouper'!$D34,'C Report'!AD$100:AD$199)) -> 0 | AG34: =IF($D$4="MAP+ADM Waivers",SUMIF('C Report'!$A$100:$A$199,'C Report Grouper'!$D34,'C Report'!AE$100:AE$199)+SUMIF('C Report'!$A$300:$A$399,'C Report Grouper'!$D34,'C Report'!AE$300:AE$399),SUMIF('C Report'!$A$100:$A$199,'C Report Grouper'!$D34,'C Report'!AE$100:AE$199)) -> 0 | AH34: =IF($D$4="MAP+ADM Waivers",SUMIF('C Report'!$A$100:$A$199,'C Report Grouper'!$D34,'C Report'!AF$100:AF$199)+SUMIF('C Report'!$A$300:$A$399,'C Report Grouper'!$D34,'C Report'!AF$300:AF$399),SUMIF('C Report'!$A$100:$A$199,'C Report Grouper'!$D34,'C Report'!AF$100:AF$199)) -> 0
B35: Hypothetical 1 Aggregate | E35: =IF($D$4="MAP+ADM Waivers",SUMIF('C Report'!$A$100:$A$199,'C Report Grouper'!$D35,'C Report'!C$100:C$199)+SUMIF('C Report'!$A$300:$A$399,'C Report Grouper'!$D35,'C Report'!C$300:C$399),SUMIF('C Report'!$A$100:$A$199,'C Report Grouper'!$D35,'C Report'!C$100:C$199)) -> 0 | F35: =IF($D$4="MAP+ADM Waivers",SUMIF('C Report'!$A$100:$A$199,'C Report Grouper'!$D35,'C Report'!D$100:D$199)+SUMIF('C Report'!$A$300:$A$399,'C Report Grouper'!$D35,'C Report'!D$300:D$399),SUMIF('C Report'!$A$100:$A$199,'C Report Grouper'!$D35,'C Report'!D$100:D$199)) -> 0 | G35: =IF($D$4="MAP+ADM Waivers",SUMIF('C Report'!$A$100:$A$199,'C Report Grouper'!$D35,'C Report'!E$100:E$199)+SUMIF('C Report'!$A$300:$A$399,'C Report Grouper'!$D35,'C Report'!E$300:E$399),SUMIF('C Report'!$A$100:$A$199,'C Report Grouper'!$D35,'C Report'!E$100:E$199)) -> 0 | H35: =IF($D$4="MAP+ADM Waivers",SUMIF('C Report'!$A$100:$A$199,'C Report Grouper'!$D35,'C Report'!F$100:F$199)+SUMIF('C Report'!$A$300:$A$399,'C Report Grouper'!$D35,'C Report'!F$300:F$399),SUMIF('C Report'!$A$100:$A$199,'C Report Grouper'!$D35,'C Report'!F$100:F$199)) -> 0 | I35: =IF($D$4="MAP+ADM Waivers",SUMIF('C Report'!$A$100:$A$199,'C Report Grouper'!$D35,'C Report'!G$100:G$199)+SUMIF('C Report'!$A$300:$A$399,'C Report Grouper'!$D35,'C Report'!G$300:G$399),SUMIF('C Report'!$A$100:$A$199,'C Report Grouper'!$D35,'C Report'!G$100:G$199)) -> 0 | J35: =IF($D$4="MAP+ADM Waivers",SUMIF('C Report'!$A$100:$A$199,'C Report Grouper'!$D35,'C Report'!H$100:H$199)+SUMIF('C Report'!$A$300:$A$399,'C Report Grouper'!$D35,'C Report'!H$300:H$399),SUMIF('C Report'!$A$100:$A$199,'C Report Grouper'!$D35,'C Report'!H$100:H$199)) -> 0 | K35: =IF($D$4="MAP+ADM Waivers",SUMIF('C Report'!$A$100:$A$199,'C Report Grouper'!$D35,'C Report'!I$100:I$199)+SUMIF('C Report'!$A$300:$A$399,'C Report Grouper'!$D35,'C Report'!I$300:I$399),SUMIF('C Report'!$A$100:$A$199,'C Report Grouper'!$D35,'C Report'!I$100:I$199)) -> 0 | L35: =IF($D$4="MAP+ADM Waivers",SUMIF('C Report'!$A$100:$A$199,'C Report Grouper'!$D35,'C Report'!J$100:J$199)+SUMIF('C Report'!$A$300:$A$399,'C Report Grouper'!$D35,'C Report'!J$300:J$399),SUMIF('C Report'!$A$100:$A$199,'C Report Grouper'!$D35,'C Report'!J$100:J$199)) -> 0 | M35: =IF($D$4="MAP+ADM Waivers",SUMIF('C Report'!$A$100:$A$199,'C Report Grouper'!$D35,'C Report'!K$100:K$199)+SUMIF('C Report'!$A$300:$A$399,'C Report Grouper'!$D35,'C Report'!K$300:K$399),SUMIF('C Report'!$A$100:$A$199,'C Report Grouper'!$D35,'C Report'!K$100:K$199)) -> 0 | N35: =IF($D$4="MAP+ADM Waivers",SUMIF('C Report'!$A$100:$A$199,'C Report Grouper'!$D35,'C Report'!L$100:L$199)+SUMIF('C Report'!$A$300:$A$399,'C Report Grouper'!$D35,'C Report'!L$300:L$399),SUMIF('C Report'!$A$100:$A$199,'C Report Grouper'!$D35,'C Report'!L$100:L$199)) -> 0 | O35: =IF($D$4="MAP+ADM Waivers",SUMIF('C Report'!$A$100:$A$199,'C Report Grouper'!$D35,'C Report'!M$100:M$199)+SUMIF('C Report'!$A$300:$A$399,'C Report Grouper'!$D35,'C Report'!M$300:M$399),SUMIF('C Report'!$A$100:$A$199,'C Report Grouper'!$D35,'C Report'!M$100:M$199)) -> 0 | P35: =IF($D$4="MAP+ADM Waivers",SUMIF('C Report'!$A$100:$A$199,'C Report Grouper'!$D35,'C Report'!N$100:N$199)+SUMIF('C Report'!$A$300:$A$399,'C Report Grouper'!$D35,'C Report'!N$300:N$399),SUMIF('C Report'!$A$100:$A$199,'C Report Grouper'!$D35,'C Report'!N$100:N$199)) -> 0 | Q35: =IF($D$4="MAP+ADM Waivers",SUMIF('C Report'!$A$100:$A$199,'C Report Grouper'!$D35,'C Report'!O$100:O$199)+SUMIF('C Report'!$A$300:$A$399,'C Report Grouper'!$D35,'C Report'!O$300:O$399),SUMIF('C Report'!$A$100:$A$199,'C Report Grouper'!$D35,'C Report'!O$100:O$199)) -> 0 | R35: =IF($D$4="MAP+ADM Waivers",SUMIF('C Report'!$A$100:$A$199,'C Report Grouper'!$D35,'C Report'!P$100:P$199)+SUMIF('C Report'!$A$300:$A$399,'C Report Grouper'!$D35,'C Report'!P$300:P$399),SUMIF('C Report'!$A$100:$A$199,'C Report Grouper'!$D35,'C Report'!P$100:P$199)) -> 0 | S35: =IF($D$4="MAP+ADM Waivers",SUMIF('C Report'!$A$100:$A$199,'C Report Grouper'!$D35,'C Report'!Q$100:Q$199)+SUMIF('C Report'!$A$300:$A$399,'C Report Grouper'!$D35,'C Report'!Q$300:Q$399),SUMIF('C Report'!$A$100:$A$199,'C Report Grouper'!$D35,'C Report'!Q$100:Q$199)) -> 0 | T35: =IF($D$4="MAP+ADM Waivers",SUMIF('C Report'!$A$100:$A$199,'C Report Grouper'!$D35,'C Report'!R$100:R$199)+SUMIF('C Report'!$A$300:$A$399,'C Report Grouper'!$D35,'C Report'!R$300:R$399),SUMIF('C Report'!$A$100:$A$199,'C Report Grouper'!$D35,'C Report'!R$100:R$199)) -> 0 | U35: =IF($D$4="MAP+ADM Waivers",SUMIF('C Report'!$A$100:$A$199,'C Report Grouper'!$D35,'C Report'!S$100:S$199)+SUMIF('C Report'!$A$300:$A$399,'C Report Grouper'!$D35,'C Report'!S$300:S$399),SUMIF('C Report'!$A$100:$A$199,'C Report Grouper'!$D35,'C Report'!S$100:S$199)) -> 0 | V35: =IF($D$4="MAP+ADM Waivers",SUMIF('C Report'!$A$100:$A$199,'C Report Grouper'!$D35,'C Report'!T$100:T$199)+SUMIF('C Report'!$A$300:$A$399,'C Report Grouper'!$D35,'C Report'!T$300:T$399),SUMIF('C Report'!$A$100:$A$199,'C Report Grouper'!$D35,'C Report'!T$100:T$199)) -> 0 | W35: =IF($D$4="MAP+ADM Waivers",SUMIF('C Report'!$A$100:$A$199,'C Report Grouper'!$D35,'C Report'!U$100:U$199)+SUMIF('C Report'!$A$300:$A$399,'C Report Grouper'!$D35,'C Report'!U$300:U$399),SUMIF('C Report'!$A$100:$A$199,'C Report Grouper'!$D35,'C Report'!U$100:U$199)) -> 0 | X35: =IF($D$4="MAP+ADM Waivers",SUMIF('C Report'!$A$100:$A$199,'C Report Grouper'!$D35,'C Report'!V$100:V$199)+SUMIF('C Report'!$A$300:$A$399,'C Report Grouper'!$D35,'C Report'!V$300:V$399),SUMIF('C Report'!$A$100:$A$199,'C Report Grouper'!$D35,'C Report'!V$100:V$199)) -> 0 | Y35: =IF($D$4="MAP+ADM Waivers",SUMIF('C Report'!$A$100:$A$199,'C Report Grouper'!$D35,'C Report'!W$100:W$199)+SUMIF('C Report'!$A$300:$A$399,'C Report Grouper'!$D35,'C Report'!W$300:W$399),SUMIF('C Report'!$A$100:$A$199,'C Report Grouper'!$D35,'C Report'!W$100:W$199)) -> 0 | Z35: =IF($D$4="MAP+ADM Waivers",SUMIF('C Report'!$A$100:$A$199,'C Report Grouper'!$D35,'C Report'!X$100:X$199)+SUMIF('C Report'!$A$300:$A$399,'C Report Grouper'!$D35,'C Report'!X$300:X$399),SUMIF('C Report'!$A$100:$A$199,'C Report Grouper'!$D35,'C Report'!X$100:X$199)) -> 0 | AA35: =IF($D$4="MAP+ADM Waivers",SUMIF('C Report'!$A$100:$A$199,'C Report Grouper'!$D35,'C Report'!Y$100:Y$199)+SUMIF('C Report'!$A$300:$A$399,'C Report Grouper'!$D35,'C Report'!Y$300:Y$399),SUMIF('C Report'!$A$100:$A$199,'C Report Grouper'!$D35,'C Report'!Y$100:Y$199)) -> 0 | AB35: =IF($D$4="MAP+ADM Waivers",SUMIF('C Report'!$A$100:$A$199,'C Report Grouper'!$D35,'C Report'!Z$100:Z$199)+SUMIF('C Report'!$A$300:$A$399,'C Report Grouper'!$D35,'C Report'!Z$300:Z$399),SUMIF('C Report'!$A$100:$A$199,'C Report Grouper'!$D35,'C Report'!Z$100:Z$199)) -> 0 | AC35: =IF($D$4="MAP+ADM Waivers",SUMIF('C Report'!$A$100:$A$199,'C Report Grouper'!$D35,'C Report'!AA$100:AA$199)+SUMIF('C Report'!$A$300:$A$399,'C Report Grouper'!$D35,'C Report'!AA$300:AA$399),SUMIF('C Report'!$A$100:$A$199,'C Report Grouper'!$D35,'C Report'!AA$100:AA$199)) -> 0 | AD35: =IF($D$4="MAP+ADM Waivers",SUMIF('C Report'!$A$100:$A$199,'C Report Grouper'!$D35,'C Report'!AB$100:AB$199)+SUMIF('C Report'!$A$300:$A$399,'C Report Grouper'!$D35,'C Report'!AB$300:AB$399),SUMIF('C Report'!$A$100:$A$199,'C Report Grouper'!$D35,'C Report'!AB$100:AB$199)) -> 0 | AE35: =IF($D$4="MAP+ADM Waivers",SUMIF('C Report'!$A$100:$A$199,'C Report Grouper'!$D35,'C Report'!AC$100:AC$199)+SUMIF('C Report'!$A$300:$A$399,'C Report Grouper'!$D35,'C Report'!AC$300:AC$399),SUMIF('C Report'!$A$100:$A$199,'C Report Grouper'!$D35,'C Report'!AC$100:AC$199)) -> 0 | AF35: =IF($D$4="MAP+ADM Waivers",SUMIF('C Report'!$A$100:$A$199,'C Report Grouper'!$D35,'C Report'!AD$100:AD$199)+SUMIF('C Report'!$A$300:$A$399,'C Report Grouper'!$D35,'C Report'!AD$300:AD$399),SUMIF('C Report'!$A$100:$A$199,'C Report Grouper'!$D35,'C Report'!AD$100:AD$199)) -> 0 | AG35: =IF($D$4="MAP+ADM Waivers",SUMIF('C Report'!$A$100:$A$199,'C Report Grouper'!$D35,'C Report'!AE$100:AE$199)+SUMIF('C Report'!$A$300:$A$399,'C Report Grouper'!$D35,'C Report'!AE$300:AE$399),SUMIF('C Report'!$A$100:$A$199,'C Report Grouper'!$D35,'C Report'!AE$100:AE$199)) -> 0 | AH35: =IF($D$4="MAP+ADM Waivers",SUMIF('C Report'!$A$100:$A$199,'C Report Grouper'!$D35,'C Report'!AF$100:AF$199)+SUMIF('C Report'!$A$300:$A$399,'C Report Grouper'!$D35,'C Report'!AF$300:AF$399),SUMIF('C Report'!$A$100:$A$199,'C Report Grouper'!$D35,'C Report'!AF$100:AF$199)) -> 0
B36: =IFERROR(VLOOKUP(C36,'MEG Def'!$A$47:$B$50,2),"") ->  | E36: =IF($D$4="MAP+ADM Waivers",SUMIF('C Report'!$A$100:$A$199,'C Report Grouper'!$D36,'C Report'!C$100:C$199)+SUMIF('C Report'!$A$300:$A$399,'C Report Grouper'!$D36,'C Report'!C$300:C$399),SUMIF('C Report'!$A$100:$A$199,'C Report Grouper'!$D36,'C Report'!C$100:C$199)) -> 0 | F36: =IF($D$4="MAP+ADM Waivers",SUMIF('C Report'!$A$100:$A$199,'C Report Grouper'!$D36,'C Report'!D$100:D$199)+SUMIF('C Report'!$A$300:$A$399,'C Report Grouper'!$D36,'C Report'!D$300:D$399),SUMIF('C Report'!$A$100:$A$199,'C Report Grouper'!$D36,'C Report'!D$100:D$199)) -> 0 | G36: =IF($D$4="MAP+ADM Waivers",SUMIF('C Report'!$A$100:$A$199,'C Report Grouper'!$D36,'C Report'!E$100:E$199)+SUMIF('C Report'!$A$300:$A$399,'C Report Grouper'!$D36,'C Report'!E$300:E$399),SUMIF('C Report'!$A$100:$A$199,'C Report Grouper'!$D36,'C Report'!E$100:E$199)) -> 0 | H36: =IF($D$4="MAP+ADM Waivers",SUMIF('C Report'!$A$100:$A$199,'C Report Grouper'!$D36,'C Report'!F$100:F$199)+SUMIF('C Report'!$A$300:$A$399,'C Report Grouper'!$D36,'C Report'!F$300:F$399),SUMIF('C Report'!$A$100:$A$199,'C Report Grouper'!$D36,'C Report'!F$100:F$199)) -> 0 | I36: =IF($D$4="MAP+ADM Waivers",SUMIF('C Report'!$A$100:$A$199,'C Report Grouper'!$D36,'C Report'!G$100:G$199)+SUMIF('C Report'!$A$300:$A$399,'C Report Grouper'!$D36,'C Report'!G$300:G$399),SUMIF('C Report'!$A$100:$A$199,'C Report Grouper'!$D36,'C Report'!G$100:G$199)) -> 0 | J36: =IF($D$4="MAP+ADM Waivers",SUMIF('C Report'!$A$100:$A$199,'C Report Grouper'!$D36,'C Report'!H$100:H$199)+SUMIF('C Report'!$A$300:$A$399,'C Report Grouper'!$D36,'C Report'!H$300:H$399),SUMIF('C Report'!$A$100:$A$199,'C Report Grouper'!$D36,'C Report'!H$100:H$199)) -> 0 | K36: =IF($D$4="MAP+ADM Waivers",SUMIF('C Report'!$A$100:$A$199,'C Report Grouper'!$D36,'C Report'!I$100:I$199)+SUMIF('C Report'!$A$300:$A$399,'C Report Grouper'!$D36,'C Report'!I$300:I$399),SUMIF('C Report'!$A$100:$A$199,'C Report Grouper'!$D36,'C Report'!I$100:I$199)) -> 0 | L36: =IF($D$4="MAP+ADM Waivers",SUMIF('C Report'!$A$100:$A$199,'C Report Grouper'!$D36,'C Report'!J$100:J$199)+SUMIF('C Report'!$A$300:$A$399,'C Report Grouper'!$D36,'C Report'!J$300:J$399),SUMIF('C Report'!$A$100:$A$199,'C Report Grouper'!$D36,'C Report'!J$100:J$199)) -> 0 | M36: =IF($D$4="MAP+ADM Waivers",SUMIF('C Report'!$A$100:$A$199,'C Report Grouper'!$D36,'C Report'!K$100:K$199)+SUMIF('C Report'!$A$300:$A$399,'C Report Grouper'!$D36,'C Report'!K$300:K$399),SUMIF('C Report'!$A$100:$A$199,'C Report Grouper'!$D36,'C Report'!K$100:K$199)) -> 0 | N36: =IF($D$4="MAP+ADM Waivers",SUMIF('C Report'!$A$100:$A$199,'C Report Grouper'!$D36,'C Report'!L$100:L$199)+SUMIF('C Report'!$A$300:$A$399,'C Report Grouper'!$D36,'C Report'!L$300:L$399),SUMIF('C Report'!$A$100:$A$199,'C Report Grouper'!$D36,'C Report'!L$100:L$199)) -> 0 | O36: =IF($D$4="MAP+ADM Waivers",SUMIF('C Report'!$A$100:$A$199,'C Report Grouper'!$D36,'C Report'!M$100:M$199)+SUMIF('C Report'!$A$300:$A$399,'C Report Grouper'!$D36,'C Report'!M$300:M$399),SUMIF('C Report'!$A$100:$A$199,'C Report Grouper'!$D36,'C Report'!M$100:M$199)) -> 0 | P36: =IF($D$4="MAP+ADM Waivers",SUMIF('C Report'!$A$100:$A$199,'C Report Grouper'!$D36,'C Report'!N$100:N$199)+SUMIF('C Report'!$A$300:$A$399,'C Report Grouper'!$D36,'C Report'!N$300:N$399),SUMIF('C Report'!$A$100:$A$199,'C Report Grouper'!$D36,'C Report'!N$100:N$199)) -> 0 | Q36: =IF($D$4="MAP+ADM Waivers",SUMIF('C Report'!$A$100:$A$199,'C Report Grouper'!$D36,'C Report'!O$100:O$199)+SUMIF('C Report'!$A$300:$A$399,'C Report Grouper'!$D36,'C Report'!O$300:O$399),SUMIF('C Report'!$A$100:$A$199,'C Report Grouper'!$D36,'C Report'!O$100:O$199)) -> 0 | R36: =IF($D$4="MAP+ADM Waivers",SUMIF('C Report'!$A$100:$A$199,'C Report Grouper'!$D36,'C Report'!P$100:P$199)+SUMIF('C Report'!$A$300:$A$399,'C Report Grouper'!$D36,'C Report'!P$300:P$399),SUMIF('C Report'!$A$100:$A$199,'C Report Grouper'!$D36,'C Report'!P$100:P$199)) -> 0 | S36: =IF($D$4="MAP+ADM Waivers",SUMIF('C Report'!$A$100:$A$199,'C Report Grouper'!$D36,'C Report'!Q$100:Q$199)+SUMIF('C Report'!$A$300:$A$399,'C Report Grouper'!$D36,'C Report'!Q$300:Q$399),SUMIF('C Report'!$A$100:$A$199,'C Report Grouper'!$D36,'C Report'!Q$100:Q$199)) -> 0 | T36: =IF($D$4="MAP+ADM Waivers",SUMIF('C Report'!$A$100:$A$199,'C Report Grouper'!$D36,'C Report'!R$100:R$199)+SUMIF('C Report'!$A$300:$A$399,'C Report Grouper'!$D36,'C Report'!R$300:R$399),SUMIF('C Report'!$A$100:$A$199,'C Report Grouper'!$D36,'C Report'!R$100:R$199)) -> 0 | U36: =IF($D$4="MAP+ADM Waivers",SUMIF('C Report'!$A$100:$A$199,'C Report Grouper'!$D36,'C Report'!S$100:S$199)+SUMIF('C Report'!$A$300:$A$399,'C Report Grouper'!$D36,'C Report'!S$300:S$399),SUMIF('C Report'!$A$100:$A$199,'C Report Grouper'!$D36,'C Report'!S$100:S$199)) -> 0 | V36: =IF($D$4="MAP+ADM Waivers",SUMIF('C Report'!$A$100:$A$199,'C Report Grouper'!$D36,'C Report'!T$100:T$199)+SUMIF('C Report'!$A$300:$A$399,'C Report Grouper'!$D36,'C Report'!T$300:T$399),SUMIF('C Report'!$A$100:$A$199,'C Report Grouper'!$D36,'C Report'!T$100:T$199)) -> 0 | W36: =IF($D$4="MAP+ADM Waivers",SUMIF('C Report'!$A$100:$A$199,'C Report Grouper'!$D36,'C Report'!U$100:U$199)+SUMIF('C Report'!$A$300:$A$399,'C Report Grouper'!$D36,'C Report'!U$300:U$399),SUMIF('C Report'!$A$100:$A$199,'C Report Grouper'!$D36,'C Report'!U$100:U$199)) -> 0 | X36: =IF($D$4="MAP+ADM Waivers",SUMIF('C Report'!$A$100:$A$199,'C Report Grouper'!$D36,'C Report'!V$100:V$199)+SUMIF('C Report'!$A$300:$A$399,'C Report Grouper'!$D36,'C Report'!V$300:V$399),SUMIF('C Report'!$A$100:$A$199,'C Report Grouper'!$D36,'C Report'!V$100:V$199)) -> 0 | Y36: =IF($D$4="MAP+ADM Waivers",SUMIF('C Report'!$A$100:$A$199,'C Report Grouper'!$D36,'C Report'!W$100:W$199)+SUMIF('C Report'!$A$300:$A$399,'C Report Grouper'!$D36,'C Report'!W$300:W$399),SUMIF('C Report'!$A$100:$A$199,'C Report Grouper'!$D36,'C Report'!W$100:W$199)) -> 0 | Z36: =IF($D$4="MAP+ADM Waivers",SUMIF('C Report'!$A$100:$A$199,'C Report Grouper'!$D36,'C Report'!X$100:X$199)+SUMIF('C Report'!$A$300:$A$399,'C Report Grouper'!$D36,'C Report'!X$300:X$399),SUMIF('C Report'!$A$100:$A$199,'C Report Grouper'!$D36,'C Report'!X$100:X$199)) -> 0 | AA36: =IF($D$4="MAP+ADM Waivers",SUMIF('C Report'!$A$100:$A$199,'C Report Grouper'!$D36,'C Report'!Y$100:Y$199)+SUMIF('C Report'!$A$300:$A$399,'C Report Grouper'!$D36,'C Report'!Y$300:Y$399),SUMIF('C Report'!$A$100:$A$199,'C Report Grouper'!$D36,'C Report'!Y$100:Y$199)) -> 0 | AB36: =IF($D$4="MAP+ADM Waivers",SUMIF('C Report'!$A$100:$A$199,'C Report Grouper'!$D36,'C Report'!Z$100:Z$199)+SUMIF('C Report'!$A$300:$A$399,'C Report Grouper'!$D36,'C Report'!Z$300:Z$399),SUMIF('C Report'!$A$100:$A$199,'C Report Grouper'!$D36,'C Report'!Z$100:Z$199)) -> 0 | AC36: =IF($D$4="MAP+ADM Waivers",SUMIF('C Report'!$A$100:$A$199,'C Report Grouper'!$D36,'C Report'!AA$100:AA$199)+SUMIF('C Report'!$A$300:$A$399,'C Report Grouper'!$D36,'C Report'!AA$300:AA$399),SUMIF('C Report'!$A$100:$A$199,'C Report Grouper'!$D36,'C Report'!AA$100:AA$199)) -> 0 | AD36: =IF($D$4="MAP+ADM Waivers",SUMIF('C Report'!$A$100:$A$199,'C Report Grouper'!$D36,'C Report'!AB$100:AB$199)+SUMIF('C Report'!$A$300:$A$399,'C Report Grouper'!$D36,'C Report'!AB$300:AB$399),SUMIF('C Report'!$A$100:$A$199,'C Report Grouper'!$D36,'C Report'!AB$100:AB$199)) -> 0 | AE36: =IF($D$4="MAP+ADM Waivers",SUMIF('C Report'!$A$100:$A$199,'C Report Grouper'!$D36,'C Report'!AC$100:AC$199)+SUMIF('C Report'!$A$300:$A$399,'C Report Grouper'!$D36,'C Report'!AC$300:AC$399),SUMIF('C Report'!$A$100:$A$199,'C Report Grouper'!$D36,'C Report'!AC$100:AC$199)) -> 0 | AF36: =IF($D$4="MAP+ADM Waivers",SUMIF('C Report'!$A$100:$A$199,'C Report Grouper'!$D36,'C Report'!AD$100:AD$199)+SUMIF('C Report'!$A$300:$A$399,'C Report Grouper'!$D36,'C Report'!AD$300:AD$399),SUMIF('C Report'!$A$100:$A$199,'C Report Grouper'!$D36,'C Report'!AD$100:AD$199)) -> 0 | AG36: =IF($D$4="MAP+ADM Waivers",SUMIF('C Report'!$A$100:$A$199,'C Report Grouper'!$D36,'C Report'!AE$100:AE$199)+SUMIF('C Report'!$A$300:$A$399,'C Report Grouper'!$D36,'C Report'!AE$300:AE$399),SUMIF('C Report'!$A$100:$A$199,'C Report Grouper'!$D36,'C Report'!AE$100:AE$199)) -> 0 | AH36: =IF($D$4="MAP+ADM Waivers",SUMIF('C Report'!$A$100:$A$199,'C Report Grouper'!$D36,'C Report'!AF$100:AF$199)+SUMIF('C Report'!$A$300:$A$399,'C Report Grouper'!$D36,'C Report'!AF$300:AF$399),SUMIF('C Report'!$A$100:$A$199,'C Report Grouper'!$D36,'C Report'!AF$100:AF$199)) -> 0
B37: =IFERROR(VLOOKUP(C37,'MEG Def'!$A$47:$B$50,2),"") ->  | E37: =IF($D$4="MAP+ADM Waivers",SUMIF('C Report'!$A$100:$A$199,'C Report Grouper'!$D37,'C Report'!C$100:C$199)+SUMIF('C Report'!$A$300:$A$399,'C Report Grouper'!$D37,'C Report'!C$300:C$399),SUMIF('C Report'!$A$100:$A$199,'C Report Grouper'!$D37,'C Report'!C$100:C$199)) -> 0 | F37: =IF($D$4="MAP+ADM Waivers",SUMIF('C Report'!$A$100:$A$199,'C Report Grouper'!$D37,'C Report'!D$100:D$199)+SUMIF('C Report'!$A$300:$A$399,'C Report Grouper'!$D37,'C Report'!D$300:D$399),SUMIF('C Report'!$A$100:$A$199,'C Report Grouper'!$D37,'C Report'!D$100:D$199)) -> 0 | G37: =IF($D$4="MAP+ADM Waivers",SUMIF('C Report'!$A$100:$A$199,'C Report Grouper'!$D37,'C Report'!E$100:E$199)+SUMIF('C Report'!$A$300:$A$399,'C Report Grouper'!$D37,'C Report'!E$300:E$399),SUMIF('C Report'!$A$100:$A$199,'C Report Grouper'!$D37,'C Report'!E$100:E$199)) -> 0 | H37: =IF($D$4="MAP+ADM Waivers",SUMIF('C Report'!$A$100:$A$199,'C Report Grouper'!$D37,'C Report'!F$100:F$199)+SUMIF('C Report'!$A$300:$A$399,'C Report Grouper'!$D37,'C Report'!F$300:F$399),SUMIF('C Report'!$A$100:$A$199,'C Report Grouper'!$D37,'C Report'!F$100:F$199)) -> 0 | I37: =IF($D$4="MAP+ADM Waivers",SUMIF('C Report'!$A$100:$A$199,'C Report Grouper'!$D37,'C Report'!G$100:G$199)+SUMIF('C Report'!$A$300:$A$399,'C Report Grouper'!$D37,'C Report'!G$300:G$399),SUMIF('C Report'!$A$100:$A$199,'C Report Grouper'!$D37,'C Report'!G$100:G$199)) -> 0 | J37: =IF($D$4="MAP+ADM Waivers",SUMIF('C Report'!$A$100:$A$199,'C Report Grouper'!$D37,'C Report'!H$100:H$199)+SUMIF('C Report'!$A$300:$A$399,'C Report Grouper'!$D37,'C Report'!H$300:H$399),SUMIF('C Report'!$A$100:$A$199,'C Report Grouper'!$D37,'C Report'!H$100:H$199)) -> 0 | K37: =IF($D$4="MAP+ADM Waivers",SUMIF('C Report'!$A$100:$A$199,'C Report Grouper'!$D37,'C Report'!I$100:I$199)+SUMIF('C Report'!$A$300:$A$399,'C Report Grouper'!$D37,'C Report'!I$300:I$399),SUMIF('C Report'!$A$100:$A$199,'C Report Grouper'!$D37,'C Report'!I$100:I$199)) -> 0 | L37: =IF($D$4="MAP+ADM Waivers",SUMIF('C Report'!$A$100:$A$199,'C Report Grouper'!$D37,'C Report'!J$100:J$199)+SUMIF('C Report'!$A$300:$A$399,'C Report Grouper'!$D37,'C Report'!J$300:J$399),SUMIF('C Report'!$A$100:$A$199,'C Report Grouper'!$D37,'C Report'!J$100:J$199)) -> 0 | M37: =IF($D$4="MAP+ADM Waivers",SUMIF('C Report'!$A$100:$A$199,'C Report Grouper'!$D37,'C Report'!K$100:K$199)+SUMIF('C Report'!$A$300:$A$399,'C Report Grouper'!$D37,'C Report'!K$300:K$399),SUMIF('C Report'!$A$100:$A$199,'C Report Grouper'!$D37,'C Report'!K$100:K$199)) -> 0 | N37: =IF($D$4="MAP+ADM Waivers",SUMIF('C Report'!$A$100:$A$199,'C Report Grouper'!$D37,'C Report'!L$100:L$199)+SUMIF('C Report'!$A$300:$A$399,'C Report Grouper'!$D37,'C Report'!L$300:L$399),SUMIF('C Report'!$A$100:$A$199,'C Report Grouper'!$D37,'C Report'!L$100:L$199)) -> 0 | O37: =IF($D$4="MAP+ADM Waivers",SUMIF('C Report'!$A$100:$A$199,'C Report Grouper'!$D37,'C Report'!M$100:M$199)+SUMIF('C Report'!$A$300:$A$399,'C Report Grouper'!$D37,'C Report'!M$300:M$399),SUMIF('C Report'!$A$100:$A$199,'C Report Grouper'!$D37,'C Report'!M$100:M$199)) -> 0 | P37: =IF($D$4="MAP+ADM Waivers",SUMIF('C Report'!$A$100:$A$199,'C Report Grouper'!$D37,'C Report'!N$100:N$199)+SUMIF('C Report'!$A$300:$A$399,'C Report Grouper'!$D37,'C Report'!N$300:N$399),SUMIF('C Report'!$A$100:$A$199,'C Report Grouper'!$D37,'C Report'!N$100:N$199)) -> 0 | Q37: =IF($D$4="MAP+ADM Waivers",SUMIF('C Report'!$A$100:$A$199,'C Report Grouper'!$D37,'C Report'!O$100:O$199)+SUMIF('C Report'!$A$300:$A$399,'C Report Grouper'!$D37,'C Report'!O$300:O$399),SUMIF('C Report'!$A$100:$A$199,'C Report Grouper'!$D37,'C Report'!O$100:O$199)) -> 0 | R37: =IF($D$4="MAP+ADM Waivers",SUMIF('C Report'!$A$100:$A$199,'C Report Grouper'!$D37,'C Report'!P$100:P$199)+SUMIF('C Report'!$A$300:$A$399,'C Report Grouper'!$D37,'C Report'!P$300:P$399),SUMIF('C Report'!$A$100:$A$199,'C Report Grouper'!$D37,'C Report'!P$100:P$199)) -> 0 | S37: =IF($D$4="MAP+ADM Waivers",SUMIF('C Report'!$A$100:$A$199,'C Report Grouper'!$D37,'C Report'!Q$100:Q$199)+SUMIF('C Report'!$A$300:$A$399,'C Report Grouper'!$D37,'C Report'!Q$300:Q$399),SUMIF('C Report'!$A$100:$A$199,'C Report Grouper'!$D37,'C Report'!Q$100:Q$199)) -> 0 | T37: =IF($D$4="MAP+ADM Waivers",SUMIF('C Report'!$A$100:$A$199,'C Report Grouper'!$D37,'C Report'!R$100:R$199)+SUMIF('C Report'!$A$300:$A$399,'C Report Grouper'!$D37,'C Report'!R$300:R$399),SUMIF('C Report'!$A$100:$A$199,'C Report Grouper'!$D37,'C Report'!R$100:R$199)) -> 0 | U37: =IF($D$4="MAP+ADM Waivers",SUMIF('C Report'!$A$100:$A$199,'C Report Grouper'!$D37,'C Report'!S$100:S$199)+SUMIF('C Report'!$A$300:$A$399,'C Report Grouper'!$D37,'C Report'!S$300:S$399),SUMIF('C Report'!$A$100:$A$199,'C Report Grouper'!$D37,'C Report'!S$100:S$199)) -> 0 | V37: =IF($D$4="MAP+ADM Waivers",SUMIF('C Report'!$A$100:$A$199,'C Report Grouper'!$D37,'C Report'!T$100:T$199)+SUMIF('C Report'!$A$300:$A$399,'C Report Grouper'!$D37,'C Report'!T$300:T$399),SUMIF('C Report'!$A$100:$A$199,'C Report Grouper'!$D37,'C Report'!T$100:T$199)) -> 0 | W37: =IF($D$4="MAP+ADM Waivers",SUMIF('C Report'!$A$100:$A$199,'C Report Grouper'!$D37,'C Report'!U$100:U$199)+SUMIF('C Report'!$A$300:$A$399,'C Report Grouper'!$D37,'C Report'!U$300:U$399),SUMIF('C Report'!$A$100:$A$199,'C Report Grouper'!$D37,'C Report'!U$100:U$199)) -> 0 | X37: =IF($D$4="MAP+ADM Waivers",SUMIF('C Report'!$A$100:$A$199,'C Report Grouper'!$D37,'C Report'!V$100:V$199)+SUMIF('C Report'!$A$300:$A$399,'C Report Grouper'!$D37,'C Report'!V$300:V$399),SUMIF('C Report'!$A$100:$A$199,'C Report Grouper'!$D37,'C Report'!V$100:V$199)) -> 0 | Y37: =IF($D$4="MAP+ADM Waivers",SUMIF('C Report'!$A$100:$A$199,'C Report Grouper'!$D37,'C Report'!W$100:W$199)+SUMIF('C Report'!$A$300:$A$399,'C Report Grouper'!$D37,'C Report'!W$300:W$399),SUMIF('C Report'!$A$100:$A$199,'C Report Grouper'!$D37,'C Report'!W$100:W$199)) -> 0 | Z37: =IF($D$4="MAP+ADM Waivers",SUMIF('C Report'!$A$100:$A$199,'C Report Grouper'!$D37,'C Report'!X$100:X$199)+SUMIF('C Report'!$A$300:$A$399,'C Report Grouper'!$D37,'C Report'!X$300:X$399),SUMIF('C Report'!$A$100:$A$199,'C Report Grouper'!$D37,'C Report'!X$100:X$199)) -> 0 | AA37: =IF($D$4="MAP+ADM Waivers",SUMIF('C Report'!$A$100:$A$199,'C Report Grouper'!$D37,'C Report'!Y$100:Y$199)+SUMIF('C Report'!$A$300:$A$399,'C Report Grouper'!$D37,'C Report'!Y$300:Y$399),SUMIF('C Report'!$A$100:$A$199,'C Report Grouper'!$D37,'C Report'!Y$100:Y$199)) -> 0 | AB37: =IF($D$4="MAP+ADM Waivers",SUMIF('C Report'!$A$100:$A$199,'C Report Grouper'!$D37,'C Report'!Z$100:Z$199)+SUMIF('C Report'!$A$300:$A$399,'C Report Grouper'!$D37,'C Report'!Z$300:Z$399),SUMIF('C Report'!$A$100:$A$199,'C Report Grouper'!$D37,'C Report'!Z$100:Z$199)) -> 0 | AC37: =IF($D$4="MAP+ADM Waivers",SUMIF('C Report'!$A$100:$A$199,'C Report Grouper'!$D37,'C Report'!AA$100:AA$199)+SUMIF('C Report'!$A$300:$A$399,'C Report Grouper'!$D37,'C Report'!AA$300:AA$399),SUMIF('C Report'!$A$100:$A$199,'C Report Grouper'!$D37,'C Report'!AA$100:AA$199)) -> 0 | AD37: =IF($D$4="MAP+ADM Waivers",SUMIF('C Report'!$A$100:$A$199,'C Report Grouper'!$D37,'C Report'!AB$100:AB$199)+SUMIF('C Report'!$A$300:$A$399,'C Report Grouper'!$D37,'C Report'!AB$300:AB$399),SUMIF('C Report'!$A$100:$A$199,'C Report Grouper'!$D37,'C Report'!AB$100:AB$199)) -> 0 | AE37: =IF($D$4="MAP+ADM Waivers",SUMIF('C Report'!$A$100:$A$199,'C Report Grouper'!$D37,'C Report'!AC$100:AC$199)+SUMIF('C Report'!$A$300:$A$399,'C Report Grouper'!$D37,'C Report'!AC$300:AC$399),SUMIF('C Report'!$A$100:$A$199,'C Report Grouper'!$D37,'C Report'!AC$100:AC$199)) -> 0 | AF37: =IF($D$4="MAP+ADM Waivers",SUMIF('C Report'!$A$100:$A$199,'C Report Grouper'!$D37,'C Report'!AD$100:AD$199)+SUMIF('C Report'!$A$300:$A$399,'C Report Grouper'!$D37,'C Report'!AD$300:AD$399),SUMIF('C Report'!$A$100:$A$199,'C Report Grouper'!$D37,'C Report'!AD$100:AD$199)) -> 0 | AG37: =IF($D$4="MAP+ADM Waivers",SUMIF('C Report'!$A$100:$A$199,'C Report Grouper'!$D37,'C Report'!AE$100:AE$199)+SUMIF('C Report'!$A$300:$A$399,'C Report Grouper'!$D37,'C Report'!AE$300:AE$399),SUMIF('C Report'!$A$100:$A$199,'C Report Grouper'!$D37,'C Report'!AE$100:AE$199)) -> 0 | AH37: =IF($D$4="MAP+ADM Waivers",SUMIF('C Report'!$A$100:$A$199,'C Report Grouper'!$D37,'C Report'!AF$100:AF$199)+SUMIF('C Report'!$A$300:$A$399,'C Report Grouper'!$D37,'C Report'!AF$300:AF$399),SUMIF('C Report'!$A$100:$A$199,'C Report Grouper'!$D37,'C Report'!AF$100:AF$199)) -> 0
B38: =IFERROR(VLOOKUP(C38,'MEG Def'!$A$47:$B$50,2),"") ->  | E38: =IF($D$4="MAP+ADM Waivers",SUMIF('C Report'!$A$100:$A$199,'C Report Grouper'!$D38,'C Report'!C$100:C$199)+SUMIF('C Report'!$A$300:$A$399,'C Report Grouper'!$D38,'C Report'!C$300:C$399),SUMIF('C Report'!$A$100:$A$199,'C Report Grouper'!$D38,'C Report'!C$100:C$199)) -> 0 | F38: =IF($D$4="MAP+ADM Waivers",SUMIF('C Report'!$A$100:$A$199,'C Report Grouper'!$D38,'C Report'!D$100:D$199)+SUMIF('C Report'!$A$300:$A$399,'C Report Grouper'!$D38,'C Report'!D$300:D$399),SUMIF('C Report'!$A$100:$A$199,'C Report Grouper'!$D38,'C Report'!D$100:D$199)) -> 0 | G38: =IF($D$4="MAP+ADM Waivers",SUMIF('C Report'!$A$100:$A$199,'C Report Grouper'!$D38,'C Report'!E$100:E$199)+SUMIF('C Report'!$A$300:$A$399,'C Report Grouper'!$D38,'C Report'!E$300:E$399),SUMIF('C Report'!$A$100:$A$199,'C Report Grouper'!$D38,'C Report'!E$100:E$199)) -> 0 | H38: =IF($D$4="MAP+ADM Waivers",SUMIF('C Report'!$A$100:$A$199,'C Report Grouper'!$D38,'C Report'!F$100:F$199)+SUMIF('C Report'!$A$300:$A$399,'C Report Grouper'!$D38,'C Report'!F$300:F$399),SUMIF('C Report'!$A$100:$A$199,'C Report Grouper'!$D38,'C Report'!F$100:F$199)) -> 0 | I38: =IF($D$4="MAP+ADM Waivers",SUMIF('C Report'!$A$100:$A$199,'C Report Grouper'!$D38,'C Report'!G$100:G$199)+SUMIF('C Report'!$A$300:$A$399,'C Report Grouper'!$D38,'C Report'!G$300:G$399),SUMIF('C Report'!$A$100:$A$199,'C Report Grouper'!$D38,'C Report'!G$100:G$199)) -> 0 | J38: =IF($D$4="MAP+ADM Waivers",SUMIF('C Report'!$A$100:$A$199,'C Report Grouper'!$D38,'C Report'!H$100:H$199)+SUMIF('C Report'!$A$300:$A$399,'C Report Grouper'!$D38,'C Report'!H$300:H$399),SUMIF('C Report'!$A$100:$A$199,'C Report Grouper'!$D38,'C Report'!H$100:H$199)) -> 0 | K38: =IF($D$4="MAP+ADM Waivers",SUMIF('C Report'!$A$100:$A$199,'C Report Grouper'!$D38,'C Report'!I$100:I$199)+SUMIF('C Report'!$A$300:$A$399,'C Report Grouper'!$D38,'C Report'!I$300:I$399),SUMIF('C Report'!$A$100:$A$199,'C Report Grouper'!$D38,'C Report'!I$100:I$199)) -> 0 | L38: =IF($D$4="MAP+ADM Waivers",SUMIF('C Report'!$A$100:$A$199,'C Report Grouper'!$D38,'C Report'!J$100:J$199)+SUMIF('C Report'!$A$300:$A$399,'C Report Grouper'!$D38,'C Report'!J$300:J$399),SUMIF('C Report'!$A$100:$A$199,'C Report Grouper'!$D38,'C Report'!J$100:J$199)) -> 0 | M38: =IF($D$4="MAP+ADM Waivers",SUMIF('C Report'!$A$100:$A$199,'C Report Grouper'!$D38,'C Report'!K$100:K$199)+SUMIF('C Report'!$A$300:$A$399,'C Report Grouper'!$D38,'C Report'!K$300:K$399),SUMIF('C Report'!$A$100:$A$199,'C Report Grouper'!$D38,'C Report'!K$100:K$199)) -> 0 | N38: =IF($D$4="MAP+ADM Waivers",SUMIF('C Report'!$A$100:$A$199,'C Report Grouper'!$D38,'C Report'!L$100:L$199)+SUMIF('C Report'!$A$300:$A$399,'C Report Grouper'!$D38,'C Report'!L$300:L$399),SUMIF('C Report'!$A$100:$A$199,'C Report Grouper'!$D38,'C Report'!L$100:L$199)) -> 0 | O38: =IF($D$4="MAP+ADM Waivers",SUMIF('C Report'!$A$100:$A$199,'C Report Grouper'!$D38,'C Report'!M$100:M$199)+SUMIF('C Report'!$A$300:$A$399,'C Report Grouper'!$D38,'C Report'!M$300:M$399),SUMIF('C Report'!$A$100:$A$199,'C Report Grouper'!$D38,'C Report'!M$100:M$199)) -> 0 | P38: =IF($D$4="MAP+ADM Waivers",SUMIF('C Report'!$A$100:$A$199,'C Report Grouper'!$D38,'C Report'!N$100:N$199)+SUMIF('C Report'!$A$300:$A$399,'C Report Grouper'!$D38,'C Report'!N$300:N$399),SUMIF('C Report'!$A$100:$A$199,'C Report Grouper'!$D38,'C Report'!N$100:N$199)) -> 0 | Q38: =IF($D$4="MAP+ADM Waivers",SUMIF('C Report'!$A$100:$A$199,'C Report Grouper'!$D38,'C Report'!O$100:O$199)+SUMIF('C Report'!$A$300:$A$399,'C Report Grouper'!$D38,'C Report'!O$300:O$399),SUMIF('C Report'!$A$100:$A$199,'C Report Grouper'!$D38,'C Report'!O$100:O$199)) -> 0 | R38: =IF($D$4="MAP+ADM Waivers",SUMIF('C Report'!$A$100:$A$199,'C Report Grouper'!$D38,'C Report'!P$100:P$199)+SUMIF('C Report'!$A$300:$A$399,'C Report Grouper'!$D38,'C Report'!P$300:P$399),SUMIF('C Report'!$A$100:$A$199,'C Report Grouper'!$D38,'C Report'!P$100:P$199)) -> 0 | S38: =IF($D$4="MAP+ADM Waivers",SUMIF('C Report'!$A$100:$A$199,'C Report Grouper'!$D38,'C Report'!Q$100:Q$199)+SUMIF('C Report'!$A$300:$A$399,'C Report Grouper'!$D38,'C Report'!Q$300:Q$399),SUMIF('C Report'!$A$100:$A$199,'C Report Grouper'!$D38,'C Report'!Q$100:Q$199)) -> 0 | T38: =IF($D$4="MAP+ADM Waivers",SUMIF('C Report'!$A$100:$A$199,'C Report Grouper'!$D38,'C Report'!R$100:R$199)+SUMIF('C Report'!$A$300:$A$399,'C Report Grouper'!$D38,'C Report'!R$300:R$399),SUMIF('C Report'!$A$100:$A$199,'C Report Grouper'!$D38,'C Report'!R$100:R$199)) -> 0 | U38: =IF($D$4="MAP+ADM Waivers",SUMIF('C Report'!$A$100:$A$199,'C Report Grouper'!$D38,'C Report'!S$100:S$199)+SUMIF('C Report'!$A$300:$A$399,'C Report Grouper'!$D38,'C Report'!S$300:S$399),SUMIF('C Report'!$A$100:$A$199,'C Report Grouper'!$D38,'C Report'!S$100:S$199)) -> 0 | V38: =IF($D$4="MAP+ADM Waivers",SUMIF('C Report'!$A$100:$A$199,'C Report Grouper'!$D38,'C Report'!T$100:T$199)+SUMIF('C Report'!$A$300:$A$399,'C Report Grouper'!$D38,'C Report'!T$300:T$399),SUMIF('C Report'!$A$100:$A$199,'C Report Grouper'!$D38,'C Report'!T$100:T$199)) -> 0 | W38: =IF($D$4="MAP+ADM Waivers",SUMIF('C Report'!$A$100:$A$199,'C Report Grouper'!$D38,'C Report'!U$100:U$199)+SUMIF('C Report'!$A$300:$A$399,'C Report Grouper'!$D38,'C Report'!U$300:U$399),SUMIF('C Report'!$A$100:$A$199,'C Report Grouper'!$D38,'C Report'!U$100:U$199)) -> 0 | X38: =IF($D$4="MAP+ADM Waivers",SUMIF('C Report'!$A$100:$A$199,'C Report Grouper'!$D38,'C Report'!V$100:V$199)+SUMIF('C Report'!$A$300:$A$399,'C Report Grouper'!$D38,'C Report'!V$300:V$399),SUMIF('C Report'!$A$100:$A$199,'C Report Grouper'!$D38,'C Report'!V$100:V$199)) -> 0 | Y38: =IF($D$4="MAP+ADM Waivers",SUMIF('C Report'!$A$100:$A$199,'C Report Grouper'!$D38,'C Report'!W$100:W$199)+SUMIF('C Report'!$A$300:$A$399,'C Report Grouper'!$D38,'C Report'!W$300:W$399),SUMIF('C Report'!$A$100:$A$199,'C Report Grouper'!$D38,'C Report'!W$100:W$199)) -> 0 | Z38: =IF($D$4="MAP+ADM Waivers",SUMIF('C Report'!$A$100:$A$199,'C Report Grouper'!$D38,'C Report'!X$100:X$199)+SUMIF('C Report'!$A$300:$A$399,'C Report Grouper'!$D38,'C Report'!X$300:X$399),SUMIF('C Report'!$A$100:$A$199,'C Report Grouper'!$D38,'C Report'!X$100:X$199)) -> 0 | AA38: =IF($D$4="MAP+ADM Waivers",SUMIF('C Report'!$A$100:$A$199,'C Report Grouper'!$D38,'C Report'!Y$100:Y$199)+SUMIF('C Report'!$A$300:$A$399,'C Report Grouper'!$D38,'C Report'!Y$300:Y$399),SUMIF('C Report'!$A$100:$A$199,'C Report Grouper'!$D38,'C Report'!Y$100:Y$199)) -> 0 | AB38: =IF($D$4="MAP+ADM Waivers",SUMIF('C Report'!$A$100:$A$199,'C Report Grouper'!$D38,'C Report'!Z$100:Z$199)+SUMIF('C Report'!$A$300:$A$399,'C Report Grouper'!$D38,'C Report'!Z$300:Z$399),SUMIF('C Report'!$A$100:$A$199,'C Report Grouper'!$D38,'C Report'!Z$100:Z$199)) -> 0 | AC38: =IF($D$4="MAP+ADM Waivers",SUMIF('C Report'!$A$100:$A$199,'C Report Grouper'!$D38,'C Report'!AA$100:AA$199)+SUMIF('C Report'!$A$300:$A$399,'C Report Grouper'!$D38,'C Report'!AA$300:AA$399),SUMIF('C Report'!$A$100:$A$199,'C Report Grouper'!$D38,'C Report'!AA$100:AA$199)) -> 0 | AD38: =IF($D$4="MAP+ADM Waivers",SUMIF('C Report'!$A$100:$A$199,'C Report Grouper'!$D38,'C Report'!AB$100:AB$199)+SUMIF('C Report'!$A$300:$A$399,'C Report Grouper'!$D38,'C Report'!AB$300:AB$399),SUMIF('C Report'!$A$100:$A$199,'C Report Grouper'!$D38,'C Report'!AB$100:AB$199)) -> 0 | AE38: =IF($D$4="MAP+ADM Waivers",SUMIF('C Report'!$A$100:$A$199,'C Report Grouper'!$D38,'C Report'!AC$100:AC$199)+SUMIF('C Report'!$A$300:$A$399,'C Report Grouper'!$D38,'C Report'!AC$300:AC$399),SUMIF('C Report'!$A$100:$A$199,'C Report Grouper'!$D38,'C Report'!AC$100:AC$199)) -> 0 | AF38: =IF($D$4="MAP+ADM Waivers",SUMIF('C Report'!$A$100:$A$199,'C Report Grouper'!$D38,'C Report'!AD$100:AD$199)+SUMIF('C Report'!$A$300:$A$399,'C Report Grouper'!$D38,'C Report'!AD$300:AD$399),SUMIF('C Report'!$A$100:$A$199,'C Report Grouper'!$D38,'C Report'!AD$100:AD$199)) -> 0 | AG38: =IF($D$4="MAP+ADM Waivers",SUMIF('C Report'!$A$100:$A$199,'C Report Grouper'!$D38,'C Report'!AE$100:AE$199)+SUMIF('C Report'!$A$300:$A$399,'C Report Grouper'!$D38,'C Report'!AE$300:AE$399),SUMIF('C Report'!$A$100:$A$199,'C Report Grouper'!$D38,'C Report'!AE$100:AE$199)) -> 0 | AH38: =IF($D$4="MAP+ADM Waivers",SUMIF('C Report'!$A$100:$A$199,'C Report Grouper'!$D38,'C Report'!AF$100:AF$199)+SUMIF('C Report'!$A$300:$A$399,'C Report Grouper'!$D38,'C Report'!AF$300:AF$399),SUMIF('C Report'!$A$100:$A$199,'C Report Grouper'!$D38,'C Report'!AF$100:AF$199)) -> 0
E39: =IF($D$4="MAP+ADM Waivers",SUMIF('C Report'!$A$100:$A$199,'C Report Grouper'!$D39,'C Report'!C$100:C$199)+SUMIF('C Report'!$A$300:$A$399,'C Report Grouper'!$D39,'C Report'!C$300:C$399),SUMIF('C Report'!$A$100:$A$199,'C Report Grouper'!$D39,'C Report'!C$100:C$199)) -> 0 | F39: =IF($D$4="MAP+ADM Waivers",SUMIF('C Report'!$A$100:$A$199,'C Report Grouper'!$D39,'C Report'!D$100:D$199)+SUMIF('C Report'!$A$300:$A$399,'C Report Grouper'!$D39,'C Report'!D$300:D$399),SUMIF('C Report'!$A$100:$A$199,'C Report Grouper'!$D39,'C Report'!D$100:D$199)) -> 0 | G39: =IF($D$4="MAP+ADM Waivers",SUMIF('C Report'!$A$100:$A$199,'C Report Grouper'!$D39,'C Report'!E$100:E$199)+SUMIF('C Report'!$A$300:$A$399,'C Report Grouper'!$D39,'C Report'!E$300:E$399),SUMIF('C Report'!$A$100:$A$199,'C Report Grouper'!$D39,'C Report'!E$100:E$199)) -> 0 | H39: =IF($D$4="MAP+ADM Waivers",SUMIF('C Report'!$A$100:$A$199,'C Report Grouper'!$D39,'C Report'!F$100:F$199)+SUMIF('C Report'!$A$300:$A$399,'C Report Grouper'!$D39,'C Report'!F$300:F$399),SUMIF('C Report'!$A$100:$A$199,'C Report Grouper'!$D39,'C Report'!F$100:F$199)) -> 0 | I39: =IF($D$4="MAP+ADM Waivers",SUMIF('C Report'!$A$100:$A$199,'C Report Grouper'!$D39,'C Report'!G$100:G$199)+SUMIF('C Report'!$A$300:$A$399,'C Report Grouper'!$D39,'C Report'!G$300:G$399),SUMIF('C Report'!$A$100:$A$199,'C Report Grouper'!$D39,'C Report'!G$100:G$199)) -> 0 | J39: =IF($D$4="MAP+ADM Waivers",SUMIF('C Report'!$A$100:$A$199,'C Report Grouper'!$D39,'C Report'!H$100:H$199)+SUMIF('C Report'!$A$300:$A$399,'C Report Grouper'!$D39,'C Report'!H$300:H$399),SUMIF('C Report'!$A$100:$A$199,'C Report Grouper'!$D39,'C Report'!H$100:H$199)) -> 0 | K39: =IF($D$4="MAP+ADM Waivers",SUMIF('C Report'!$A$100:$A$199,'C Report Grouper'!$D39,'C Report'!I$100:I$199)+SUMIF('C Report'!$A$300:$A$399,'C Report Grouper'!$D39,'C Report'!I$300:I$399),SUMIF('C Report'!$A$100:$A$199,'C Report Grouper'!$D39,'C Report'!I$100:I$199)) -> 0 | L39: =IF($D$4="MAP+ADM Waivers",SUMIF('C Report'!$A$100:$A$199,'C Report Grouper'!$D39,'C Report'!J$100:J$199)+SUMIF('C Report'!$A$300:$A$399,'C Report Grouper'!$D39,'C Report'!J$300:J$399),SUMIF('C Report'!$A$100:$A$199,'C Report Grouper'!$D39,'C Report'!J$100:J$199)) -> 0 | M39: =IF($D$4="MAP+ADM Waivers",SUMIF('C Report'!$A$100:$A$199,'C Report Grouper'!$D39,'C Report'!K$100:K$199)+SUMIF('C Report'!$A$300:$A$399,'C Report Grouper'!$D39,'C Report'!K$300:K$399),SUMIF('C Report'!$A$100:$A$199,'C Report Grouper'!$D39,'C Report'!K$100:K$199)) -> 0 | N39: =IF($D$4="MAP+ADM Waivers",SUMIF('C Report'!$A$100:$A$199,'C Report Grouper'!$D39,'C Report'!L$100:L$199)+SUMIF('C Report'!$A$300:$A$399,'C Report Grouper'!$D39,'C Report'!L$300:L$399),SUMIF('C Report'!$A$100:$A$199,'C Report Grouper'!$D39,'C Report'!L$100:L$199)) -> 0 | O39: =IF($D$4="MAP+ADM Waivers",SUMIF('C Report'!$A$100:$A$199,'C Report Grouper'!$D39,'C Report'!M$100:M$199)+SUMIF('C Report'!$A$300:$A$399,'C Report Grouper'!$D39,'C Report'!M$300:M$399),SUMIF('C Report'!$A$100:$A$199,'C Report Grouper'!$D39,'C Report'!M$100:M$199)) -> 0 | P39: =IF($D$4="MAP+ADM Waivers",SUMIF('C Report'!$A$100:$A$199,'C Report Grouper'!$D39,'C Report'!N$100:N$199)+SUMIF('C Report'!$A$300:$A$399,'C Report Grouper'!$D39,'C Report'!N$300:N$399),SUMIF('C Report'!$A$100:$A$199,'C Report Grouper'!$D39,'C Report'!N$100:N$199)) -> 0 | Q39: =IF($D$4="MAP+ADM Waivers",SUMIF('C Report'!$A$100:$A$199,'C Report Grouper'!$D39,'C Report'!O$100:O$199)+SUMIF('C Report'!$A$300:$A$399,'C Report Grouper'!$D39,'C Report'!O$300:O$399),SUMIF('C Report'!$A$100:$A$199,'C Report Grouper'!$D39,'C Report'!O$100:O$199)) -> 0 | R39: =IF($D$4="MAP+ADM Waivers",SUMIF('C Report'!$A$100:$A$199,'C Report Grouper'!$D39,'C Report'!P$100:P$199)+SUMIF('C Report'!$A$300:$A$399,'C Report Grouper'!$D39,'C Report'!P$300:P$399),SUMIF('C Report'!$A$100:$A$199,'C Report Grouper'!$D39,'C Report'!P$100:P$199)) -> 0 | S39: =IF($D$4="MAP+ADM Waivers",SUMIF('C Report'!$A$100:$A$199,'C Report Grouper'!$D39,'C Report'!Q$100:Q$199)+SUMIF('C Report'!$A$300:$A$399,'C Report Grouper'!$D39,'C Report'!Q$300:Q$399),SUMIF('C Report'!$A$100:$A$199,'C Report Grouper'!$D39,'C Report'!Q$100:Q$199)) -> 0 | T39: =IF($D$4="MAP+ADM Waivers",SUMIF('C Report'!$A$100:$A$199,'C Report Grouper'!$D39,'C Report'!R$100:R$199)+SUMIF('C Report'!$A$300:$A$399,'C Report Grouper'!$D39,'C Report'!R$300:R$399),SUMIF('C Report'!$A$100:$A$199,'C Report Grouper'!$D39,'C Report'!R$100:R$199)) -> 0 | U39: =IF($D$4="MAP+ADM Waivers",SUMIF('C Report'!$A$100:$A$199,'C Report Grouper'!$D39,'C Report'!S$100:S$199)+SUMIF('C Report'!$A$300:$A$399,'C Report Grouper'!$D39,'C Report'!S$300:S$399),SUMIF('C Report'!$A$100:$A$199,'C Report Grouper'!$D39,'C Report'!S$100:S$199)) -> 0 | V39: =IF($D$4="MAP+ADM Waivers",SUMIF('C Report'!$A$100:$A$199,'C Report Grouper'!$D39,'C Report'!T$100:T$199)+SUMIF('C Report'!$A$300:$A$399,'C Report Grouper'!$D39,'C Report'!T$300:T$399),SUMIF('C Report'!$A$100:$A$199,'C Report Grouper'!$D39,'C Report'!T$100:T$199)) -> 0 | W39: =IF($D$4="MAP+ADM Waivers",SUMIF('C Report'!$A$100:$A$199,'C Report Grouper'!$D39,'C Report'!U$100:U$199)+SUMIF('C Report'!$A$300:$A$399,'C Report Grouper'!$D39,'C Report'!U$300:U$399),SUMIF('C Report'!$A$100:$A$199,'C Report Grouper'!$D39,'C Report'!U$100:U$199)) -> 0 | X39: =IF($D$4="MAP+ADM Waivers",SUMIF('C Report'!$A$100:$A$199,'C Report Grouper'!$D39,'C Report'!V$100:V$199)+SUMIF('C Report'!$A$300:$A$399,'C Report Grouper'!$D39,'C Report'!V$300:V$399),SUMIF('C Report'!$A$100:$A$199,'C Report Grouper'!$D39,'C Report'!V$100:V$199)) -> 0 | Y39: =IF($D$4="MAP+ADM Waivers",SUMIF('C Report'!$A$100:$A$199,'C Report Grouper'!$D39,'C Report'!W$100:W$199)+SUMIF('C Report'!$A$300:$A$399,'C Report Grouper'!$D39,'C Report'!W$300:W$399),SUMIF('C Report'!$A$100:$A$199,'C Report Grouper'!$D39,'C Report'!W$100:W$199)) -> 0 | Z39: =IF($D$4="MAP+ADM Waivers",SUMIF('C Report'!$A$100:$A$199,'C Report Grouper'!$D39,'C Report'!X$100:X$199)+SUMIF('C Report'!$A$300:$A$399,'C Report Grouper'!$D39,'C Report'!X$300:X$399),SUMIF('C Report'!$A$100:$A$199,'C Report Grouper'!$D39,'C Report'!X$100:X$199)) -> 0 | AA39: =IF($D$4="MAP+ADM Waivers",SUMIF('C Report'!$A$100:$A$199,'C Report Grouper'!$D39,'C Report'!Y$100:Y$199)+SUMIF('C Report'!$A$300:$A$399,'C Report Grouper'!$D39,'C Report'!Y$300:Y$399),SUMIF('C Report'!$A$100:$A$199,'C Report Grouper'!$D39,'C Report'!Y$100:Y$199)) -> 0 | AB39: =IF($D$4="MAP+ADM Waivers",SUMIF('C Report'!$A$100:$A$199,'C Report Grouper'!$D39,'C Report'!Z$100:Z$199)+SUMIF('C Report'!$A$300:$A$399,'C Report Grouper'!$D39,'C Report'!Z$300:Z$399),SUMIF('C Report'!$A$100:$A$199,'C Report Grouper'!$D39,'C Report'!Z$100:Z$199)) -> 0 | AC39: =IF($D$4="MAP+ADM Waivers",SUMIF('C Report'!$A$100:$A$199,'C Report Grouper'!$D39,'C Report'!AA$100:AA$199)+SUMIF('C Report'!$A$300:$A$399,'C Report Grouper'!$D39,'C Report'!AA$300:AA$399),SUMIF('C Report'!$A$100:$A$199,'C Report Grouper'!$D39,'C Report'!AA$100:AA$199)) -> 0 | AD39: =IF($D$4="MAP+ADM Waivers",SUMIF('C Report'!$A$100:$A$199,'C Report Grouper'!$D39,'C Report'!AB$100:AB$199)+SUMIF('C Report'!$A$300:$A$399,'C Report Grouper'!$D39,'C Report'!AB$300:AB$399),SUMIF('C Report'!$A$100:$A$199,'C Report Grouper'!$D39,'C Report'!AB$100:AB$199)) -> 0 | AE39: =IF($D$4="MAP+ADM Waivers",SUMIF('C Report'!$A$100:$A$199,'C Report Grouper'!$D39,'C Report'!AC$100:AC$199)+SUMIF('C Report'!$A$300:$A$399,'C Report Grouper'!$D39,'C Report'!AC$300:AC$399),SUMIF('C Report'!$A$100:$A$199,'C Report Grouper'!$D39,'C Report'!AC$100:AC$199)) -> 0 | AF39: =IF($D$4="MAP+ADM Waivers",SUMIF('C Report'!$A$100:$A$199,'C Report Grouper'!$D39,'C Report'!AD$100:AD$199)+SUMIF('C Report'!$A$300:$A$399,'C Report Grouper'!$D39,'C Report'!AD$300:AD$399),SUMIF('C Report'!$A$100:$A$199,'C Report Grouper'!$D39,'C Report'!AD$100:AD$199)) -> 0 | AG39: =IF($D$4="MAP+ADM Waivers",SUMIF('C Report'!$A$100:$A$199,'C Report Grouper'!$D39,'C Report'!AE$100:AE$199)+SUMIF('C Report'!$A$300:$A$399,'C Report Grouper'!$D39,'C Report'!AE$300:AE$399),SUMIF('C Report'!$A$100:$A$199,'C Report Grouper'!$D39,'C Report'!AE$100:AE$199)) -> 0 | AH39: =IF($D$4="MAP+ADM Waivers",SUMIF('C Report'!$A$100:$A$199,'C Report Grouper'!$D39,'C Report'!AF$100:AF$199)+SUMIF('C Report'!$A$300:$A$399,'C Report Grouper'!$D39,'C Report'!AF$300:AF$399),SUMIF('C Report'!$A$100:$A$199,'C Report Grouper'!$D39,'C Report'!AF$100:AF$199)) -> 0
